Workbook

Sheet Basic Case
B1: Period | I1: 0 | J1: 1 | K1: 2 | L1: 3 | M1: 4 | N1: 5 | O1: 6 | P1: 7 | Q1: 8 | R1: 9 | S1: 10 | T1: 11 | U1: 12 | V1: 13 | W1: 14 | X1: 15 | Y1: 16 | Z1: 17 | AA1: 18 | AB1: 19 | AC1: 20 | AD1: 21 | AE1: 22 | AF1: 23 | AG1: 24 | AH1: 25 | AI1: 26 | AJ1: 27 | AK1: 28 | AL1: 29 | AM1: 30 | AN1: 31 | AO1: 32 | AP1: 33 | AQ1: 34 | AR1: 35 | AS1: 36 | AT1: 37 | AU1: 38 | AV1: 39 | AW1: 40 | AX1: 41 | AY1: 42 | AZ1: 43 | BA1: 44 | BB1: 45 | BC1: 46 | BD1: 47 | BE1: 48 | BF1: 49 | BG1: 50 | BH1: 51 | BI1: 52 | BJ1: 53 | BK1: 54 | BL1: 55 | BM1: 56 | BN1: 57 | BO1: 58 | BP1: 59 | BQ1: 60 | BR1: 61 | BS1: 62 | BT1: 63 | BU1: 64 | BV1: 65 | BW1: 66 | BX1: 67 | BY1: 68 | BZ1: 69 | CA1: 70 | CB1: 71 | CC1: 72 | CD1: 73 | CE1: 74 | CF1: 75 | CG1: 76 | CH1: 77 | CI1: 78 | CJ1: 79 | CK1: 80 | CL1: 81 | CM1: 82 | CN1: 83 | CO1: 84 | CP1: 85 | CQ1: 86 | CR1: 87 | CS1: 88 | CT1: 89 | CU1: 90 | CV1: 91 | CW1: 92 | CX1: 93 | CY1: 94 | CZ1: 95 | DA1: 96 | DB1: 97 | DC1: 98 | DD1: 99 | DE1: 100 | DF1: 101 | DG1: 102 | DH1: 103 | DI1: 104 | DJ1: 105 | DK1: 106 | DL1: 107 | DM1: 108 | DN1: 109 | DO1: 110 | DP1: 111 | DQ1: 112 | DR1: 113 | DS1: 114 | DT1: 115 | DU1: 116 | DV1: 117 | DW1: 118 | DX1: 119 | DY1: 120 | DZ1: 121 | EA1: 122 | EB1: 123 | EC1: 124 | ED1: 125 | EE1: 126 | EF1: 127 | EG1: 128 | EH1: 129 | EI1: 130 | EJ1: 131 | EK1: 132 | EL1: 133 | EM1: 134 | EN1: 135 | EO1: 136 | EP1: 137 | EQ1: 138 | ER1: 139 | ES1: 140 | ET1: 141 | EU1: 142 | EV1: 143 | EW1: 144 | EX1: 145 | EY1: 146 | EZ1: 147 | FA1: 148 | FB1: 149 | FC1: 150 | FD1: 151 | FE1: 152 | FF1: 153 | FG1: 154 | FH1: 155 | FI1: 156 | FJ1: 157 | FK1: 158 | FL1: 159 | FM1: 160 | FN1: 161 | FO1: 162 | FP1: 163 | FQ1: 164 | FR1: 165 | FS1: 166 | FT1: 167 | FU1: 168 | FV1: 169 | FW1: 170 | FX1: 171 | FY1: 172 | FZ1: 173 | GA1: 174 | GB1: 175 | GC1: 176 | GD1: 177 | GE1: 178 | GF1: 179 | GG1: 180 | GH1: 181 | GI1: 182 | GJ1: 183 | GK1: 184 | GL1: 185 | GM1: 186 | GN1: 187 | GO1: 188 | GP1: 189 | GQ1: 190 | GR1: 191 | GS1: 192 | GT1: 193 | GU1: 194 | GV1: 195 | GW1: 196 | GX1: 197 | GY1: 198 | GZ1: 199 | HA1: 200 | HB1: 201 | HC1: 202 | HD1: 203 | HE1: 204 | HF1: 205 | HG1: 206 | HH1: 207 | HI1: 208 | HJ1: 209 | HK1: 210 | HL1: 211 | HM1: 212 | HN1: 213 | HO1: 214 | HP1: 215 | HQ1: 216 | HR1: 217 | HS1: 218 | HT1: 219 | HU1: 220 | HV1: 221 | HW1: 222 | HX1: 223 | HY1: 224 | HZ1: 225 | IA1: 226 | IB1: 227 | IC1: 228 | ID1: 229 | IE1: 230 | IF1: 231 | IG1: 232 | IH1: 233 | II1: 234 | IJ1: 235 | IK1: 236 | IL1: 237 | IM1: 238 | IN1: 239 | IO1: 240 | IP1: 241 | IQ1: 242 | IR1: 243 | IS1: 244 | IT1: 245 | IU1: 246 | IV1: 247 | IW1: 248 | IX1: 249 | IY1: 250 | IZ1: 251 | JA1: 252 | JB1: 253 | JC1: 254 | JD1: 255 | JE1: 256 | JF1: 257 | JG1: 258 | JH1: 259 | JI1: 260 | JJ1: 261 | JK1: 262 | JL1: 263 | JM1: 264 | JN1: 265 | JO1: 266 | JP1: 267 | JQ1: 268 | JR1: 269 | JS1: 270 | JT1: 271 | JU1: 272 | JV1: 273 | JW1: 274 | JX1: 275 | JY1: 276 | JZ1: 277 | KA1: 278 | KB1: 279 | KC1: 280 | KD1: 281 | KE1: 282 | KF1: 283 | KG1: 284 | KH1: 285 | KI1: 286 | KJ1: 287 | KK1: 288 | KL1: 289 | KM1: 290 | KN1: 291 | KO1: 292 | KP1: 293 | KQ1: 294 | KR1: 295 | KS1: 296 | KT1: 297 | KU1: 298 | KV1: 299 | KW1: 300
C2: Contract Period | E2: Flag | F2: =F9 -> 20 | I2: =AND(I1>0,I1<=$F$2) -> FALSE | J2: TRUE | K2: TRUE | L2: TRUE | M2: TRUE | N2: TRUE | O2: TRUE | P2: TRUE | Q2: TRUE | R2: TRUE | S2: TRUE | T2: TRUE | U2: TRUE | V2: TRUE | W2: TRUE | X2: TRUE | Y2: TRUE | Z2: TRUE | AA2: TRUE | AB2: TRUE | AC2: TRUE | AD2: FALSE | AE2: FALSE | AF2: FALSE | AG2: FALSE | AH2: FALSE | AI2: FALSE | AJ2: FALSE | AK2: FALSE | AL2: FALSE | AM2: FALSE | AN2: FALSE | AO2: FALSE | AP2: FALSE | AQ2: FALSE | AR2: FALSE | AS2: FALSE | AT2: FALSE | AU2: FALSE | AV2: FALSE | AW2: FALSE | AX2: FALSE | AY2: FALSE | AZ2: FALSE | BA2: FALSE | BB2: FALSE | BC2: FALSE | BD2: FALSE | BE2: FALSE | BF2: FALSE | BG2: FALSE | BH2: FALSE | BI2: FALSE | BJ2: FALSE | BK2: FALSE | BL2: FALSE | BM2: FALSE | BN2: FALSE | BO2: FALSE | BP2: FALSE | BQ2: FALSE | BR2: FALSE | BS2: FALSE | BT2: FALSE | BU2: =AND(BU1>0,BU1<=$F$2) -> FALSE | BV2: FALSE | BW2: FALSE | BX2: FALSE | BY2: FALSE | BZ2: FALSE | CA2: FALSE | CB2: FALSE | CC2: FALSE | CD2: FALSE | CE2: FALSE | CF2: FALSE | CG2: FALSE | CH2: FALSE | CI2: FALSE | CJ2: FALSE | CK2: FALSE | CL2: FALSE | CM2: FALSE | CN2: FALSE | CO2: FALSE | CP2: FALSE | CQ2: FALSE | CR2: FALSE | CS2: FALSE | CT2: FALSE | CU2: FALSE | CV2: FALSE | CW2: FALSE | CX2: FALSE | CY2: FALSE | CZ2: FALSE | DA2: FALSE | DB2: FALSE | DC2: FALSE | DD2: FALSE | DE2: FALSE | DF2: FALSE | DG2: FALSE | DH2: FALSE | DI2: FALSE | DJ2: FALSE | DK2: FALSE | DL2: FALSE | DM2: FALSE | DN2: FALSE | DO2: FALSE | DP2: FALSE | DQ2: FALSE | DR2: FALSE | DS2: FALSE | DT2: FALSE | DU2: FALSE | DV2: FALSE | DW2: FALSE | DX2: FALSE | DY2: FALSE | DZ2: FALSE | EA2: FALSE | EB2: FALSE | EC2: FALSE | ED2: FALSE | EE2: FALSE | EF2: FALSE | EG2: =AND(EG1>0,EG1<=$F$2) -> FALSE | EH2: FALSE | EI2: FALSE | EJ2: FALSE | EK2: FALSE | EL2: FALSE | EM2: FALSE | EN2: FALSE | EO2: FALSE | EP2: FALSE | EQ2: FALSE | ER2: FALSE | ES2: FALSE | ET2: FALSE | EU2: FALSE | EV2: FALSE | EW2: FALSE | EX2: FALSE | EY2: FALSE | EZ2: FALSE | FA2: FALSE | FB2: FALSE | FC2: FALSE | FD2: FALSE | FE2: FALSE | FF2: FALSE | FG2: FALSE | FH2: FALSE | FI2: FALSE | FJ2: FALSE | FK2: FALSE | FL2: FALSE | FM2: FALSE | FN2: FALSE | FO2: FALSE | FP2: FALSE | FQ2: FALSE | FR2: FALSE | FS2: FALSE | FT2: FALSE | FU2: FALSE | FV2: FALSE | FW2: FALSE | FX2: FALSE | FY2: FALSE | FZ2: FALSE | GA2: FALSE | GB2: FALSE | GC2: FALSE | GD2: FALSE | GE2: FALSE | GF2: FALSE | GG2: FALSE | GH2: FALSE | GI2: FALSE | GJ2: FALSE | GK2: FALSE | GL2: FALSE | GM2: FALSE | GN2: FALSE | GO2: FALSE | GP2: FALSE | GQ2: FALSE | GR2: FALSE | GS2: =AND(GS1>0,GS1<=$F$2) -> FALSE | GT2: FALSE | GU2: FALSE | GV2: FALSE | GW2: FALSE | GX2: FALSE | GY2: FALSE | GZ2: FALSE | HA2: FALSE | HB2: FALSE | HC2: FALSE | HD2: FALSE | HE2: FALSE | HF2: FALSE | HG2: FALSE | HH2: FALSE | HI2: FALSE | HJ2: FALSE | HK2: FALSE | HL2: FALSE | HM2: FALSE | HN2: FALSE | HO2: FALSE | HP2: FALSE | HQ2: FALSE | HR2: FALSE | HS2: FALSE | HT2: FALSE | HU2: FALSE | HV2: FALSE | HW2: FALSE | HX2: FALSE | HY2: FALSE | HZ2: FALSE | IA2: FALSE | IB2: FALSE | IC2: FALSE | ID2: FALSE | IE2: FALSE | IF2: FALSE | IG2: FALSE | IH2: FALSE | II2: FALSE | IJ2: FALSE | IK2: FALSE | IL2: FALSE | IM2: FALSE | IN2: FALSE | IO2: FALSE | IP2: FALSE | IQ2: FALSE | IR2: FALSE | IS2: FALSE | IT2: FALSE | IU2: FALSE | IV2: FALSE | IW2: FALSE | IX2: FALSE | IY2: FALSE | IZ2: FALSE | JA2: FALSE | JB2: FALSE | JC2: FALSE | JD2: FALSE | JE2: =AND(JE1>0,JE1<=$F$2) -> FALSE | JF2: FALSE | JG2: FALSE | JH2: FALSE | JI2: FALSE | JJ2: FALSE | JK2: FALSE | JL2: FALSE | JM2: FALSE | JN2: FALSE | JO2: FALSE | JP2: FALSE | JQ2: FALSE | JR2: FALSE | JS2: FALSE | JT2: FALSE | JU2: FALSE | JV2: FALSE | JW2: FALSE | JX2: FALSE | JY2: FALSE | JZ2: FALSE | KA2: FALSE | KB2: FALSE | KC2: FALSE | KD2: FALSE | KE2: FALSE | KF2: FALSE | KG2: FALSE | KH2: FALSE | KI2: FALSE | KJ2: FALSE | KK2: FALSE | KL2: FALSE | KM2: FALSE | KN2: FALSE | KO2: FALSE | KP2: FALSE | KQ2: FALSE | KR2: FALSE | KS2: FALSE | KT2: FALSE | KU2: FALSE | KV2: FALSE | KW2: FALSE
B3: Inputs
C4: Cash Flow from Capacity Charges | E4: EGP | F4: 200
C5: Capital Expenditures | E5: EGP | F5: 1000 | I5: Project IRR | J5: =F17 -> 0.1577657486
C6: Premium for Fixed Price Contract | E6: % | F6: 0.2
C7: Total Contract Cost | E7: EGP | F7: =F5*(1+F6) -> 1200 | I7: MIRR | J7: =MIRR(I15:KW15,,J9) -> 0.1012837194
C9: Contract Period | E9: Years | F9: 20 | I9: Disc Rate | J9: 0.1
C10: Depreciation Life | E10: Years | F10: =F9 -> 20
C11: Target Acceptable Return | E11: % | F11: 0.08
C13: Capacity Revenues | E13: EGP | F13: =F4 -> 200 | I13: =$F$13*I2 -> 0 | J13: 200 | K13: 200 | L13: 200 | M13: 200 | N13: 200 | O13: 200 | P13: 200 | Q13: 200 | R13: 200 | S13: 200 | T13: 200 | U13: 200 | V13: 200 | W13: 200 | X13: 200 | Y13: 200 | Z13: 200 | AA13: 200 | AB13: 200 | AC13: 200 | AD13: 0 | AE13: 0 | AF13: 0 | AG13: 0 | AH13: 0 | AI13: 0 | AJ13: 0 | AK13: 0 | AL13: 0 | AM13: 0 | AN13: 0 | AO13: 0 | AP13: 0 | AQ13: 0 | AR13: 0 | AS13: 0 | AT13: 0 | AU13: 0 | AV13: 0 | AW13: 0 | AX13: 0 | AY13: 0 | AZ13: 0 | BA13: 0 | BB13: 0 | BC13: 0 | BD13: 0 | BE13: 0 | BF13: 0 | BG13: 0 | BH13: 0 | BI13: 0 | BJ13: 0 | BK13: 0 | BL13: 0 | BM13: 0 | BN13: 0 | BO13: 0 | BP13: 0 | BQ13: 0 | BR13: 0 | BS13: 0 | BT13: 0 | BU13: =$F$13*BU2 -> 0 | BV13: 0 | BW13: 0 | BX13: 0 | BY13: 0 | BZ13: 0 | CA13: 0 | CB13: 0 | CC13: 0 | CD13: 0 | CE13: 0 | CF13: 0 | CG13: 0 | CH13: 0 | CI13: 0 | CJ13: 0 | CK13: 0 | CL13: 0 | CM13: 0 | CN13: 0 | CO13: 0 | CP13: 0 | CQ13: 0 | CR13: 0 | CS13: 0 | CT13: 0 | CU13: 0 | CV13: 0 | CW13: 0 | CX13: 0 | CY13: 0 | CZ13: 0 | DA13: 0 | DB13: 0 | DC13: 0 | DD13: 0 | DE13: 0 | DF13: 0 | DG13: 0 | DH13: 0 | DI13: 0 | DJ13: 0 | DK13: 0 | DL13: 0 | DM13: 0 | DN13: 0 | DO13: 0 | DP13: 0 | DQ13: 0 | DR13: 0 | DS13: 0 | DT13: 0 | DU13: 0 | DV13: 0 | DW13: 0 | DX13: 0 | DY13: 0 | DZ13: 0 | EA13: 0 | EB13: 0 | EC13: 0 | ED13: 0 | EE13: 0 | EF13: 0 | EG13: =$F$13*EG2 -> 0 | EH13: 0 | EI13: 0 | EJ13: 0 | EK13: 0 | EL13: 0 | EM13: 0 | EN13: 0 | EO13: 0 | EP13: 0 | EQ13: 0 | ER13: 0 | ES13: 0 | ET13: 0 | EU13: 0 | EV13: 0 | EW13: 0 | EX13: 0 | EY13: 0 | EZ13: 0 | FA13: 0 | FB13: 0 | FC13: 0 | FD13: 0 | FE13: 0 | FF13: 0 | FG13: 0 | FH13: 0 | FI13: 0 | FJ13: 0 | FK13: 0 | FL13: 0 | FM13: 0 | FN13: 0 | FO13: 0 | FP13: 0 | FQ13: 0 | FR13: 0 | FS13: 0 | FT13: 0 | FU13: 0 | FV13: 0 | FW13: 0 | FX13: 0 | FY13: 0 | FZ13: 0 | GA13: 0 | GB13: 0 | GC13: 0 | GD13: 0 | GE13: 0 | GF13: 0 | GG13: 0 | GH13: 0 | GI13: 0 | GJ13: 0 | GK13: 0 | GL13: 0 | GM13: 0 | GN13: 0 | GO13: 0 | GP13: 0 | GQ13: 0 | GR13: 0 | GS13: =$F$13*GS2 -> 0 | GT13: 0 | GU13: 0 | GV13: 0 | GW13: 0 | GX13: 0 | GY13: 0 | GZ13: 0 | HA13: 0 | HB13: 0 | HC13: 0 | HD13: 0 | HE13: 0 | HF13: 0 | HG13: 0 | HH13: 0 | HI13: 0 | HJ13: 0 | HK13: 0 | HL13: 0 | HM13: 0 | HN13: 0 | HO13: 0 | HP13: 0 | HQ13: 0 | HR13: 0 | HS13: 0 | HT13: 0 | HU13: 0 | HV13: 0 | HW13: 0 | HX13: 0 | HY13: 0 | HZ13: 0 | IA13: 0 | IB13: 0 | IC13: 0 | ID13: 0 | IE13: 0 | IF13: 0 | IG13: 0 | IH13: 0 | II13: 0 | IJ13: 0 | IK13: 0 | IL13: 0 | IM13: 0 | IN13: 0 | IO13: 0 | IP13: 0 | IQ13: 0 | IR13: 0 | IS13: 0 | IT13: 0 | IU13: 0 | IV13: 0 | IW13: 0 | IX13: 0 | IY13: 0 | IZ13: 0 | JA13: 0 | JB13: 0 | JC13: 0 | JD13: 0 | JE13: =$F$13*JE2 -> 0 | JF13: 0 | JG13: 0 | JH13: 0 | JI13: 0 | JJ13: 0 | JK13: 0 | JL13: 0 | JM13: 0 | JN13: 0 | JO13: 0 | JP13: 0 | JQ13: 0 | JR13: 0 | JS13: 0 | JT13: 0 | JU13: 0 | JV13: 0 | JW13: 0 | JX13: 0 | JY13: 0 | JZ13: 0 | KA13: 0 | KB13: 0 | KC13: 0 | KD13: 0 | KE13: 0 | KF13: 0 | KG13: 0 | KH13: 0 | KI13: 0 | KJ13: 0 | KK13: 0 | KL13: 0 | KM13: 0 | KN13: 0 | KO13: 0 | KP13: 0 | KQ13: 0 | KR13: 0 | KS13: 0 | KT13: 0 | KU13: 0 | KV13: 0 | KW13: 0
C14: Capital Expenditure | E14: EGP | F14: =F7 -> 1200 | I14: =(I1=0)*$F$14 -> 1200 | J14: 0 | K14: 0 | L14: 0 | M14: 0 | N14: 0 | O14: 0 | P14: 0 | Q14: 0 | R14: 0 | S14: 0 | T14: 0 | U14: 0 | V14: 0 | W14: 0 | X14: 0 | Y14: 0 | Z14: 0 | AA14: 0 | AB14: 0 | AC14: 0 | AD14: 0 | AE14: 0 | AF14: 0 | AG14: 0 | AH14: 0 | AI14: 0 | AJ14: 0 | AK14: 0 | AL14: 0 | AM14: 0 | AN14: 0 | AO14: 0 | AP14: 0 | AQ14: 0 | AR14: 0 | AS14: 0 | AT14: 0 | AU14: 0 | AV14: 0 | AW14: 0 | AX14: 0 | AY14: 0 | AZ14: 0 | BA14: 0 | BB14: 0 | BC14: 0 | BD14: 0 | BE14: 0 | BF14: 0 | BG14: 0 | BH14: 0 | BI14: 0 | BJ14: 0 | BK14: 0 | BL14: 0 | BM14: 0 | BN14: 0 | BO14: 0 | BP14: 0 | BQ14: 0 | BR14: 0 | BS14: 0 | BT14: 0 | BU14: =(BU1=0)*$F$14 -> 0 | BV14: 0 | BW14: 0 | BX14: 0 | BY14: 0 | BZ14: 0 | CA14: 0 | CB14: 0 | CC14: 0 | CD14: 0 | CE14: 0 | CF14: 0 | CG14: 0 | CH14: 0 | CI14: 0 | CJ14: 0 | CK14: 0 | CL14: 0 | CM14: 0 | CN14: 0 | CO14: 0 | CP14: 0 | CQ14: 0 | CR14: 0 | CS14: 0 | CT14: 0 | CU14: 0 | CV14: 0 | CW14: 0 | CX14: 0 | CY14: 0 | CZ14: 0 | DA14: 0 | DB14: 0 | DC14: 0 | DD14: 0 | DE14: 0 | DF14: 0 | DG14: 0 | DH14: 0 | DI14: 0 | DJ14: 0 | DK14: 0 | DL14: 0 | DM14: 0 | DN14: 0 | DO14: 0 | DP14: 0 | DQ14: 0 | DR14: 0 | DS14: 0 | DT14: 0 | DU14: 0 | DV14: 0 | DW14: 0 | DX14: 0 | DY14: 0 | DZ14: 0 | EA14: 0 | EB14: 0 | EC14: 0 | ED14: 0 | EE14: 0 | EF14: 0 | EG14: =(EG1=0)*$F$14 -> 0 | EH14: 0 | EI14: 0 | EJ14: 0 | EK14: 0 | EL14: 0 | EM14: 0 | EN14: 0 | EO14: 0 | EP14: 0 | EQ14: 0 | ER14: 0 | ES14: 0 | ET14: 0 | EU14: 0 | EV14: 0 | EW14: 0 | EX14: 0 | EY14: 0 | EZ14: 0 | FA14: 0 | FB14: 0 | FC14: 0 | FD14: 0 | FE14: 0 | FF14: 0 | FG14: 0 | FH14: 0 | FI14: 0 | FJ14: 0 | FK14: 0 | FL14: 0 | FM14: 0 | FN14: 0 | FO14: 0 | FP14: 0 | FQ14: 0 | FR14: 0 | FS14: 0 | FT14: 0 | FU14: 0 | FV14: 0 | FW14: 0 | FX14: 0 | FY14: 0 | FZ14: 0 | GA14: 0 | GB14: 0 | GC14: 0 | GD14: 0 | GE14: 0 | GF14: 0 | GG14: 0 | GH14: 0 | GI14: 0 | GJ14: 0 | GK14: 0 | GL14: 0 | GM14: 0 | GN14: 0 | GO14: 0 | GP14: 0 | GQ14: 0 | GR14: 0 | GS14: =(GS1=0)*$F$14 -> 0 | GT14: 0 | GU14: 0 | GV14: 0 | GW14: 0 | GX14: 0 | GY14: 0 | GZ14: 0 | HA14: 0 | HB14: 0 | HC14: 0 | HD14: 0 | HE14: 0 | HF14: 0 | HG14: 0 | HH14: 0 | HI14: 0 | HJ14: 0 | HK14: 0 | HL14: 0 | HM14: 0 | HN14: 0 | HO14: 0 | HP14: 0 | HQ14: 0 | HR14: 0 | HS14: 0 | HT14: 0 | HU14: 0 | HV14: 0 | HW14: 0 | HX14: 0 | HY14: 0 | HZ14: 0 | IA14: 0 | IB14: 0 | IC14: 0 | ID14: 0 | IE14: 0 | IF14: 0 | IG14: 0 | IH14: 0 | II14: 0 | IJ14: 0 | IK14: 0 | IL14: 0 | IM14: 0 | IN14: 0 | IO14: 0 | IP14: 0 | IQ14: 0 | IR14: 0 | IS14: 0 | IT14: 0 | IU14: 0 | IV14: 0 | IW14: 0 | IX14: 0 | IY14: 0 | IZ14: 0 | JA14: 0 | JB14: 0 | JC14: 0 | JD14: 0 | JE14: =(JE1=0)*$F$14 -> 0 | JF14: 0 | JG14: 0 | JH14: 0 | JI14: 0 | JJ14: 0 | JK14: 0 | JL14: 0 | JM14: 0 | JN14: 0 | JO14: 0 | JP14: 0 | JQ14: 0 | JR14: 0 | JS14: 0 | JT14: 0 | JU14: 0 | JV14: 0 | JW14: 0 | JX14: 0 | JY14: 0 | JZ14: 0 | KA14: 0 | KB14: 0 | KC14: 0 | KD14: 0 | KE14: 0 | KF14: 0 | KG14: 0 | KH14: 0 | KI14: 0 | KJ14: 0 | KK14: 0 | KL14: 0 | KM14: 0 | KN14: 0 | KO14: 0 | KP14: 0 | KQ14: 0 | KR14: 0 | KS14: 0 | KT14: 0 | KU14: 0 | KV14: 0 | KW14: 0
C15: Net Cash Flow | E15: EGP | I15: =I13-I14 -> -1200 | J15: =J13-J14 -> 200 | K15: 200 | L15: 200 | M15: 200 | N15: 200 | O15: 200 | P15: 200 | Q15: 200 | R15: 200 | S15: 200 | T15: 200 | U15: 200 | V15: 200 | W15: 200 | X15: 200 | Y15: 200 | Z15: 200 | AA15: 200 | AB15: 200 | AC15: 200 | AD15: 0 | AE15: 0 | AF15: 0 | AG15: 0 | AH15: 0 | AI15: 0 | AJ15: 0 | AK15: 0 | AL15: 0 | AM15: 0 | AN15: 0 | AO15: 0 | AP15: 0 | AQ15: 0 | AR15: 0 | AS15: 0 | AT15: 0 | AU15: 0 | AV15: 0 | AW15: 0 | AX15: 0 | AY15: 0 | AZ15: 0 | BA15: 0 | BB15: 0 | BC15: 0 | BD15: 0 | BE15: 0 | BF15: 0 | BG15: 0 | BH15: 0 | BI15: 0 | BJ15: 0 | BK15: 0 | BL15: 0 | BM15: 0 | BN15: 0 | BO15: 0 | BP15: 0 | BQ15: 0 | BR15: 0 | BS15: 0 | BT15: 0 | BU15: 0 | BV15: =BV13-BV14 -> 0 | BW15: 0 | BX15: 0 | BY15: 0 | BZ15: 0 | CA15: 0 | CB15: 0 | CC15: 0 | CD15: 0 | CE15: 0 | CF15: 0 | CG15: 0 | CH15: 0 | CI15: 0 | CJ15: 0 | CK15: 0 | CL15: 0 | CM15: 0 | CN15: 0 | CO15: 0 | CP15: 0 | CQ15: 0 | CR15: 0 | CS15: 0 | CT15: 0 | CU15: 0 | CV15: 0 | CW15: 0 | CX15: 0 | CY15: 0 | CZ15: 0 | DA15: 0 | DB15: 0 | DC15: 0 | DD15: 0 | DE15: 0 | DF15: 0 | DG15: 0 | DH15: 0 | DI15: 0 | DJ15: 0 | DK15: 0 | DL15: 0 | DM15: 0 | DN15: 0 | DO15: 0 | DP15: 0 | DQ15: 0 | DR15: 0 | DS15: 0 | DT15: 0 | DU15: 0 | DV15: 0 | DW15: 0 | DX15: 0 | DY15: 0 | DZ15: 0 | EA15: 0 | EB15: 0 | EC15: 0 | ED15: 0 | EE15: 0 | EF15: 0 | EG15: 0 | EH15: =EH13-EH14 -> 0 | EI15: 0 | EJ15: 0 | EK15: 0 | EL15: 0 | EM15: 0 | EN15: 0 | EO15: 0 | EP15: 0 | EQ15: 0 | ER15: 0 | ES15: 0 | ET15: 0 | EU15: 0 | EV15: 0 | EW15: 0 | EX15: 0 | EY15: 0 | EZ15: 0 | FA15: 0 | FB15: 0 | FC15: 0 | FD15: 0 | FE15: 0 | FF15: 0 | FG15: 0 | FH15: 0 | FI15: 0 | FJ15: 0 | FK15: 0 | FL15: 0 | FM15: 0 | FN15: 0 | FO15: 0 | FP15: 0 | FQ15: 0 | FR15: 0 | FS15: 0 | FT15: 0 | FU15: 0 | FV15: 0 | FW15: 0 | FX15: 0 | FY15: 0 | FZ15: 0 | GA15: 0 | GB15: 0 | GC15: 0 | GD15: 0 | GE15: 0 | GF15: 0 | GG15: 0 | GH15: 0 | GI15: 0 | GJ15: 0 | GK15: 0 | GL15: 0 | GM15: 0 | GN15: 0 | GO15: 0 | GP15: 0 | GQ15: 0 | GR15: 0 | GS15: 0 | GT15: =GT13-GT14 -> 0 | GU15: 0 | GV15: 0 | GW15: 0 | GX15: 0 | GY15: 0 | GZ15: 0 | HA15: 0 | HB15: 0 | HC15: 0 | HD15: 0 | HE15: 0 | HF15: 0 | HG15: 0 | HH15: 0 | HI15: 0 | HJ15: 0 | HK15: 0 | HL15: 0 | HM15: 0 | HN15: 0 | HO15: 0 | HP15: 0 | HQ15: 0 | HR15: 0 | HS15: 0 | HT15: 0 | HU15: 0 | HV15: 0 | HW15: 0 | HX15: 0 | HY15: 0 | HZ15: 0 | IA15: 0 | IB15: 0 | IC15: 0 | ID15: 0 | IE15: 0 | IF15: 0 | IG15: 0 | IH15: 0 | II15: 0 | IJ15: 0 | IK15: 0 | IL15: 0 | IM15: 0 | IN15: 0 | IO15: 0 | IP15: 0 | IQ15: 0 | IR15: 0 | IS15: 0 | IT15: 0 | IU15: 0 | IV15: 0 | IW15: 0 | IX15: 0 | IY15: 0 | IZ15: 0 | JA15: 0 | JB15: 0 | JC15: 0 | JD15: 0 | JE15: 0 | JF15: =JF13-JF14 -> 0 | JG15: 0 | JH15: 0 | JI15: 0 | JJ15: 0 | JK15: 0 | JL15: 0 | JM15: 0 | JN15: 0 | JO15: 0 | JP15: 0 | JQ15: 0 | JR15: 0 | JS15: 0 | JT15: 0 | JU15: 0 | JV15: 0 | JW15: 0 | JX15: 0 | JY15: 0 | JZ15: 0 | KA15: 0 | KB15: 0 | KC15: 0 | KD15: 0 | KE15: 0 | KF15: 0 | KG15: 0 | KH15: 0 | KI15: 0 | KJ15: 0 | KK15: 0 | KL15: 0 | KM15: 0 | KN15: 0 | KO15: 0 | KP15: 0 | KQ15: 0 | KR15: 0 | KS15: 0 | KT15: 0 | KU15: 0 | KV15: 0 | KW15: 0
C17: Project IRR | E17: % | F17: =IRR(15:15) -> 0.1577657486
C18: NPV at Target Return | E18: EGP | F18: =F11 -> 0.08 | G18: =NPV(F18,15:15) -> 707.0643347
B20: IRR and Growth Rate
C21: Opening Balance | I21: =H24 -> 0 | J21: =I24 -> 0 | K21: 200 | L21: 431.5531497 | M21: 699.6374554 | N21: 1010.016282 | O21: 1369.362257 | P21: 1785.400719 | Q21: 2267.0758 | R21: 2824.74271 | S21: 3470.390358 | T21: 4217.899091 | U21: 5083.339098 | V21: 6085.315896 | W21: 7245.370314 | X21: 8588.441585 | Y21: 10143.4035 | Z21: 11943.68515 | AA21: 14027.98957 | AB21: 16441.12585 | AC21: 19234.97238 | AD21: 22469.59219 | AE21: 22469.59219 | AF21: 22469.59219 | AG21: 22469.59219 | AH21: 22469.59219 | AI21: 22469.59219 | AJ21: 22469.59219 | AK21: 22469.59219 | AL21: 22469.59219 | AM21: 22469.59219 | AN21: 22469.59219 | AO21: 22469.59219 | AP21: 22469.59219 | AQ21: 22469.59219 | AR21: 22469.59219 | AS21: 22469.59219 | AT21: 22469.59219 | AU21: 22469.59219 | AV21: 22469.59219 | AW21: 22469.59219 | AX21: 22469.59219 | AY21: 22469.59219 | AZ21: 22469.59219 | BA21: 22469.59219 | BB21: 22469.59219 | BC21: 22469.59219 | BD21: 22469.59219 | BE21: 22469.59219 | BF21: 22469.59219 | BG21: 22469.59219 | BH21: 22469.59219 | BI21: 22469.59219 | BJ21: 22469.59219 | BK21: 22469.59219 | BL21: 22469.59219 | BM21: 22469.59219 | BN21: 22469.59219 | BO21: 22469.59219 | BP21: 22469.59219 | BQ21: 22469.59219 | BR21: 22469.59219 | BS21: 22469.59219 | BT21: 22469.59219 | BU21: 22469.59219 | BV21: =BU24 -> 22469.59219 | BW21: 22469.59219 | BX21: 22469.59219 | BY21: 22469.59219 | BZ21: 22469.59219 | CA21: 22469.59219 | CB21: 22469.59219 | CC21: 22469.59219 | CD21: 22469.59219 | CE21: 22469.59219 | CF21: 22469.59219 | CG21: 22469.59219 | CH21: 22469.59219 | CI21: 22469.59219 | CJ21: 22469.59219 | CK21: 22469.59219 | CL21: 22469.59219 | CM21: 22469.59219 | CN21: 22469.59219 | CO21: 22469.59219 | CP21: 22469.59219 | CQ21: 22469.59219 | CR21: 22469.59219 | CS21: 22469.59219 | CT21: 22469.59219 | CU21: 22469.59219 | CV21: 22469.59219 | CW21: 22469.59219 | CX21: 22469.59219 | CY21: 22469.59219 | CZ21: 22469.59219 | DA21: 22469.59219 | DB21: 22469.59219 | DC21: 22469.59219 | DD21: 22469.59219 | DE21: 22469.59219 | DF21: =DE24 -> 22469.59219 | DG21: =DF24 -> 22469.59219 | DH21: =DG24 -> 22469.59219 | DI21: =DH24 -> 22469.59219 | DJ21: =DI24 -> 22469.59219 | DK21: =DJ24 -> 22469.59219 | DL21: =DK24 -> 22469.59219 | DM21: =DL24 -> 22469.59219 | DN21: =DM24 -> 22469.59219 | DO21: =DN24 -> 22469.59219 | DP21: =DO24 -> 22469.59219 | DQ21: =DP24 -> 22469.59219 | DR21: =DQ24 -> 22469.59219 | DS21: =DR24 -> 22469.59219 | DT21: =DS24 -> 22469.59219 | DU21: =DT24 -> 22469.59219 | DV21: =DU24 -> 22469.59219 | DW21: =DV24 -> 22469.59219 | DX21: =DW24 -> 22469.59219 | DY21: =DX24 -> 22469.59219 | DZ21: =DY24 -> 22469.59219 | EA21: =DZ24 -> 22469.59219 | EB21: =EA24 -> 22469.59219 | EC21: =EB24 -> 22469.59219 | ED21: =EC24 -> 22469.59219 | EE21: =ED24 -> 22469.59219 | EF21: =EE24 -> 22469.59219 | EG21: =EF24 -> 22469.59219 | EH21: =EG24 -> 22469.59219 | EI21: =EH24 -> 22469.59219 | EJ21: =EI24 -> 22469.59219 | EK21: =EJ24 -> 22469.59219 | EL21: =EK24 -> 22469.59219 | EM21: =EL24 -> 22469.59219 | EN21: =EM24 -> 22469.59219 | EO21: =EN24 -> 22469.59219 | EP21: =EO24 -> 22469.59219 | EQ21: =EP24 -> 22469.59219 | ER21: =EQ24 -> 22469.59219 | ES21: =ER24 -> 22469.59219 | ET21: =ES24 -> 22469.59219 | EU21: =ET24 -> 22469.59219 | EV21: =EU24 -> 22469.59219 | EW21: =EV24 -> 22469.59219 | EX21: =EW24 -> 22469.59219 | EY21: =EX24 -> 22469.59219 | EZ21: =EY24 -> 22469.59219 | FA21: =EZ24 -> 22469.59219 | FB21: =FA24 -> 22469.59219 | FC21: =FB24 -> 22469.59219 | FD21: =FC24 -> 22469.59219 | FE21: =FD24 -> 22469.59219 | FF21: =FE24 -> 22469.59219 | FG21: =FF24 -> 22469.59219 | FH21: =FG24 -> 22469.59219 | FI21: =FH24 -> 22469.59219 | FJ21: =FI24 -> 22469.59219 | FK21: =FJ24 -> 22469.59219 | FL21: =FK24 -> 22469.59219 | FM21: =FL24 -> 22469.59219 | FN21: =FM24 -> 22469.59219 | FO21: =FN24 -> 22469.59219 | FP21: =FO24 -> 22469.59219 | FQ21: =FP24 -> 22469.59219 | FR21: =FQ24 -> 22469.59219 | FS21: =FR24 -> 22469.59219 | FT21: =FS24 -> 22469.59219 | FU21: =FT24 -> 22469.59219 | FV21: =FU24 -> 22469.59219 | FW21: =FV24 -> 22469.59219 | FX21: =FW24 -> 22469.59219 | FY21: =FX24 -> 22469.59219 | FZ21: =FY24 -> 22469.59219 | GA21: =FZ24 -> 22469.59219 | GB21: =GA24 -> 22469.59219 | GC21: =GB24 -> 22469.59219 | GD21: =GC24 -> 22469.59219 | GE21: =GD24 -> 22469.59219 | GF21: =GE24 -> 22469.59219 | GG21: =GF24 -> 22469.59219 | GH21: =GG24 -> 22469.59219 | GI21: =GH24 -> 22469.59219 | GJ21: =GI24 -> 22469.59219 | GK21: =GJ24 -> 22469.59219 | GL21: =GK24 -> 22469.59219 | GM21: =GL24 -> 22469.59219 | GN21: =GM24 -> 22469.59219 | GO21: =GN24 -> 22469.59219 | GP21: =GO24 -> 22469.59219 | GQ21: =GP24 -> 22469.59219 | GR21: =GQ24 -> 22469.59219 | GS21: =GR24 -> 22469.59219 | GT21: =GS24 -> 22469.59219 | GU21: =GT24 -> 22469.59219 | GV21: =GU24 -> 22469.59219 | GW21: =GV24 -> 22469.59219 | GX21: =GW24 -> 22469.59219 | GY21: =GX24 -> 22469.59219 | GZ21: =GY24 -> 22469.59219 | HA21: =GZ24 -> 22469.59219 | HB21: =HA24 -> 22469.59219 | HC21: =HB24 -> 22469.59219 | HD21: =HC24 -> 22469.59219 | HE21: =HD24 -> 22469.59219 | HF21: =HE24 -> 22469.59219 | HG21: =HF24 -> 22469.59219 | HH21: =HG24 -> 22469.59219 | HI21: =HH24 -> 22469.59219 | HJ21: =HI24 -> 22469.59219 | HK21: =HJ24 -> 22469.59219 | HL21: =HK24 -> 22469.59219 | HM21: =HL24 -> 22469.59219 | HN21: =HM24 -> 22469.59219 | HO21: =HN24 -> 22469.59219 | HP21: =HO24 -> 22469.59219 | HQ21: =HP24 -> 22469.59219 | HR21: =HQ24 -> 22469.59219 | HS21: =HR24 -> 22469.59219 | HT21: =HS24 -> 22469.59219 | HU21: =HT24 -> 22469.59219 | HV21: =HU24 -> 22469.59219 | HW21: =HV24 -> 22469.59219 | HX21: =HW24 -> 22469.59219 | HY21: =HX24 -> 22469.59219 | HZ21: =HY24 -> 22469.59219 | IA21: =HZ24 -> 22469.59219 | IB21: =IA24 -> 22469.59219 | IC21: =IB24 -> 22469.59219 | ID21: =IC24 -> 22469.59219 | IE21: =ID24 -> 22469.59219 | IF21: =IE24 -> 22469.59219 | IG21: =IF24 -> 22469.59219 | IH21: =IG24 -> 22469.59219 | II21: =IH24 -> 22469.59219 | IJ21: =II24 -> 22469.59219 | IK21: =IJ24 -> 22469.59219 | IL21: =IK24 -> 22469.59219 | IM21: =IL24 -> 22469.59219 | IN21: =IM24 -> 22469.59219 | IO21: =IN24 -> 22469.59219 | IP21: =IO24 -> 22469.59219 | IQ21: =IP24 -> 22469.59219 | IR21: =IQ24 -> 22469.59219 | IS21: =IR24 -> 22469.59219 | IT21: =IS24 -> 22469.59219 | IU21: =IT24 -> 22469.59219 | IV21: =IU24 -> 22469.59219 | IW21: =IV24 -> 22469.59219 | IX21: =IW24 -> 22469.59219 | IY21: =IX24 -> 22469.59219 | IZ21: =IY24 -> 22469.59219 | JA21: =IZ24 -> 22469.59219 | JB21: =JA24 -> 22469.59219 | JC21: =JB24 -> 22469.59219 | JD21: =JC24 -> 22469.59219 | JE21: =JD24 -> 22469.59219 | JF21: =JE24 -> 22469.59219 | JG21: =JF24 -> 22469.59219 | JH21: =JG24 -> 22469.59219 | JI21: =JH24 -> 22469.59219 | JJ21: =JI24 -> 22469.59219 | JK21: =JJ24 -> 22469.59219 | JL21: =JK24 -> 22469.59219 | JM21: =JL24 -> 22469.59219 | JN21: =JM24 -> 22469.59219 | JO21: =JN24 -> 22469.59219 | JP21: =JO24 -> 22469.59219 | JQ21: =JP24 -> 22469.59219 | JR21: =JQ24 -> 22469.59219 | JS21: =JR24 -> 22469.59219 | JT21: =JS24 -> 22469.59219 | JU21: =JT24 -> 22469.59219 | JV21: =JU24 -> 22469.59219 | JW21: =JV24 -> 22469.59219 | JX21: =JW24 -> 22469.59219 | JY21: =JX24 -> 22469.59219 | JZ21: =JY24 -> 22469.59219 | KA21: =JZ24 -> 22469.59219 | KB21: =KA24 -> 22469.59219 | KC21: =KB24 -> 22469.59219 | KD21: =KC24 -> 22469.59219 | KE21: =KD24 -> 22469.59219 | KF21: =KE24 -> 22469.59219 | KG21: =KF24 -> 22469.59219 | KH21: =KG24 -> 22469.59219 | KI21: =KH24 -> 22469.59219 | KJ21: =KI24 -> 22469.59219 | KK21: =KJ24 -> 22469.59219 | KL21: =KK24 -> 22469.59219 | KM21: =KL24 -> 22469.59219 | KN21: =KM24 -> 22469.59219 | KO21: =KN24 -> 22469.59219 | KP21: =KO24 -> 22469.59219 | KQ21: =KP24 -> 22469.59219 | KR21: =KQ24 -> 22469.59219 | KS21: =KR24 -> 22469.59219 | KT21: =KS24 -> 22469.59219 | KU21: =KT24 -> 22469.59219 | KV21: =KU24 -> 22469.59219 | KW21: =KV24 -> 22469.59219
C22: Add: Re-investment on Opening Balance | F22: =F17 -> 0.1577657486 | I22: =I21*$F$22*I2 -> 0 | J22: =J21*$F$22*J2 -> 0 | K22: 31.55314971 | L22: 68.08430571 | M22: 110.3788269 | N22: 159.3459748 | O22: 216.0384615 | P22: 281.6750809 | Q22: 357.6669106 | R22: 445.6476481 | S22: 547.5087327 | T22: 665.4400074 | U22: 801.976798 | V22: 960.0544176 | W22: 1143.071271 | X22: 1354.961916 | Y22: 1600.281646 | Z22: 1884.304428 | AA22: 2213.136276 | AB22: 2593.846527 | AC22: 3034.619816 | AD22: 0 | AE22: 0 | AF22: 0 | AG22: 0 | AH22: 0 | AI22: 0 | AJ22: 0 | AK22: 0 | AL22: 0 | AM22: 0 | AN22: 0 | AO22: 0 | AP22: 0 | AQ22: 0 | AR22: 0 | AS22: 0 | AT22: 0 | AU22: 0 | AV22: 0 | AW22: 0 | AX22: 0 | AY22: 0 | AZ22: 0 | BA22: 0 | BB22: 0 | BC22: 0 | BD22: 0 | BE22: 0 | BF22: 0 | BG22: 0 | BH22: 0 | BI22: 0 | BJ22: 0 | BK22: 0 | BL22: 0 | BM22: 0 | BN22: 0 | BO22: 0 | BP22: 0 | BQ22: 0 | BR22: 0 | BS22: 0 | BT22: 0 | BU22: 0 | BV22: =BV21*$F$22*BV2 -> 0 | BW22: 0 | BX22: 0 | BY22: 0 | BZ22: 0 | CA22: 0 | CB22: 0 | CC22: 0 | CD22: 0 | CE22: 0 | CF22: 0 | CG22: 0 | CH22: 0 | CI22: 0 | CJ22: 0 | CK22: 0 | CL22: 0 | CM22: 0 | CN22: 0 | CO22: 0 | CP22: 0 | CQ22: 0 | CR22: 0 | CS22: 0 | CT22: 0 | CU22: 0 | CV22: 0 | CW22: 0 | CX22: 0 | CY22: 0 | CZ22: 0 | DA22: 0 | DB22: 0 | DC22: 0 | DD22: 0 | DE22: 0 | DF22: 0 | DG22: 0 | DH22: 0 | DI22: 0 | DJ22: 0 | DK22: 0 | DL22: 0 | DM22: 0 | DN22: 0 | DO22: 0 | DP22: 0 | DQ22: 0 | DR22: 0 | DS22: 0 | DT22: 0 | DU22: 0 | DV22: 0 | DW22: 0 | DX22: 0 | DY22: 0 | DZ22: 0 | EA22: 0 | EB22: 0 | EC22: 0 | ED22: 0 | EE22: 0 | EF22: 0 | EG22: 0 | EH22: =EH21*$F$22*EH2 -> 0 | EI22: 0 | EJ22: 0 | EK22: 0 | EL22: 0 | EM22: 0 | EN22: 0 | EO22: 0 | EP22: 0 | EQ22: 0 | ER22: 0 | ES22: 0 | ET22: 0 | EU22: 0 | EV22: 0 | EW22: 0 | EX22: 0 | EY22: 0 | EZ22: 0 | FA22: 0 | FB22: 0 | FC22: 0 | FD22: 0 | FE22: 0 | FF22: 0 | FG22: 0 | FH22: 0 | FI22: 0 | FJ22: 0 | FK22: 0 | FL22: 0 | FM22: 0 | FN22: 0 | FO22: 0 | FP22: 0 | FQ22: 0 | FR22: 0 | FS22: 0 | FT22: 0 | FU22: 0 | FV22: 0 | FW22: 0 | FX22: 0 | FY22: 0 | FZ22: 0 | GA22: 0 | GB22: 0 | GC22: 0 | GD22: 0 | GE22: 0 | GF22: 0 | GG22: 0 | GH22: 0 | GI22: 0 | GJ22: 0 | GK22: 0 | GL22: 0 | GM22: 0 | GN22: 0 | GO22: 0 | GP22: 0 | GQ22: 0 | GR22: 0 | GS22: 0 | GT22: =GT21*$F$22*GT2 -> 0 | GU22: 0 | GV22: 0 | GW22: 0 | GX22: 0 | GY22: 0 | GZ22: 0 | HA22: 0 | HB22: 0 | HC22: 0 | HD22: 0 | HE22: 0 | HF22: 0 | HG22: 0 | HH22: 0 | HI22: 0 | HJ22: 0 | HK22: 0 | HL22: 0 | HM22: 0 | HN22: 0 | HO22: 0 | HP22: 0 | HQ22: 0 | HR22: 0 | HS22: 0 | HT22: 0 | HU22: 0 | HV22: 0 | HW22: 0 | HX22: 0 | HY22: 0 | HZ22: 0 | IA22: 0 | IB22: 0 | IC22: 0 | ID22: 0 | IE22: 0 | IF22: 0 | IG22: 0 | IH22: 0 | II22: 0 | IJ22: 0 | IK22: 0 | IL22: 0 | IM22: 0 | IN22: 0 | IO22: 0 | IP22: 0 | IQ22: 0 | IR22: 0 | IS22: 0 | IT22: 0 | IU22: 0 | IV22: 0 | IW22: 0 | IX22: 0 | IY22: 0 | IZ22: 0 | JA22: 0 | JB22: 0 | JC22: 0 | JD22: 0 | JE22: 0 | JF22: =JF21*$F$22*JF2 -> 0 | JG22: 0 | JH22: 0 | JI22: 0 | JJ22: 0 | JK22: 0 | JL22: 0 | JM22: 0 | JN22: 0 | JO22: 0 | JP22: 0 | JQ22: 0 | JR22: 0 | JS22: 0 | JT22: 0 | JU22: 0 | JV22: 0 | JW22: 0 | JX22: 0 | JY22: 0 | JZ22: 0 | KA22: 0 | KB22: 0 | KC22: 0 | KD22: 0 | KE22: 0 | KF22: 0 | KG22: 0 | KH22: 0 | KI22: 0 | KJ22: 0 | KK22: 0 | KL22: 0 | KM22: 0 | KN22: 0 | KO22: 0 | KP22: 0 | KQ22: 0 | KR22: 0 | KS22: 0 | KT22: 0 | KU22: 0 | KV22: 0 | KW22: 0
C23: Add: Cash Dividends | I23: =I13 -> 0 | J23: =J13 -> 200 | K23: 200 | L23: 200 | M23: 200 | N23: 200 | O23: 200 | P23: 200 | Q23: 200 | R23: 200 | S23: 200 | T23: 200 | U23: 200 | V23: 200 | W23: 200 | X23: 200 | Y23: 200 | Z23: 200 | AA23: 200 | AB23: 200 | AC23: 200 | AD23: 0 | AE23: 0 | AF23: 0 | AG23: 0 | AH23: 0 | AI23: 0 | AJ23: 0 | AK23: 0 | AL23: 0 | AM23: 0 | AN23: 0 | AO23: 0 | AP23: 0 | AQ23: 0 | AR23: 0 | AS23: 0 | AT23: 0 | AU23: 0 | AV23: 0 | AW23: 0 | AX23: 0 | AY23: 0 | AZ23: 0 | BA23: 0 | BB23: 0 | BC23: 0 | BD23: 0 | BE23: 0 | BF23: 0 | BG23: 0 | BH23: 0 | BI23: 0 | BJ23: 0 | BK23: 0 | BL23: 0 | BM23: 0 | BN23: 0 | BO23: 0 | BP23: 0 | BQ23: 0 | BR23: 0 | BS23: 0 | BT23: 0 | BU23: 0 | BV23: =BV13 -> 0 | BW23: 0 | BX23: 0 | BY23: 0 | BZ23: 0 | CA23: 0 | CB23: 0 | CC23: 0 | CD23: 0 | CE23: 0 | CF23: 0 | CG23: 0 | CH23: 0 | CI23: 0 | CJ23: 0 | CK23: 0 | CL23: 0 | CM23: 0 | CN23: 0 | CO23: 0 | CP23: 0 | CQ23: 0 | CR23: 0 | CS23: 0 | CT23: 0 | CU23: 0 | CV23: 0 | CW23: 0 | CX23: 0 | CY23: 0 | CZ23: 0 | DA23: 0 | DB23: 0 | DC23: 0 | DD23: 0 | DE23: 0 | DF23: 0 | DG23: 0 | DH23: 0 | DI23: 0 | DJ23: 0 | DK23: 0 | DL23: 0 | DM23: 0 | DN23: 0 | DO23: 0 | DP23: 0 | DQ23: 0 | DR23: 0 | DS23: 0 | DT23: 0 | DU23: 0 | DV23: 0 | DW23: 0 | DX23: 0 | DY23: 0 | DZ23: 0 | EA23: 0 | EB23: 0 | EC23: 0 | ED23: 0 | EE23: 0 | EF23: 0 | EG23: 0 | EH23: =EH13 -> 0 | EI23: 0 | EJ23: 0 | EK23: 0 | EL23: 0 | EM23: 0 | EN23: 0 | EO23: 0 | EP23: 0 | EQ23: 0 | ER23: 0 | ES23: 0 | ET23: 0 | EU23: 0 | EV23: 0 | EW23: 0 | EX23: 0 | EY23: 0 | EZ23: 0 | FA23: 0 | FB23: 0 | FC23: 0 | FD23: 0 | FE23: 0 | FF23: 0 | FG23: 0 | FH23: 0 | FI23: 0 | FJ23: 0 | FK23: 0 | FL23: 0 | FM23: 0 | FN23: 0 | FO23: 0 | FP23: 0 | FQ23: 0 | FR23: 0 | FS23: 0 | FT23: 0 | FU23: 0 | FV23: 0 | FW23: 0 | FX23: 0 | FY23: 0 | FZ23: 0 | GA23: 0 | GB23: 0 | GC23: 0 | GD23: 0 | GE23: 0 | GF23: 0 | GG23: 0 | GH23: 0 | GI23: 0 | GJ23: 0 | GK23: 0 | GL23: 0 | GM23: 0 | GN23: 0 | GO23: 0 | GP23: 0 | GQ23: 0 | GR23: 0 | GS23: 0 | GT23: =GT13 -> 0 | GU23: 0 | GV23: 0 | GW23: 0 | GX23: 0 | GY23: 0 | GZ23: 0 | HA23: 0 | HB23: 0 | HC23: 0 | HD23: 0 | HE23: 0 | HF23: 0 | HG23: 0 | HH23: 0 | HI23: 0 | HJ23: 0 | HK23: 0 | HL23: 0 | HM23: 0 | HN23: 0 | HO23: 0 | HP23: 0 | HQ23: 0 | HR23: 0 | HS23: 0 | HT23: 0 | HU23: 0 | HV23: 0 | HW23: 0 | HX23: 0 | HY23: 0 | HZ23: 0 | IA23: 0 | IB23: 0 | IC23: 0 | ID23: 0 | IE23: 0 | IF23: 0 | IG23: 0 | IH23: 0 | II23: 0 | IJ23: 0 | IK23: 0 | IL23: 0 | IM23: 0 | IN23: 0 | IO23: 0 | IP23: 0 | IQ23: 0 | IR23: 0 | IS23: 0 | IT23: 0 | IU23: 0 | IV23: 0 | IW23: 0 | IX23: 0 | IY23: 0 | IZ23: 0 | JA23: 0 | JB23: 0 | JC23: 0 | JD23: 0 | JE23: 0 | JF23: =JF13 -> 0 | JG23: 0 | JH23: 0 | JI23: 0 | JJ23: 0 | JK23: 0 | JL23: 0 | JM23: 0 | JN23: 0 | JO23: 0 | JP23: 0 | JQ23: 0 | JR23: 0 | JS23: 0 | JT23: 0 | JU23: 0 | JV23: 0 | JW23: 0 | JX23: 0 | JY23: 0 | JZ23: 0 | KA23: 0 | KB23: 0 | KC23: 0 | KD23: 0 | KE23: 0 | KF23: 0 | KG23: 0 | KH23: 0 | KI23: 0 | KJ23: 0 | KK23: 0 | KL23: 0 | KM23: 0 | KN23: 0 | KO23: 0 | KP23: 0 | KQ23: 0 | KR23: 0 | KS23: 0 | KT23: 0 | KU23: 0 | KV23: 0 | KW23: 0
C24: Closing Balance | I24: =I21+I22+I23 -> 0 | J24: =J21+J22+J23 -> 200 | K24: 431.5531497 | L24: 699.6374554 | M24: 1010.016282 | N24: 1369.362257 | O24: 1785.400719 | P24: 2267.0758 | Q24: 2824.74271 | R24: 3470.390358 | S24: 4217.899091 | T24: 5083.339098 | U24: 6085.315896 | V24: 7245.370314 | W24: 8588.441585 | X24: 10143.4035 | Y24: 11943.68515 | Z24: 14027.98957 | AA24: 16441.12585 | AB24: 19234.97238 | AC24: 22469.59219 | AD24: 22469.59219 | AE24: 22469.59219 | AF24: 22469.59219 | AG24: 22469.59219 | AH24: 22469.59219 | AI24: 22469.59219 | AJ24: 22469.59219 | AK24: 22469.59219 | AL24: 22469.59219 | AM24: 22469.59219 | AN24: 22469.59219 | AO24: 22469.59219 | AP24: 22469.59219 | AQ24: 22469.59219 | AR24: 22469.59219 | AS24: 22469.59219 | AT24: 22469.59219 | AU24: 22469.59219 | AV24: 22469.59219 | AW24: 22469.59219 | AX24: 22469.59219 | AY24: 22469.59219 | AZ24: 22469.59219 | BA24: 22469.59219 | BB24: 22469.59219 | BC24: 22469.59219 | BD24: 22469.59219 | BE24: 22469.59219 | BF24: 22469.59219 | BG24: 22469.59219 | BH24: 22469.59219 | BI24: 22469.59219 | BJ24: 22469.59219 | BK24: 22469.59219 | BL24: 22469.59219 | BM24: 22469.59219 | BN24: 22469.59219 | BO24: 22469.59219 | BP24: 22469.59219 | BQ24: 22469.59219 | BR24: 22469.59219 | BS24: 22469.59219 | BT24: 22469.59219 | BU24: 22469.59219 | BV24: =BV21+BV22+BV23 -> 22469.59219 | BW24: 22469.59219 | BX24: 22469.59219 | BY24: 22469.59219 | BZ24: 22469.59219 | CA24: 22469.59219 | CB24: 22469.59219 | CC24: 22469.59219 | CD24: 22469.59219 | CE24: 22469.59219 | CF24: 22469.59219 | CG24: 22469.59219 | CH24: 22469.59219 | CI24: 22469.59219 | CJ24: 22469.59219 | CK24: 22469.59219 | CL24: 22469.59219 | CM24: 22469.59219 | CN24: 22469.59219 | CO24: 22469.59219 | CP24: 22469.59219 | CQ24: 22469.59219 | CR24: 22469.59219 | CS24: 22469.59219 | CT24: 22469.59219 | CU24: 22469.59219 | CV24: 22469.59219 | CW24: 22469.59219 | CX24: 22469.59219 | CY24: 22469.59219 | CZ24: 22469.59219 | DA24: 22469.59219 | DB24: 22469.59219 | DC24: 22469.59219 | DD24: 22469.59219 | DE24: 22469.59219 | DF24: 22469.59219 | DG24: 22469.59219 | DH24: 22469.59219 | DI24: 22469.59219 | DJ24: 22469.59219 | DK24: 22469.59219 | DL24: 22469.59219 | DM24: 22469.59219 | DN24: 22469.59219 | DO24: 22469.59219 | DP24: 22469.59219 | DQ24: 22469.59219 | DR24: 22469.59219 | DS24: 22469.59219 | DT24: 22469.59219 | DU24: 22469.59219 | DV24: 22469.59219 | DW24: 22469.59219 | DX24: 22469.59219 | DY24: 22469.59219 | DZ24: 22469.59219 | EA24: 22469.59219 | EB24: 22469.59219 | EC24: 22469.59219 | ED24: 22469.59219 | EE24: 22469.59219 | EF24: 22469.59219 | EG24: 22469.59219 | EH24: =EH21+EH22+EH23 -> 22469.59219 | EI24: 22469.59219 | EJ24: 22469.59219 | EK24: 22469.59219 | EL24: 22469.59219 | EM24: 22469.59219 | EN24: 22469.59219 | EO24: 22469.59219 | EP24: 22469.59219 | EQ24: 22469.59219 | ER24: 22469.59219 | ES24: 22469.59219 | ET24: 22469.59219 | EU24: 22469.59219 | EV24: 22469.59219 | EW24: 22469.59219 | EX24: 22469.59219 | EY24: 22469.59219 | EZ24: 22469.59219 | FA24: 22469.59219 | FB24: 22469.59219 | FC24: 22469.59219 | FD24: 22469.59219 | FE24: 22469.59219 | FF24: 22469.59219 | FG24: 22469.59219 | FH24: 22469.59219 | FI24: 22469.59219 | FJ24: 22469.59219 | FK24: 22469.59219 | FL24: 22469.59219 | FM24: 22469.59219 | FN24: 22469.59219 | FO24: 22469.59219 | FP24: 22469.59219 | FQ24: 22469.59219 | FR24: 22469.59219 | FS24: 22469.59219 | FT24: 22469.59219 | FU24: 22469.59219 | FV24: 22469.59219 | FW24: 22469.59219 | FX24: 22469.59219 | FY24: 22469.59219 | FZ24: 22469.59219 | GA24: 22469.59219 | GB24: 22469.59219 | GC24: 22469.59219 | GD24: 22469.59219 | GE24: 22469.59219 | GF24: 22469.59219 | GG24: 22469.59219 | GH24: 22469.59219 | GI24: 22469.59219 | GJ24: 22469.59219 | GK24: 22469.59219 | GL24: 22469.59219 | GM24: 22469.59219 | GN24: 22469.59219 | GO24: 22469.59219 | GP24: 22469.59219 | GQ24: 22469.59219 | GR24: 22469.59219 | GS24: 22469.59219 | GT24: =GT21+GT22+GT23 -> 22469.59219 | GU24: 22469.59219 | GV24: 22469.59219 | GW24: 22469.59219 | GX24: 22469.59219 | GY24: 22469.59219 | GZ24: 22469.59219 | HA24: 22469.59219 | HB24: 22469.59219 | HC24: 22469.59219 | HD24: 22469.59219 | HE24: 22469.59219 | HF24: 22469.59219 | HG24: 22469.59219 | HH24: 22469.59219 | HI24: 22469.59219 | HJ24: 22469.59219 | HK24: 22469.59219 | HL24: 22469.59219 | HM24: 22469.59219 | HN24: 22469.59219 | HO24: 22469.59219 | HP24: 22469.59219 | HQ24: 22469.59219 | HR24: 22469.59219 | HS24: 22469.59219 | HT24: 22469.59219 | HU24: 22469.59219 | HV24: 22469.59219 | HW24: 22469.59219 | HX24: 22469.59219 | HY24: 22469.59219 | HZ24: 22469.59219 | IA24: 22469.59219 | IB24: 22469.59219 | IC24: 22469.59219 | ID24: 22469.59219 | IE24: 22469.59219 | IF24: 22469.59219 | IG24: 22469.59219 | IH24: 22469.59219 | II24: 22469.59219 | IJ24: 22469.59219 | IK24: 22469.59219 | IL24: 22469.59219 | IM24: 22469.59219 | IN24: 22469.59219 | IO24: 22469.59219 | IP24: 22469.59219 | IQ24: 22469.59219 | IR24: 22469.59219 | IS24: 22469.59219 | IT24: 22469.59219 | IU24: 22469.59219 | IV24: 22469.59219 | IW24: 22469.59219 | IX24: 22469.59219 | IY24: 22469.59219 | IZ24: 22469.59219 | JA24: 22469.59219 | JB24: 22469.59219 | JC24: 22469.59219 | JD24: 22469.59219 | JE24: 22469.59219 | JF24: =JF21+JF22+JF23 -> 22469.59219 | JG24: 22469.59219 | JH24: 22469.59219 | JI24: 22469.59219 | JJ24: 22469.59219 | JK24: 22469.59219 | JL24: 22469.59219 | JM24: 22469.59219 | JN24: 22469.59219 | JO24: 22469.59219 | JP24: 22469.59219 | JQ24: 22469.59219 | JR24: 22469.59219 | JS24: 22469.59219 | JT24: 22469.59219 | JU24: 22469.59219 | JV24: 22469.59219 | JW24: 22469.59219 | JX24: 22469.59219 | JY24: 22469.59219 | JZ24: 22469.59219 | KA24: 22469.59219 | KB24: 22469.59219 | KC24: 22469.59219 | KD24: 22469.59219 | KE24: 22469.59219 | KF24: 22469.59219 | KG24: 22469.59219 | KH24: 22469.59219 | KI24: 22469.59219 | KJ24: 22469.59219 | KK24: 22469.59219 | KL24: 22469.59219 | KM24: 22469.59219 | KN24: 22469.59219 | KO24: 22469.59219 | KP24: 22469.59219 | KQ24: 22469.59219 | KR24: 22469.59219 | KS24: 22469.59219 | KT24: 22469.59219 | KU24: 22469.59219 | KV24: 22469.59219 | KW24: 22469.59219
C26: Ending Value | F26: =DE24 -> 22469.59219
C27: Starting Investment | F27: =F14 -> 1200
C28: Ratio | F28: =F26/F27 -> 18.72466016
C29: Life | F29: =F9 -> 20
C30: Ratio ^ (1/Life)-1 | F30: =F28^(1/F29)-1 -> 0.1577657486
C32: Depreciation Rate Flag | E32: Flag | F32: =F10 -> 20 | J32: =J1<=$F$32 -> TRUE | K32: TRUE | L32: TRUE | M32: TRUE | N32: TRUE | O32: TRUE | P32: TRUE | Q32: TRUE | R32: TRUE | S32: TRUE | T32: TRUE | U32: TRUE | V32: TRUE | W32: TRUE | X32: TRUE | Y32: TRUE | Z32: TRUE | AA32: TRUE | AB32: TRUE | AC32: TRUE | AD32: FALSE | AE32: FALSE | AF32: FALSE | AG32: FALSE | AH32: FALSE | AI32: FALSE | AJ32: FALSE | AK32: FALSE | AL32: FALSE | AM32: FALSE | AN32: FALSE | AO32: FALSE | AP32: FALSE | AQ32: FALSE | AR32: FALSE | AS32: FALSE | AT32: FALSE | AU32: FALSE | AV32: FALSE | AW32: FALSE | AX32: FALSE | AY32: FALSE | AZ32: FALSE | BA32: FALSE | BB32: FALSE | BC32: FALSE | BD32: FALSE | BE32: FALSE | BF32: FALSE | BG32: FALSE | BH32: FALSE | BI32: FALSE | BJ32: FALSE | BK32: FALSE | BL32: FALSE | BM32: FALSE | BN32: FALSE | BO32: FALSE | BP32: FALSE | BQ32: FALSE | BR32: FALSE | BS32: FALSE | BT32: FALSE | BU32: FALSE | BV32: =BV1<=$F$32 -> FALSE | BW32: FALSE | BX32: FALSE | BY32: FALSE | BZ32: FALSE | CA32: FALSE | CB32: FALSE | CC32: FALSE | CD32: FALSE | CE32: FALSE | CF32: FALSE | CG32: FALSE | CH32: FALSE | CI32: FALSE | CJ32: FALSE | CK32: FALSE | CL32: FALSE | CM32: FALSE | CN32: FALSE | CO32: FALSE | CP32: FALSE | CQ32: FALSE | CR32: FALSE | CS32: FALSE | CT32: FALSE | CU32: FALSE | CV32: FALSE | CW32: FALSE | CX32: FALSE | CY32: FALSE | CZ32: FALSE | DA32: FALSE | DB32: FALSE | DC32: FALSE | DD32: FALSE | DE32: FALSE | DF32: FALSE | DG32: FALSE | DH32: FALSE | DI32: FALSE | DJ32: FALSE | DK32: FALSE | DL32: FALSE | DM32: FALSE | DN32: FALSE | DO32: FALSE | DP32: FALSE | DQ32: FALSE | DR32: FALSE | DS32: FALSE | DT32: FALSE | DU32: FALSE | DV32: FALSE | DW32: FALSE | DX32: FALSE | DY32: FALSE | DZ32: FALSE | EA32: FALSE | EB32: FALSE | EC32: FALSE | ED32: FALSE | EE32: FALSE | EF32: FALSE | EG32: FALSE | EH32: =EH1<=$F$32 -> FALSE | EI32: FALSE | EJ32: FALSE | EK32: FALSE | EL32: FALSE | EM32: FALSE | EN32: FALSE | EO32: FALSE | EP32: FALSE | EQ32: FALSE | ER32: FALSE | ES32: FALSE | ET32: FALSE | EU32: FALSE | EV32: FALSE | EW32: FALSE | EX32: FALSE | EY32: FALSE | EZ32: FALSE | FA32: FALSE | FB32: FALSE | FC32: FALSE | FD32: FALSE | FE32: FALSE | FF32: FALSE | FG32: FALSE | FH32: FALSE | FI32: FALSE | FJ32: FALSE | FK32: FALSE | FL32: FALSE | FM32: FALSE | FN32: FALSE | FO32: FALSE | FP32: FALSE | FQ32: FALSE | FR32: FALSE | FS32: FALSE | FT32: FALSE | FU32: FALSE | FV32: FALSE | FW32: FALSE | FX32: FALSE | FY32: FALSE | FZ32: FALSE | GA32: FALSE | GB32: FALSE | GC32: FALSE | GD32: FALSE | GE32: FALSE | GF32: FALSE | GG32: FALSE | GH32: FALSE | GI32: FALSE | GJ32: FALSE | GK32: FALSE | GL32: FALSE | GM32: FALSE | GN32: FALSE | GO32: FALSE | GP32: FALSE | GQ32: FALSE | GR32: FALSE | GS32: FALSE | GT32: =GT1<=$F$32 -> FALSE | GU32: FALSE | GV32: FALSE | GW32: FALSE | GX32: FALSE | GY32: FALSE | GZ32: FALSE | HA32: FALSE | HB32: FALSE | HC32: FALSE | HD32: FALSE | HE32: FALSE | HF32: FALSE | HG32: FALSE | HH32: FALSE | HI32: FALSE | HJ32: FALSE | HK32: FALSE | HL32: FALSE | HM32: FALSE | HN32: FALSE | HO32: FALSE | HP32: FALSE | HQ32: FALSE | HR32: FALSE | HS32: FALSE | HT32: FALSE | HU32: FALSE | HV32: FALSE | HW32: FALSE | HX32: FALSE | HY32: FALSE | HZ32: FALSE | IA32: FALSE | IB32: FALSE | IC32: FALSE | ID32: FALSE | IE32: FALSE | IF32: FALSE | IG32: FALSE | IH32: FALSE | II32: FALSE | IJ32: FALSE | IK32: FALSE | IL32: FALSE | IM32: FALSE | IN32: FALSE | IO32: FALSE | IP32: FALSE | IQ32: FALSE | IR32: FALSE | IS32: FALSE | IT32: FALSE | IU32: FALSE | IV32: FALSE | IW32: FALSE | IX32: FALSE | IY32: FALSE | IZ32: FALSE | JA32: FALSE | JB32: FALSE | JC32: FALSE | JD32: FALSE | JE32: FALSE | JF32: =JF1<=$F$32 -> FALSE | JG32: FALSE | JH32: FALSE | JI32: FALSE | JJ32: FALSE | JK32: FALSE | JL32: FALSE | JM32: FALSE | JN32: FALSE | JO32: FALSE | JP32: FALSE | JQ32: FALSE | JR32: FALSE | JS32: FALSE | JT32: FALSE | JU32: FALSE | JV32: FALSE | JW32: FALSE | JX32: FALSE | JY32: FALSE | JZ32: FALSE | KA32: FALSE | KB32: FALSE | KC32: FALSE | KD32: FALSE | KE32: FALSE | KF32: FALSE | KG32: FALSE | KH32: FALSE | KI32: FALSE | KJ32: FALSE | KK32: FALSE | KL32: FALSE | KM32: FALSE | KN32: FALSE | KO32: FALSE | KP32: FALSE | KQ32: FALSE | KR32: FALSE | KS32: FALSE | KT32: FALSE | KU32: FALSE | KV32: FALSE | KW32: FALSE
C33: Depreciation Rate | E33: % | F33: =1/F10 -> 0.05 | J33: =$F$33*J32 -> 0.05 | K33: =$F$33*K32 -> 0.05 | L33: 0.05 | M33: 0.05 | N33: 0.05 | O33: 0.05 | P33: 0.05 | Q33: 0.05 | R33: 0.05 | S33: 0.05 | T33: 0.05 | U33: 0.05 | V33: 0.05 | W33: 0.05 | X33: 0.05 | Y33: 0.05 | Z33: 0.05 | AA33: 0.05 | AB33: 0.05 | AC33: 0.05 | AD33: 0 | AE33: 0 | AF33: 0 | AG33: 0 | AH33: 0 | AI33: 0 | AJ33: 0 | AK33: 0 | AL33: 0 | AM33: 0 | AN33: 0 | AO33: 0 | AP33: 0 | AQ33: 0 | AR33: 0 | AS33: 0 | AT33: 0 | AU33: 0 | AV33: 0 | AW33: 0 | AX33: 0 | AY33: 0 | AZ33: 0 | BA33: 0 | BB33: 0 | BC33: 0 | BD33: 0 | BE33: 0 | BF33: 0 | BG33: 0 | BH33: 0 | BI33: 0 | BJ33: 0 | BK33: 0 | BL33: 0 | BM33: 0 | BN33: 0 | BO33: 0 | BP33: 0 | BQ33: 0 | BR33: 0 | BS33: 0 | BT33: 0 | BU33: 0 | BV33: 0 | BW33: =$F$33*BW32 -> 0 | BX33: 0 | BY33: 0 | BZ33: 0 | CA33: 0 | CB33: 0 | CC33: 0 | CD33: 0 | CE33: 0 | CF33: 0 | CG33: 0 | CH33: 0 | CI33: 0 | CJ33: 0 | CK33: 0 | CL33: 0 | CM33: 0 | CN33: 0 | CO33: 0 | CP33: 0 | CQ33: 0 | CR33: 0 | CS33: 0 | CT33: 0 | CU33: 0 | CV33: 0 | CW33: 0 | CX33: 0 | CY33: 0 | CZ33: 0 | DA33: 0 | DB33: 0 | DC33: 0 | DD33: 0 | DE33: 0 | DF33: 0 | DG33: 0 | DH33: 0 | DI33: 0 | DJ33: 0 | DK33: 0 | DL33: 0 | DM33: 0 | DN33: 0 | DO33: 0 | DP33: 0 | DQ33: 0 | DR33: 0 | DS33: 0 | DT33: 0 | DU33: 0 | DV33: 0 | DW33: 0 | DX33: 0 | DY33: 0 | DZ33: 0 | EA33: 0 | EB33: 0 | EC33: 0 | ED33: 0 | EE33: 0 | EF33: 0 | EG33: 0 | EH33: 0 | EI33: =$F$33*EI32 -> 0 | EJ33: 0 | EK33: 0 | EL33: 0 | EM33: 0 | EN33: 0 | EO33: 0 | EP33: 0 | EQ33: 0 | ER33: 0 | ES33: 0 | ET33: 0 | EU33: 0 | EV33: 0 | EW33: 0 | EX33: 0 | EY33: 0 | EZ33: 0 | FA33: 0 | FB33: 0 | FC33: 0 | FD33: 0 | FE33: 0 | FF33: 0 | FG33: 0 | FH33: 0 | FI33: 0 | FJ33: 0 | FK33: 0 | FL33: 0 | FM33: 0 | FN33: 0 | FO33: 0 | FP33: 0 | FQ33: 0 | FR33: 0 | FS33: 0 | FT33: 0 | FU33: 0 | FV33: 0 | FW33: 0 | FX33: 0 | FY33: 0 | FZ33: 0 | GA33: 0 | GB33: 0 | GC33: 0 | GD33: 0 | GE33: 0 | GF33: 0 | GG33: 0 | GH33: 0 | GI33: 0 | GJ33: 0 | GK33: 0 | GL33: 0 | GM33: 0 | GN33: 0 | GO33: 0 | GP33: 0 | GQ33: 0 | GR33: 0 | GS33: 0 | GT33: 0 | GU33: =$F$33*GU32 -> 0 | GV33: 0 | GW33: 0 | GX33: 0 | GY33: 0 | GZ33: 0 | HA33: 0 | HB33: 0 | HC33: 0 | HD33: 0 | HE33: 0 | HF33: 0 | HG33: 0 | HH33: 0 | HI33: 0 | HJ33: 0 | HK33: 0 | HL33: 0 | HM33: 0 | HN33: 0 | HO33: 0 | HP33: 0 | HQ33: 0 | HR33: 0 | HS33: 0 | HT33: 0 | HU33: 0 | HV33: 0 | HW33: 0 | HX33: 0 | HY33: 0 | HZ33: 0 | IA33: 0 | IB33: 0 | IC33: 0 | ID33: 0 | IE33: 0 | IF33: 0 | IG33: 0 | IH33: 0 | II33: 0 | IJ33: 0 | IK33: 0 | IL33: 0 | IM33: 0 | IN33: 0 | IO33: 0 | IP33: 0 | IQ33: 0 | IR33: 0 | IS33: 0 | IT33: 0 | IU33: 0 | IV33: 0 | IW33: 0 | IX33: 0 | IY33: 0 | IZ33: 0 | JA33: 0 | JB33: 0 | JC33: 0 | JD33: 0 | JE33: 0 | JF33: 0 | JG33: =$F$33*JG32 -> 0 | JH33: 0 | JI33: 0 | JJ33: 0 | JK33: 0 | JL33: 0 | JM33: 0 | JN33: 0 | JO33: 0 | JP33: 0 | JQ33: 0 | JR33: 0 | JS33: 0 | JT33: 0 | JU33: 0 | JV33: 0 | JW33: 0 | JX33: 0 | JY33: 0 | JZ33: 0 | KA33: 0 | KB33: 0 | KC33: 0 | KD33: 0 | KE33: 0 | KF33: 0 | KG33: 0 | KH33: 0 | KI33: 0 | KJ33: 0 | KK33: 0 | KL33: 0 | KM33: 0 | KN33: 0 | KO33: 0 | KP33: 0 | KQ33: 0 | KR33: 0 | KS33: 0 | KT33: 0 | KU33: 0 | KV33: 0 | KW33: 0
C34: Straight Line Depreciation | E34: EGP | F34: =F7 -> 1200 | J34: =J33*$F$34 -> 60 | K34: =K33*$F$34 -> 60 | L34: 60 | M34: 60 | N34: 60 | O34: 60 | P34: 60 | Q34: 60 | R34: 60 | S34: 60 | T34: 60 | U34: 60 | V34: 60 | W34: 60 | X34: 60 | Y34: 60 | Z34: 60 | AA34: 60 | AB34: 60 | AC34: 60 | AD34: 0 | AE34: 0 | AF34: 0 | AG34: 0 | AH34: 0 | AI34: 0 | AJ34: 0 | AK34: 0 | AL34: 0 | AM34: 0 | AN34: 0 | AO34: 0 | AP34: 0 | AQ34: 0 | AR34: 0 | AS34: 0 | AT34: 0 | AU34: 0 | AV34: 0 | AW34: 0 | AX34: 0 | AY34: 0 | AZ34: 0 | BA34: 0 | BB34: 0 | BC34: 0 | BD34: 0 | BE34: 0 | BF34: 0 | BG34: 0 | BH34: 0 | BI34: 0 | BJ34: 0 | BK34: 0 | BL34: 0 | BM34: 0 | BN34: 0 | BO34: 0 | BP34: 0 | BQ34: 0 | BR34: 0 | BS34: 0 | BT34: 0 | BU34: 0 | BV34: 0 | BW34: =BW33*$F$34 -> 0 | BX34: 0 | BY34: 0 | BZ34: 0 | CA34: 0 | CB34: 0 | CC34: 0 | CD34: 0 | CE34: 0 | CF34: 0 | CG34: 0 | CH34: 0 | CI34: 0 | CJ34: 0 | CK34: 0 | CL34: 0 | CM34: 0 | CN34: 0 | CO34: 0 | CP34: 0 | CQ34: 0 | CR34: 0 | CS34: 0 | CT34: 0 | CU34: 0 | CV34: 0 | CW34: 0 | CX34: 0 | CY34: 0 | CZ34: 0 | DA34: 0 | DB34: 0 | DC34: 0 | DD34: 0 | DE34: 0 | DF34: 0 | DG34: 0 | DH34: 0 | DI34: 0 | DJ34: 0 | DK34: 0 | DL34: 0 | DM34: 0 | DN34: 0 | DO34: 0 | DP34: 0 | DQ34: 0 | DR34: 0 | DS34: 0 | DT34: 0 | DU34: 0 | DV34: 0 | DW34: 0 | DX34: 0 | DY34: 0 | DZ34: 0 | EA34: 0 | EB34: 0 | EC34: 0 | ED34: 0 | EE34: 0 | EF34: 0 | EG34: 0 | EH34: 0 | EI34: =EI33*$F$34 -> 0 | EJ34: 0 | EK34: 0 | EL34: 0 | EM34: 0 | EN34: 0 | EO34: 0 | EP34: 0 | EQ34: 0 | ER34: 0 | ES34: 0 | ET34: 0 | EU34: 0 | EV34: 0 | EW34: 0 | EX34: 0 | EY34: 0 | EZ34: 0 | FA34: 0 | FB34: 0 | FC34: 0 | FD34: 0 | FE34: 0 | FF34: 0 | FG34: 0 | FH34: 0 | FI34: 0 | FJ34: 0 | FK34: 0 | FL34: 0 | FM34: 0 | FN34: 0 | FO34: 0 | FP34: 0 | FQ34: 0 | FR34: 0 | FS34: 0 | FT34: 0 | FU34: 0 | FV34: 0 | FW34: 0 | FX34: 0 | FY34: 0 | FZ34: 0 | GA34: 0 | GB34: 0 | GC34: 0 | GD34: 0 | GE34: 0 | GF34: 0 | GG34: 0 | GH34: 0 | GI34: 0 | GJ34: 0 | GK34: 0 | GL34: 0 | GM34: 0 | GN34: 0 | GO34: 0 | GP34: 0 | GQ34: 0 | GR34: 0 | GS34: 0 | GT34: 0 | GU34: =GU33*$F$34 -> 0 | GV34: 0 | GW34: 0 | GX34: 0 | GY34: 0 | GZ34: 0 | HA34: 0 | HB34: 0 | HC34: 0 | HD34: 0 | HE34: 0 | HF34: 0 | HG34: 0 | HH34: 0 | HI34: 0 | HJ34: 0 | HK34: 0 | HL34: 0 | HM34: 0 | HN34: 0 | HO34: 0 | HP34: 0 | HQ34: 0 | HR34: 0 | HS34: 0 | HT34: 0 | HU34: 0 | HV34: 0 | HW34: 0 | HX34: 0 | HY34: 0 | HZ34: 0 | IA34: 0 | IB34: 0 | IC34: 0 | ID34: 0 | IE34: 0 | IF34: 0 | IG34: 0 | IH34: 0 | II34: 0 | IJ34: 0 | IK34: 0 | IL34: 0 | IM34: 0 | IN34: 0 | IO34: 0 | IP34: 0 | IQ34: 0 | IR34: 0 | IS34: 0 | IT34: 0 | IU34: 0 | IV34: 0 | IW34: 0 | IX34: 0 | IY34: 0 | IZ34: 0 | JA34: 0 | JB34: 0 | JC34: 0 | JD34: 0 | JE34: 0 | JF34: 0 | JG34: =JG33*$F$34 -> 0 | JH34: 0 | JI34: 0 | JJ34: 0 | JK34: 0 | JL34: 0 | JM34: 0 | JN34: 0 | JO34: 0 | JP34: 0 | JQ34: 0 | JR34: 0 | JS34: 0 | JT34: 0 | JU34: 0 | JV34: 0 | JW34: 0 | JX34: 0 | JY34: 0 | JZ34: 0 | KA34: 0 | KB34: 0 | KC34: 0 | KD34: 0 | KE34: 0 | KF34: 0 | KG34: 0 | KH34: 0 | KI34: 0 | KJ34: 0 | KK34: 0 | KL34: 0 | KM34: 0 | KN34: 0 | KO34: 0 | KP34: 0 | KQ34: 0 | KR34: 0 | KS34: 0 | KT34: 0 | KU34: 0 | KV34: 0 | KW34: 0
C35: Net Plant | E35: EGP | F35: =F7 -> 1200 | I35: =F35 -> 1200 | J35: =I35-J34 -> 1140 | K35: =J35-K34 -> 1080 | L35: 1020 | M35: 960 | N35: 900 | O35: 840 | P35: 780 | Q35: 720 | R35: 660 | S35: 600 | T35: 540 | U35: 480 | V35: 420 | W35: 360 | X35: 300 | Y35: 240 | Z35: 180 | AA35: 120 | AB35: 60 | AC35: 0 | AD35: 0 | AE35: 0 | AF35: 0 | AG35: 0 | AH35: 0 | AI35: 0 | AJ35: 0 | AK35: 0 | AL35: 0 | AM35: 0 | AN35: 0 | AO35: 0 | AP35: 0 | AQ35: 0 | AR35: 0 | AS35: 0 | AT35: 0 | AU35: 0 | AV35: 0 | AW35: 0 | AX35: 0 | AY35: 0 | AZ35: 0 | BA35: 0 | BB35: 0 | BC35: 0 | BD35: 0 | BE35: 0 | BF35: 0 | BG35: 0 | BH35: 0 | BI35: 0 | BJ35: 0 | BK35: 0 | BL35: 0 | BM35: 0 | BN35: 0 | BO35: 0 | BP35: 0 | BQ35: 0 | BR35: 0 | BS35: 0 | BT35: 0 | BU35: 0 | BV35: 0 | BW35: =BV35-BW34 -> 0 | BX35: 0 | BY35: 0 | BZ35: 0 | CA35: 0 | CB35: 0 | CC35: 0 | CD35: 0 | CE35: 0 | CF35: 0 | CG35: 0 | CH35: 0 | CI35: 0 | CJ35: 0 | CK35: 0 | CL35: 0 | CM35: 0 | CN35: 0 | CO35: 0 | CP35: 0 | CQ35: 0 | CR35: 0 | CS35: 0 | CT35: 0 | CU35: 0 | CV35: 0 | CW35: 0 | CX35: 0 | CY35: 0 | CZ35: 0 | DA35: 0 | DB35: 0 | DC35: 0 | DD35: 0 | DE35: 0 | DF35: =DE35-DF34 -> 0 | DG35: =DF35-DG34 -> 0 | DH35: =DG35-DH34 -> 0 | DI35: =DH35-DI34 -> 0 | DJ35: =DI35-DJ34 -> 0 | DK35: =DJ35-DK34 -> 0 | DL35: =DK35-DL34 -> 0 | DM35: =DL35-DM34 -> 0 | DN35: =DM35-DN34 -> 0 | DO35: =DN35-DO34 -> 0 | DP35: =DO35-DP34 -> 0 | DQ35: =DP35-DQ34 -> 0 | DR35: =DQ35-DR34 -> 0 | DS35: =DR35-DS34 -> 0 | DT35: =DS35-DT34 -> 0 | DU35: =DT35-DU34 -> 0 | DV35: =DU35-DV34 -> 0 | DW35: =DV35-DW34 -> 0 | DX35: =DW35-DX34 -> 0 | DY35: =DX35-DY34 -> 0 | DZ35: =DY35-DZ34 -> 0 | EA35: =DZ35-EA34 -> 0 | EB35: =EA35-EB34 -> 0 | EC35: =EB35-EC34 -> 0 | ED35: =EC35-ED34 -> 0 | EE35: =ED35-EE34 -> 0 | EF35: =EE35-EF34 -> 0 | EG35: =EF35-EG34 -> 0 | EH35: =EG35-EH34 -> 0 | EI35: =EH35-EI34 -> 0 | EJ35: =EI35-EJ34 -> 0 | EK35: =EJ35-EK34 -> 0 | EL35: =EK35-EL34 -> 0 | EM35: =EL35-EM34 -> 0 | EN35: =EM35-EN34 -> 0 | EO35: =EN35-EO34 -> 0 | EP35: =EO35-EP34 -> 0 | EQ35: =EP35-EQ34 -> 0 | ER35: =EQ35-ER34 -> 0 | ES35: =ER35-ES34 -> 0 | ET35: =ES35-ET34 -> 0 | EU35: =ET35-EU34 -> 0 | EV35: =EU35-EV34 -> 0 | EW35: =EV35-EW34 -> 0 | EX35: =EW35-EX34 -> 0 | EY35: =EX35-EY34 -> 0 | EZ35: =EY35-EZ34 -> 0 | FA35: =EZ35-FA34 -> 0 | FB35: =FA35-FB34 -> 0 | FC35: =FB35-FC34 -> 0 | FD35: =FC35-FD34 -> 0 | FE35: =FD35-FE34 -> 0 | FF35: =FE35-FF34 -> 0 | FG35: =FF35-FG34 -> 0 | FH35: =FG35-FH34 -> 0 | FI35: =FH35-FI34 -> 0 | FJ35: =FI35-FJ34 -> 0 | FK35: =FJ35-FK34 -> 0 | FL35: =FK35-FL34 -> 0 | FM35: =FL35-FM34 -> 0 | FN35: =FM35-FN34 -> 0 | FO35: =FN35-FO34 -> 0 | FP35: =FO35-FP34 -> 0 | FQ35: =FP35-FQ34 -> 0 | FR35: =FQ35-FR34 -> 0 | FS35: =FR35-FS34 -> 0 | FT35: =FS35-FT34 -> 0 | FU35: =FT35-FU34 -> 0 | FV35: =FU35-FV34 -> 0 | FW35: =FV35-FW34 -> 0 | FX35: =FW35-FX34 -> 0 | FY35: =FX35-FY34 -> 0 | FZ35: =FY35-FZ34 -> 0 | GA35: =FZ35-GA34 -> 0 | GB35: =GA35-GB34 -> 0 | GC35: =GB35-GC34 -> 0 | GD35: =GC35-GD34 -> 0 | GE35: =GD35-GE34 -> 0 | GF35: =GE35-GF34 -> 0 | GG35: =GF35-GG34 -> 0 | GH35: =GG35-GH34 -> 0 | GI35: =GH35-GI34 -> 0 | GJ35: =GI35-GJ34 -> 0 | GK35: =GJ35-GK34 -> 0 | GL35: =GK35-GL34 -> 0 | GM35: =GL35-GM34 -> 0 | GN35: =GM35-GN34 -> 0 | GO35: =GN35-GO34 -> 0 | GP35: =GO35-GP34 -> 0 | GQ35: =GP35-GQ34 -> 0 | GR35: =GQ35-GR34 -> 0 | GS35: =GR35-GS34 -> 0 | GT35: =GS35-GT34 -> 0 | GU35: =GT35-GU34 -> 0 | GV35: =GU35-GV34 -> 0 | GW35: =GV35-GW34 -> 0 | GX35: =GW35-GX34 -> 0 | GY35: =GX35-GY34 -> 0 | GZ35: =GY35-GZ34 -> 0 | HA35: =GZ35-HA34 -> 0 | HB35: =HA35-HB34 -> 0 | HC35: =HB35-HC34 -> 0 | HD35: =HC35-HD34 -> 0 | HE35: =HD35-HE34 -> 0 | HF35: =HE35-HF34 -> 0 | HG35: =HF35-HG34 -> 0 | HH35: =HG35-HH34 -> 0 | HI35: =HH35-HI34 -> 0 | HJ35: =HI35-HJ34 -> 0 | HK35: =HJ35-HK34 -> 0 | HL35: =HK35-HL34 -> 0 | HM35: =HL35-HM34 -> 0 | HN35: =HM35-HN34 -> 0 | HO35: =HN35-HO34 -> 0 | HP35: =HO35-HP34 -> 0 | HQ35: =HP35-HQ34 -> 0 | HR35: =HQ35-HR34 -> 0 | HS35: =HR35-HS34 -> 0 | HT35: =HS35-HT34 -> 0 | HU35: =HT35-HU34 -> 0 | HV35: =HU35-HV34 -> 0 | HW35: =HV35-HW34 -> 0 | HX35: =HW35-HX34 -> 0 | HY35: =HX35-HY34 -> 0 | HZ35: =HY35-HZ34 -> 0 | IA35: =HZ35-IA34 -> 0 | IB35: =IA35-IB34 -> 0 | IC35: =IB35-IC34 -> 0 | ID35: =IC35-ID34 -> 0 | IE35: =ID35-IE34 -> 0 | IF35: =IE35-IF34 -> 0 | IG35: =IF35-IG34 -> 0 | IH35: =IG35-IH34 -> 0 | II35: =IH35-II34 -> 0 | IJ35: =II35-IJ34 -> 0 | IK35: =IJ35-IK34 -> 0 | IL35: =IK35-IL34 -> 0 | IM35: =IL35-IM34 -> 0 | IN35: =IM35-IN34 -> 0 | IO35: =IN35-IO34 -> 0 | IP35: =IO35-IP34 -> 0 | IQ35: =IP35-IQ34 -> 0 | IR35: =IQ35-IR34 -> 0 | IS35: =IR35-IS34 -> 0 | IT35: =IS35-IT34 -> 0 | IU35: =IT35-IU34 -> 0 | IV35: =IU35-IV34 -> 0 | IW35: =IV35-IW34 -> 0 | IX35: =IW35-IX34 -> 0 | IY35: =IX35-IY34 -> 0 | IZ35: =IY35-IZ34 -> 0 | JA35: =IZ35-JA34 -> 0 | JB35: =JA35-JB34 -> 0 | JC35: =JB35-JC34 -> 0 | JD35: =JC35-JD34 -> 0 | JE35: =JD35-JE34 -> 0 | JF35: =JE35-JF34 -> 0 | JG35: =JF35-JG34 -> 0 | JH35: =JG35-JH34 -> 0 | JI35: =JH35-JI34 -> 0 | JJ35: =JI35-JJ34 -> 0 | JK35: =JJ35-JK34 -> 0 | JL35: =JK35-JL34 -> 0 | JM35: =JL35-JM34 -> 0 | JN35: =JM35-JN34 -> 0 | JO35: =JN35-JO34 -> 0 | JP35: =JO35-JP34 -> 0 | JQ35: =JP35-JQ34 -> 0 | JR35: =JQ35-JR34 -> 0 | JS35: =JR35-JS34 -> 0 | JT35: =JS35-JT34 -> 0 | JU35: =JT35-JU34 -> 0 | JV35: =JU35-JV34 -> 0 | JW35: =JV35-JW34 -> 0 | JX35: =JW35-JX34 -> 0 | JY35: =JX35-JY34 -> 0 | JZ35: =JY35-JZ34 -> 0 | KA35: =JZ35-KA34 -> 0 | KB35: =KA35-KB34 -> 0 | KC35: =KB35-KC34 -> 0 | KD35: =KC35-KD34 -> 0 | KE35: =KD35-KE34 -> 0 | KF35: =KE35-KF34 -> 0 | KG35: =KF35-KG34 -> 0 | KH35: =KG35-KH34 -> 0 | KI35: =KH35-KI34 -> 0 | KJ35: =KI35-KJ34 -> 0 | KK35: =KJ35-KK34 -> 0 | KL35: =KK35-KL34 -> 0 | KM35: =KL35-KM34 -> 0 | KN35: =KM35-KN34 -> 0 | KO35: =KN35-KO34 -> 0 | KP35: =KO35-KP34 -> 0 | KQ35: =KP35-KQ34 -> 0 | KR35: =KQ35-KR34 -> 0 | KS35: =KR35-KS34 -> 0 | KT35: =KS35-KT34 -> 0 | KU35: =KT35-KU34 -> 0 | KV35: =KU35-KV34 -> 0 | KW35: =KV35-KW34 -> 0
C37: EBIT | E37: EGP | J37: =J15-J34 -> 140 | K37: 140 | L37: 140 | M37: 140 | N37: 140 | O37: 140 | P37: 140 | Q37: 140 | R37: 140 | S37: 140 | T37: 140 | U37: 140 | V37: 140 | W37: 140 | X37: 140 | Y37: 140 | Z37: 140 | AA37: 140 | AB37: 140 | AC37: 140 | AD37: 0 | AE37: 0 | AF37: 0 | AG37: 0 | AH37: 0 | AI37: 0 | AJ37: 0 | AK37: 0 | AL37: 0 | AM37: 0 | AN37: 0 | AO37: 0 | AP37: 0 | AQ37: 0 | AR37: 0 | AS37: 0 | AT37: 0 | AU37: 0 | AV37: 0 | AW37: 0 | AX37: 0 | AY37: 0 | AZ37: 0 | BA37: 0 | BB37: 0 | BC37: 0 | BD37: 0 | BE37: 0 | BF37: 0 | BG37: 0 | BH37: 0 | BI37: 0 | BJ37: 0 | BK37: 0 | BL37: 0 | BM37: 0 | BN37: 0 | BO37: 0 | BP37: 0 | BQ37: 0 | BR37: 0 | BS37: 0 | BT37: 0 | BU37: 0 | BV37: =BV15-BV34 -> 0 | BW37: 0 | BX37: 0 | BY37: 0 | BZ37: 0 | CA37: 0 | CB37: 0 | CC37: 0 | CD37: 0 | CE37: 0 | CF37: 0 | CG37: 0 | CH37: 0 | CI37: 0 | CJ37: 0 | CK37: 0 | CL37: 0 | CM37: 0 | CN37: 0 | CO37: 0 | CP37: 0 | CQ37: 0 | CR37: 0 | CS37: 0 | CT37: 0 | CU37: 0 | CV37: 0 | CW37: 0 | CX37: 0 | CY37: 0 | CZ37: 0 | DA37: 0 | DB37: 0 | DC37: 0 | DD37: 0 | DE37: 0 | DF37: 0 | DG37: 0 | DH37: 0 | DI37: 0 | DJ37: 0 | DK37: 0 | DL37: 0 | DM37: 0 | DN37: 0 | DO37: 0 | DP37: 0 | DQ37: 0 | DR37: 0 | DS37: 0 | DT37: 0 | DU37: 0 | DV37: 0 | DW37: 0 | DX37: 0 | DY37: 0 | DZ37: 0 | EA37: 0 | EB37: 0 | EC37: 0 | ED37: 0 | EE37: 0 | EF37: 0 | EG37: 0 | EH37: =EH15-EH34 -> 0 | EI37: 0 | EJ37: 0 | EK37: 0 | EL37: 0 | EM37: 0 | EN37: 0 | EO37: 0 | EP37: 0 | EQ37: 0 | ER37: 0 | ES37: 0 | ET37: 0 | EU37: 0 | EV37: 0 | EW37: 0 | EX37: 0 | EY37: 0 | EZ37: 0 | FA37: 0 | FB37: 0 | FC37: 0 | FD37: 0 | FE37: 0 | FF37: 0 | FG37: 0 | FH37: 0 | FI37: 0 | FJ37: 0 | FK37: 0 | FL37: 0 | FM37: 0 | FN37: 0 | FO37: 0 | FP37: 0 | FQ37: 0 | FR37: 0 | FS37: 0 | FT37: 0 | FU37: 0 | FV37: 0 | FW37: 0 | FX37: 0 | FY37: 0 | FZ37: 0 | GA37: 0 | GB37: 0 | GC37: 0 | GD37: 0 | GE37: 0 | GF37: 0 | GG37: 0 | GH37: 0 | GI37: 0 | GJ37: 0 | GK37: 0 | GL37: 0 | GM37: 0 | GN37: 0 | GO37: 0 | GP37: 0 | GQ37: 0 | GR37: 0 | GS37: 0 | GT37: =GT15-GT34 -> 0 | GU37: 0 | GV37: 0 | GW37: 0 | GX37: 0 | GY37: 0 | GZ37: 0 | HA37: 0 | HB37: 0 | HC37: 0 | HD37: 0 | HE37: 0 | HF37: 0 | HG37: 0 | HH37: 0 | HI37: 0 | HJ37: 0 | HK37: 0 | HL37: 0 | HM37: 0 | HN37: 0 | HO37: 0 | HP37: 0 | HQ37: 0 | HR37: 0 | HS37: 0 | HT37: 0 | HU37: 0 | HV37: 0 | HW37: 0 | HX37: 0 | HY37: 0 | HZ37: 0 | IA37: 0 | IB37: 0 | IC37: 0 | ID37: 0 | IE37: 0 | IF37: 0 | IG37: 0 | IH37: 0 | II37: 0 | IJ37: 0 | IK37: 0 | IL37: 0 | IM37: 0 | IN37: 0 | IO37: 0 | IP37: 0 | IQ37: 0 | IR37: 0 | IS37: 0 | IT37: 0 | IU37: 0 | IV37: 0 | IW37: 0 | IX37: 0 | IY37: 0 | IZ37: 0 | JA37: 0 | JB37: 0 | JC37: 0 | JD37: 0 | JE37: 0 | JF37: =JF15-JF34 -> 0 | JG37: 0 | JH37: 0 | JI37: 0 | JJ37: 0 | JK37: 0 | JL37: 0 | JM37: 0 | JN37: 0 | JO37: 0 | JP37: 0 | JQ37: 0 | JR37: 0 | JS37: 0 | JT37: 0 | JU37: 0 | JV37: 0 | JW37: 0 | JX37: 0 | JY37: 0 | JZ37: 0 | KA37: 0 | KB37: 0 | KC37: 0 | KD37: 0 | KE37: 0 | KF37: 0 | KG37: 0 | KH37: 0 | KI37: 0 | KJ37: 0 | KK37: 0 | KL37: 0 | KM37: 0 | KN37: 0 | KO37: 0 | KP37: 0 | KQ37: 0 | KR37: 0 | KS37: 0 | KT37: 0 | KU37: 0 | KV37: 0 | KW37: 0
C38: ROIC | E38: % | J38: =IF(J32,J37/I35) -> 0.1166666667 | K38: =IF(K32,K37/J35) -> 0.1228070175 | L38: 0.1296296296 | M38: 0.137254902 | N38: 0.1458333333 | O38: 0.1555555556 | P38: 0.1666666667 | Q38: 0.1794871795 | R38: 0.1944444444 | S38: 0.2121212121 | T38: 0.2333333333 | U38: 0.2592592593 | V38: 0.2916666667 | W38: 0.3333333333 | X38: 0.3888888889 | Y38: 0.4666666667 | Z38: 0.5833333333 | AA38: 0.7777777778 | AB38: 1.166666667 | AC38: 2.333333333 | AD38: FALSE | AE38: FALSE | AF38: FALSE | AG38: FALSE | AH38: FALSE | AI38: FALSE | AJ38: FALSE | AK38: FALSE | AL38: FALSE | AM38: FALSE | AN38: FALSE | AO38: FALSE | AP38: FALSE | AQ38: FALSE | AR38: FALSE | AS38: FALSE | AT38: FALSE | AU38: FALSE | AV38: FALSE | AW38: FALSE | AX38: FALSE | AY38: FALSE | AZ38: FALSE | BA38: FALSE | BB38: FALSE | BC38: FALSE | BD38: FALSE | BE38: FALSE | BF38: FALSE | BG38: FALSE | BH38: FALSE | BI38: FALSE | BJ38: FALSE | BK38: FALSE | BL38: FALSE | BM38: FALSE | BN38: FALSE | BO38: FALSE | BP38: FALSE | BQ38: FALSE | BR38: FALSE | BS38: FALSE | BT38: FALSE | BU38: FALSE | BV38: FALSE | BW38: =IF(BW32,BW37/BV35) -> FALSE | BX38: FALSE | BY38: FALSE | BZ38: FALSE | CA38: FALSE | CB38: FALSE | CC38: FALSE | CD38: FALSE | CE38: FALSE | CF38: FALSE | CG38: FALSE | CH38: FALSE | CI38: FALSE | CJ38: FALSE | CK38: FALSE | CL38: FALSE | CM38: FALSE | CN38: FALSE | CO38: FALSE | CP38: FALSE | CQ38: FALSE | CR38: FALSE | CS38: FALSE | CT38: FALSE | CU38: FALSE | CV38: FALSE | CW38: FALSE | CX38: FALSE | CY38: FALSE | CZ38: FALSE | DA38: FALSE | DB38: FALSE | DC38: FALSE | DD38: FALSE | DE38: FALSE | DF38: =IF(DF32,DF37/DE35) -> FALSE | DG38: =IF(DG32,DG37/DF35) -> FALSE | DH38: =IF(DH32,DH37/DG35) -> FALSE | DI38: =IF(DI32,DI37/DH35) -> FALSE | DJ38: =IF(DJ32,DJ37/DI35) -> FALSE | DK38: =IF(DK32,DK37/DJ35) -> FALSE | DL38: =IF(DL32,DL37/DK35) -> FALSE | DM38: =IF(DM32,DM37/DL35) -> FALSE | DN38: =IF(DN32,DN37/DM35) -> FALSE | DO38: =IF(DO32,DO37/DN35) -> FALSE | DP38: =IF(DP32,DP37/DO35) -> FALSE | DQ38: =IF(DQ32,DQ37/DP35) -> FALSE | DR38: =IF(DR32,DR37/DQ35) -> FALSE | DS38: =IF(DS32,DS37/DR35) -> FALSE | DT38: =IF(DT32,DT37/DS35) -> FALSE | DU38: =IF(DU32,DU37/DT35) -> FALSE | DV38: =IF(DV32,DV37/DU35) -> FALSE | DW38: =IF(DW32,DW37/DV35) -> FALSE | DX38: =IF(DX32,DX37/DW35) -> FALSE | DY38: =IF(DY32,DY37/DX35) -> FALSE | DZ38: =IF(DZ32,DZ37/DY35) -> FALSE | EA38: =IF(EA32,EA37/DZ35) -> FALSE | EB38: =IF(EB32,EB37/EA35) -> FALSE | EC38: =IF(EC32,EC37/EB35) -> FALSE | ED38: =IF(ED32,ED37/EC35) -> FALSE | EE38: =IF(EE32,EE37/ED35) -> FALSE | EF38: =IF(EF32,EF37/EE35) -> FALSE | EG38: =IF(EG32,EG37/EF35) -> FALSE | EH38: =IF(EH32,EH37/EG35) -> FALSE | EI38: =IF(EI32,EI37/EH35) -> FALSE | EJ38: =IF(EJ32,EJ37/EI35) -> FALSE | EK38: =IF(EK32,EK37/EJ35) -> FALSE | EL38: =IF(EL32,EL37/EK35) -> FALSE | EM38: =IF(EM32,EM37/EL35) -> FALSE | EN38: =IF(EN32,EN37/EM35) -> FALSE | EO38: =IF(EO32,EO37/EN35) -> FALSE | EP38: =IF(EP32,EP37/EO35) -> FALSE | EQ38: =IF(EQ32,EQ37/EP35) -> FALSE | ER38: =IF(ER32,ER37/EQ35) -> FALSE | ES38: =IF(ES32,ES37/ER35) -> FALSE | ET38: =IF(ET32,ET37/ES35) -> FALSE | EU38: =IF(EU32,EU37/ET35) -> FALSE | EV38: =IF(EV32,EV37/EU35) -> FALSE | EW38: =IF(EW32,EW37/EV35) -> FALSE | EX38: =IF(EX32,EX37/EW35) -> FALSE | EY38: =IF(EY32,EY37/EX35) -> FALSE | EZ38: =IF(EZ32,EZ37/EY35) -> FALSE | FA38: =IF(FA32,FA37/EZ35) -> FALSE | FB38: =IF(FB32,FB37/FA35) -> FALSE | FC38: =IF(FC32,FC37/FB35) -> FALSE | FD38: =IF(FD32,FD37/FC35) -> FALSE | FE38: =IF(FE32,FE37/FD35) -> FALSE | FF38: =IF(FF32,FF37/FE35) -> FALSE | FG38: =IF(FG32,FG37/FF35) -> FALSE | FH38: =IF(FH32,FH37/FG35) -> FALSE | FI38: =IF(FI32,FI37/FH35) -> FALSE | FJ38: =IF(FJ32,FJ37/FI35) -> FALSE | FK38: =IF(FK32,FK37/FJ35) -> FALSE | FL38: =IF(FL32,FL37/FK35) -> FALSE | FM38: =IF(FM32,FM37/FL35) -> FALSE | FN38: =IF(FN32,FN37/FM35) -> FALSE | FO38: =IF(FO32,FO37/FN35) -> FALSE | FP38: =IF(FP32,FP37/FO35) -> FALSE | FQ38: =IF(FQ32,FQ37/FP35) -> FALSE | FR38: =IF(FR32,FR37/FQ35) -> FALSE | FS38: =IF(FS32,FS37/FR35) -> FALSE | FT38: =IF(FT32,FT37/FS35) -> FALSE | FU38: =IF(FU32,FU37/FT35) -> FALSE | FV38: =IF(FV32,FV37/FU35) -> FALSE | FW38: =IF(FW32,FW37/FV35) -> FALSE | FX38: =IF(FX32,FX37/FW35) -> FALSE | FY38: =IF(FY32,FY37/FX35) -> FALSE | FZ38: =IF(FZ32,FZ37/FY35) -> FALSE | GA38: =IF(GA32,GA37/FZ35) -> FALSE | GB38: =IF(GB32,GB37/GA35) -> FALSE | GC38: =IF(GC32,GC37/GB35) -> FALSE | GD38: =IF(GD32,GD37/GC35) -> FALSE | GE38: =IF(GE32,GE37/GD35) -> FALSE | GF38: =IF(GF32,GF37/GE35) -> FALSE | GG38: =IF(GG32,GG37/GF35) -> FALSE | GH38: =IF(GH32,GH37/GG35) -> FALSE | GI38: =IF(GI32,GI37/GH35) -> FALSE | GJ38: =IF(GJ32,GJ37/GI35) -> FALSE | GK38: =IF(GK32,GK37/GJ35) -> FALSE | GL38: =IF(GL32,GL37/GK35) -> FALSE | GM38: =IF(GM32,GM37/GL35) -> FALSE | GN38: =IF(GN32,GN37/GM35) -> FALSE | GO38: =IF(GO32,GO37/GN35) -> FALSE | GP38: =IF(GP32,GP37/GO35) -> FALSE | GQ38: =IF(GQ32,GQ37/GP35) -> FALSE | GR38: =IF(GR32,GR37/GQ35) -> FALSE | GS38: =IF(GS32,GS37/GR35) -> FALSE | GT38: =IF(GT32,GT37/GS35) -> FALSE | GU38: =IF(GU32,GU37/GT35) -> FALSE | GV38: =IF(GV32,GV37/GU35) -> FALSE | GW38: =IF(GW32,GW37/GV35) -> FALSE | GX38: =IF(GX32,GX37/GW35) -> FALSE | GY38: =IF(GY32,GY37/GX35) -> FALSE | GZ38: =IF(GZ32,GZ37/GY35) -> FALSE | HA38: =IF(HA32,HA37/GZ35) -> FALSE | HB38: =IF(HB32,HB37/HA35) -> FALSE | HC38: =IF(HC32,HC37/HB35) -> FALSE | HD38: =IF(HD32,HD37/HC35) -> FALSE | HE38: =IF(HE32,HE37/HD35) -> FALSE | HF38: =IF(HF32,HF37/HE35) -> FALSE | HG38: =IF(HG32,HG37/HF35) -> FALSE | HH38: =IF(HH32,HH37/HG35) -> FALSE | HI38: =IF(HI32,HI37/HH35) -> FALSE | HJ38: =IF(HJ32,HJ37/HI35) -> FALSE | HK38: =IF(HK32,HK37/HJ35) -> FALSE | HL38: =IF(HL32,HL37/HK35) -> FALSE | HM38: =IF(HM32,HM37/HL35) -> FALSE | HN38: =IF(HN32,HN37/HM35) -> FALSE | HO38: =IF(HO32,HO37/HN35) -> FALSE | HP38: =IF(HP32,HP37/HO35) -> FALSE | HQ38: =IF(HQ32,HQ37/HP35) -> FALSE | HR38: =IF(HR32,HR37/HQ35) -> FALSE | HS38: =IF(HS32,HS37/HR35) -> FALSE | HT38: =IF(HT32,HT37/HS35) -> FALSE | HU38: =IF(HU32,HU37/HT35) -> FALSE | HV38: =IF(HV32,HV37/HU35) -> FALSE | HW38: =IF(HW32,HW37/HV35) -> FALSE | HX38: =IF(HX32,HX37/HW35) -> FALSE | HY38: =IF(HY32,HY37/HX35) -> FALSE | HZ38: =IF(HZ32,HZ37/HY35) -> FALSE | IA38: =IF(IA32,IA37/HZ35) -> FALSE | IB38: =IF(IB32,IB37/IA35) -> FALSE | IC38: =IF(IC32,IC37/IB35) -> FALSE | ID38: =IF(ID32,ID37/IC35) -> FALSE | IE38: =IF(IE32,IE37/ID35) -> FALSE | IF38: =IF(IF32,IF37/IE35) -> FALSE | IG38: =IF(IG32,IG37/IF35) -> FALSE | IH38: =IF(IH32,IH37/IG35) -> FALSE | II38: =IF(II32,II37/IH35) -> FALSE | IJ38: =IF(IJ32,IJ37/II35) -> FALSE | IK38: =IF(IK32,IK37/IJ35) -> FALSE | IL38: =IF(IL32,IL37/IK35) -> FALSE | IM38: =IF(IM32,IM37/IL35) -> FALSE | IN38: =IF(IN32,IN37/IM35) -> FALSE | IO38: =IF(IO32,IO37/IN35) -> FALSE | IP38: =IF(IP32,IP37/IO35) -> FALSE | IQ38: =IF(IQ32,IQ37/IP35) -> FALSE | IR38: =IF(IR32,IR37/IQ35) -> FALSE | IS38: =IF(IS32,IS37/IR35) -> FALSE | IT38: =IF(IT32,IT37/IS35) -> FALSE | IU38: =IF(IU32,IU37/IT35) -> FALSE | IV38: =IF(IV32,IV37/IU35) -> FALSE | IW38: =IF(IW32,IW37/IV35) -> FALSE | IX38: =IF(IX32,IX37/IW35) -> FALSE | IY38: =IF(IY32,IY37/IX35) -> FALSE | IZ38: =IF(IZ32,IZ37/IY35) -> FALSE | JA38: =IF(JA32,JA37/IZ35) -> FALSE | JB38: =IF(JB32,JB37/JA35) -> FALSE | JC38: =IF(JC32,JC37/JB35) -> FALSE | JD38: =IF(JD32,JD37/JC35) -> FALSE | JE38: =IF(JE32,JE37/JD35) -> FALSE | JF38: =IF(JF32,JF37/JE35) -> FALSE | JG38: =IF(JG32,JG37/JF35) -> FALSE | JH38: =IF(JH32,JH37/JG35) -> FALSE | JI38: =IF(JI32,JI37/JH35) -> FALSE | JJ38: =IF(JJ32,JJ37/JI35) -> FALSE | JK38: =IF(JK32,JK37/JJ35) -> FALSE | JL38: =IF(JL32,JL37/JK35) -> FALSE | JM38: =IF(JM32,JM37/JL35) -> FALSE | JN38: =IF(JN32,JN37/JM35) -> FALSE | JO38: =IF(JO32,JO37/JN35) -> FALSE | JP38: =IF(JP32,JP37/JO35) -> FALSE | JQ38: =IF(JQ32,JQ37/JP35) -> FALSE | JR38: =IF(JR32,JR37/JQ35) -> FALSE | JS38: =IF(JS32,JS37/JR35) -> FALSE | JT38: =IF(JT32,JT37/JS35) -> FALSE | JU38: =IF(JU32,JU37/JT35) -> FALSE | JV38: =IF(JV32,JV37/JU35) -> FALSE | JW38: =IF(JW32,JW37/JV35) -> FALSE | JX38: =IF(JX32,JX37/JW35) -> FALSE | JY38: =IF(JY32,JY37/JX35) -> FALSE | JZ38: =IF(JZ32,JZ37/JY35) -> FALSE | KA38: =IF(KA32,KA37/JZ35) -> FALSE | KB38: =IF(KB32,KB37/KA35) -> FALSE | KC38: =IF(KC32,KC37/KB35) -> FALSE | KD38: =IF(KD32,KD37/KC35) -> FALSE | KE38: =IF(KE32,KE37/KD35) -> FALSE | KF38: =IF(KF32,KF37/KE35) -> FALSE | KG38: =IF(KG32,KG37/KF35) -> FALSE | KH38: =IF(KH32,KH37/KG35) -> FALSE | KI38: =IF(KI32,KI37/KH35) -> FALSE | KJ38: =IF(KJ32,KJ37/KI35) -> FALSE | KK38: =IF(KK32,KK37/KJ35) -> FALSE | KL38: =IF(KL32,KL37/KK35) -> FALSE | KM38: =IF(KM32,KM37/KL35) -> FALSE | KN38: =IF(KN32,KN37/KM35) -> FALSE | KO38: =IF(KO32,KO37/KN35) -> FALSE | KP38: =IF(KP32,KP37/KO35) -> FALSE | KQ38: =IF(KQ32,KQ37/KP35) -> FALSE | KR38: =IF(KR32,KR37/KQ35) -> FALSE | KS38: =IF(KS32,KS37/KR35) -> FALSE | KT38: =IF(KT32,KT37/KS35) -> FALSE | KU38: =IF(KU32,KU37/KT35) -> FALSE | KV38: =IF(KV32,KV37/KU35) -> FALSE | KW38: =IF(KW32,KW37/KV35) -> FALSE
C40: WACC Index | F40: =F11 -> 0.08 | I40: 1 | J40: =I40*(1+$F$40) -> 1.08 | K40: =J40*(1+$F$40) -> 1.1664 | L40: 1.259712 | M40: 1.36048896 | N40: 1.469328077 | O40: 1.586874323 | P40: 1.713824269 | Q40: 1.85093021 | R40: 1.999004627 | S40: 2.158924997 | T40: 2.331638997 | U40: 2.518170117 | V40: 2.719623726 | W40: 2.937193624 | X40: 3.172169114 | Y40: 3.425942643 | Z40: 3.700018055 | AA40: 3.996019499 | AB40: 4.315701059 | AC40: 4.660957144 | AD40: 5.033833715 | AE40: 5.436540413 | AF40: 5.871463646 | AG40: 6.341180737 | AH40: 6.848475196 | AI40: 7.396353212 | AJ40: 7.988061469 | AK40: 8.627106386 | AL40: 9.317274897 | AM40: 10.06265689 | AN40: 10.86766944 | AO40: 11.737083 | AP40: 12.67604964 | AQ40: 13.69013361 | AR40: 14.78534429 | AS40: 15.96817184 | AT40: 17.24562558 | AU40: 18.62527563 | AV40: 20.11529768 | AW40: 21.7245215 | AX40: 23.46248322 | AY40: 25.33948187 | AZ40: 27.36664042 | BA40: 29.55597166 | BB40: 31.92044939 | BC40: 34.47408534 | BD40: 37.23201217 | BE40: 40.21057314 | BF40: 43.42741899 | BG40: 46.90161251 | BH40: 50.65374151 | BI40: 54.70604084 | BJ40: 59.0825241 | BK40: 63.80912603 | BL40: 68.91385611 | BM40: 74.4269646 | BN40: 80.38112177 | BO40: 86.81161151 | BP40: 93.75654043 | BQ40: 101.2570637 | BR40: 109.3576288 | BS40: 118.1062391 | BT40: 127.5547382 | BU40: 137.7591172 | BV40: 148.7798466 | BW40: =BV40*(1+$F$40) -> 160.6822344 | BX40: 173.5368131 | BY40: 187.4197581 | BZ40: 202.4133388 | CA40: 218.6064059 | CB40: 236.0949184 | CC40: 254.9825118 | CD40: 275.3811128 | CE40: 297.4116018 | CF40: 321.20453 | CG40: 346.9008924 | CH40: 374.6529637 | CI40: 404.6252008 | CJ40: 436.9952169 | CK40: 471.9548343 | CL40: 509.711221 | CM40: 550.4881187 | CN40: 594.5271682 | CO40: 642.0893416 | CP40: 693.456489 | CQ40: 748.9330081 | CR40: 808.8476487 | CS40: 873.5554606 | CT40: 943.4398975 | CU40: 1018.915089 | CV40: 1100.428296 | CW40: 1188.46256 | CX40: 1283.539565 | CY40: 1386.22273 | CZ40: 1497.120549 | DA40: 1616.890192 | DB40: 1746.241408 | DC40: 1885.94072 | DD40: 2036.815978 | DE40: 2199.761256 | DF40: =DE40*(1+$F$40) -> 2375.742157 | DG40: =DF40*(1+$F$40) -> 2565.801529 | DH40: =DG40*(1+$F$40) -> 2771.065652 | DI40: =DH40*(1+$F$40) -> 2992.750904 | DJ40: =DI40*(1+$F$40) -> 3232.170976 | DK40: =DJ40*(1+$F$40) -> 3490.744654 | DL40: =DK40*(1+$F$40) -> 3770.004227 | DM40: =DL40*(1+$F$40) -> 4071.604565 | DN40: =DM40*(1+$F$40) -> 4397.33293 | DO40: =DN40*(1+$F$40) -> 4749.119564 | DP40: =DO40*(1+$F$40) -> 5129.049129 | DQ40: =DP40*(1+$F$40) -> 5539.37306 | DR40: =DQ40*(1+$F$40) -> 5982.522905 | DS40: =DR40*(1+$F$40) -> 6461.124737 | DT40: =DS40*(1+$F$40) -> 6978.014716 | DU40: =DT40*(1+$F$40) -> 7536.255893 | DV40: =DU40*(1+$F$40) -> 8139.156365 | DW40: =DV40*(1+$F$40) -> 8790.288874 | DX40: =DW40*(1+$F$40) -> 9493.511984 | DY40: =DX40*(1+$F$40) -> 10252.99294 | DZ40: =DY40*(1+$F$40) -> 11073.23238 | EA40: =DZ40*(1+$F$40) -> 11959.09097 | EB40: =EA40*(1+$F$40) -> 12915.81825 | EC40: =EB40*(1+$F$40) -> 13949.08371 | ED40: =EC40*(1+$F$40) -> 15065.0104 | EE40: =ED40*(1+$F$40) -> 16270.21123 | EF40: =EE40*(1+$F$40) -> 17571.82813 | EG40: =EF40*(1+$F$40) -> 18977.57438 | EH40: =EG40*(1+$F$40) -> 20495.78033 | EI40: =EH40*(1+$F$40) -> 22135.44276 | EJ40: =EI40*(1+$F$40) -> 23906.27818 | EK40: =EJ40*(1+$F$40) -> 25818.78044 | EL40: =EK40*(1+$F$40) -> 27884.28287 | EM40: =EL40*(1+$F$40) -> 30115.0255 | EN40: =EM40*(1+$F$40) -> 32524.22754 | EO40: =EN40*(1+$F$40) -> 35126.16574 | EP40: =EO40*(1+$F$40) -> 37936.259 | EQ40: =EP40*(1+$F$40) -> 40971.15972 | ER40: =EQ40*(1+$F$40) -> 44248.8525 | ES40: =ER40*(1+$F$40) -> 47788.7607 | ET40: =ES40*(1+$F$40) -> 51611.86156 | EU40: =ET40*(1+$F$40) -> 55740.81048 | EV40: =EU40*(1+$F$40) -> 60200.07532 | EW40: =EV40*(1+$F$40) -> 65016.08135 | EX40: =EW40*(1+$F$40) -> 70217.36785 | EY40: =EX40*(1+$F$40) -> 75834.75728 | EZ40: =EY40*(1+$F$40) -> 81901.53786 | FA40: =EZ40*(1+$F$40) -> 88453.66089 | FB40: =FA40*(1+$F$40) -> 95529.95377 | FC40: =FB40*(1+$F$40) -> 103172.3501 | FD40: =FC40*(1+$F$40) -> 111426.1381 | FE40: =FD40*(1+$F$40) -> 120340.2291 | FF40: =FE40*(1+$F$40) -> 129967.4474 | FG40: =FF40*(1+$F$40) -> 140364.8432 | FH40: =FG40*(1+$F$40) -> 151594.0307 | FI40: =FH40*(1+$F$40) -> 163721.5532 | FJ40: =FI40*(1+$F$40) -> 176819.2774 | FK40: =FJ40*(1+$F$40) -> 190964.8196 | FL40: =FK40*(1+$F$40) -> 206242.0052 | FM40: =FL40*(1+$F$40) -> 222741.3656 | FN40: =FM40*(1+$F$40) -> 240560.6748 | FO40: =FN40*(1+$F$40) -> 259805.5288 | FP40: =FO40*(1+$F$40) -> 280589.9711 | FQ40: =FP40*(1+$F$40) -> 303037.1688 | FR40: =FQ40*(1+$F$40) -> 327280.1423 | FS40: =FR40*(1+$F$40) -> 353462.5537 | FT40: =FS40*(1+$F$40) -> 381739.558 | FU40: =FT40*(1+$F$40) -> 412278.7226 | FV40: =FU40*(1+$F$40) -> 445261.0205 | FW40: =FV40*(1+$F$40) -> 480881.9021 | FX40: =FW40*(1+$F$40) -> 519352.4543 | FY40: =FX40*(1+$F$40) -> 560900.6506 | FZ40: =FY40*(1+$F$40) -> 605772.7026 | GA40: =FZ40*(1+$F$40) -> 654234.5189 | GB40: =GA40*(1+$F$40) -> 706573.2804 | GC40: =GB40*(1+$F$40) -> 763099.1428 | GD40: =GC40*(1+$F$40) -> 824147.0742 | GE40: =GD40*(1+$F$40) -> 890078.8402 | GF40: =GE40*(1+$F$40) -> 961285.1474 | GG40: =GF40*(1+$F$40) -> 1038187.959 | GH40: =GG40*(1+$F$40) -> 1121242.996 | GI40: =GH40*(1+$F$40) -> 1210942.436 | GJ40: =GI40*(1+$F$40) -> 1307817.83 | GK40: =GJ40*(1+$F$40) -> 1412443.257 | GL40: =GK40*(1+$F$40) -> 1525438.717 | GM40: =GL40*(1+$F$40) -> 1647473.815 | GN40: =GM40*(1+$F$40) -> 1779271.72 | GO40: =GN40*(1+$F$40) -> 1921613.458 | GP40: =GO40*(1+$F$40) -> 2075342.534 | GQ40: =GP40*(1+$F$40) -> 2241369.937 | GR40: =GQ40*(1+$F$40) -> 2420679.532 | GS40: =GR40*(1+$F$40) -> 2614333.894 | GT40: =GS40*(1+$F$40) -> 2823480.606 | GU40: =GT40*(1+$F$40) -> 3049359.054 | GV40: =GU40*(1+$F$40) -> 3293307.779 | GW40: =GV40*(1+$F$40) -> 3556772.401 | GX40: =GW40*(1+$F$40) -> 3841314.193 | GY40: =GX40*(1+$F$40) -> 4148619.329 | GZ40: =GY40*(1+$F$40) -> 4480508.875 | HA40: =GZ40*(1+$F$40) -> 4838949.585 | HB40: =HA40*(1+$F$40) -> 5226065.552 | HC40: =HB40*(1+$F$40) -> 5644150.796 | HD40: =HC40*(1+$F$40) -> 6095682.859 | HE40: =HD40*(1+$F$40) -> 6583337.488 | HF40: =HE40*(1+$F$40) -> 7110004.487 | HG40: =HF40*(1+$F$40) -> 7678804.846 | HH40: =HG40*(1+$F$40) -> 8293109.234 | HI40: =HH40*(1+$F$40) -> 8956557.973 | HJ40: =HI40*(1+$F$40) -> 9673082.611 | HK40: =HJ40*(1+$F$40) -> 10446929.22 | HL40: =HK40*(1+$F$40) -> 11282683.56 | HM40: =HL40*(1+$F$40) -> 12185298.24 | HN40: =HM40*(1+$F$40) -> 13160122.1 | HO40: =HN40*(1+$F$40) -> 14212931.87 | HP40: =HO40*(1+$F$40) -> 15349966.42 | HQ40: =HP40*(1+$F$40) -> 16577963.73 | HR40: =HQ40*(1+$F$40) -> 17904200.83 | HS40: =HR40*(1+$F$40) -> 19336536.9 | HT40: =HS40*(1+$F$40) -> 20883459.85 | HU40: =HT40*(1+$F$40) -> 22554136.64 | HV40: =HU40*(1+$F$40) -> 24358467.57 | HW40: =HV40*(1+$F$40) -> 26307144.97 | HX40: =HW40*(1+$F$40) -> 28411716.57 | HY40: =HX40*(1+$F$40) -> 30684653.9 | HZ40: =HY40*(1+$F$40) -> 33139426.21 | IA40: =HZ40*(1+$F$40) -> 35790580.3 | IB40: =IA40*(1+$F$40) -> 38653826.73 | IC40: =IB40*(1+$F$40) -> 41746132.87 | ID40: =IC40*(1+$F$40) -> 45085823.5 | IE40: =ID40*(1+$F$40) -> 48692689.38 | IF40: =IE40*(1+$F$40) -> 52588104.53 | IG40: =IF40*(1+$F$40) -> 56795152.89 | IH40: =IG40*(1+$F$40) -> 61338765.12 | II40: =IH40*(1+$F$40) -> 66245866.33 | IJ40: =II40*(1+$F$40) -> 71545535.64 | IK40: =IJ40*(1+$F$40) -> 77269178.49 | IL40: =IK40*(1+$F$40) -> 83450712.77 | IM40: =IL40*(1+$F$40) -> 90126769.79 | IN40: =IM40*(1+$F$40) -> 97336911.37 | IO40: =IN40*(1+$F$40) -> 105123864.3 | IP40: =IO40*(1+$F$40) -> 113533773.4 | IQ40: =IP40*(1+$F$40) -> 122616475.3 | IR40: =IQ40*(1+$F$40) -> 132425793.3 | IS40: =IR40*(1+$F$40) -> 143019856.8 | IT40: =IS40*(1+$F$40) -> 154461445.3 | IU40: =IT40*(1+$F$40) -> 166818361 | IV40: =IU40*(1+$F$40) -> 180163829.8 | IW40: =IV40*(1+$F$40) -> 194576936.2 | IX40: =IW40*(1+$F$40) -> 210143091.1 | IY40: =IX40*(1+$F$40) -> 226954538.4 | IZ40: =IY40*(1+$F$40) -> 245110901.5 | JA40: =IZ40*(1+$F$40) -> 264719773.6 | JB40: =JA40*(1+$F$40) -> 285897355.5 | JC40: =JB40*(1+$F$40) -> 308769143.9 | JD40: =JC40*(1+$F$40) -> 333470675.4 | JE40: =JD40*(1+$F$40) -> 360148329.5 | JF40: =JE40*(1+$F$40) -> 388960195.8 | JG40: =JF40*(1+$F$40) -> 420077011.5 | JH40: =JG40*(1+$F$40) -> 453683172.4 | JI40: =JH40*(1+$F$40) -> 489977826.2 | JJ40: =JI40*(1+$F$40) -> 529176052.3 | JK40: =JJ40*(1+$F$40) -> 571510136.5 | JL40: =JK40*(1+$F$40) -> 617230947.4 | JM40: =JL40*(1+$F$40) -> 666609423.2 | JN40: =JM40*(1+$F$40) -> 719938177 | JO40: =JN40*(1+$F$40) -> 777533231.2 | JP40: =JO40*(1+$F$40) -> 839735889.7 | JQ40: =JP40*(1+$F$40) -> 906914760.9 | JR40: =JQ40*(1+$F$40) -> 979467941.8 | JS40: =JR40*(1+$F$40) -> 1057825377 | JT40: =JS40*(1+$F$40) -> 1142451407 | JU40: =JT40*(1+$F$40) -> 1233847520 | JV40: =JU40*(1+$F$40) -> 1332555321 | JW40: =JV40*(1+$F$40) -> 1439159747 | JX40: =JW40*(1+$F$40) -> 1554292527 | JY40: =JX40*(1+$F$40) -> 1678635929 | JZ40: =JY40*(1+$F$40) -> 1812926803 | KA40: =JZ40*(1+$F$40) -> 1957960948 | KB40: =KA40*(1+$F$40) -> 2114597823 | KC40: =KB40*(1+$F$40) -> 2283765649 | KD40: =KC40*(1+$F$40) -> 2466466901 | KE40: =KD40*(1+$F$40) -> 2663784253 | KF40: =KE40*(1+$F$40) -> 2876886994 | KG40: =KF40*(1+$F$40) -> 3107037953 | KH40: =KG40*(1+$F$40) -> 3355600989 | KI40: =KH40*(1+$F$40) -> 3624049069 | KJ40: =KI40*(1+$F$40) -> 3913972994 | KK40: =KJ40*(1+$F$40) -> 4227090834 | KL40: =KK40*(1+$F$40) -> 4565258100 | KM40: =KL40*(1+$F$40) -> 4930478748 | KN40: =KM40*(1+$F$40) -> 5324917048 | KO40: =KN40*(1+$F$40) -> 5750910412 | KP40: =KO40*(1+$F$40) -> 6210983245 | KQ40: =KP40*(1+$F$40) -> 6707861905 | KR40: =KQ40*(1+$F$40) -> 7244490857 | KS40: =KR40*(1+$F$40) -> 7824050126 | KT40: =KS40*(1+$F$40) -> 8449974136 | KU40: =KT40*(1+$F$40) -> 9125972066 | KV40: =KU40*(1+$F$40) -> 9856049832 | KW40: =KV40*(1+$F$40) -> 1.064453382e+10
C41: PV of Investment | J41: =I35/I40 -> 1200 | K41: =J35/J40 -> 1055.555556 | L41: 925.9259259 | M41: 809.7088858 | N41: 705.6286587 | O41: 612.5248773 | P41: 529.3424866 | Q41: 455.1225083 | R41: 388.9935968 | S41: 330.1643183 | T41: 277.9160929 | U41: 231.596744 | V41: 190.6146042 | W41: 154.4331284 | X41: 122.5659749 | Y41: 94.57251149 | Z41: 70.05371221 | AA41: 48.64841126 | AB41: 30.02988349 | AC41: 13.90272384 | AD41: 0 | AE41: 0 | AF41: 0 | AG41: 0 | AH41: 0 | AI41: 0 | AJ41: 0 | AK41: 0 | AL41: 0 | AM41: 0 | AN41: 0 | AO41: 0 | AP41: 0 | AQ41: 0 | AR41: 0 | AS41: 0 | AT41: 0 | AU41: 0 | AV41: 0 | AW41: 0 | AX41: 0 | AY41: 0 | AZ41: 0 | BA41: 0 | BB41: 0 | BC41: 0 | BD41: 0 | BE41: 0 | BF41: 0 | BG41: 0 | BH41: 0 | BI41: 0 | BJ41: 0 | BK41: 0 | BL41: 0 | BM41: 0 | BN41: 0 | BO41: 0 | BP41: 0 | BQ41: 0 | BR41: 0 | BS41: 0 | BT41: 0 | BU41: 0 | BV41: 0 | BW41: =BV35/BV40 -> 0 | BX41: 0 | BY41: 0 | BZ41: 0 | CA41: 0 | CB41: 0 | CC41: 0 | CD41: 0 | CE41: 0 | CF41: 0 | CG41: 0 | CH41: 0 | CI41: 0 | CJ41: 0 | CK41: 0 | CL41: 0 | CM41: 0 | CN41: 0 | CO41: 0 | CP41: 0 | CQ41: 0 | CR41: 0 | CS41: 0 | CT41: 0 | CU41: 0 | CV41: 0 | CW41: 0 | CX41: 0 | CY41: 0 | CZ41: 0 | DA41: 0 | DB41: 0 | DC41: 0 | DD41: 0 | DE41: 0 | DF41: =DE35/DE40 -> 0 | DG41: =DF35/DF40 -> 0 | DH41: =DG35/DG40 -> 0 | DI41: =DH35/DH40 -> 0 | DJ41: =DI35/DI40 -> 0 | DK41: =DJ35/DJ40 -> 0 | DL41: =DK35/DK40 -> 0 | DM41: =DL35/DL40 -> 0 | DN41: =DM35/DM40 -> 0 | DO41: =DN35/DN40 -> 0 | DP41: =DO35/DO40 -> 0 | DQ41: =DP35/DP40 -> 0 | DR41: =DQ35/DQ40 -> 0 | DS41: =DR35/DR40 -> 0 | DT41: =DS35/DS40 -> 0 | DU41: =DT35/DT40 -> 0 | DV41: =DU35/DU40 -> 0 | DW41: =DV35/DV40 -> 0 | DX41: =DW35/DW40 -> 0 | DY41: =DX35/DX40 -> 0 | DZ41: =DY35/DY40 -> 0 | EA41: =DZ35/DZ40 -> 0 | EB41: =EA35/EA40 -> 0 | EC41: =EB35/EB40 -> 0 | ED41: =EC35/EC40 -> 0 | EE41: =ED35/ED40 -> 0 | EF41: =EE35/EE40 -> 0 | EG41: =EF35/EF40 -> 0 | EH41: =EG35/EG40 -> 0 | EI41: =EH35/EH40 -> 0 | EJ41: =EI35/EI40 -> 0 | EK41: =EJ35/EJ40 -> 0 | EL41: =EK35/EK40 -> 0 | EM41: =EL35/EL40 -> 0 | EN41: =EM35/EM40 -> 0 | EO41: =EN35/EN40 -> 0 | EP41: =EO35/EO40 -> 0 | EQ41: =EP35/EP40 -> 0 | ER41: =EQ35/EQ40 -> 0 | ES41: =ER35/ER40 -> 0 | ET41: =ES35/ES40 -> 0 | EU41: =ET35/ET40 -> 0 | EV41: =EU35/EU40 -> 0 | EW41: =EV35/EV40 -> 0 | EX41: =EW35/EW40 -> 0 | EY41: =EX35/EX40 -> 0 | EZ41: =EY35/EY40 -> 0 | FA41: =EZ35/EZ40 -> 0 | FB41: =FA35/FA40 -> 0 | FC41: =FB35/FB40 -> 0 | FD41: =FC35/FC40 -> 0 | FE41: =FD35/FD40 -> 0 | FF41: =FE35/FE40 -> 0 | FG41: =FF35/FF40 -> 0 | FH41: =FG35/FG40 -> 0 | FI41: =FH35/FH40 -> 0 | FJ41: =FI35/FI40 -> 0 | FK41: =FJ35/FJ40 -> 0 | FL41: =FK35/FK40 -> 0 | FM41: =FL35/FL40 -> 0 | FN41: =FM35/FM40 -> 0 | FO41: =FN35/FN40 -> 0 | FP41: =FO35/FO40 -> 0 | FQ41: =FP35/FP40 -> 0 | FR41: =FQ35/FQ40 -> 0 | FS41: =FR35/FR40 -> 0 | FT41: =FS35/FS40 -> 0 | FU41: =FT35/FT40 -> 0 | FV41: =FU35/FU40 -> 0 | FW41: =FV35/FV40 -> 0 | FX41: =FW35/FW40 -> 0 | FY41: =FX35/FX40 -> 0 | FZ41: =FY35/FY40 -> 0 | GA41: =FZ35/FZ40 -> 0 | GB41: =GA35/GA40 -> 0 | GC41: =GB35/GB40 -> 0 | GD41: =GC35/GC40 -> 0 | GE41: =GD35/GD40 -> 0 | GF41: =GE35/GE40 -> 0 | GG41: =GF35/GF40 -> 0 | GH41: =GG35/GG40 -> 0 | GI41: =GH35/GH40 -> 0 | GJ41: =GI35/GI40 -> 0 | GK41: =GJ35/GJ40 -> 0 | GL41: =GK35/GK40 -> 0 | GM41: =GL35/GL40 -> 0 | GN41: =GM35/GM40 -> 0 | GO41: =GN35/GN40 -> 0 | GP41: =GO35/GO40 -> 0 | GQ41: =GP35/GP40 -> 0 | GR41: =GQ35/GQ40 -> 0 | GS41: =GR35/GR40 -> 0 | GT41: =GS35/GS40 -> 0 | GU41: =GT35/GT40 -> 0 | GV41: =GU35/GU40 -> 0 | GW41: =GV35/GV40 -> 0 | GX41: =GW35/GW40 -> 0 | GY41: =GX35/GX40 -> 0 | GZ41: =GY35/GY40 -> 0 | HA41: =GZ35/GZ40 -> 0 | HB41: =HA35/HA40 -> 0 | HC41: =HB35/HB40 -> 0 | HD41: =HC35/HC40 -> 0 | HE41: =HD35/HD40 -> 0 | HF41: =HE35/HE40 -> 0 | HG41: =HF35/HF40 -> 0 | HH41: =HG35/HG40 -> 0 | HI41: =HH35/HH40 -> 0 | HJ41: =HI35/HI40 -> 0 | HK41: =HJ35/HJ40 -> 0 | HL41: =HK35/HK40 -> 0 | HM41: =HL35/HL40 -> 0 | HN41: =HM35/HM40 -> 0 | HO41: =HN35/HN40 -> 0 | HP41: =HO35/HO40 -> 0 | HQ41: =HP35/HP40 -> 0 | HR41: =HQ35/HQ40 -> 0 | HS41: =HR35/HR40 -> 0 | HT41: =HS35/HS40 -> 0 | HU41: =HT35/HT40 -> 0 | HV41: =HU35/HU40 -> 0 | HW41: =HV35/HV40 -> 0 | HX41: =HW35/HW40 -> 0 | HY41: =HX35/HX40 -> 0 | HZ41: =HY35/HY40 -> 0 | IA41: =HZ35/HZ40 -> 0 | IB41: =IA35/IA40 -> 0 | IC41: =IB35/IB40 -> 0 | ID41: =IC35/IC40 -> 0 | IE41: =ID35/ID40 -> 0 | IF41: =IE35/IE40 -> 0 | IG41: =IF35/IF40 -> 0 | IH41: =IG35/IG40 -> 0 | II41: =IH35/IH40 -> 0 | IJ41: =II35/II40 -> 0 | IK41: =IJ35/IJ40 -> 0 | IL41: =IK35/IK40 -> 0 | IM41: =IL35/IL40 -> 0 | IN41: =IM35/IM40 -> 0 | IO41: =IN35/IN40 -> 0 | IP41: =IO35/IO40 -> 0 | IQ41: =IP35/IP40 -> 0 | IR41: =IQ35/IQ40 -> 0 | IS41: =IR35/IR40 -> 0 | IT41: =IS35/IS40 -> 0 | IU41: =IT35/IT40 -> 0 | IV41: =IU35/IU40 -> 0 | IW41: =IV35/IV40 -> 0 | IX41: =IW35/IW40 -> 0 | IY41: =IX35/IX40 -> 0 | IZ41: =IY35/IY40 -> 0 | JA41: =IZ35/IZ40 -> 0 | JB41: =JA35/JA40 -> 0 | JC41: =JB35/JB40 -> 0 | JD41: =JC35/JC40 -> 0 | JE41: =JD35/JD40 -> 0 | JF41: =JE35/JE40 -> 0 | JG41: =JF35/JF40 -> 0 | JH41: =JG35/JG40 -> 0 | JI41: =JH35/JH40 -> 0 | JJ41: =JI35/JI40 -> 0 | JK41: =JJ35/JJ40 -> 0 | JL41: =JK35/JK40 -> 0 | JM41: =JL35/JL40 -> 0 | JN41: =JM35/JM40 -> 0 | JO41: =JN35/JN40 -> 0 | JP41: =JO35/JO40 -> 0 | JQ41: =JP35/JP40 -> 0 | JR41: =JQ35/JQ40 -> 0 | JS41: =JR35/JR40 -> 0 | JT41: =JS35/JS40 -> 0 | JU41: =JT35/JT40 -> 0 | JV41: =JU35/JU40 -> 0 | JW41: =JV35/JV40 -> 0 | JX41: =JW35/JW40 -> 0 | JY41: =JX35/JX40 -> 0 | JZ41: =JY35/JY40 -> 0 | KA41: =JZ35/JZ40 -> 0 | KB41: =KA35/KA40 -> 0 | KC41: =KB35/KB40 -> 0 | KD41: =KC35/KC40 -> 0 | KE41: =KD35/KD40 -> 0 | KF41: =KE35/KE40 -> 0 | KG41: =KF35/KF40 -> 0 | KH41: =KG35/KG40 -> 0 | KI41: =KH35/KH40 -> 0 | KJ41: =KI35/KI40 -> 0 | KK41: =KJ35/KJ40 -> 0 | KL41: =KK35/KK40 -> 0 | KM41: =KL35/KL40 -> 0 | KN41: =KM35/KM40 -> 0 | KO41: =KN35/KN40 -> 0 | KP41: =KO35/KO40 -> 0 | KQ41: =KP35/KP40 -> 0 | KR41: =KQ35/KQ40 -> 0 | KS41: =KR35/KR40 -> 0 | KT41: =KS35/KS40 -> 0 | KU41: =KT35/KT40 -> 0 | KV41: =KU35/KU40 -> 0 | KW41: =KV35/KV40 -> 0
C42: Weighting | J42: =J41/SUM(41:41) -> 0.1455021538 | K42: =K41/SUM(41:41) -> 0.1279880056 | L42: 0.1122701804 | M42: 0.09817865567 | N42: 0.08555874133 | O42: 0.07426974074 | P42: 0.06418372656 | Q42: 0.05518442099 | R42: 0.04716617178 | S42: 0.04003301617 | T42: 0.03369782506 | U42: 0.02808152088 | V42: 0.02311236287 | W42: 0.01872529399 | X42: 0.01486134444 | Y42: 0.01146708676 | Z42: 0.008494138338 | AA42: 0.005898707179 | AB42: 0.003641177271 | AC42: 0.001685730218 | AD42: 0 | AE42: 0 | AF42: 0 | AG42: 0 | AH42: 0 | AI42: 0 | AJ42: 0 | AK42: 0 | AL42: 0 | AM42: 0 | AN42: 0 | AO42: 0 | AP42: 0 | AQ42: 0 | AR42: 0 | AS42: 0 | AT42: 0 | AU42: 0 | AV42: 0 | AW42: 0 | AX42: 0 | AY42: 0 | AZ42: 0 | BA42: 0 | BB42: 0 | BC42: 0 | BD42: 0 | BE42: 0 | BF42: 0 | BG42: 0 | BH42: 0 | BI42: 0 | BJ42: 0 | BK42: 0 | BL42: 0 | BM42: 0 | BN42: 0 | BO42: 0 | BP42: 0 | BQ42: 0 | BR42: 0 | BS42: 0 | BT42: 0 | BU42: 0 | BV42: 0 | BW42: =BW41/SUM(41:41) -> 0 | BX42: 0 | BY42: 0 | BZ42: 0 | CA42: 0 | CB42: 0 | CC42: 0 | CD42: 0 | CE42: 0 | CF42: 0 | CG42: 0 | CH42: 0 | CI42: 0 | CJ42: 0 | CK42: 0 | CL42: 0 | CM42: 0 | CN42: 0 | CO42: 0 | CP42: 0 | CQ42: 0 | CR42: 0 | CS42: 0 | CT42: 0 | CU42: 0 | CV42: 0 | CW42: 0 | CX42: 0 | CY42: 0 | CZ42: 0 | DA42: 0 | DB42: 0 | DC42: 0 | DD42: 0 | DE42: 0 | DF42: 0 | DG42: 0 | DH42: 0 | DI42: 0 | DJ42: 0 | DK42: 0 | DL42: 0 | DM42: 0 | DN42: 0 | DO42: 0 | DP42: 0 | DQ42: 0 | DR42: 0 | DS42: 0 | DT42: 0 | DU42: 0 | DV42: 0 | DW42: 0 | DX42: 0 | DY42: 0 | DZ42: 0 | EA42: 0 | EB42: 0 | EC42: 0 | ED42: 0 | EE42: 0 | EF42: 0 | EG42: 0 | EH42: 0 | EI42: =EI41/SUM(41:41) -> 0 | EJ42: 0 | EK42: 0 | EL42: 0 | EM42: 0 | EN42: 0 | EO42: 0 | EP42: 0 | EQ42: 0 | ER42: 0 | ES42: 0 | ET42: 0 | EU42: 0 | EV42: 0 | EW42: 0 | EX42: 0 | EY42: 0 | EZ42: 0 | FA42: 0 | FB42: 0 | FC42: 0 | FD42: 0 | FE42: 0 | FF42: 0 | FG42: 0 | FH42: 0 | FI42: 0 | FJ42: 0 | FK42: 0 | FL42: 0 | FM42: 0 | FN42: 0 | FO42: 0 | FP42: 0 | FQ42: 0 | FR42: 0 | FS42: 0 | FT42: 0 | FU42: 0 | FV42: 0 | FW42: 0 | FX42: 0 | FY42: 0 | FZ42: 0 | GA42: 0 | GB42: 0 | GC42: 0 | GD42: 0 | GE42: 0 | GF42: 0 | GG42: 0 | GH42: 0 | GI42: 0 | GJ42: 0 | GK42: 0 | GL42: 0 | GM42: 0 | GN42: 0 | GO42: 0 | GP42: 0 | GQ42: 0 | GR42: 0 | GS42: 0 | GT42: 0 | GU42: =GU41/SUM(41:41) -> 0 | GV42: 0 | GW42: 0 | GX42: 0 | GY42: 0 | GZ42: 0 | HA42: 0 | HB42: 0 | HC42: 0 | HD42: 0 | HE42: 0 | HF42: 0 | HG42: 0 | HH42: 0 | HI42: 0 | HJ42: 0 | HK42: 0 | HL42: 0 | HM42: 0 | HN42: 0 | HO42: 0 | HP42: 0 | HQ42: 0 | HR42: 0 | HS42: 0 | HT42: 0 | HU42: 0 | HV42: 0 | HW42: 0 | HX42: 0 | HY42: 0 | HZ42: 0 | IA42: 0 | IB42: 0 | IC42: 0 | ID42: 0 | IE42: 0 | IF42: 0 | IG42: 0 | IH42: 0 | II42: 0 | IJ42: 0 | IK42: 0 | IL42: 0 | IM42: 0 | IN42: 0 | IO42: 0 | IP42: 0 | IQ42: 0 | IR42: 0 | IS42: 0 | IT42: 0 | IU42: 0 | IV42: 0 | IW42: 0 | IX42: 0 | IY42: 0 | IZ42: 0 | JA42: 0 | JB42: 0 | JC42: 0 | JD42: 0 | JE42: 0 | JF42: 0 | JG42: =JG41/SUM(41:41) -> 0 | JH42: 0 | JI42: 0 | JJ42: 0 | JK42: 0 | JL42: 0 | JM42: 0 | JN42: 0 | JO42: 0 | JP42: 0 | JQ42: 0 | JR42: 0 | JS42: 0 | JT42: 0 | JU42: 0 | JV42: 0 | JW42: 0 | JX42: 0 | JY42: 0 | JZ42: 0 | KA42: 0 | KB42: 0 | KC42: 0 | KD42: 0 | KE42: 0 | KF42: 0 | KG42: 0 | KH42: 0 | KI42: 0 | KJ42: 0 | KK42: 0 | KL42: 0 | KM42: 0 | KN42: 0 | KO42: 0 | KP42: 0 | KQ42: 0 | KR42: 0 | KS42: 0 | KT42: 0 | KU42: 0 | KV42: 0 | KW42: 0
C44: Weighted ROIC | F44: =SUMPRODUCT(38:38,42:42) -> 0.1799987608

Sheet Carrying Cost
B1: Period | I1: 0 | J1: 1 | K1: 2 | L1: 3 | M1: 4 | N1: 5 | O1: 6 | P1: 7 | Q1: 8 | R1: 9 | S1: 10 | T1: 11 | U1: 12 | V1: 13 | W1: 14 | X1: 15 | Y1: 16 | Z1: 17 | AA1: 18 | AB1: 19 | AC1: 20 | AD1: 21 | AE1: 22 | AF1: 23 | AG1: 24 | AH1: 25 | AI1: 26 | AJ1: 27 | AK1: 28 | AL1: 29 | AM1: 30 | AN1: 31 | AO1: 32 | AP1: 33 | AQ1: 34 | AR1: 35 | AS1: 36 | AT1: 37 | AU1: 38 | AV1: 39 | AW1: 40 | AX1: 41 | AY1: 42 | AZ1: 43 | BA1: 44 | BB1: 45 | BC1: 46 | BD1: 47 | BE1: 48 | BF1: 49 | BG1: 50 | BH1: 51 | BI1: 52 | BJ1: 53 | BK1: 54 | BL1: 55 | BM1: 56 | BN1: 57 | BO1: 58 | BP1: 59 | BQ1: 60 | BR1: 61 | BS1: 62 | BT1: 63 | BU1: 64 | BV1: 65 | BW1: 66 | BX1: 67 | BY1: 68 | BZ1: 69 | CA1: 70 | CB1: 71 | CC1: 72 | CD1: 73 | CE1: 74 | CF1: 75 | CG1: 76 | CH1: 77 | CI1: 78 | CJ1: 79 | CK1: 80 | CL1: 81 | CM1: 82 | CN1: 83 | CO1: 84 | CP1: 85 | CQ1: 86 | CR1: 87 | CS1: 88 | CT1: 89 | CU1: 90 | CV1: 91 | CW1: 92 | CX1: 93 | CY1: 94 | CZ1: 95 | DA1: 96 | DB1: 97 | DC1: 98 | DD1: 99 | DE1: 100 | DF1: 101 | DG1: 102 | DH1: 103 | DI1: 104 | DJ1: 105 | DK1: 106 | DL1: 107 | DM1: 108 | DN1: 109 | DO1: 110 | DP1: 111 | DQ1: 112 | DR1: 113 | DS1: 114 | DT1: 115 | DU1: 116 | DV1: 117 | DW1: 118 | DX1: 119 | DY1: 120 | DZ1: 121 | EA1: 122 | EB1: 123 | EC1: 124 | ED1: 125 | EE1: 126 | EF1: 127 | EG1: 128 | EH1: 129 | EI1: 130 | EJ1: 131 | EK1: 132 | EL1: 133 | EM1: 134 | EN1: 135 | EO1: 136 | EP1: 137 | EQ1: 138 | ER1: 139 | ES1: 140 | ET1: 141 | EU1: 142 | EV1: 143 | EW1: 144 | EX1: 145 | EY1: 146 | EZ1: 147 | FA1: 148 | FB1: 149 | FC1: 150 | FD1: 151 | FE1: 152 | FF1: 153 | FG1: 154 | FH1: 155 | FI1: 156 | FJ1: 157 | FK1: 158 | FL1: 159 | FM1: 160 | FN1: 161 | FO1: 162 | FP1: 163 | FQ1: 164 | FR1: 165 | FS1: 166 | FT1: 167 | FU1: 168 | FV1: 169 | FW1: 170 | FX1: 171 | FY1: 172 | FZ1: 173 | GA1: 174 | GB1: 175 | GC1: 176 | GD1: 177 | GE1: 178 | GF1: 179 | GG1: 180 | GH1: 181 | GI1: 182 | GJ1: 183 | GK1: 184 | GL1: 185 | GM1: 186 | GN1: 187 | GO1: 188 | GP1: 189 | GQ1: 190 | GR1: 191 | GS1: 192 | GT1: 193 | GU1: 194 | GV1: 195 | GW1: 196 | GX1: 197 | GY1: 198 | GZ1: 199 | HA1: 200 | HB1: 201 | HC1: 202 | HD1: 203 | HE1: 204 | HF1: 205 | HG1: 206 | HH1: 207 | HI1: 208 | HJ1: 209 | HK1: 210 | HL1: 211 | HM1: 212 | HN1: 213 | HO1: 214 | HP1: 215 | HQ1: 216 | HR1: 217 | HS1: 218 | HT1: 219 | HU1: 220 | HV1: 221 | HW1: 222 | HX1: 223 | HY1: 224 | HZ1: 225 | IA1: 226 | IB1: 227 | IC1: 228 | ID1: 229 | IE1: 230 | IF1: 231 | IG1: 232 | IH1: 233 | II1: 234 | IJ1: 235 | IK1: 236 | IL1: 237 | IM1: 238 | IN1: 239 | IO1: 240 | IP1: 241 | IQ1: 242 | IR1: 243 | IS1: 244 | IT1: 245 | IU1: 246 | IV1: 247 | IW1: 248 | IX1: 249 | IY1: 250 | IZ1: 251 | JA1: 252 | JB1: 253 | JC1: 254 | JD1: 255 | JE1: 256 | JF1: 257 | JG1: 258 | JH1: 259 | JI1: 260 | JJ1: 261 | JK1: 262 | JL1: 263 | JM1: 264 | JN1: 265 | JO1: 266 | JP1: 267 | JQ1: 268 | JR1: 269 | JS1: 270 | JT1: 271 | JU1: 272 | JV1: 273 | JW1: 274 | JX1: 275 | JY1: 276 | JZ1: 277 | KA1: 278 | KB1: 279 | KC1: 280 | KD1: 281 | KE1: 282 | KF1: 283 | KG1: 284 | KH1: 285 | KI1: 286 | KJ1: 287 | KK1: 288 | KL1: 289 | KM1: 290 | KN1: 291 | KO1: 292 | KP1: 293 | KQ1: 294 | KR1: 295 | KS1: 296 | KT1: 297 | KU1: 298 | KV1: 299 | KW1: 300
C2: Contract Period | E2: Flag | F2: =F10 -> 30 | I2: =AND(I1>0,I1<=$F$2) -> FALSE | J2: TRUE | K2: TRUE | L2: TRUE | M2: TRUE | N2: TRUE | O2: TRUE | P2: TRUE | Q2: TRUE | R2: TRUE | S2: TRUE | T2: TRUE | U2: TRUE | V2: TRUE | W2: TRUE | X2: TRUE | Y2: TRUE | Z2: TRUE | AA2: TRUE | AB2: TRUE | AC2: TRUE | AD2: TRUE | AE2: TRUE | AF2: TRUE | AG2: TRUE | AH2: TRUE | AI2: TRUE | AJ2: TRUE | AK2: TRUE | AL2: TRUE | AM2: TRUE | AN2: FALSE | AO2: FALSE | AP2: FALSE | AQ2: FALSE | AR2: FALSE | AS2: FALSE | AT2: FALSE | AU2: FALSE | AV2: FALSE | AW2: FALSE | AX2: FALSE | AY2: FALSE | AZ2: FALSE | BA2: FALSE | BB2: FALSE | BC2: FALSE | BD2: FALSE | BE2: FALSE | BF2: FALSE | BG2: FALSE | BH2: FALSE | BI2: FALSE | BJ2: FALSE | BK2: FALSE | BL2: FALSE | BM2: FALSE | BN2: FALSE | BO2: FALSE | BP2: FALSE | BQ2: FALSE | BR2: FALSE | BS2: FALSE | BT2: FALSE | BU2: =AND(BU1>0,BU1<=$F$2) -> FALSE | BV2: FALSE | BW2: FALSE | BX2: FALSE | BY2: FALSE | BZ2: FALSE | CA2: FALSE | CB2: FALSE | CC2: FALSE | CD2: FALSE | CE2: FALSE | CF2: FALSE | CG2: FALSE | CH2: FALSE | CI2: FALSE | CJ2: FALSE | CK2: FALSE | CL2: FALSE | CM2: FALSE | CN2: FALSE | CO2: FALSE | CP2: FALSE | CQ2: FALSE | CR2: FALSE | CS2: FALSE | CT2: FALSE | CU2: FALSE | CV2: FALSE | CW2: FALSE | CX2: FALSE | CY2: FALSE | CZ2: FALSE | DA2: FALSE | DB2: FALSE | DC2: FALSE | DD2: FALSE | DE2: FALSE | DF2: FALSE | DG2: FALSE | DH2: FALSE | DI2: FALSE | DJ2: FALSE | DK2: FALSE | DL2: FALSE | DM2: FALSE | DN2: FALSE | DO2: FALSE | DP2: FALSE | DQ2: FALSE | DR2: FALSE | DS2: FALSE | DT2: FALSE | DU2: FALSE | DV2: FALSE | DW2: FALSE | DX2: FALSE | DY2: FALSE | DZ2: FALSE | EA2: FALSE | EB2: FALSE | EC2: FALSE | ED2: FALSE | EE2: FALSE | EF2: FALSE | EG2: =AND(EG1>0,EG1<=$F$2) -> FALSE | EH2: FALSE | EI2: FALSE | EJ2: FALSE | EK2: FALSE | EL2: FALSE | EM2: FALSE | EN2: FALSE | EO2: FALSE | EP2: FALSE | EQ2: FALSE | ER2: FALSE | ES2: FALSE | ET2: FALSE | EU2: FALSE | EV2: FALSE | EW2: FALSE | EX2: FALSE | EY2: FALSE | EZ2: FALSE | FA2: FALSE | FB2: FALSE | FC2: FALSE | FD2: FALSE | FE2: FALSE | FF2: FALSE | FG2: FALSE | FH2: FALSE | FI2: FALSE | FJ2: FALSE | FK2: FALSE | FL2: FALSE | FM2: FALSE | FN2: FALSE | FO2: FALSE | FP2: FALSE | FQ2: FALSE | FR2: FALSE | FS2: FALSE | FT2: FALSE | FU2: FALSE | FV2: FALSE | FW2: FALSE | FX2: FALSE | FY2: FALSE | FZ2: FALSE | GA2: FALSE | GB2: FALSE | GC2: FALSE | GD2: FALSE | GE2: FALSE | GF2: FALSE | GG2: FALSE | GH2: FALSE | GI2: FALSE | GJ2: FALSE | GK2: FALSE | GL2: FALSE | GM2: FALSE | GN2: FALSE | GO2: FALSE | GP2: FALSE | GQ2: FALSE | GR2: FALSE | GS2: =AND(GS1>0,GS1<=$F$2) -> FALSE | GT2: FALSE | GU2: FALSE | GV2: FALSE | GW2: FALSE | GX2: FALSE | GY2: FALSE | GZ2: FALSE | HA2: FALSE | HB2: FALSE | HC2: FALSE | HD2: FALSE | HE2: FALSE | HF2: FALSE | HG2: FALSE | HH2: FALSE | HI2: FALSE | HJ2: FALSE | HK2: FALSE | HL2: FALSE | HM2: FALSE | HN2: FALSE | HO2: FALSE | HP2: FALSE | HQ2: FALSE | HR2: FALSE | HS2: FALSE | HT2: FALSE | HU2: FALSE | HV2: FALSE | HW2: FALSE | HX2: FALSE | HY2: FALSE | HZ2: FALSE | IA2: FALSE | IB2: FALSE | IC2: FALSE | ID2: FALSE | IE2: FALSE | IF2: FALSE | IG2: FALSE | IH2: FALSE | II2: FALSE | IJ2: FALSE | IK2: FALSE | IL2: FALSE | IM2: FALSE | IN2: FALSE | IO2: FALSE | IP2: FALSE | IQ2: FALSE | IR2: FALSE | IS2: FALSE | IT2: FALSE | IU2: FALSE | IV2: FALSE | IW2: FALSE | IX2: FALSE | IY2: FALSE | IZ2: FALSE | JA2: FALSE | JB2: FALSE | JC2: FALSE | JD2: FALSE | JE2: =AND(JE1>0,JE1<=$F$2) -> FALSE | JF2: FALSE | JG2: FALSE | JH2: FALSE | JI2: FALSE | JJ2: FALSE | JK2: FALSE | JL2: FALSE | JM2: FALSE | JN2: FALSE | JO2: FALSE | JP2: FALSE | JQ2: FALSE | JR2: FALSE | JS2: FALSE | JT2: FALSE | JU2: FALSE | JV2: FALSE | JW2: FALSE | JX2: FALSE | JY2: FALSE | JZ2: FALSE | KA2: FALSE | KB2: FALSE | KC2: FALSE | KD2: FALSE | KE2: FALSE | KF2: FALSE | KG2: FALSE | KH2: FALSE | KI2: FALSE | KJ2: FALSE | KK2: FALSE | KL2: FALSE | KM2: FALSE | KN2: FALSE | KO2: FALSE | KP2: FALSE | KQ2: FALSE | KR2: FALSE | KS2: FALSE | KT2: FALSE | KU2: FALSE | KV2: FALSE | KW2: FALSE
C3: Debt Repayment | E3: Flag | F3: =F16 -> 15
B4: Inputs
C5: Cash Flow from after Expenses | E5: EGP | F5: 200
C6: Capital Expenditures | E6: EGP | F6: 1000 | I6: Project IRR | L6: =F23 -> 0.16495848
C7: Premium for Fixed Price Contract | E7: % | F7: 0.2 | I7: Equity IRR
C8: Total Contract Cost | E8: EGP | F8: =F6*(1+F7) -> 1200
I9: Required Profit
C10: Contract Period | E10: Years | F10: 30 | I10: Initial Investment
C11: Depreciation Life | E11: % p.a. | F11: =F10 -> 30
C12: Target Acceptable Return | E12: % | F12: 0.14 | I12: Profit per EGP of Investment
C14: Debt Percent | E14: % | F14: 0.7
C15: DSCR | E15: x | F15: 1.3
C16: Tenure | E16: Years | F16: 15
C17: Interest Rate | E17: % p.a. | F17: 0.07
C19: Capacity Revenues | E19: EGP | F19: =F5 -> 200 | I19: =$F$19*I2 -> 0 | J19: 200 | K19: 200 | L19: 200 | M19: 200 | N19: 200 | O19: 200 | P19: 200 | Q19: 200 | R19: 200 | S19: 200 | T19: 200 | U19: 200 | V19: 200 | W19: 200 | X19: 200 | Y19: 200 | Z19: 200 | AA19: 200 | AB19: 200 | AC19: 200 | AD19: 200 | AE19: 200 | AF19: 200 | AG19: 200 | AH19: 200 | AI19: 200 | AJ19: 200 | AK19: 200 | AL19: 200 | AM19: 200 | AN19: 0 | AO19: 0 | AP19: 0 | AQ19: 0 | AR19: 0 | AS19: 0 | AT19: 0 | AU19: 0 | AV19: 0 | AW19: 0 | AX19: 0 | AY19: 0 | AZ19: 0 | BA19: 0 | BB19: 0 | BC19: 0 | BD19: 0 | BE19: 0 | BF19: 0 | BG19: 0 | BH19: 0 | BI19: 0 | BJ19: 0 | BK19: 0 | BL19: 0 | BM19: 0 | BN19: 0 | BO19: 0 | BP19: 0 | BQ19: 0 | BR19: 0 | BS19: 0 | BT19: 0 | BU19: =$F$19*BU2 -> 0 | BV19: 0 | BW19: 0 | BX19: 0 | BY19: 0 | BZ19: 0 | CA19: 0 | CB19: 0 | CC19: 0 | CD19: 0 | CE19: 0 | CF19: 0 | CG19: 0 | CH19: 0 | CI19: 0 | CJ19: 0 | CK19: 0 | CL19: 0 | CM19: 0 | CN19: 0 | CO19: 0 | CP19: 0 | CQ19: 0 | CR19: 0 | CS19: 0 | CT19: 0 | CU19: 0 | CV19: 0 | CW19: 0 | CX19: 0 | CY19: 0 | CZ19: 0 | DA19: 0 | DB19: 0 | DC19: 0 | DD19: 0 | DE19: 0 | DF19: 0 | DG19: 0 | DH19: 0 | DI19: 0 | DJ19: 0 | DK19: 0 | DL19: 0 | DM19: 0 | DN19: 0 | DO19: 0 | DP19: 0 | DQ19: 0 | DR19: 0 | DS19: 0 | DT19: 0 | DU19: 0 | DV19: 0 | DW19: 0 | DX19: 0 | DY19: 0 | DZ19: 0 | EA19: 0 | EB19: 0 | EC19: 0 | ED19: 0 | EE19: 0 | EF19: 0 | EG19: =$F$19*EG2 -> 0 | EH19: 0 | EI19: 0 | EJ19: 0 | EK19: 0 | EL19: 0 | EM19: 0 | EN19: 0 | EO19: 0 | EP19: 0 | EQ19: 0 | ER19: 0 | ES19: 0 | ET19: 0 | EU19: 0 | EV19: 0 | EW19: 0 | EX19: 0 | EY19: 0 | EZ19: 0 | FA19: 0 | FB19: 0 | FC19: 0 | FD19: 0 | FE19: 0 | FF19: 0 | FG19: 0 | FH19: 0 | FI19: 0 | FJ19: 0 | FK19: 0 | FL19: 0 | FM19: 0 | FN19: 0 | FO19: 0 | FP19: 0 | FQ19: 0 | FR19: 0 | FS19: 0 | FT19: 0 | FU19: 0 | FV19: 0 | FW19: 0 | FX19: 0 | FY19: 0 | FZ19: 0 | GA19: 0 | GB19: 0 | GC19: 0 | GD19: 0 | GE19: 0 | GF19: 0 | GG19: 0 | GH19: 0 | GI19: 0 | GJ19: 0 | GK19: 0 | GL19: 0 | GM19: 0 | GN19: 0 | GO19: 0 | GP19: 0 | GQ19: 0 | GR19: 0 | GS19: =$F$19*GS2 -> 0 | GT19: 0 | GU19: 0 | GV19: 0 | GW19: 0 | GX19: 0 | GY19: 0 | GZ19: 0 | HA19: 0 | HB19: 0 | HC19: 0 | HD19: 0 | HE19: 0 | HF19: 0 | HG19: 0 | HH19: 0 | HI19: 0 | HJ19: 0 | HK19: 0 | HL19: 0 | HM19: 0 | HN19: 0 | HO19: 0 | HP19: 0 | HQ19: 0 | HR19: 0 | HS19: 0 | HT19: 0 | HU19: 0 | HV19: 0 | HW19: 0 | HX19: 0 | HY19: 0 | HZ19: 0 | IA19: 0 | IB19: 0 | IC19: 0 | ID19: 0 | IE19: 0 | IF19: 0 | IG19: 0 | IH19: 0 | II19: 0 | IJ19: 0 | IK19: 0 | IL19: 0 | IM19: 0 | IN19: 0 | IO19: 0 | IP19: 0 | IQ19: 0 | IR19: 0 | IS19: 0 | IT19: 0 | IU19: 0 | IV19: 0 | IW19: 0 | IX19: 0 | IY19: 0 | IZ19: 0 | JA19: 0 | JB19: 0 | JC19: 0 | JD19: 0 | JE19: =$F$19*JE2 -> 0 | JF19: 0 | JG19: 0 | JH19: 0 | JI19: 0 | JJ19: 0 | JK19: 0 | JL19: 0 | JM19: 0 | JN19: 0 | JO19: 0 | JP19: 0 | JQ19: 0 | JR19: 0 | JS19: 0 | JT19: 0 | JU19: 0 | JV19: 0 | JW19: 0 | JX19: 0 | JY19: 0 | JZ19: 0 | KA19: 0 | KB19: 0 | KC19: 0 | KD19: 0 | KE19: 0 | KF19: 0 | KG19: 0 | KH19: 0 | KI19: 0 | KJ19: 0 | KK19: 0 | KL19: 0 | KM19: 0 | KN19: 0 | KO19: 0 | KP19: 0 | KQ19: 0 | KR19: 0 | KS19: 0 | KT19: 0 | KU19: 0 | KV19: 0 | KW19: 0
C20: Capital Expenditure | E20: EGP | F20: =F8 -> 1200 | I20: =(I1=0)*$F$20 -> 1200 | J20: 0 | K20: 0 | L20: 0 | M20: 0 | N20: 0 | O20: 0 | P20: 0 | Q20: 0 | R20: 0 | S20: 0 | T20: 0 | U20: 0 | V20: 0 | W20: 0 | X20: 0 | Y20: 0 | Z20: 0 | AA20: 0 | AB20: 0 | AC20: 0 | AD20: 0 | AE20: 0 | AF20: 0 | AG20: 0 | AH20: 0 | AI20: 0 | AJ20: 0 | AK20: 0 | AL20: 0 | AM20: 0 | AN20: 0 | AO20: 0 | AP20: 0 | AQ20: 0 | AR20: 0 | AS20: 0 | AT20: 0 | AU20: 0 | AV20: 0 | AW20: 0 | AX20: 0 | AY20: 0 | AZ20: 0 | BA20: 0 | BB20: 0 | BC20: 0 | BD20: 0 | BE20: 0 | BF20: 0 | BG20: 0 | BH20: 0 | BI20: 0 | BJ20: 0 | BK20: 0 | BL20: 0 | BM20: 0 | BN20: 0 | BO20: 0 | BP20: 0 | BQ20: 0 | BR20: 0 | BS20: 0 | BT20: 0 | BU20: =(BU1=0)*$F$20 -> 0 | BV20: 0 | BW20: 0 | BX20: 0 | BY20: 0 | BZ20: 0 | CA20: 0 | CB20: 0 | CC20: 0 | CD20: 0 | CE20: 0 | CF20: 0 | CG20: 0 | CH20: 0 | CI20: 0 | CJ20: 0 | CK20: 0 | CL20: 0 | CM20: 0 | CN20: 0 | CO20: 0 | CP20: 0 | CQ20: 0 | CR20: 0 | CS20: 0 | CT20: 0 | CU20: 0 | CV20: 0 | CW20: 0 | CX20: 0 | CY20: 0 | CZ20: 0 | DA20: 0 | DB20: 0 | DC20: 0 | DD20: 0 | DE20: 0 | DF20: 0 | DG20: 0 | DH20: 0 | DI20: 0 | DJ20: 0 | DK20: 0 | DL20: 0 | DM20: 0 | DN20: 0 | DO20: 0 | DP20: 0 | DQ20: 0 | DR20: 0 | DS20: 0 | DT20: 0 | DU20: 0 | DV20: 0 | DW20: 0 | DX20: 0 | DY20: 0 | DZ20: 0 | EA20: 0 | EB20: 0 | EC20: 0 | ED20: 0 | EE20: 0 | EF20: 0 | EG20: =(EG1=0)*$F$20 -> 0 | EH20: 0 | EI20: 0 | EJ20: 0 | EK20: 0 | EL20: 0 | EM20: 0 | EN20: 0 | EO20: 0 | EP20: 0 | EQ20: 0 | ER20: 0 | ES20: 0 | ET20: 0 | EU20: 0 | EV20: 0 | EW20: 0 | EX20: 0 | EY20: 0 | EZ20: 0 | FA20: 0 | FB20: 0 | FC20: 0 | FD20: 0 | FE20: 0 | FF20: 0 | FG20: 0 | FH20: 0 | FI20: 0 | FJ20: 0 | FK20: 0 | FL20: 0 | FM20: 0 | FN20: 0 | FO20: 0 | FP20: 0 | FQ20: 0 | FR20: 0 | FS20: 0 | FT20: 0 | FU20: 0 | FV20: 0 | FW20: 0 | FX20: 0 | FY20: 0 | FZ20: 0 | GA20: 0 | GB20: 0 | GC20: 0 | GD20: 0 | GE20: 0 | GF20: 0 | GG20: 0 | GH20: 0 | GI20: 0 | GJ20: 0 | GK20: 0 | GL20: 0 | GM20: 0 | GN20: 0 | GO20: 0 | GP20: 0 | GQ20: 0 | GR20: 0 | GS20: =(GS1=0)*$F$20 -> 0 | GT20: 0 | GU20: 0 | GV20: 0 | GW20: 0 | GX20: 0 | GY20: 0 | GZ20: 0 | HA20: 0 | HB20: 0 | HC20: 0 | HD20: 0 | HE20: 0 | HF20: 0 | HG20: 0 | HH20: 0 | HI20: 0 | HJ20: 0 | HK20: 0 | HL20: 0 | HM20: 0 | HN20: 0 | HO20: 0 | HP20: 0 | HQ20: 0 | HR20: 0 | HS20: 0 | HT20: 0 | HU20: 0 | HV20: 0 | HW20: 0 | HX20: 0 | HY20: 0 | HZ20: 0 | IA20: 0 | IB20: 0 | IC20: 0 | ID20: 0 | IE20: 0 | IF20: 0 | IG20: 0 | IH20: 0 | II20: 0 | IJ20: 0 | IK20: 0 | IL20: 0 | IM20: 0 | IN20: 0 | IO20: 0 | IP20: 0 | IQ20: 0 | IR20: 0 | IS20: 0 | IT20: 0 | IU20: 0 | IV20: 0 | IW20: 0 | IX20: 0 | IY20: 0 | IZ20: 0 | JA20: 0 | JB20: 0 | JC20: 0 | JD20: 0 | JE20: =(JE1=0)*$F$20 -> 0 | JF20: 0 | JG20: 0 | JH20: 0 | JI20: 0 | JJ20: 0 | JK20: 0 | JL20: 0 | JM20: 0 | JN20: 0 | JO20: 0 | JP20: 0 | JQ20: 0 | JR20: 0 | JS20: 0 | JT20: 0 | JU20: 0 | JV20: 0 | JW20: 0 | JX20: 0 | JY20: 0 | JZ20: 0 | KA20: 0 | KB20: 0 | KC20: 0 | KD20: 0 | KE20: 0 | KF20: 0 | KG20: 0 | KH20: 0 | KI20: 0 | KJ20: 0 | KK20: 0 | KL20: 0 | KM20: 0 | KN20: 0 | KO20: 0 | KP20: 0 | KQ20: 0 | KR20: 0 | KS20: 0 | KT20: 0 | KU20: 0 | KV20: 0 | KW20: 0
C21: Operating Cash Flow | E21: EGP | I21: =I19-I20 -> -1200 | J21: =J19-J20 -> 200 | K21: 200 | L21: 200 | M21: 200 | N21: 200 | O21: 200 | P21: 200 | Q21: 200 | R21: 200 | S21: 200 | T21: 200 | U21: 200 | V21: 200 | W21: 200 | X21: 200 | Y21: 200 | Z21: 200 | AA21: 200 | AB21: 200 | AC21: 200 | AD21: 200 | AE21: 200 | AF21: 200 | AG21: 200 | AH21: 200 | AI21: 200 | AJ21: 200 | AK21: 200 | AL21: 200 | AM21: 200 | AN21: 0 | AO21: 0 | AP21: 0 | AQ21: 0 | AR21: 0 | AS21: 0 | AT21: 0 | AU21: 0 | AV21: 0 | AW21: 0 | AX21: 0 | AY21: 0 | AZ21: 0 | BA21: 0 | BB21: 0 | BC21: 0 | BD21: 0 | BE21: 0 | BF21: 0 | BG21: 0 | BH21: 0 | BI21: 0 | BJ21: 0 | BK21: 0 | BL21: 0 | BM21: 0 | BN21: 0 | BO21: 0 | BP21: 0 | BQ21: 0 | BR21: 0 | BS21: 0 | BT21: 0 | BU21: 0 | BV21: =BV19-BV20 -> 0 | BW21: 0 | BX21: 0 | BY21: 0 | BZ21: 0 | CA21: 0 | CB21: 0 | CC21: 0 | CD21: 0 | CE21: 0 | CF21: 0 | CG21: 0 | CH21: 0 | CI21: 0 | CJ21: 0 | CK21: 0 | CL21: 0 | CM21: 0 | CN21: 0 | CO21: 0 | CP21: 0 | CQ21: 0 | CR21: 0 | CS21: 0 | CT21: 0 | CU21: 0 | CV21: 0 | CW21: 0 | CX21: 0 | CY21: 0 | CZ21: 0 | DA21: 0 | DB21: 0 | DC21: 0 | DD21: 0 | DE21: 0 | DF21: 0 | DG21: 0 | DH21: 0 | DI21: 0 | DJ21: 0 | DK21: 0 | DL21: 0 | DM21: 0 | DN21: 0 | DO21: 0 | DP21: 0 | DQ21: 0 | DR21: 0 | DS21: 0 | DT21: 0 | DU21: 0 | DV21: 0 | DW21: 0 | DX21: 0 | DY21: 0 | DZ21: 0 | EA21: 0 | EB21: 0 | EC21: 0 | ED21: 0 | EE21: 0 | EF21: 0 | EG21: 0 | EH21: =EH19-EH20 -> 0 | EI21: 0 | EJ21: 0 | EK21: 0 | EL21: 0 | EM21: 0 | EN21: 0 | EO21: 0 | EP21: 0 | EQ21: 0 | ER21: 0 | ES21: 0 | ET21: 0 | EU21: 0 | EV21: 0 | EW21: 0 | EX21: 0 | EY21: 0 | EZ21: 0 | FA21: 0 | FB21: 0 | FC21: 0 | FD21: 0 | FE21: 0 | FF21: 0 | FG21: 0 | FH21: 0 | FI21: 0 | FJ21: 0 | FK21: 0 | FL21: 0 | FM21: 0 | FN21: 0 | FO21: 0 | FP21: 0 | FQ21: 0 | FR21: 0 | FS21: 0 | FT21: 0 | FU21: 0 | FV21: 0 | FW21: 0 | FX21: 0 | FY21: 0 | FZ21: 0 | GA21: 0 | GB21: 0 | GC21: 0 | GD21: 0 | GE21: 0 | GF21: 0 | GG21: 0 | GH21: 0 | GI21: 0 | GJ21: 0 | GK21: 0 | GL21: 0 | GM21: 0 | GN21: 0 | GO21: 0 | GP21: 0 | GQ21: 0 | GR21: 0 | GS21: 0 | GT21: =GT19-GT20 -> 0 | GU21: 0 | GV21: 0 | GW21: 0 | GX21: 0 | GY21: 0 | GZ21: 0 | HA21: 0 | HB21: 0 | HC21: 0 | HD21: 0 | HE21: 0 | HF21: 0 | HG21: 0 | HH21: 0 | HI21: 0 | HJ21: 0 | HK21: 0 | HL21: 0 | HM21: 0 | HN21: 0 | HO21: 0 | HP21: 0 | HQ21: 0 | HR21: 0 | HS21: 0 | HT21: 0 | HU21: 0 | HV21: 0 | HW21: 0 | HX21: 0 | HY21: 0 | HZ21: 0 | IA21: 0 | IB21: 0 | IC21: 0 | ID21: 0 | IE21: 0 | IF21: 0 | IG21: 0 | IH21: 0 | II21: 0 | IJ21: 0 | IK21: 0 | IL21: 0 | IM21: 0 | IN21: 0 | IO21: 0 | IP21: 0 | IQ21: 0 | IR21: 0 | IS21: 0 | IT21: 0 | IU21: 0 | IV21: 0 | IW21: 0 | IX21: 0 | IY21: 0 | IZ21: 0 | JA21: 0 | JB21: 0 | JC21: 0 | JD21: 0 | JE21: 0 | JF21: =JF19-JF20 -> 0 | JG21: 0 | JH21: 0 | JI21: 0 | JJ21: 0 | JK21: 0 | JL21: 0 | JM21: 0 | JN21: 0 | JO21: 0 | JP21: 0 | JQ21: 0 | JR21: 0 | JS21: 0 | JT21: 0 | JU21: 0 | JV21: 0 | JW21: 0 | JX21: 0 | JY21: 0 | JZ21: 0 | KA21: 0 | KB21: 0 | KC21: 0 | KD21: 0 | KE21: 0 | KF21: 0 | KG21: 0 | KH21: 0 | KI21: 0 | KJ21: 0 | KK21: 0 | KL21: 0 | KM21: 0 | KN21: 0 | KO21: 0 | KP21: 0 | KQ21: 0 | KR21: 0 | KS21: 0 | KT21: 0 | KU21: 0 | KV21: 0 | KW21: 0
C23: Project IRR | E23: % | F23: =IRR(21:21) -> 0.16495848
C24: NPV at Target Return | E24: EGP | F24: =F12 -> 0.14 | G24: =NPV(F24,21:21) -> 175.9059846
B26: Financing
C27: Uses and Sources
D28: Uses - Capital Expenditures
C30: Sources
D31: Debt Financing
D32: Equity Financing
D33: Total Sources
B35: Debt Balance
C36: Debt Service -- CFADS/DSCR | E36: EGP | F36: =F15 -> 1.3
C37: NPV of Debt Service at Int Rate | E37: EGP
C39: Opening Balance | E39: EGP
C40: Less: Repayment | E40: EGP
C41: Closing Balance | E41: EGP
C42: Interest | E42: EGP
C44: Cash Flow to Equity | E44: EGP
C45: Net Equity Cash Flow | E45: EGP
C46: Equity IRR | E46: % p.a.
B48: IRR and Growth Rate
C49: Opening Balance | I49: =H52 -> 0 | J49: =I52 -> 0 | K49: 0 | L49: 0 | M49: 0 | N49: 0 | O49: 0 | P49: 0 | Q49: 0 | R49: 0 | S49: 0 | T49: 0 | U49: 0 | V49: 0 | W49: 0 | X49: 0 | Y49: 0 | Z49: 0 | AA49: 0 | AB49: 0 | AC49: 0 | AD49: 0 | AE49: 0 | AF49: 0 | AG49: 0 | AH49: 0 | AI49: 0 | AJ49: 0 | AK49: 0 | AL49: 0 | AM49: 0 | AN49: 0 | AO49: 0 | AP49: 0 | AQ49: 0 | AR49: 0 | AS49: 0 | AT49: 0 | AU49: 0 | AV49: 0 | AW49: 0 | AX49: 0 | AY49: 0 | AZ49: 0 | BA49: 0 | BB49: 0 | BC49: 0 | BD49: 0 | BE49: 0 | BF49: 0 | BG49: 0 | BH49: 0 | BI49: 0 | BJ49: 0 | BK49: 0 | BL49: 0 | BM49: 0 | BN49: 0 | BO49: 0 | BP49: 0 | BQ49: 0 | BR49: 0 | BS49: 0 | BT49: 0 | BU49: 0 | BV49: =BU52 -> 0 | BW49: 0 | BX49: 0 | BY49: 0 | BZ49: 0 | CA49: 0 | CB49: 0 | CC49: 0 | CD49: 0 | CE49: 0 | CF49: 0 | CG49: 0 | CH49: 0 | CI49: 0 | CJ49: 0 | CK49: 0 | CL49: 0 | CM49: 0 | CN49: 0 | CO49: 0 | CP49: 0 | CQ49: 0 | CR49: 0 | CS49: 0 | CT49: 0 | CU49: 0 | CV49: 0 | CW49: 0 | CX49: 0 | CY49: 0 | CZ49: 0 | DA49: 0 | DB49: 0 | DC49: 0 | DD49: 0 | DE49: 0 | DF49: 0 | DG49: 0 | DH49: 0 | DI49: 0 | DJ49: 0 | DK49: 0 | DL49: 0 | DM49: 0 | DN49: 0 | DO49: 0 | DP49: 0 | DQ49: 0 | DR49: 0 | DS49: 0 | DT49: 0 | DU49: 0 | DV49: 0 | DW49: 0 | DX49: 0 | DY49: 0 | DZ49: 0 | EA49: 0 | EB49: 0 | EC49: 0 | ED49: 0 | EE49: 0 | EF49: 0 | EG49: 0 | EH49: =EG52 -> 0 | EI49: 0 | EJ49: 0 | EK49: 0 | EL49: 0 | EM49: 0 | EN49: 0 | EO49: 0 | EP49: 0 | EQ49: 0 | ER49: 0 | ES49: 0 | ET49: 0 | EU49: 0 | EV49: 0 | EW49: 0 | EX49: 0 | EY49: 0 | EZ49: 0 | FA49: 0 | FB49: 0 | FC49: 0 | FD49: 0 | FE49: 0 | FF49: 0 | FG49: 0 | FH49: 0 | FI49: 0 | FJ49: 0 | FK49: 0 | FL49: 0 | FM49: 0 | FN49: 0 | FO49: 0 | FP49: 0 | FQ49: 0 | FR49: 0 | FS49: 0 | FT49: 0 | FU49: 0 | FV49: 0 | FW49: 0 | FX49: 0 | FY49: 0 | FZ49: 0 | GA49: 0 | GB49: 0 | GC49: 0 | GD49: 0 | GE49: 0 | GF49: 0 | GG49: 0 | GH49: 0 | GI49: 0 | GJ49: 0 | GK49: 0 | GL49: 0 | GM49: 0 | GN49: 0 | GO49: 0 | GP49: 0 | GQ49: 0 | GR49: 0 | GS49: 0 | GT49: =GS52 -> 0 | GU49: 0 | GV49: 0 | GW49: 0 | GX49: 0 | GY49: 0 | GZ49: 0 | HA49: 0 | HB49: 0 | HC49: 0 | HD49: 0 | HE49: 0 | HF49: 0 | HG49: 0 | HH49: 0 | HI49: 0 | HJ49: 0 | HK49: 0 | HL49: 0 | HM49: 0 | HN49: 0 | HO49: 0 | HP49: 0 | HQ49: 0 | HR49: 0 | HS49: 0 | HT49: 0 | HU49: 0 | HV49: 0 | HW49: 0 | HX49: 0 | HY49: 0 | HZ49: 0 | IA49: 0 | IB49: 0 | IC49: 0 | ID49: 0 | IE49: 0 | IF49: 0 | IG49: 0 | IH49: 0 | II49: 0 | IJ49: 0 | IK49: 0 | IL49: 0 | IM49: 0 | IN49: 0 | IO49: 0 | IP49: 0 | IQ49: 0 | IR49: 0 | IS49: 0 | IT49: 0 | IU49: 0 | IV49: 0 | IW49: 0 | IX49: 0 | IY49: 0 | IZ49: 0 | JA49: 0 | JB49: 0 | JC49: 0 | JD49: 0 | JE49: 0 | JF49: =JE52 -> 0 | JG49: 0 | JH49: 0 | JI49: 0 | JJ49: 0 | JK49: 0 | JL49: 0 | JM49: 0 | JN49: 0 | JO49: 0 | JP49: 0 | JQ49: 0 | JR49: 0 | JS49: 0 | JT49: 0 | JU49: 0 | JV49: 0 | JW49: 0 | JX49: 0 | JY49: 0 | JZ49: 0 | KA49: 0 | KB49: 0 | KC49: 0 | KD49: 0 | KE49: 0 | KF49: 0 | KG49: 0 | KH49: 0 | KI49: 0 | KJ49: 0 | KK49: 0 | KL49: 0 | KM49: 0 | KN49: 0 | KO49: 0 | KP49: 0 | KQ49: 0 | KR49: 0 | KS49: 0 | KT49: 0 | KU49: 0 | KV49: 0 | KW49: 0
C50: Add: Re-investment on Opening Balance | F50: =F23 -> 0.16495848
C51: Add: Cash Dividends
C52: Closing Balance | I52: =I49+I50+I51 -> 0 | J52: =J49+J50+J51 -> 0 | K52: 0 | L52: 0 | M52: 0 | N52: 0 | O52: 0 | P52: 0 | Q52: 0 | R52: 0 | S52: 0 | T52: 0 | U52: 0 | V52: 0 | W52: 0 | X52: 0 | Y52: 0 | Z52: 0 | AA52: 0 | AB52: 0 | AC52: 0 | AD52: 0 | AE52: 0 | AF52: 0 | AG52: 0 | AH52: 0 | AI52: 0 | AJ52: 0 | AK52: 0 | AL52: 0 | AM52: 0 | AN52: 0 | AO52: 0 | AP52: 0 | AQ52: 0 | AR52: 0 | AS52: 0 | AT52: 0 | AU52: 0 | AV52: 0 | AW52: 0 | AX52: 0 | AY52: 0 | AZ52: 0 | BA52: 0 | BB52: 0 | BC52: 0 | BD52: 0 | BE52: 0 | BF52: 0 | BG52: 0 | BH52: 0 | BI52: 0 | BJ52: 0 | BK52: 0 | BL52: 0 | BM52: 0 | BN52: 0 | BO52: 0 | BP52: 0 | BQ52: 0 | BR52: 0 | BS52: 0 | BT52: 0 | BU52: 0 | BV52: =BV49+BV50+BV51 -> 0 | BW52: 0 | BX52: 0 | BY52: 0 | BZ52: 0 | CA52: 0 | CB52: 0 | CC52: 0 | CD52: 0 | CE52: 0 | CF52: 0 | CG52: 0 | CH52: 0 | CI52: 0 | CJ52: 0 | CK52: 0 | CL52: 0 | CM52: 0 | CN52: 0 | CO52: 0 | CP52: 0 | CQ52: 0 | CR52: 0 | CS52: 0 | CT52: 0 | CU52: 0 | CV52: 0 | CW52: 0 | CX52: 0 | CY52: 0 | CZ52: 0 | DA52: 0 | DB52: 0 | DC52: 0 | DD52: 0 | DE52: 0 | DF52: 0 | DG52: 0 | DH52: 0 | DI52: 0 | DJ52: 0 | DK52: 0 | DL52: 0 | DM52: 0 | DN52: 0 | DO52: 0 | DP52: 0 | DQ52: 0 | DR52: 0 | DS52: 0 | DT52: 0 | DU52: 0 | DV52: 0 | DW52: 0 | DX52: 0 | DY52: 0 | DZ52: 0 | EA52: 0 | EB52: 0 | EC52: 0 | ED52: 0 | EE52: 0 | EF52: 0 | EG52: 0 | EH52: =EH49+EH50+EH51 -> 0 | EI52: 0 | EJ52: 0 | EK52: 0 | EL52: 0 | EM52: 0 | EN52: 0 | EO52: 0 | EP52: 0 | EQ52: 0 | ER52: 0 | ES52: 0 | ET52: 0 | EU52: 0 | EV52: 0 | EW52: 0 | EX52: 0 | EY52: 0 | EZ52: 0 | FA52: 0 | FB52: 0 | FC52: 0 | FD52: 0 | FE52: 0 | FF52: 0 | FG52: 0 | FH52: 0 | FI52: 0 | FJ52: 0 | FK52: 0 | FL52: 0 | FM52: 0 | FN52: 0 | FO52: 0 | FP52: 0 | FQ52: 0 | FR52: 0 | FS52: 0 | FT52: 0 | FU52: 0 | FV52: 0 | FW52: 0 | FX52: 0 | FY52: 0 | FZ52: 0 | GA52: 0 | GB52: 0 | GC52: 0 | GD52: 0 | GE52: 0 | GF52: 0 | GG52: 0 | GH52: 0 | GI52: 0 | GJ52: 0 | GK52: 0 | GL52: 0 | GM52: 0 | GN52: 0 | GO52: 0 | GP52: 0 | GQ52: 0 | GR52: 0 | GS52: 0 | GT52: =GT49+GT50+GT51 -> 0 | GU52: 0 | GV52: 0 | GW52: 0 | GX52: 0 | GY52: 0 | GZ52: 0 | HA52: 0 | HB52: 0 | HC52: 0 | HD52: 0 | HE52: 0 | HF52: 0 | HG52: 0 | HH52: 0 | HI52: 0 | HJ52: 0 | HK52: 0 | HL52: 0 | HM52: 0 | HN52: 0 | HO52: 0 | HP52: 0 | HQ52: 0 | HR52: 0 | HS52: 0 | HT52: 0 | HU52: 0 | HV52: 0 | HW52: 0 | HX52: 0 | HY52: 0 | HZ52: 0 | IA52: 0 | IB52: 0 | IC52: 0 | ID52: 0 | IE52: 0 | IF52: 0 | IG52: 0 | IH52: 0 | II52: 0 | IJ52: 0 | IK52: 0 | IL52: 0 | IM52: 0 | IN52: 0 | IO52: 0 | IP52: 0 | IQ52: 0 | IR52: 0 | IS52: 0 | IT52: 0 | IU52: 0 | IV52: 0 | IW52: 0 | IX52: 0 | IY52: 0 | IZ52: 0 | JA52: 0 | JB52: 0 | JC52: 0 | JD52: 0 | JE52: 0 | JF52: =JF49+JF50+JF51 -> 0 | JG52: 0 | JH52: 0 | JI52: 0 | JJ52: 0 | JK52: 0 | JL52: 0 | JM52: 0 | JN52: 0 | JO52: 0 | JP52: 0 | JQ52: 0 | JR52: 0 | JS52: 0 | JT52: 0 | JU52: 0 | JV52: 0 | JW52: 0 | JX52: 0 | JY52: 0 | JZ52: 0 | KA52: 0 | KB52: 0 | KC52: 0 | KD52: 0 | KE52: 0 | KF52: 0 | KG52: 0 | KH52: 0 | KI52: 0 | KJ52: 0 | KK52: 0 | KL52: 0 | KM52: 0 | KN52: 0 | KO52: 0 | KP52: 0 | KQ52: 0 | KR52: 0 | KS52: 0 | KT52: 0 | KU52: 0 | KV52: 0 | KW52: 0
C54: Ending Value | F54: =DE52 -> 0
C55: Starting Investment | F55: =F20 -> 1200
C56: Ratio | F56: =F54/F55 -> 0
C57: Life | F57: =F10 -> 30
C58: Ratio ^ (1/Life)-1
C60: Depreciation Rate Flag | E60: Flag | F60: =F11 -> 30 | J60: =J1<=$F$60 -> TRUE | K60: TRUE | L60: TRUE | M60: TRUE | N60: TRUE | O60: TRUE | P60: TRUE | Q60: TRUE | R60: TRUE | S60: TRUE | T60: TRUE | U60: TRUE | V60: TRUE | W60: TRUE | X60: TRUE | Y60: TRUE | Z60: TRUE | AA60: TRUE | AB60: TRUE | AC60: TRUE | AD60: TRUE | AE60: TRUE | AF60: TRUE | AG60: TRUE | AH60: TRUE | AI60: TRUE | AJ60: TRUE | AK60: TRUE | AL60: TRUE | AM60: TRUE | AN60: FALSE | AO60: FALSE | AP60: FALSE | AQ60: FALSE | AR60: FALSE | AS60: FALSE | AT60: FALSE | AU60: FALSE | AV60: FALSE | AW60: FALSE | AX60: FALSE | AY60: FALSE | AZ60: FALSE | BA60: FALSE | BB60: FALSE | BC60: FALSE | BD60: FALSE | BE60: FALSE | BF60: FALSE | BG60: FALSE | BH60: FALSE | BI60: FALSE | BJ60: FALSE | BK60: FALSE | BL60: FALSE | BM60: FALSE | BN60: FALSE | BO60: FALSE | BP60: FALSE | BQ60: FALSE | BR60: FALSE | BS60: FALSE | BT60: FALSE | BU60: FALSE | BV60: =BV1<=$F$60 -> FALSE | BW60: FALSE | BX60: FALSE | BY60: FALSE | BZ60: FALSE | CA60: FALSE | CB60: FALSE | CC60: FALSE | CD60: FALSE | CE60: FALSE | CF60: FALSE | CG60: FALSE | CH60: FALSE | CI60: FALSE | CJ60: FALSE | CK60: FALSE | CL60: FALSE | CM60: FALSE | CN60: FALSE | CO60: FALSE | CP60: FALSE | CQ60: FALSE | CR60: FALSE | CS60: FALSE | CT60: FALSE | CU60: FALSE | CV60: FALSE | CW60: FALSE | CX60: FALSE | CY60: FALSE | CZ60: FALSE | DA60: FALSE | DB60: FALSE | DC60: FALSE | DD60: FALSE | DE60: FALSE | DF60: FALSE | DG60: FALSE | DH60: FALSE | DI60: FALSE | DJ60: FALSE | DK60: FALSE | DL60: FALSE | DM60: FALSE | DN60: FALSE | DO60: FALSE | DP60: FALSE | DQ60: FALSE | DR60: FALSE | DS60: FALSE | DT60: FALSE | DU60: FALSE | DV60: FALSE | DW60: FALSE | DX60: FALSE | DY60: FALSE | DZ60: FALSE | EA60: FALSE | EB60: FALSE | EC60: FALSE | ED60: FALSE | EE60: FALSE | EF60: FALSE | EG60: FALSE | EH60: =EH1<=$F$60 -> FALSE | EI60: FALSE | EJ60: FALSE | EK60: FALSE | EL60: FALSE | EM60: FALSE | EN60: FALSE | EO60: FALSE | EP60: FALSE | EQ60: FALSE | ER60: FALSE | ES60: FALSE | ET60: FALSE | EU60: FALSE | EV60: FALSE | EW60: FALSE | EX60: FALSE | EY60: FALSE | EZ60: FALSE | FA60: FALSE | FB60: FALSE | FC60: FALSE | FD60: FALSE | FE60: FALSE | FF60: FALSE | FG60: FALSE | FH60: FALSE | FI60: FALSE | FJ60: FALSE | FK60: FALSE | FL60: FALSE | FM60: FALSE | FN60: FALSE | FO60: FALSE | FP60: FALSE | FQ60: FALSE | FR60: FALSE | FS60: FALSE | FT60: FALSE | FU60: FALSE | FV60: FALSE | FW60: FALSE | FX60: FALSE | FY60: FALSE | FZ60: FALSE | GA60: FALSE | GB60: FALSE | GC60: FALSE | GD60: FALSE | GE60: FALSE | GF60: FALSE | GG60: FALSE | GH60: FALSE | GI60: FALSE | GJ60: FALSE | GK60: FALSE | GL60: FALSE | GM60: FALSE | GN60: FALSE | GO60: FALSE | GP60: FALSE | GQ60: FALSE | GR60: FALSE | GS60: FALSE | GT60: =GT1<=$F$60 -> FALSE | GU60: FALSE | GV60: FALSE | GW60: FALSE | GX60: FALSE | GY60: FALSE | GZ60: FALSE | HA60: FALSE | HB60: FALSE | HC60: FALSE | HD60: FALSE | HE60: FALSE | HF60: FALSE | HG60: FALSE | HH60: FALSE | HI60: FALSE | HJ60: FALSE | HK60: FALSE | HL60: FALSE | HM60: FALSE | HN60: FALSE | HO60: FALSE | HP60: FALSE | HQ60: FALSE | HR60: FALSE | HS60: FALSE | HT60: FALSE | HU60: FALSE | HV60: FALSE | HW60: FALSE | HX60: FALSE | HY60: FALSE | HZ60: FALSE | IA60: FALSE | IB60: FALSE | IC60: FALSE | ID60: FALSE | IE60: FALSE | IF60: FALSE | IG60: FALSE | IH60: FALSE | II60: FALSE | IJ60: FALSE | IK60: FALSE | IL60: FALSE | IM60: FALSE | IN60: FALSE | IO60: FALSE | IP60: FALSE | IQ60: FALSE | IR60: FALSE | IS60: FALSE | IT60: FALSE | IU60: FALSE | IV60: FALSE | IW60: FALSE | IX60: FALSE | IY60: FALSE | IZ60: FALSE | JA60: FALSE | JB60: FALSE | JC60: FALSE | JD60: FALSE | JE60: FALSE | JF60: =JF1<=$F$60 -> FALSE | JG60: FALSE | JH60: FALSE | JI60: FALSE | JJ60: FALSE | JK60: FALSE | JL60: FALSE | JM60: FALSE | JN60: FALSE | JO60: FALSE | JP60: FALSE | JQ60: FALSE | JR60: FALSE | JS60: FALSE | JT60: FALSE | JU60: FALSE | JV60: FALSE | JW60: FALSE | JX60: FALSE | JY60: FALSE | JZ60: FALSE | KA60: FALSE | KB60: FALSE | KC60: FALSE | KD60: FALSE | KE60: FALSE | KF60: FALSE | KG60: FALSE | KH60: FALSE | KI60: FALSE | KJ60: FALSE | KK60: FALSE | KL60: FALSE | KM60: FALSE | KN60: FALSE | KO60: FALSE | KP60: FALSE | KQ60: FALSE | KR60: FALSE | KS60: FALSE | KT60: FALSE | KU60: FALSE | KV60: FALSE | KW60: FALSE
C61: Depreciation Rate | E61: % | F61: =1/F11 -> 0.03333333333 | J61: =$F$61*J60 -> 0.03333333333 | K61: =$F$61*K60 -> 0.03333333333 | L61: 0.03333333333 | M61: 0.03333333333 | N61: 0.03333333333 | O61: 0.03333333333 | P61: 0.03333333333 | Q61: 0.03333333333 | R61: 0.03333333333 | S61: 0.03333333333 | T61: 0.03333333333 | U61: 0.03333333333 | V61: 0.03333333333 | W61: 0.03333333333 | X61: 0.03333333333 | Y61: 0.03333333333 | Z61: 0.03333333333 | AA61: 0.03333333333 | AB61: 0.03333333333 | AC61: 0.03333333333 | AD61: 0.03333333333 | AE61: 0.03333333333 | AF61: 0.03333333333 | AG61: 0.03333333333 | AH61: 0.03333333333 | AI61: 0.03333333333 | AJ61: 0.03333333333 | AK61: 0.03333333333 | AL61: 0.03333333333 | AM61: 0.03333333333 | AN61: 0 | AO61: 0 | AP61: 0 | AQ61: 0 | AR61: 0 | AS61: 0 | AT61: 0 | AU61: 0 | AV61: 0 | AW61: 0 | AX61: 0 | AY61: 0 | AZ61: 0 | BA61: 0 | BB61: 0 | BC61: 0 | BD61: 0 | BE61: 0 | BF61: 0 | BG61: 0 | BH61: 0 | BI61: 0 | BJ61: 0 | BK61: 0 | BL61: 0 | BM61: 0 | BN61: 0 | BO61: 0 | BP61: 0 | BQ61: 0 | BR61: 0 | BS61: 0 | BT61: 0 | BU61: 0 | BV61: 0 | BW61: =$F$61*BW60 -> 0 | BX61: 0 | BY61: 0 | BZ61: 0 | CA61: 0 | CB61: 0 | CC61: 0 | CD61: 0 | CE61: 0 | CF61: 0 | CG61: 0 | CH61: 0 | CI61: 0 | CJ61: 0 | CK61: 0 | CL61: 0 | CM61: 0 | CN61: 0 | CO61: 0 | CP61: 0 | CQ61: 0 | CR61: 0 | CS61: 0 | CT61: 0 | CU61: 0 | CV61: 0 | CW61: 0 | CX61: 0 | CY61: 0 | CZ61: 0 | DA61: 0 | DB61: 0 | DC61: 0 | DD61: 0 | DE61: 0 | DF61: 0 | DG61: 0 | DH61: 0 | DI61: 0 | DJ61: 0 | DK61: 0 | DL61: 0 | DM61: 0 | DN61: 0 | DO61: 0 | DP61: 0 | DQ61: 0 | DR61: 0 | DS61: 0 | DT61: 0 | DU61: 0 | DV61: 0 | DW61: 0 | DX61: 0 | DY61: 0 | DZ61: 0 | EA61: 0 | EB61: 0 | EC61: 0 | ED61: 0 | EE61: 0 | EF61: 0 | EG61: 0 | EH61: 0 | EI61: =$F$61*EI60 -> 0 | EJ61: 0 | EK61: 0 | EL61: 0 | EM61: 0 | EN61: 0 | EO61: 0 | EP61: 0 | EQ61: 0 | ER61: 0 | ES61: 0 | ET61: 0 | EU61: 0 | EV61: 0 | EW61: 0 | EX61: 0 | EY61: 0 | EZ61: 0 | FA61: 0 | FB61: 0 | FC61: 0 | FD61: 0 | FE61: 0 | FF61: 0 | FG61: 0 | FH61: 0 | FI61: 0 | FJ61: 0 | FK61: 0 | FL61: 0 | FM61: 0 | FN61: 0 | FO61: 0 | FP61: 0 | FQ61: 0 | FR61: 0 | FS61: 0 | FT61: 0 | FU61: 0 | FV61: 0 | FW61: 0 | FX61: 0 | FY61: 0 | FZ61: 0 | GA61: 0 | GB61: 0 | GC61: 0 | GD61: 0 | GE61: 0 | GF61: 0 | GG61: 0 | GH61: 0 | GI61: 0 | GJ61: 0 | GK61: 0 | GL61: 0 | GM61: 0 | GN61: 0 | GO61: 0 | GP61: 0 | GQ61: 0 | GR61: 0 | GS61: 0 | GT61: 0 | GU61: =$F$61*GU60 -> 0 | GV61: 0 | GW61: 0 | GX61: 0 | GY61: 0 | GZ61: 0 | HA61: 0 | HB61: 0 | HC61: 0 | HD61: 0 | HE61: 0 | HF61: 0 | HG61: 0 | HH61: 0 | HI61: 0 | HJ61: 0 | HK61: 0 | HL61: 0 | HM61: 0 | HN61: 0 | HO61: 0 | HP61: 0 | HQ61: 0 | HR61: 0 | HS61: 0 | HT61: 0 | HU61: 0 | HV61: 0 | HW61: 0 | HX61: 0 | HY61: 0 | HZ61: 0 | IA61: 0 | IB61: 0 | IC61: 0 | ID61: 0 | IE61: 0 | IF61: 0 | IG61: 0 | IH61: 0 | II61: 0 | IJ61: 0 | IK61: 0 | IL61: 0 | IM61: 0 | IN61: 0 | IO61: 0 | IP61: 0 | IQ61: 0 | IR61: 0 | IS61: 0 | IT61: 0 | IU61: 0 | IV61: 0 | IW61: 0 | IX61: 0 | IY61: 0 | IZ61: 0 | JA61: 0 | JB61: 0 | JC61: 0 | JD61: 0 | JE61: 0 | JF61: 0 | JG61: =$F$61*JG60 -> 0 | JH61: 0 | JI61: 0 | JJ61: 0 | JK61: 0 | JL61: 0 | JM61: 0 | JN61: 0 | JO61: 0 | JP61: 0 | JQ61: 0 | JR61: 0 | JS61: 0 | JT61: 0 | JU61: 0 | JV61: 0 | JW61: 0 | JX61: 0 | JY61: 0 | JZ61: 0 | KA61: 0 | KB61: 0 | KC61: 0 | KD61: 0 | KE61: 0 | KF61: 0 | KG61: 0 | KH61: 0 | KI61: 0 | KJ61: 0 | KK61: 0 | KL61: 0 | KM61: 0 | KN61: 0 | KO61: 0 | KP61: 0 | KQ61: 0 | KR61: 0 | KS61: 0 | KT61: 0 | KU61: 0 | KV61: 0 | KW61: 0
C62: Straight Line Depreciation | E62: EGP | F62: =F8 -> 1200 | J62: =J61*$F$62 -> 40 | K62: =K61*$F$62 -> 40 | L62: 40 | M62: 40 | N62: 40 | O62: 40 | P62: 40 | Q62: 40 | R62: 40 | S62: 40 | T62: 40 | U62: 40 | V62: 40 | W62: 40 | X62: 40 | Y62: 40 | Z62: 40 | AA62: 40 | AB62: 40 | AC62: 40 | AD62: 40 | AE62: 40 | AF62: 40 | AG62: 40 | AH62: 40 | AI62: 40 | AJ62: 40 | AK62: 40 | AL62: 40 | AM62: 40 | AN62: 0 | AO62: 0 | AP62: 0 | AQ62: 0 | AR62: 0 | AS62: 0 | AT62: 0 | AU62: 0 | AV62: 0 | AW62: 0 | AX62: 0 | AY62: 0 | AZ62: 0 | BA62: 0 | BB62: 0 | BC62: 0 | BD62: 0 | BE62: 0 | BF62: 0 | BG62: 0 | BH62: 0 | BI62: 0 | BJ62: 0 | BK62: 0 | BL62: 0 | BM62: 0 | BN62: 0 | BO62: 0 | BP62: 0 | BQ62: 0 | BR62: 0 | BS62: 0 | BT62: 0 | BU62: 0 | BV62: 0 | BW62: =BW61*$F$62 -> 0 | BX62: 0 | BY62: 0 | BZ62: 0 | CA62: 0 | CB62: 0 | CC62: 0 | CD62: 0 | CE62: 0 | CF62: 0 | CG62: 0 | CH62: 0 | CI62: 0 | CJ62: 0 | CK62: 0 | CL62: 0 | CM62: 0 | CN62: 0 | CO62: 0 | CP62: 0 | CQ62: 0 | CR62: 0 | CS62: 0 | CT62: 0 | CU62: 0 | CV62: 0 | CW62: 0 | CX62: 0 | CY62: 0 | CZ62: 0 | DA62: 0 | DB62: 0 | DC62: 0 | DD62: 0 | DE62: 0 | DF62: 0 | DG62: 0 | DH62: 0 | DI62: 0 | DJ62: 0 | DK62: 0 | DL62: 0 | DM62: 0 | DN62: 0 | DO62: 0 | DP62: 0 | DQ62: 0 | DR62: 0 | DS62: 0 | DT62: 0 | DU62: 0 | DV62: 0 | DW62: 0 | DX62: 0 | DY62: 0 | DZ62: 0 | EA62: 0 | EB62: 0 | EC62: 0 | ED62: 0 | EE62: 0 | EF62: 0 | EG62: 0 | EH62: 0 | EI62: =EI61*$F$62 -> 0 | EJ62: 0 | EK62: 0 | EL62: 0 | EM62: 0 | EN62: 0 | EO62: 0 | EP62: 0 | EQ62: 0 | ER62: 0 | ES62: 0 | ET62: 0 | EU62: 0 | EV62: 0 | EW62: 0 | EX62: 0 | EY62: 0 | EZ62: 0 | FA62: 0 | FB62: 0 | FC62: 0 | FD62: 0 | FE62: 0 | FF62: 0 | FG62: 0 | FH62: 0 | FI62: 0 | FJ62: 0 | FK62: 0 | FL62: 0 | FM62: 0 | FN62: 0 | FO62: 0 | FP62: 0 | FQ62: 0 | FR62: 0 | FS62: 0 | FT62: 0 | FU62: 0 | FV62: 0 | FW62: 0 | FX62: 0 | FY62: 0 | FZ62: 0 | GA62: 0 | GB62: 0 | GC62: 0 | GD62: 0 | GE62: 0 | GF62: 0 | GG62: 0 | GH62: 0 | GI62: 0 | GJ62: 0 | GK62: 0 | GL62: 0 | GM62: 0 | GN62: 0 | GO62: 0 | GP62: 0 | GQ62: 0 | GR62: 0 | GS62: 0 | GT62: 0 | GU62: =GU61*$F$62 -> 0 | GV62: 0 | GW62: 0 | GX62: 0 | GY62: 0 | GZ62: 0 | HA62: 0 | HB62: 0 | HC62: 0 | HD62: 0 | HE62: 0 | HF62: 0 | HG62: 0 | HH62: 0 | HI62: 0 | HJ62: 0 | HK62: 0 | HL62: 0 | HM62: 0 | HN62: 0 | HO62: 0 | HP62: 0 | HQ62: 0 | HR62: 0 | HS62: 0 | HT62: 0 | HU62: 0 | HV62: 0 | HW62: 0 | HX62: 0 | HY62: 0 | HZ62: 0 | IA62: 0 | IB62: 0 | IC62: 0 | ID62: 0 | IE62: 0 | IF62: 0 | IG62: 0 | IH62: 0 | II62: 0 | IJ62: 0 | IK62: 0 | IL62: 0 | IM62: 0 | IN62: 0 | IO62: 0 | IP62: 0 | IQ62: 0 | IR62: 0 | IS62: 0 | IT62: 0 | IU62: 0 | IV62: 0 | IW62: 0 | IX62: 0 | IY62: 0 | IZ62: 0 | JA62: 0 | JB62: 0 | JC62: 0 | JD62: 0 | JE62: 0 | JF62: 0 | JG62: =JG61*$F$62 -> 0 | JH62: 0 | JI62: 0 | JJ62: 0 | JK62: 0 | JL62: 0 | JM62: 0 | JN62: 0 | JO62: 0 | JP62: 0 | JQ62: 0 | JR62: 0 | JS62: 0 | JT62: 0 | JU62: 0 | JV62: 0 | JW62: 0 | JX62: 0 | JY62: 0 | JZ62: 0 | KA62: 0 | KB62: 0 | KC62: 0 | KD62: 0 | KE62: 0 | KF62: 0 | KG62: 0 | KH62: 0 | KI62: 0 | KJ62: 0 | KK62: 0 | KL62: 0 | KM62: 0 | KN62: 0 | KO62: 0 | KP62: 0 | KQ62: 0 | KR62: 0 | KS62: 0 | KT62: 0 | KU62: 0 | KV62: 0 | KW62: 0
C63: Net Plant | E63: EGP | F63: =F8 -> 1200 | I63: =F63 -> 1200 | J63: =I63-J62 -> 1160 | K63: =J63-K62 -> 1120 | L63: 1080 | M63: 1040 | N63: 1000 | O63: 960 | P63: 920 | Q63: 880 | R63: 840 | S63: 800 | T63: 760 | U63: 720 | V63: 680 | W63: 640 | X63: 600 | Y63: 560 | Z63: 520 | AA63: 480 | AB63: 440 | AC63: 400 | AD63: 360 | AE63: 320 | AF63: 280 | AG63: 240 | AH63: 200 | AI63: 160 | AJ63: 120 | AK63: 80 | AL63: 40 | AM63: 0 | AN63: 0 | AO63: 0 | AP63: 0 | AQ63: 0 | AR63: 0 | AS63: 0 | AT63: 0 | AU63: 0 | AV63: 0 | AW63: 0 | AX63: 0 | AY63: 0 | AZ63: 0 | BA63: 0 | BB63: 0 | BC63: 0 | BD63: 0 | BE63: 0 | BF63: 0 | BG63: 0 | BH63: 0 | BI63: 0 | BJ63: 0 | BK63: 0 | BL63: 0 | BM63: 0 | BN63: 0 | BO63: 0 | BP63: 0 | BQ63: 0 | BR63: 0 | BS63: 0 | BT63: 0 | BU63: 0 | BV63: 0 | BW63: =BV63-BW62 -> 0 | BX63: 0 | BY63: 0 | BZ63: 0 | CA63: 0 | CB63: 0 | CC63: 0 | CD63: 0 | CE63: 0 | CF63: 0 | CG63: 0 | CH63: 0 | CI63: 0 | CJ63: 0 | CK63: 0 | CL63: 0 | CM63: 0 | CN63: 0 | CO63: 0 | CP63: 0 | CQ63: 0 | CR63: 0 | CS63: 0 | CT63: 0 | CU63: 0 | CV63: 0 | CW63: 0 | CX63: 0 | CY63: 0 | CZ63: 0 | DA63: 0 | DB63: 0 | DC63: 0 | DD63: 0 | DE63: 0 | DF63: 0 | DG63: 0 | DH63: 0 | DI63: 0 | DJ63: 0 | DK63: 0 | DL63: 0 | DM63: 0 | DN63: 0 | DO63: 0 | DP63: 0 | DQ63: 0 | DR63: 0 | DS63: 0 | DT63: 0 | DU63: 0 | DV63: 0 | DW63: 0 | DX63: 0 | DY63: 0 | DZ63: 0 | EA63: 0 | EB63: 0 | EC63: 0 | ED63: 0 | EE63: 0 | EF63: 0 | EG63: 0 | EH63: 0 | EI63: =EH63-EI62 -> 0 | EJ63: 0 | EK63: 0 | EL63: 0 | EM63: 0 | EN63: 0 | EO63: 0 | EP63: 0 | EQ63: 0 | ER63: 0 | ES63: 0 | ET63: 0 | EU63: 0 | EV63: 0 | EW63: 0 | EX63: 0 | EY63: 0 | EZ63: 0 | FA63: 0 | FB63: 0 | FC63: 0 | FD63: 0 | FE63: 0 | FF63: 0 | FG63: 0 | FH63: 0 | FI63: 0 | FJ63: 0 | FK63: 0 | FL63: 0 | FM63: 0 | FN63: 0 | FO63: 0 | FP63: 0 | FQ63: 0 | FR63: 0 | FS63: 0 | FT63: 0 | FU63: 0 | FV63: 0 | FW63: 0 | FX63: 0 | FY63: 0 | FZ63: 0 | GA63: 0 | GB63: 0 | GC63: 0 | GD63: 0 | GE63: 0 | GF63: 0 | GG63: 0 | GH63: 0 | GI63: 0 | GJ63: 0 | GK63: 0 | GL63: 0 | GM63: 0 | GN63: 0 | GO63: 0 | GP63: 0 | GQ63: 0 | GR63: 0 | GS63: 0 | GT63: 0 | GU63: =GT63-GU62 -> 0 | GV63: 0 | GW63: 0 | GX63: 0 | GY63: 0 | GZ63: 0 | HA63: 0 | HB63: 0 | HC63: 0 | HD63: 0 | HE63: 0 | HF63: 0 | HG63: 0 | HH63: 0 | HI63: 0 | HJ63: 0 | HK63: 0 | HL63: 0 | HM63: 0 | HN63: 0 | HO63: 0 | HP63: 0 | HQ63: 0 | HR63: 0 | HS63: 0 | HT63: 0 | HU63: 0 | HV63: 0 | HW63: 0 | HX63: 0 | HY63: 0 | HZ63: 0 | IA63: 0 | IB63: 0 | IC63: 0 | ID63: 0 | IE63: 0 | IF63: 0 | IG63: 0 | IH63: 0 | II63: 0 | IJ63: 0 | IK63: 0 | IL63: 0 | IM63: 0 | IN63: 0 | IO63: 0 | IP63: 0 | IQ63: 0 | IR63: 0 | IS63: 0 | IT63: 0 | IU63: 0 | IV63: 0 | IW63: 0 | IX63: 0 | IY63: 0 | IZ63: 0 | JA63: 0 | JB63: 0 | JC63: 0 | JD63: 0 | JE63: 0 | JF63: 0 | JG63: =JF63-JG62 -> 0 | JH63: 0 | JI63: 0 | JJ63: 0 | JK63: 0 | JL63: 0 | JM63: 0 | JN63: 0 | JO63: 0 | JP63: 0 | JQ63: 0 | JR63: 0 | JS63: 0 | JT63: 0 | JU63: 0 | JV63: 0 | JW63: 0 | JX63: 0 | JY63: 0 | JZ63: 0 | KA63: 0 | KB63: 0 | KC63: 0 | KD63: 0 | KE63: 0 | KF63: 0 | KG63: 0 | KH63: 0 | KI63: 0 | KJ63: 0 | KK63: 0 | KL63: 0 | KM63: 0 | KN63: 0 | KO63: 0 | KP63: 0 | KQ63: 0 | KR63: 0 | KS63: 0 | KT63: 0 | KU63: 0 | KV63: 0 | KW63: 0
C65: EBIT | E65: EGP | J65: =J21-J62 -> 160 | K65: 160 | L65: 160 | M65: 160 | N65: 160 | O65: 160 | P65: 160 | Q65: 160 | R65: 160 | S65: 160 | T65: 160 | U65: 160 | V65: 160 | W65: 160 | X65: 160 | Y65: 160 | Z65: 160 | AA65: 160 | AB65: 160 | AC65: 160 | AD65: 160 | AE65: 160 | AF65: 160 | AG65: 160 | AH65: 160 | AI65: 160 | AJ65: 160 | AK65: 160 | AL65: 160 | AM65: 160 | AN65: 0 | AO65: 0 | AP65: 0 | AQ65: 0 | AR65: 0 | AS65: 0 | AT65: 0 | AU65: 0 | AV65: 0 | AW65: 0 | AX65: 0 | AY65: 0 | AZ65: 0 | BA65: 0 | BB65: 0 | BC65: 0 | BD65: 0 | BE65: 0 | BF65: 0 | BG65: 0 | BH65: 0 | BI65: 0 | BJ65: 0 | BK65: 0 | BL65: 0 | BM65: 0 | BN65: 0 | BO65: 0 | BP65: 0 | BQ65: 0 | BR65: 0 | BS65: 0 | BT65: 0 | BU65: 0 | BV65: =BV21-BV62 -> 0 | BW65: 0 | BX65: 0 | BY65: 0 | BZ65: 0 | CA65: 0 | CB65: 0 | CC65: 0 | CD65: 0 | CE65: 0 | CF65: 0 | CG65: 0 | CH65: 0 | CI65: 0 | CJ65: 0 | CK65: 0 | CL65: 0 | CM65: 0 | CN65: 0 | CO65: 0 | CP65: 0 | CQ65: 0 | CR65: 0 | CS65: 0 | CT65: 0 | CU65: 0 | CV65: 0 | CW65: 0 | CX65: 0 | CY65: 0 | CZ65: 0 | DA65: 0 | DB65: 0 | DC65: 0 | DD65: 0 | DE65: 0 | DF65: 0 | DG65: 0 | DH65: 0 | DI65: 0 | DJ65: 0 | DK65: 0 | DL65: 0 | DM65: 0 | DN65: 0 | DO65: 0 | DP65: 0 | DQ65: 0 | DR65: 0 | DS65: 0 | DT65: 0 | DU65: 0 | DV65: 0 | DW65: 0 | DX65: 0 | DY65: 0 | DZ65: 0 | EA65: 0 | EB65: 0 | EC65: 0 | ED65: 0 | EE65: 0 | EF65: 0 | EG65: 0 | EH65: =EH21-EH62 -> 0 | EI65: 0 | EJ65: 0 | EK65: 0 | EL65: 0 | EM65: 0 | EN65: 0 | EO65: 0 | EP65: 0 | EQ65: 0 | ER65: 0 | ES65: 0 | ET65: 0 | EU65: 0 | EV65: 0 | EW65: 0 | EX65: 0 | EY65: 0 | EZ65: 0 | FA65: 0 | FB65: 0 | FC65: 0 | FD65: 0 | FE65: 0 | FF65: 0 | FG65: 0 | FH65: 0 | FI65: 0 | FJ65: 0 | FK65: 0 | FL65: 0 | FM65: 0 | FN65: 0 | FO65: 0 | FP65: 0 | FQ65: 0 | FR65: 0 | FS65: 0 | FT65: 0 | FU65: 0 | FV65: 0 | FW65: 0 | FX65: 0 | FY65: 0 | FZ65: 0 | GA65: 0 | GB65: 0 | GC65: 0 | GD65: 0 | GE65: 0 | GF65: 0 | GG65: 0 | GH65: 0 | GI65: 0 | GJ65: 0 | GK65: 0 | GL65: 0 | GM65: 0 | GN65: 0 | GO65: 0 | GP65: 0 | GQ65: 0 | GR65: 0 | GS65: 0 | GT65: =GT21-GT62 -> 0 | GU65: 0 | GV65: 0 | GW65: 0 | GX65: 0 | GY65: 0 | GZ65: 0 | HA65: 0 | HB65: 0 | HC65: 0 | HD65: 0 | HE65: 0 | HF65: 0 | HG65: 0 | HH65: 0 | HI65: 0 | HJ65: 0 | HK65: 0 | HL65: 0 | HM65: 0 | HN65: 0 | HO65: 0 | HP65: 0 | HQ65: 0 | HR65: 0 | HS65: 0 | HT65: 0 | HU65: 0 | HV65: 0 | HW65: 0 | HX65: 0 | HY65: 0 | HZ65: 0 | IA65: 0 | IB65: 0 | IC65: 0 | ID65: 0 | IE65: 0 | IF65: 0 | IG65: 0 | IH65: 0 | II65: 0 | IJ65: 0 | IK65: 0 | IL65: 0 | IM65: 0 | IN65: 0 | IO65: 0 | IP65: 0 | IQ65: 0 | IR65: 0 | IS65: 0 | IT65: 0 | IU65: 0 | IV65: 0 | IW65: 0 | IX65: 0 | IY65: 0 | IZ65: 0 | JA65: 0 | JB65: 0 | JC65: 0 | JD65: 0 | JE65: 0 | JF65: =JF21-JF62 -> 0 | JG65: 0 | JH65: 0 | JI65: 0 | JJ65: 0 | JK65: 0 | JL65: 0 | JM65: 0 | JN65: 0 | JO65: 0 | JP65: 0 | JQ65: 0 | JR65: 0 | JS65: 0 | JT65: 0 | JU65: 0 | JV65: 0 | JW65: 0 | JX65: 0 | JY65: 0 | JZ65: 0 | KA65: 0 | KB65: 0 | KC65: 0 | KD65: 0 | KE65: 0 | KF65: 0 | KG65: 0 | KH65: 0 | KI65: 0 | KJ65: 0 | KK65: 0 | KL65: 0 | KM65: 0 | KN65: 0 | KO65: 0 | KP65: 0 | KQ65: 0 | KR65: 0 | KS65: 0 | KT65: 0 | KU65: 0 | KV65: 0 | KW65: 0
C66: ROIC | E66: % | J66: =IF(J60,J65/I63) -> 0.1333333333 | K66: =IF(K60,K65/J63) -> 0.1379310345 | L66: 0.1428571429 | M66: 0.1481481481 | N66: 0.1538461538 | O66: 0.16 | P66: 0.1666666667 | Q66: 0.1739130435 | R66: 0.1818181818 | S66: 0.1904761905 | T66: 0.2 | U66: 0.2105263158 | V66: 0.2222222222 | W66: 0.2352941176 | X66: 0.25 | Y66: 0.2666666667 | Z66: 0.2857142857 | AA66: 0.3076923077 | AB66: 0.3333333333 | AC66: 0.3636363636 | AD66: 0.4 | AE66: 0.4444444444 | AF66: 0.5 | AG66: 0.5714285714 | AH66: 0.6666666667 | AI66: 0.8 | AJ66: 1 | AK66: 1.333333333 | AL66: 2 | AM66: 4 | AN66: FALSE | AO66: FALSE | AP66: FALSE | AQ66: FALSE | AR66: FALSE | AS66: FALSE | AT66: FALSE | AU66: FALSE | AV66: FALSE | AW66: FALSE | AX66: FALSE | AY66: FALSE | AZ66: FALSE | BA66: FALSE | BB66: FALSE | BC66: FALSE | BD66: FALSE | BE66: FALSE | BF66: FALSE | BG66: FALSE | BH66: FALSE | BI66: FALSE | BJ66: FALSE | BK66: FALSE | BL66: FALSE | BM66: FALSE | BN66: FALSE | BO66: FALSE | BP66: FALSE | BQ66: FALSE | BR66: FALSE | BS66: FALSE | BT66: FALSE | BU66: FALSE | BV66: FALSE | BW66: =IF(BW60,BW65/BV63) -> FALSE | BX66: FALSE | BY66: FALSE | BZ66: FALSE | CA66: FALSE | CB66: FALSE | CC66: FALSE | CD66: FALSE | CE66: FALSE | CF66: FALSE | CG66: FALSE | CH66: FALSE | CI66: FALSE | CJ66: FALSE | CK66: FALSE | CL66: FALSE | CM66: FALSE | CN66: FALSE | CO66: FALSE | CP66: FALSE | CQ66: FALSE | CR66: FALSE | CS66: FALSE | CT66: FALSE | CU66: FALSE | CV66: FALSE | CW66: FALSE | CX66: FALSE | CY66: FALSE | CZ66: FALSE | DA66: FALSE | DB66: FALSE | DC66: FALSE | DD66: FALSE | DE66: FALSE | DF66: FALSE | DG66: FALSE | DH66: FALSE | DI66: FALSE | DJ66: FALSE | DK66: FALSE | DL66: FALSE | DM66: FALSE | DN66: FALSE | DO66: FALSE | DP66: FALSE | DQ66: FALSE | DR66: FALSE | DS66: FALSE | DT66: FALSE | DU66: FALSE | DV66: FALSE | DW66: FALSE | DX66: FALSE | DY66: FALSE | DZ66: FALSE | EA66: FALSE | EB66: FALSE | EC66: FALSE | ED66: FALSE | EE66: FALSE | EF66: FALSE | EG66: FALSE | EH66: FALSE | EI66: =IF(EI60,EI65/EH63) -> FALSE | EJ66: FALSE | EK66: FALSE | EL66: FALSE | EM66: FALSE | EN66: FALSE | EO66: FALSE | EP66: FALSE | EQ66: FALSE | ER66: FALSE | ES66: FALSE | ET66: FALSE | EU66: FALSE | EV66: FALSE | EW66: FALSE | EX66: FALSE | EY66: FALSE | EZ66: FALSE | FA66: FALSE | FB66: FALSE | FC66: FALSE | FD66: FALSE | FE66: FALSE | FF66: FALSE | FG66: FALSE | FH66: FALSE | FI66: FALSE | FJ66: FALSE | FK66: FALSE | FL66: FALSE | FM66: FALSE | FN66: FALSE | FO66: FALSE | FP66: FALSE | FQ66: FALSE | FR66: FALSE | FS66: FALSE | FT66: FALSE | FU66: FALSE | FV66: FALSE | FW66: FALSE | FX66: FALSE | FY66: FALSE | FZ66: FALSE | GA66: FALSE | GB66: FALSE | GC66: FALSE | GD66: FALSE | GE66: FALSE | GF66: FALSE | GG66: FALSE | GH66: FALSE | GI66: FALSE | GJ66: FALSE | GK66: FALSE | GL66: FALSE | GM66: FALSE | GN66: FALSE | GO66: FALSE | GP66: FALSE | GQ66: FALSE | GR66: FALSE | GS66: FALSE | GT66: FALSE | GU66: =IF(GU60,GU65/GT63) -> FALSE | GV66: FALSE | GW66: FALSE | GX66: FALSE | GY66: FALSE | GZ66: FALSE | HA66: FALSE | HB66: FALSE | HC66: FALSE | HD66: FALSE | HE66: FALSE | HF66: FALSE | HG66: FALSE | HH66: FALSE | HI66: FALSE | HJ66: FALSE | HK66: FALSE | HL66: FALSE | HM66: FALSE | HN66: FALSE | HO66: FALSE | HP66: FALSE | HQ66: FALSE | HR66: FALSE | HS66: FALSE | HT66: FALSE | HU66: FALSE | HV66: FALSE | HW66: FALSE | HX66: FALSE | HY66: FALSE | HZ66: FALSE | IA66: FALSE | IB66: FALSE | IC66: FALSE | ID66: FALSE | IE66: FALSE | IF66: FALSE | IG66: FALSE | IH66: FALSE | II66: FALSE | IJ66: FALSE | IK66: FALSE | IL66: FALSE | IM66: FALSE | IN66: FALSE | IO66: FALSE | IP66: FALSE | IQ66: FALSE | IR66: FALSE | IS66: FALSE | IT66: FALSE | IU66: FALSE | IV66: FALSE | IW66: FALSE | IX66: FALSE | IY66: FALSE | IZ66: FALSE | JA66: FALSE | JB66: FALSE | JC66: FALSE | JD66: FALSE | JE66: FALSE | JF66: FALSE | JG66: =IF(JG60,JG65/JF63) -> FALSE | JH66: FALSE | JI66: FALSE | JJ66: FALSE | JK66: FALSE | JL66: FALSE | JM66: FALSE | JN66: FALSE | JO66: FALSE | JP66: FALSE | JQ66: FALSE | JR66: FALSE | JS66: FALSE | JT66: FALSE | JU66: FALSE | JV66: FALSE | JW66: FALSE | JX66: FALSE | JY66: FALSE | JZ66: FALSE | KA66: FALSE | KB66: FALSE | KC66: FALSE | KD66: FALSE | KE66: FALSE | KF66: FALSE | KG66: FALSE | KH66: FALSE | KI66: FALSE | KJ66: FALSE | KK66: FALSE | KL66: FALSE | KM66: FALSE | KN66: FALSE | KO66: FALSE | KP66: FALSE | KQ66: FALSE | KR66: FALSE | KS66: FALSE | KT66: FALSE | KU66: FALSE | KV66: FALSE | KW66: FALSE
C68: WACC Index | F68: =F12 -> 0.14 | I68: 1 | J68: =I68*(1+$F$68) -> 1.14 | K68: =J68*(1+$F$68) -> 1.2996 | L68: 1.481544 | M68: 1.68896016 | N68: 1.925414582 | O68: 2.194972624 | P68: 2.502268791 | Q68: 2.852586422 | R68: 3.251948521 | S68: 3.707221314 | T68: 4.226232298 | U68: 4.81790482 | V68: 5.492411495 | W68: 6.261349104 | X68: 7.137937978 | Y68: 8.137249295 | Z68: 9.276464197 | AA68: 10.57516918 | AB68: 12.05569287 | AC68: 13.74348987 | AD68: 15.66757845 | AE68: 17.86103944 | AF68: 20.36158496 | AG68: 23.21220685 | AH68: 26.46191581 | AI68: 30.16658403 | AJ68: 34.38990579 | AK68: 39.2044926 | AL68: 44.69312156 | AM68: 50.95015858 | AN68: 58.08318078 | AO68: 66.21482609 | AP68: 75.48490175 | AQ68: 86.05278799 | AR68: 98.10017831 | AS68: 111.8342033 | AT68: 127.4909917 | AU68: 145.3397306 | AV68: 165.6872929 | AW68: 188.8835139 | AX68: 215.3272058 | AY68: 245.4730146 | AZ68: 279.8392367 | BA68: 319.0167298 | BB68: 363.679072 | BC68: 414.594142 | BD68: 472.6373219 | BE68: 538.806547 | BF68: 614.2394636 | BG68: 700.2329885 | BH68: 798.2656068 | BI68: 910.0227918 | BJ68: 1037.425983 | BK68: 1182.66562 | BL68: 1348.238807 | BM68: 1536.99224 | BN68: 1752.171154 | BO68: 1997.475115 | BP68: 2277.121631 | BQ68: 2595.91866 | BR68: 2959.347272 | BS68: 3373.65589 | BT68: 3845.967715 | BU68: 4384.403195 | BV68: 4998.219642 | BW68: =BV68*(1+$F$68) -> 5697.970392 | BX68: 6495.686247 | BY68: 7405.082321 | BZ68: 8441.793846 | CA68: 9623.644985 | CB68: 10970.95528 | CC68: 12506.88902 | CD68: 14257.85349 | CE68: 16253.95297 | CF68: 18529.50639 | CG68: 21123.63728 | CH68: 24080.9465 | CI68: 27452.27901 | CJ68: 31295.59808 | CK68: 35676.98181 | CL68: 40671.75926 | CM68: 46365.80556 | CN68: 52857.01833 | CO68: 60257.0009 | CP68: 68692.98103 | CQ68: 78309.99837 | CR68: 89273.39814 | CS68: 101771.6739 | CT68: 116019.7082 | CU68: 132262.4674 | CV68: 150779.2128 | CW68: 171888.3026 | CX68: 195952.665 | CY68: 223386.0381 | CZ68: 254660.0834 | DA68: 290312.4951 | DB68: 330956.2444 | DC68: 377290.1186 | DD68: 430110.7352 | DE68: 490326.2381 | DF68: 558971.9115 | DG68: 637227.9791 | DH68: 726439.8961 | DI68: 828141.4816 | DJ68: 944081.289 | DK68: 1076252.669 | DL68: 1226928.043 | DM68: 1398697.969 | DN68: 1594515.685 | DO68: 1817747.881 | DP68: 2072232.584 | DQ68: 2362345.146 | DR68: 2693073.466 | DS68: 3070103.752 | DT68: 3499918.277 | DU68: 3989906.836 | DV68: 4548493.793 | DW68: 5185282.924 | DX68: 5911222.533 | DY68: 6738793.688 | DZ68: 7682224.804 | EA68: 8757736.276 | EB68: 9983819.355 | EC68: 11381554.06 | ED68: 12974971.63 | EE68: 14791467.66 | EF68: 16862273.14 | EG68: 19222991.37 | EH68: 21914210.17 | EI68: =EH68*(1+$F$68) -> 24982199.59 | EJ68: 28479707.53 | EK68: 32466866.59 | EL68: 37012227.91 | EM68: 42193939.82 | EN68: 48101091.39 | EO68: 54835244.19 | EP68: 62512178.37 | EQ68: 71263883.34 | ER68: 81240827.01 | ES68: 92614542.79 | ET68: 105580578.8 | EU68: 120361859.8 | EV68: 137212520.2 | EW68: 156422273 | EX68: 178321391.2 | EY68: 203286386 | EZ68: 231746480.1 | FA68: 264190987.3 | FB68: 301177725.5 | FC68: 343342607 | FD68: 391410572 | FE68: 446208052.1 | FF68: 508677179.4 | FG68: 579891984.5 | FH68: 661076862.4 | FI68: 753627623.1 | FJ68: 859135490.3 | FK68: 979414459 | FL68: 1116532483 | FM68: 1272847031 | FN68: 1451045615 | FO68: 1654192001 | FP68: 1885778882 | FQ68: 2149787925 | FR68: 2450758234 | FS68: 2793864387 | FT68: 3185005401 | FU68: 3630906158 | FV68: 4139233020 | FW68: 4718725642 | FX68: 5379347232 | FY68: 6132455845 | FZ68: 6990999663 | GA68: 7969739616 | GB68: 9085503162 | GC68: 1.035747361e+10 | GD68: 1.180751991e+10 | GE68: 1.34605727e+10 | GF68: 1.534505287e+10 | GG68: 1.749336028e+10 | GH68: 1.994243072e+10 | GI68: 2.273437102e+10 | GJ68: 2.591718296e+10 | GK68: 2.954558857e+10 | GL68: 3.368197097e+10 | GM68: 3.839744691e+10 | GN68: 4.377308948e+10 | GO68: 4.9901322e+10 | GP68: 5.688750708e+10 | GQ68: 6.485175808e+10 | GR68: 7.393100421e+10 | GS68: 8.428134479e+10 | GT68: 9.608073307e+10 | GU68: =GT68*(1+$F$68) -> 1.095320357e+11 | GV68: 1.248665207e+11 | GW68: 1.423478336e+11 | GX68: 1.622765303e+11 | GY68: 1.849952445e+11 | GZ68: 2.108945788e+11 | HA68: 2.404198198e+11 | HB68: 2.740785946e+11 | HC68: 3.124495978e+11 | HD68: 3.561925415e+11 | HE68: 4.060594973e+11 | HF68: 4.629078269e+11 | HG68: 5.277149227e+11 | HH68: 6.015950119e+11 | HI68: 6.858183135e+11 | HJ68: 7.818328774e+11 | HK68: 8.912894803e+11 | HL68: 1.016070008e+12 | HM68: 1.158319809e+12 | HN68: 1.320484582e+12 | HO68: 1.505352423e+12 | HP68: 1.716101762e+12 | HQ68: 1.956356009e+12 | HR68: 2.230245851e+12 | HS68: 2.54248027e+12 | HT68: 2.898427507e+12 | HU68: 3.304207358e+12 | HV68: 3.766796389e+12 | HW68: 4.294147883e+12 | HX68: 4.895328587e+12 | HY68: 5.580674589e+12 | HZ68: 6.361969031e+12 | IA68: 7.252644695e+12 | IB68: 8.268014953e+12 | IC68: 9.425537046e+12 | ID68: 1.074511223e+13 | IE68: 1.224942795e+13 | IF68: 1.396434786e+13 | IG68: 15919356557504 | IH68: 1.814806648e+13 | II68: 2.068879578e+13 | IJ68: 2.358522719e+13 | IK68: 2.6887159e+13 | IL68: 3.065136126e+13 | IM68: 3.494255183e+13 | IN68: 3.983450909e+13 | IO68: 4.541134036e+13 | IP68: 5.176892801e+13 | IQ68: 5.901657794e+13 | IR68: 6.727889885e+13 | IS68: 7.669794469e+13 | IT68: 8.743565694e+13 | IU68: 9.967664892e+13 | IV68: 1.136313798e+14 | IW68: 1.295397729e+14 | IX68: 1.476753411e+14 | IY68: 1.683498889e+14 | IZ68: 1.919188733e+14 | JA68: 2.187875156e+14 | JB68: 2.494177678e+14 | JC68: 2.843362553e+14 | JD68: 3.24143331e+14 | JE68: 3.695233974e+14 | JF68: 4.21256673e+14 | JG68: =JF68*(1+$F$68) -> 4.802326072e+14 | JH68: 5.474651722e+14 | JI68: 624110296359759 | JJ68: 7.114857379e+14 | JK68: 811093741149143 | JL68: 9.246468649e+14 | JM68: 1.054097426e+15 | JN68: 1.201671066e+15 | JO68: 1.369905015e+15 | JP68: 1.561691717e+15 | JQ68: 1.780328557e+15 | JR68: 2029574555285751 | JS68: 2.313714993e+15 | JT68: 2.637635092e+15 | JU68: 3.006904005e+15 | JV68: 3427870565627352 | JW68: 3.907772445e+15 | JX68: 4.454860587e+15 | JY68: 5078541069281811 | JZ68: 5789536818981265 | KA68: 6600071973638643 | KB68: 7524082049948054 | KC68: 8577453536940782 | KD68: 9778297032112492 | KE68: 1.114725862e+16 | KF68: 1.270787482e+16 | KG68: 1.44869773e+16 | KH68: 1.651515412e+16 | KI68: 1.88272757e+16 | KJ68: 2.146309429e+16 | KK68: 2.44679275e+16 | KL68: 2.789343734e+16 | KM68: 3.179851857e+16 | KN68: 3.625031117e+16 | KO68: 4.132535474e+16 | KP68: 4.71109044e+16 | KQ68: 5.370643102e+16 | KR68: 6.122533136e+16 | KS68: 6.979687775e+16 | KT68: 7.956844063e+16 | KU68: 9.070802232e+16 | KV68: 1.034071454e+17 | KW68: 1.178841458e+17
C69: PV of Investment | J69: =I63/I68 -> 1200 | K69: =J63/J68 -> 1017.54386 | L69: 861.8036319 | M69: 728.9692375 | N69: 615.7634885 | O69: 519.3686644 | P69: 437.3630858 | Q69: 367.6663367 | R69: 308.4919683 | S69: 258.306672 | T69: 215.7950476 | U69: 179.8292063 | V69: 149.4425538 | W69: 123.8071839 | X69: 102.2143933 | Y69: 84.05788924 | Z69: 68.81932453 | AA69: 56.05584078 | AB69: 45.38934476 | AC69: 36.49728014 | AD69: 29.10468911 | AE69: 22.97738614 | AF69: 17.91609056 | AG69: 13.7513853 | AH69: 10.33938744 | AI69: 7.558031755 | AJ69: 5.303881933 | AK69: 3.489396009 | AL69: 2.040582461 | AM69: 0.8949923075 | AN69: 0 | AO69: 0 | AP69: 0 | AQ69: 0 | AR69: 0 | AS69: 0 | AT69: 0 | AU69: 0 | AV69: 0 | AW69: 0 | AX69: 0 | AY69: 0 | AZ69: 0 | BA69: 0 | BB69: 0 | BC69: 0 | BD69: 0 | BE69: 0 | BF69: 0 | BG69: 0 | BH69: 0 | BI69: 0 | BJ69: 0 | BK69: 0 | BL69: 0 | BM69: 0 | BN69: 0 | BO69: 0 | BP69: 0 | BQ69: 0 | BR69: 0 | BS69: 0 | BT69: 0 | BU69: 0 | BV69: 0 | BW69: =BV63/BV68 -> 0 | BX69: 0 | BY69: 0 | BZ69: 0 | CA69: 0 | CB69: 0 | CC69: 0 | CD69: 0 | CE69: 0 | CF69: 0 | CG69: 0 | CH69: 0 | CI69: 0 | CJ69: 0 | CK69: 0 | CL69: 0 | CM69: 0 | CN69: 0 | CO69: 0 | CP69: 0 | CQ69: 0 | CR69: 0 | CS69: 0 | CT69: 0 | CU69: 0 | CV69: 0 | CW69: 0 | CX69: 0 | CY69: 0 | CZ69: 0 | DA69: 0 | DB69: 0 | DC69: 0 | DD69: 0 | DE69: 0 | DF69: 0 | DG69: 0 | DH69: 0 | DI69: 0 | DJ69: 0 | DK69: 0 | DL69: 0 | DM69: 0 | DN69: 0 | DO69: 0 | DP69: 0 | DQ69: 0 | DR69: 0 | DS69: 0 | DT69: 0 | DU69: 0 | DV69: 0 | DW69: 0 | DX69: 0 | DY69: 0 | DZ69: 0 | EA69: 0 | EB69: 0 | EC69: 0 | ED69: 0 | EE69: 0 | EF69: 0 | EG69: 0 | EH69: 0 | EI69: =EH63/EH68 -> 0 | EJ69: 0 | EK69: 0 | EL69: 0 | EM69: 0 | EN69: 0 | EO69: 0 | EP69: 0 | EQ69: 0 | ER69: 0 | ES69: 0 | ET69: 0 | EU69: 0 | EV69: 0 | EW69: 0 | EX69: 0 | EY69: 0 | EZ69: 0 | FA69: 0 | FB69: 0 | FC69: 0 | FD69: 0 | FE69: 0 | FF69: 0 | FG69: 0 | FH69: 0 | FI69: 0 | FJ69: 0 | FK69: 0 | FL69: 0 | FM69: 0 | FN69: 0 | FO69: 0 | FP69: 0 | FQ69: 0 | FR69: 0 | FS69: 0 | FT69: 0 | FU69: 0 | FV69: 0 | FW69: 0 | FX69: 0 | FY69: 0 | FZ69: 0 | GA69: 0 | GB69: 0 | GC69: 0 | GD69: 0 | GE69: 0 | GF69: 0 | GG69: 0 | GH69: 0 | GI69: 0 | GJ69: 0 | GK69: 0 | GL69: 0 | GM69: 0 | GN69: 0 | GO69: 0 | GP69: 0 | GQ69: 0 | GR69: 0 | GS69: 0 | GT69: 0 | GU69: =GT63/GT68 -> 0 | GV69: 0 | GW69: 0 | GX69: 0 | GY69: 0 | GZ69: 0 | HA69: 0 | HB69: 0 | HC69: 0 | HD69: 0 | HE69: 0 | HF69: 0 | HG69: 0 | HH69: 0 | HI69: 0 | HJ69: 0 | HK69: 0 | HL69: 0 | HM69: 0 | HN69: 0 | HO69: 0 | HP69: 0 | HQ69: 0 | HR69: 0 | HS69: 0 | HT69: 0 | HU69: 0 | HV69: 0 | HW69: 0 | HX69: 0 | HY69: 0 | HZ69: 0 | IA69: 0 | IB69: 0 | IC69: 0 | ID69: 0 | IE69: 0 | IF69: 0 | IG69: 0 | IH69: 0 | II69: 0 | IJ69: 0 | IK69: 0 | IL69: 0 | IM69: 0 | IN69: 0 | IO69: 0 | IP69: 0 | IQ69: 0 | IR69: 0 | IS69: 0 | IT69: 0 | IU69: 0 | IV69: 0 | IW69: 0 | IX69: 0 | IY69: 0 | IZ69: 0 | JA69: 0 | JB69: 0 | JC69: 0 | JD69: 0 | JE69: 0 | JF69: 0 | JG69: =JF63/JF68 -> 0 | JH69: 0 | JI69: 0 | JJ69: 0 | JK69: 0 | JL69: 0 | JM69: 0 | JN69: 0 | JO69: 0 | JP69: 0 | JQ69: 0 | JR69: 0 | JS69: 0 | JT69: 0 | JU69: 0 | JV69: 0 | JW69: 0 | JX69: 0 | JY69: 0 | JZ69: 0 | KA69: 0 | KB69: 0 | KC69: 0 | KD69: 0 | KE69: 0 | KF69: 0 | KG69: 0 | KH69: 0 | KI69: 0 | KJ69: 0 | KK69: 0 | KL69: 0 | KM69: 0 | KN69: 0 | KO69: 0 | KP69: 0 | KQ69: 0 | KR69: 0 | KS69: 0 | KT69: 0 | KU69: 0 | KV69: 0 | KW69: 0
C70: Weighting | J70: =J69/SUM(69:69) -> 0.1602016227 | K70: =K69/SUM(69:69) -> 0.1358434812 | L70: 0.1150519502 | M70: 0.09731837894 | N70: 0.08220525836 | O70: 0.069336419 | P70: 0.05838856336 | Q70: 0.04908395312 | R70: 0.04118409491 | S70: 0.03448429 | T70: 0.02880893066 | U70: 0.02400744222 | V70: 0.01995078301 | W70: 0.01652842647 | X70: 0.01364575972 | Y70: 0.01122184188 | Z70: 0.009187472883 | AA70: 0.007483530544 | AB70: 0.006059538902 | AC70: 0.004872436252 | AD70: 0.003885515352 | AE70: 0.00306751212 | AF70: 0.002391822316 | AG70: 0.001835828532 | AH70: 0.001380322204 | AI70: 0.001009007459 | AJ70: 0.0007080754101 | AK70: 0.0004658390856 | AL70: 0.0002724205179 | AM70: 0.0001194826833 | AN70: 0 | AO70: 0 | AP70: 0 | AQ70: 0 | AR70: 0 | AS70: 0 | AT70: 0 | AU70: 0 | AV70: 0 | AW70: 0 | AX70: 0 | AY70: 0 | AZ70: 0 | BA70: 0 | BB70: 0 | BC70: 0 | BD70: 0 | BE70: 0 | BF70: 0 | BG70: 0 | BH70: 0 | BI70: 0 | BJ70: 0 | BK70: 0 | BL70: 0 | BM70: 0 | BN70: 0 | BO70: 0 | BP70: 0 | BQ70: 0 | BR70: 0 | BS70: 0 | BT70: 0 | BU70: 0 | BV70: 0 | BW70: =BW69/SUM(69:69) -> 0 | BX70: 0 | BY70: 0 | BZ70: 0 | CA70: 0 | CB70: 0 | CC70: 0 | CD70: 0 | CE70: 0 | CF70: 0 | CG70: 0 | CH70: 0 | CI70: 0 | CJ70: 0 | CK70: 0 | CL70: 0 | CM70: 0 | CN70: 0 | CO70: 0 | CP70: 0 | CQ70: 0 | CR70: 0 | CS70: 0 | CT70: 0 | CU70: 0 | CV70: 0 | CW70: 0 | CX70: 0 | CY70: 0 | CZ70: 0 | DA70: 0 | DB70: 0 | DC70: 0 | DD70: 0 | DE70: 0 | DF70: 0 | DG70: 0 | DH70: 0 | DI70: 0 | DJ70: 0 | DK70: 0 | DL70: 0 | DM70: 0 | DN70: 0 | DO70: 0 | DP70: 0 | DQ70: 0 | DR70: 0 | DS70: 0 | DT70: 0 | DU70: 0 | DV70: 0 | DW70: 0 | DX70: 0 | DY70: 0 | DZ70: 0 | EA70: 0 | EB70: 0 | EC70: 0 | ED70: 0 | EE70: 0 | EF70: 0 | EG70: 0 | EH70: 0 | EI70: =EI69/SUM(69:69) -> 0 | EJ70: 0 | EK70: 0 | EL70: 0 | EM70: 0 | EN70: 0 | EO70: 0 | EP70: 0 | EQ70: 0 | ER70: 0 | ES70: 0 | ET70: 0 | EU70: 0 | EV70: 0 | EW70: 0 | EX70: 0 | EY70: 0 | EZ70: 0 | FA70: 0 | FB70: 0 | FC70: 0 | FD70: 0 | FE70: 0 | FF70: 0 | FG70: 0 | FH70: 0 | FI70: 0 | FJ70: 0 | FK70: 0 | FL70: 0 | FM70: 0 | FN70: 0 | FO70: 0 | FP70: 0 | FQ70: 0 | FR70: 0 | FS70: 0 | FT70: 0 | FU70: 0 | FV70: 0 | FW70: 0 | FX70: 0 | FY70: 0 | FZ70: 0 | GA70: 0 | GB70: 0 | GC70: 0 | GD70: 0 | GE70: 0 | GF70: 0 | GG70: 0 | GH70: 0 | GI70: 0 | GJ70: 0 | GK70: 0 | GL70: 0 | GM70: 0 | GN70: 0 | GO70: 0 | GP70: 0 | GQ70: 0 | GR70: 0 | GS70: 0 | GT70: 0 | GU70: =GU69/SUM(69:69) -> 0 | GV70: 0 | GW70: 0 | GX70: 0 | GY70: 0 | GZ70: 0 | HA70: 0 | HB70: 0 | HC70: 0 | HD70: 0 | HE70: 0 | HF70: 0 | HG70: 0 | HH70: 0 | HI70: 0 | HJ70: 0 | HK70: 0 | HL70: 0 | HM70: 0 | HN70: 0 | HO70: 0 | HP70: 0 | HQ70: 0 | HR70: 0 | HS70: 0 | HT70: 0 | HU70: 0 | HV70: 0 | HW70: 0 | HX70: 0 | HY70: 0 | HZ70: 0 | IA70: 0 | IB70: 0 | IC70: 0 | ID70: 0 | IE70: 0 | IF70: 0 | IG70: 0 | IH70: 0 | II70: 0 | IJ70: 0 | IK70: 0 | IL70: 0 | IM70: 0 | IN70: 0 | IO70: 0 | IP70: 0 | IQ70: 0 | IR70: 0 | IS70: 0 | IT70: 0 | IU70: 0 | IV70: 0 | IW70: 0 | IX70: 0 | IY70: 0 | IZ70: 0 | JA70: 0 | JB70: 0 | JC70: 0 | JD70: 0 | JE70: 0 | JF70: 0 | JG70: =JG69/SUM(69:69) -> 0 | JH70: 0 | JI70: 0 | JJ70: 0 | JK70: 0 | JL70: 0 | JM70: 0 | JN70: 0 | JO70: 0 | JP70: 0 | JQ70: 0 | JR70: 0 | JS70: 0 | JT70: 0 | JU70: 0 | JV70: 0 | JW70: 0 | JX70: 0 | JY70: 0 | JZ70: 0 | KA70: 0 | KB70: 0 | KC70: 0 | KD70: 0 | KE70: 0 | KF70: 0 | KG70: 0 | KH70: 0 | KI70: 0 | KJ70: 0 | KK70: 0 | KL70: 0 | KM70: 0 | KN70: 0 | KO70: 0 | KP70: 0 | KQ70: 0 | KR70: 0 | KS70: 0 | KT70: 0 | KU70: 0 | KV70: 0 | KW70: 0
C72: Weighted ROIC | F72: =SUMPRODUCT(66:66,70:70) -> 0.1705193994

Sheet LCOE
I1: Nigeria | J1: Nigeria | K1: Ghana | L1: Ghana
F2: No Tracking | G2: Tracking | H2: Bi-Facial | I2: Combustion Turbine | J2: Combined Cycle | K2: Combustion Turbine | L2: Combined Cycle
B3: Resource Analysis
C4: In-Plane Irriation | E4: Annual kWh/m2
C5: Hours per Year | E5: Hours
C6: Average Hourly | E6: kWh
C7: Capacity | E7: kWh
C8: In-Plane Capacity Factor | E8: %
C9: In-Plane Yield | E9: kWh/kWp
C11: Performance Ratio | E11: %
C12: AC Capacity Factor | E12: %
C13: AC Yield | E13: kWh/kWp
B15: Capital Cost
C16: Panel Cost | E16: USD/kWp
C17: Other Cost | E17: USD/kWp
C18: Profit | E18: USD/kWp
C19: Total EPC and Other | E19: USD/kWp
B21: Capital Recovery
C22: Required Equity Return | E22: %
C23: Interest Rate | E23: %
C24: DSCR | E24: x
C25: Required EBITDA/Capital without Inflation | E25: %
C26: Required EBITDA/Capital with Inflation | E26: %
C28: Capacity Cost | E28: USD/kW-year
C29: Capacity Cost | E29: USD/MW-year
C30: Capacity Cost | E30: USD/MWh
B32: Fixed Operation and Maintenance
C33: Inflation Rate | E33: %
C34: Life | E34: Years
C35: Nominal Factor with PMT | E35: Factor
C37: O&M Cost with No Inflation | E37: USD/kW-year
C38: O&M Cost with Inflation | E38: USD/kW-year
C40: O&M Cost with No Inflation | E40: USD/MWh
C41: O&M Cost with Inflation | E41: USD/MWh
B43: Variable Operation and Maintenance
C44: O&M Cost with No Inflation | E44: USD/MWh
C45: O&M Cost with Inflation | E45: USD/MWh
B47: Fuel Cost
C48: Heat Rate | E48: MMBTU/MWH
C49: Fuel Cost | E49: USD/MMBTU
C50: Fuel Expense Real | E50: USD/MWH
C51: Fuel Expense Nominal | E51: USD/MWH
B53: LCOE
C54: LCOE - Real | E54: USD/MWH
C55: LCOE - Nominal | E55: USD/MWH

Sheet Nominal and Fixed O&M
G3: 1 | H3: 2 | I3: 3 | J3: 4 | K3: 5 | L3: 6 | M3: 7 | N3: 8 | O3: 9 | P3: 10 | Q3: 11 | R3: 12 | S3: 13 | T3: 14 | U3: 15 | V3: 16 | W3: 17 | X3: 18 | Y3: 19 | Z3: 20 | AA3: 21 | AB3: 22 | AC3: 23 | AD3: 24 | AE3: 25 | AF3: 26 | AG3: 27 | AH3: 28 | AI3: 29 | AJ3: 30
D4: Real O&M | E4: USD/kW-year | G4: 7 | H4: 7 | I4: 7 | J4: 7 | K4: 7 | L4: 7 | M4: 7 | N4: 7 | O4: 7 | P4: 7 | Q4: 7 | R4: 7 | S4: 7 | T4: 7 | U4: 7 | V4: 7 | W4: 7 | X4: 7 | Y4: 7 | Z4: 7 | AA4: 7 | AB4: 7 | AC4: 7 | AD4: 7 | AE4: 7 | AF4: 7 | AG4: 7 | AH4: 7 | AI4: 7 | AJ4: 7
D5: Inflation Rate | E5: % | F5: 0.02 | G5: =$F$5 -> 0.02 | H5: =$F$5 -> 0.02 | I5: 0.02 | J5: 0.02 | K5: 0.02 | L5: 0.02 | M5: 0.02 | N5: 0.02 | O5: 0.02 | P5: 0.02 | Q5: 0.02 | R5: 0.02 | S5: 0.02 | T5: 0.02 | U5: 0.02 | V5: 0.02 | W5: 0.02 | X5: 0.02 | Y5: 0.02 | Z5: 0.02 | AA5: 0.02 | AB5: 0.02 | AC5: 0.02 | AD5: 0.02 | AE5: 0.02 | AF5: 0.02 | AG5: 0.02 | AH5: 0.02 | AI5: 0.02 | AJ5: 0.02
D6: Inflation Index | E6: Index | F6: 1 | G6: =F6*(1+G5) -> 1.02 | H6: =G6*(1+H5) -> 1.0404 | I6: 1.061208 | J6: 1.08243216 | K6: 1.104080803 | L6: 1.126162419 | M6: 1.148685668 | N6: 1.171659381 | O6: 1.195092569 | P6: 1.21899442 | Q6: 1.243374308 | R6: 1.268241795 | S6: 1.29360663 | T6: 1.319478763 | U6: 1.345868338 | V6: 1.372785705 | W6: 1.400241419 | X6: 1.428246248 | Y6: 1.456811173 | Z6: 1.485947396 | AA6: 1.515666344 | AB6: 1.545979671 | AC6: 1.576899264 | AD6: 1.608437249 | AE6: 1.640605994 | AF6: 1.673418114 | AG6: 1.706886477 | AH6: 1.741024206 | AI6: 1.77584469 | AJ6: 1.811361584
D7: Nominal O&M | E7: USD/kW-year | G7: =G4*G6 -> 7.14 | H7: =H4*H6 -> 7.2828 | I7: 7.428456 | J7: 7.57702512 | K7: 7.728565622 | L7: 7.883136935 | M7: 8.040799674 | N7: 8.201615667 | O7: 8.36564798 | P7: 8.53296094 | Q7: 8.703620159 | R7: 8.877692562 | S7: 9.055246413 | T7: 9.236351341 | U7: 9.421078368 | V7: 9.609499936 | W7: 9.801689934 | X7: 9.997723733 | Y7: 10.19767821 | Z7: 10.40163177 | AA7: 10.60966441 | AB7: 10.8218577 | AC7: 11.03829485 | AD7: 11.25906075 | AE7: 11.48424196 | AF7: 11.7139268 | AG7: 11.94820534 | AH7: 12.18716944 | AI7: 12.43091283 | AJ7: 12.67953109
D8: Generation Filler | E8: kW | G8: 1 | H8: 1 | I8: 1 | J8: 1 | K8: 1 | L8: 1 | M8: 1 | N8: 1 | O8: 1 | P8: 1 | Q8: 1 | R8: 1 | S8: 1 | T8: 1 | U8: 1 | V8: 1 | W8: 1 | X8: 1 | Y8: 1 | Z8: 1 | AA8: 1 | AB8: 1 | AC8: 1 | AD8: 1 | AE8: 1 | AF8: 1 | AG8: 1 | AH8: 1 | AI8: 1 | AJ8: 1
D10: Discount Rate Nominal | E10: % | F10: 0.06
D11: Discount Rate Real | E11: % | F11: =(1+F10)/(1+F5)-1 -> 0.03921568627
D13: NPV Cost - Real | E13: USD | F13: =NPV(F11,4:4) -> 122.2053121
D14: NPV Generation - Real | E14: USD | F14: =NPV(F11,8:8) -> 17.45790174
D15: Real LCOE | E15: USD/MWH | F15: =F13/F14 -> 7
D17: NPV Nominal | E17: USD | F17: =NPV(F10,7:7) -> 122.2053121
D18: NPV Generation - Nominal | E18: USD | F18: =NPV(F10,8:8) -> 13.76483115
D19: Nominal LCOE | E19: USD/MWH | F19: =F17/F18 -> 8.878082906
D21: Life | E21: Years | F21: 30
D22: PMT Real - 30 Years | E22: USD | F22: =PMT(F11,F21,-1) -> 0.05728065235
D23: PMT Nominal - 30 Years | E23: USD | F23: =PMT(F10,F21,-1) -> 0.07264891149
D24: Ratio | F24: =F23/F22 -> 1.268297558
D26: Nominal O&M | F26: =F24*F15 -> 8.878082906
D28: =F26-F19 -> -1.598721155e-14

Sheet Hospital Case
B1: Period | I1: 0 | J1: 1 | K1: 2 | L1: 3 | M1: 4 | N1: 5 | O1: 6 | P1: 7 | Q1: 8 | R1: 9 | S1: 10 | T1: 11 | U1: 12 | V1: 13 | W1: 14 | X1: 15 | Y1: 16 | Z1: 17 | AA1: 18 | AB1: 19 | AC1: 20 | AD1: 21 | AE1: 22 | AF1: 23 | AG1: 24 | AH1: 25 | AI1: 26 | AJ1: 27 | AK1: 28 | AL1: 29 | AM1: 30 | AN1: 31 | AO1: 32 | AP1: 33 | AQ1: 34 | AR1: 35 | AS1: 36 | AT1: 37 | AU1: 38 | AV1: 39 | AW1: 40 | AX1: 41 | AY1: 42 | AZ1: 43 | BA1: 44 | BB1: 45 | BC1: 46 | BD1: 47 | BE1: 48 | BF1: 49 | BG1: 50 | BH1: 51 | BI1: 52 | BJ1: 53 | BK1: 54 | BL1: 55 | BM1: 56 | BN1: 57 | BO1: 58 | BP1: 59 | BQ1: 60 | BR1: 61 | BS1: 62 | BT1: 63 | BU1: 64 | BV1: 65 | BW1: 66 | BX1: 67 | BY1: 68 | BZ1: 69 | CA1: 70 | CB1: 71 | CC1: 72 | CD1: 73 | CE1: 74 | CF1: 75 | CG1: 76 | CH1: 77 | CI1: 78 | CJ1: 79 | CK1: 80 | CL1: 81 | CM1: 82 | CN1: 83 | CO1: 84 | CP1: 85 | CQ1: 86 | CR1: 87 | CS1: 88 | CT1: 89 | CU1: 90 | CV1: 91 | CW1: 92 | CX1: 93 | CY1: 94 | CZ1: 95 | DA1: 96 | DB1: 97 | DC1: 98 | DD1: 99 | DE1: 100
C2: Contract Period | E2: Flag | F2: =F10 -> 20 | I2: =AND(I1>0,I1<=$F$2) -> FALSE | J2: TRUE | K2: TRUE | L2: TRUE | M2: TRUE | N2: TRUE | O2: TRUE | P2: TRUE | Q2: TRUE | R2: TRUE | S2: TRUE | T2: TRUE | U2: TRUE | V2: TRUE | W2: TRUE | X2: TRUE | Y2: TRUE | Z2: TRUE | AA2: TRUE | AB2: TRUE | AC2: TRUE | AD2: FALSE | AE2: FALSE | AF2: FALSE | AG2: FALSE | AH2: FALSE | AI2: FALSE | AJ2: FALSE | AK2: FALSE | AL2: FALSE | AM2: FALSE | AN2: FALSE | AO2: =AND(AO1>0,AO1<=$F$2) -> FALSE | AP2: FALSE | AQ2: FALSE | AR2: FALSE | AS2: FALSE | AT2: FALSE | AU2: FALSE | AV2: FALSE | AW2: FALSE | AX2: FALSE | AY2: FALSE | AZ2: FALSE | BA2: FALSE | BB2: FALSE | BC2: FALSE | BD2: FALSE | BE2: FALSE | BF2: FALSE | BG2: FALSE | BH2: FALSE | BI2: FALSE | BJ2: FALSE | BK2: FALSE | BL2: FALSE | BM2: FALSE | BN2: FALSE | BO2: FALSE | BP2: FALSE | BQ2: FALSE | BR2: FALSE | BS2: FALSE | BT2: FALSE | BU2: =AND(BU1>0,BU1<=$F$2) -> FALSE | BV2: FALSE | BW2: FALSE | BX2: FALSE | BY2: FALSE | BZ2: FALSE | CA2: FALSE | CB2: FALSE | CC2: FALSE | CD2: FALSE | CE2: FALSE | CF2: FALSE | CG2: FALSE | CH2: FALSE | CI2: FALSE | CJ2: FALSE | CK2: FALSE | CL2: FALSE | CM2: FALSE | CN2: FALSE | CO2: FALSE | CP2: FALSE | CQ2: FALSE | CR2: FALSE | CS2: FALSE | CT2: FALSE | CU2: FALSE | CV2: FALSE | CW2: FALSE | CX2: FALSE | CY2: FALSE | CZ2: FALSE | DA2: =AND(DA1>0,DA1<=$F$2) -> FALSE | DB2: FALSE | DC2: FALSE | DD2: FALSE | DE2: FALSE
B4: Inputs
C5: Cash Flow from Capacity Charges | E5: USD Million | F5: 118.5264339
C6: Capital Expenditures | E6: USD Million | F6: 969.7583333 | I6: Project IRR | J6: =F26 -> 0.08
C7: Premium for Fixed Price Contract | E7: % | F7: 0.2
C8: Total Contract Cost | E8: USD Million | F8: =F6*(1+F7) -> 1163.71 | I8: Equity IRR | J8: =F36 -> 0.08
C10: Contract Period | E10: Years | F10: 20
C11: Depreciation Life | E11: Years | F11: =F10 -> 20
C12: Target Acceptable Return | E12: % | F12: 0.08
E14: USD Million | F14: % p.a. | G14: Years | H14: USD Million
C15: Government | E15: ='Hospital Inputs'!M6 -> 400 | F15: ='Hospital Inputs'!N6 -> 0.08 | G15: ='Hospital Inputs'!O6 -> 20 | H15: =PMT(F15,G15,-E15) -> 40.74088353
C16: Commercial | E16: ='Hospital Inputs'!M7 -> 659.62 | F16: 0.08 | G16: ='Hospital Inputs'!O7 -> 15 | H16: =PMT(F16,G16,-E16) -> 77.06310443
C17: Junior Debt | E17: ='Hospital Inputs'!M8 -> 93.68 | F17: 0.08 | G17: ='Hospital Inputs'!O8 -> 18 | H17: =PMT(F17,G17,-E17) -> 9.995852344
C18: Equity | E18: ='Hospital Inputs'!M9 -> 10.41 | F18: ='Hospital Inputs'!N9 -> 0.2522 | G18: ='Hospital Inputs'!O9 -> 0
C19: Total Financing | E19: =SUM(E15:E18) -> 1163.71 | H19: =SUM(H15:H18) -> 127.7998403
B21: Project Cash Flow
C22: Net Cash Flow (CFADS) | E22: USD Million | F22: =F5 -> 118.5264339 | I22: =$F$22*I2 -> 0 | J22: 118.5264339 | K22: 118.5264339 | L22: 118.5264339 | M22: 118.5264339 | N22: 118.5264339 | O22: 118.5264339 | P22: 118.5264339 | Q22: 118.5264339 | R22: 118.5264339 | S22: 118.5264339 | T22: 118.5264339 | U22: 118.5264339 | V22: 118.5264339 | W22: 118.5264339 | X22: 118.5264339 | Y22: 118.5264339 | Z22: 118.5264339 | AA22: 118.5264339 | AB22: 118.5264339 | AC22: 118.5264339 | AD22: 0 | AE22: 0 | AF22: 0 | AG22: 0 | AH22: 0 | AI22: 0 | AJ22: 0 | AK22: 0 | AL22: 0 | AM22: 0 | AN22: 0 | AO22: =$F$22*AO2 -> 0 | AP22: 0 | AQ22: 0 | AR22: 0 | AS22: 0 | AT22: 0 | AU22: 0 | AV22: 0 | AW22: 0 | AX22: 0 | AY22: 0 | AZ22: 0 | BA22: 0 | BB22: 0 | BC22: 0 | BD22: 0 | BE22: 0 | BF22: 0 | BG22: 0 | BH22: 0 | BI22: 0 | BJ22: 0 | BK22: 0 | BL22: 0 | BM22: 0 | BN22: 0 | BO22: 0 | BP22: 0 | BQ22: 0 | BR22: 0 | BS22: 0 | BT22: 0 | BU22: =$F$22*BU2 -> 0 | BV22: 0 | BW22: 0 | BX22: 0 | BY22: 0 | BZ22: 0 | CA22: 0 | CB22: 0 | CC22: 0 | CD22: 0 | CE22: 0 | CF22: 0 | CG22: 0 | CH22: 0 | CI22: 0 | CJ22: 0 | CK22: 0 | CL22: 0 | CM22: 0 | CN22: 0 | CO22: 0 | CP22: 0 | CQ22: 0 | CR22: 0 | CS22: 0 | CT22: 0 | CU22: 0 | CV22: 0 | CW22: 0 | CX22: 0 | CY22: 0 | CZ22: 0 | DA22: 0 | DB22: 0 | DC22: 0 | DD22: 0 | DE22: 0
C23: Capital Expenditure | E23: USD Million | F23: =F8 -> 1163.71 | I23: =(I1=0)*$F$23 -> 1163.71 | J23: 0 | K23: 0 | L23: 0 | M23: 0 | N23: 0 | O23: 0 | P23: 0 | Q23: 0 | R23: 0 | S23: 0 | T23: 0 | U23: 0 | V23: 0 | W23: 0 | X23: 0 | Y23: 0 | Z23: 0 | AA23: 0 | AB23: 0 | AC23: 0 | AD23: 0 | AE23: 0 | AF23: 0 | AG23: 0 | AH23: 0 | AI23: 0 | AJ23: 0 | AK23: 0 | AL23: 0 | AM23: 0 | AN23: 0 | AO23: =(AO1=0)*$F$23 -> 0 | AP23: 0 | AQ23: 0 | AR23: 0 | AS23: 0 | AT23: 0 | AU23: 0 | AV23: 0 | AW23: 0 | AX23: 0 | AY23: 0 | AZ23: 0 | BA23: 0 | BB23: 0 | BC23: 0 | BD23: 0 | BE23: 0 | BF23: 0 | BG23: 0 | BH23: 0 | BI23: 0 | BJ23: 0 | BK23: 0 | BL23: 0 | BM23: 0 | BN23: 0 | BO23: 0 | BP23: 0 | BQ23: 0 | BR23: 0 | BS23: 0 | BT23: 0 | BU23: =(BU1=0)*$F$23 -> 0 | BV23: 0 | BW23: 0 | BX23: 0 | BY23: 0 | BZ23: 0 | CA23: 0 | CB23: 0 | CC23: 0 | CD23: 0 | CE23: 0 | CF23: 0 | CG23: 0 | CH23: 0 | CI23: 0 | CJ23: 0 | CK23: 0 | CL23: 0 | CM23: 0 | CN23: 0 | CO23: 0 | CP23: 0 | CQ23: 0 | CR23: 0 | CS23: 0 | CT23: 0 | CU23: 0 | CV23: 0 | CW23: 0 | CX23: 0 | CY23: 0 | CZ23: 0 | DA23: 0 | DB23: 0 | DC23: 0 | DD23: 0 | DE23: 0
C24: Net Cash Flow | E24: USD Million | I24: =I22-I23 -> -1163.71 | J24: =J22-J23 -> 118.5264339 | K24: 118.5264339 | L24: 118.5264339 | M24: 118.5264339 | N24: 118.5264339 | O24: 118.5264339 | P24: 118.5264339 | Q24: 118.5264339 | R24: 118.5264339 | S24: 118.5264339 | T24: 118.5264339 | U24: 118.5264339 | V24: 118.5264339 | W24: 118.5264339 | X24: 118.5264339 | Y24: 118.5264339 | Z24: 118.5264339 | AA24: 118.5264339 | AB24: 118.5264339 | AC24: 118.5264339 | AD24: 0 | AE24: 0 | AF24: 0 | AG24: 0 | AH24: 0 | AI24: 0 | AJ24: 0 | AK24: 0 | AL24: 0 | AM24: 0 | AN24: 0 | AO24: 0 | AP24: 0 | AQ24: 0 | AR24: 0 | AS24: 0 | AT24: 0 | AU24: 0 | AV24: 0 | AW24: 0 | AX24: 0 | AY24: 0 | AZ24: 0 | BA24: 0 | BB24: 0 | BC24: 0 | BD24: 0 | BE24: 0 | BF24: 0 | BG24: 0 | BH24: 0 | BI24: 0 | BJ24: 0 | BK24: 0 | BL24: 0 | BM24: 0 | BN24: 0 | BO24: 0 | BP24: 0 | BQ24: 0 | BR24: 0 | BS24: 0 | BT24: 0 | BU24: 0 | BV24: =BV22-BV23 -> 0 | BW24: 0 | BX24: 0 | BY24: 0 | BZ24: 0 | CA24: 0 | CB24: 0 | CC24: 0 | CD24: 0 | CE24: 0 | CF24: 0 | CG24: 0 | CH24: 0 | CI24: 0 | CJ24: 0 | CK24: 0 | CL24: 0 | CM24: 0 | CN24: 0 | CO24: 0 | CP24: 0 | CQ24: 0 | CR24: 0 | CS24: 0 | CT24: 0 | CU24: 0 | CV24: 0 | CW24: 0 | CX24: 0 | CY24: 0 | CZ24: 0 | DA24: 0 | DB24: 0 | DC24: 0 | DD24: 0 | DE24: 0
C26: Project IRR | E26: % | F26: =IRR(24:24) -> 0.08
C27: NPV at Target IRR | E27: % | F27: =NPV(F12,24:24) -> -8.223874256e-14
B29: Cash Flow Waterfall
C30: Net Cash Flow | E30: USD Million | J30: =J22 -> 118.5264339 | K30: =K22 -> 118.5264339 | L30: 118.5264339 | M30: 118.5264339 | N30: 118.5264339 | O30: 118.5264339 | P30: 118.5264339 | Q30: 118.5264339 | R30: 118.5264339 | S30: 118.5264339 | T30: 118.5264339 | U30: 118.5264339 | V30: 118.5264339 | W30: 118.5264339 | X30: 118.5264339 | Y30: 118.5264339 | Z30: 118.5264339 | AA30: 118.5264339 | AB30: 118.5264339 | AC30: 118.5264339 | AD30: 0 | AE30: 0 | AF30: 0 | AG30: 0 | AH30: 0 | AI30: 0 | AJ30: 0 | AK30: 0 | AL30: 0 | AM30: 0 | AN30: 0 | AO30: 0 | AP30: 0 | AQ30: 0 | AR30: 0 | AS30: 0 | AT30: 0 | AU30: 0 | AV30: 0 | AW30: 0 | AX30: 0 | AY30: 0 | AZ30: 0 | BA30: 0 | BB30: 0 | BC30: 0 | BD30: 0 | BE30: 0 | BF30: 0 | BG30: 0 | BH30: 0 | BI30: 0 | BJ30: 0 | BK30: 0 | BL30: 0 | BM30: 0 | BN30: 0 | BO30: 0 | BP30: 0 | BQ30: 0 | BR30: 0 | BS30: 0 | BT30: 0 | BU30: 0 | BV30: 0 | BW30: =BW22 -> 0 | BX30: 0 | BY30: 0 | BZ30: 0 | CA30: 0 | CB30: 0 | CC30: 0 | CD30: 0 | CE30: 0 | CF30: 0 | CG30: 0 | CH30: 0 | CI30: 0 | CJ30: 0 | CK30: 0 | CL30: 0 | CM30: 0 | CN30: 0 | CO30: 0 | CP30: 0 | CQ30: 0 | CR30: 0 | CS30: 0 | CT30: 0 | CU30: 0 | CV30: 0 | CW30: 0 | CX30: 0 | CY30: 0 | CZ30: 0 | DA30: 0 | DB30: 0 | DC30: 0 | DD30: 0 | DE30: 0
C31: Government Payment | E31: USD Million | F31: =H15 -> 40.74088353 | G31: =G15 -> 20 | J31: =(J$1<=$G31)*$F31 -> 40.74088353 | K31: =(K$1<=$G31)*$F31 -> 40.74088353 | L31: 40.74088353 | M31: 40.74088353 | N31: 40.74088353 | O31: 40.74088353 | P31: 40.74088353 | Q31: 40.74088353 | R31: 40.74088353 | S31: 40.74088353 | T31: 40.74088353 | U31: 40.74088353 | V31: 40.74088353 | W31: 40.74088353 | X31: 40.74088353 | Y31: 40.74088353 | Z31: 40.74088353 | AA31: 40.74088353 | AB31: 40.74088353 | AC31: 40.74088353 | AD31: 0 | AE31: 0 | AF31: 0 | AG31: 0 | AH31: 0 | AI31: 0 | AJ31: 0 | AK31: 0 | AL31: 0 | AM31: 0 | AN31: 0 | AO31: 0 | AP31: 0 | AQ31: 0 | AR31: 0 | AS31: 0 | AT31: 0 | AU31: 0 | AV31: 0 | AW31: 0 | AX31: 0 | AY31: 0 | AZ31: 0 | BA31: 0 | BB31: 0 | BC31: 0 | BD31: 0 | BE31: 0 | BF31: 0 | BG31: 0 | BH31: 0 | BI31: 0 | BJ31: 0 | BK31: 0 | BL31: 0 | BM31: 0 | BN31: 0 | BO31: 0 | BP31: 0 | BQ31: 0 | BR31: 0 | BS31: 0 | BT31: 0 | BU31: 0 | BV31: 0 | BW31: =(BW$1<=$G31)*$F31 -> 0 | BX31: 0 | BY31: 0 | BZ31: 0 | CA31: 0 | CB31: 0 | CC31: 0 | CD31: 0 | CE31: 0 | CF31: 0 | CG31: 0 | CH31: 0 | CI31: 0 | CJ31: 0 | CK31: 0 | CL31: 0 | CM31: 0 | CN31: 0 | CO31: 0 | CP31: 0 | CQ31: 0 | CR31: 0 | CS31: 0 | CT31: 0 | CU31: 0 | CV31: 0 | CW31: 0 | CX31: 0 | CY31: 0 | CZ31: 0 | DA31: 0 | DB31: 0 | DC31: 0 | DD31: 0 | DE31: 0
C32: Commercial Debt | E32: USD Million | F32: =H16 -> 77.06310443 | G32: =G16 -> 15 | J32: =(J$1<=$G32)*$F32 -> 77.06310443 | K32: 77.06310443 | L32: 77.06310443 | M32: 77.06310443 | N32: 77.06310443 | O32: 77.06310443 | P32: 77.06310443 | Q32: 77.06310443 | R32: 77.06310443 | S32: 77.06310443 | T32: 77.06310443 | U32: 77.06310443 | V32: 77.06310443 | W32: 77.06310443 | X32: 77.06310443 | Y32: 0 | Z32: 0 | AA32: 0 | AB32: 0 | AC32: 0 | AD32: 0 | AE32: 0 | AF32: 0 | AG32: 0 | AH32: 0 | AI32: 0 | AJ32: 0 | AK32: 0 | AL32: 0 | AM32: 0 | AN32: 0 | AO32: 0 | AP32: 0 | AQ32: 0 | AR32: 0 | AS32: 0 | AT32: 0 | AU32: 0 | AV32: 0 | AW32: 0 | AX32: 0 | AY32: 0 | AZ32: 0 | BA32: 0 | BB32: 0 | BC32: 0 | BD32: 0 | BE32: 0 | BF32: 0 | BG32: 0 | BH32: 0 | BI32: 0 | BJ32: 0 | BK32: 0 | BL32: 0 | BM32: 0 | BN32: 0 | BO32: 0 | BP32: 0 | BQ32: 0 | BR32: 0 | BS32: 0 | BT32: 0 | BU32: 0 | BV32: 0 | BW32: 0 | BX32: 0 | BY32: 0 | BZ32: 0 | CA32: 0 | CB32: 0 | CC32: 0 | CD32: 0 | CE32: 0 | CF32: 0 | CG32: 0 | CH32: 0 | CI32: 0 | CJ32: 0 | CK32: 0 | CL32: 0 | CM32: 0 | CN32: 0 | CO32: 0 | CP32: 0 | CQ32: 0 | CR32: 0 | CS32: 0 | CT32: 0 | CU32: 0 | CV32: 0 | CW32: 0 | CX32: 0 | CY32: 0 | CZ32: 0 | DA32: 0 | DB32: 0 | DC32: 0 | DD32: 0 | DE32: 0
C33: Junior Debt | E33: USD Million | F33: =H17 -> 9.995852344 | G33: =G17 -> 18 | J33: 9.995852344 | K33: 9.995852344 | L33: 9.995852344 | M33: 9.995852344 | N33: 9.995852344 | O33: 9.995852344 | P33: 9.995852344 | Q33: 9.995852344 | R33: 9.995852344 | S33: 9.995852344 | T33: 9.995852344 | U33: 9.995852344 | V33: 9.995852344 | W33: 9.995852344 | X33: 9.995852344 | Y33: 9.995852344 | Z33: 9.995852344 | AA33: 9.995852344 | AB33: 0 | AC33: 0 | AD33: 0 | AE33: 0 | AF33: 0 | AG33: 0 | AH33: 0 | AI33: 0 | AJ33: 0 | AK33: 0 | AL33: 0 | AM33: 0 | AN33: 0 | AO33: 0 | AP33: 0 | AQ33: 0 | AR33: 0 | AS33: 0 | AT33: 0 | AU33: 0 | AV33: 0 | AW33: 0 | AX33: 0 | AY33: 0 | AZ33: 0 | BA33: 0 | BB33: 0 | BC33: 0 | BD33: 0 | BE33: 0 | BF33: 0 | BG33: 0 | BH33: 0 | BI33: 0 | BJ33: 0 | BK33: 0 | BL33: 0 | BM33: 0 | BN33: 0 | BO33: 0 | BP33: 0 | BQ33: 0 | BR33: 0 | BS33: 0 | BT33: 0 | BU33: 0 | BV33: 0 | BW33: 0 | BX33: 0 | BY33: 0 | BZ33: 0 | CA33: 0 | CB33: 0 | CC33: 0 | CD33: 0 | CE33: 0 | CF33: 0 | CG33: 0 | CH33: 0 | CI33: 0 | CJ33: 0 | CK33: 0 | CL33: 0 | CM33: 0 | CN33: 0 | CO33: 0 | CP33: 0 | CQ33: 0 | CR33: 0 | CS33: 0 | CT33: 0 | CU33: 0 | CV33: 0 | CW33: 0 | CX33: 0 | CY33: 0 | CZ33: 0 | DA33: 0 | DB33: 0 | DC33: 0 | DD33: 0 | DE33: 0
C34: Net Cash Flow | E34: USD Million | J34: =J30-J31-J32-J33 -> -9.273406375 | K34: =K30-K31-K32-K33 -> -9.273406375 | L34: -9.273406375 | M34: -9.273406375 | N34: -9.273406375 | O34: -9.273406375 | P34: -9.273406375 | Q34: -9.273406375 | R34: -9.273406375 | S34: -9.273406375 | T34: -9.273406375 | U34: -9.273406375 | V34: -9.273406375 | W34: -9.273406375 | X34: -9.273406375 | Y34: 67.78969806 | Z34: 67.78969806 | AA34: 67.78969806 | AB34: 77.7855504 | AC34: 77.7855504 | AD34: 0 | AE34: 0 | AF34: 0 | AG34: 0 | AH34: 0 | AI34: 0 | AJ34: 0 | AK34: 0 | AL34: 0 | AM34: 0 | AN34: 0 | AO34: 0 | AP34: 0 | AQ34: 0 | AR34: 0 | AS34: 0 | AT34: 0 | AU34: 0 | AV34: 0 | AW34: 0 | AX34: 0 | AY34: 0 | AZ34: 0 | BA34: 0 | BB34: 0 | BC34: 0 | BD34: 0 | BE34: 0 | BF34: 0 | BG34: 0 | BH34: 0 | BI34: 0 | BJ34: 0 | BK34: 0 | BL34: 0 | BM34: 0 | BN34: 0 | BO34: 0 | BP34: 0 | BQ34: 0 | BR34: 0 | BS34: 0 | BT34: 0 | BU34: 0 | BV34: 0 | BW34: =BW30-BW31-BW32-BW33 -> 0 | BX34: 0 | BY34: 0 | BZ34: 0 | CA34: 0 | CB34: 0 | CC34: 0 | CD34: 0 | CE34: 0 | CF34: 0 | CG34: 0 | CH34: 0 | CI34: 0 | CJ34: 0 | CK34: 0 | CL34: 0 | CM34: 0 | CN34: 0 | CO34: 0 | CP34: 0 | CQ34: 0 | CR34: 0 | CS34: 0 | CT34: 0 | CU34: 0 | CV34: 0 | CW34: 0 | CX34: 0 | CY34: 0 | CZ34: 0 | DA34: 0 | DB34: 0 | DC34: 0 | DD34: 0 | DE34: 0
C35: Equity Cash Flow | E35: USD Million | I35: =I24+SUM(E15:E17) -> -10.41 | J35: =J34 -> -9.273406375 | K35: =K34 -> -9.273406375 | L35: -9.273406375 | M35: -9.273406375 | N35: -9.273406375 | O35: -9.273406375 | P35: -9.273406375 | Q35: -9.273406375 | R35: -9.273406375 | S35: -9.273406375 | T35: -9.273406375 | U35: -9.273406375 | V35: -9.273406375 | W35: -9.273406375 | X35: -9.273406375 | Y35: 67.78969806 | Z35: 67.78969806 | AA35: 67.78969806 | AB35: 77.7855504 | AC35: 77.7855504 | AD35: 0 | AE35: 0 | AF35: 0 | AG35: 0 | AH35: 0 | AI35: 0 | AJ35: 0 | AK35: 0 | AL35: 0 | AM35: 0 | AN35: 0 | AO35: 0 | AP35: 0 | AQ35: 0 | AR35: 0 | AS35: 0 | AT35: 0 | AU35: 0 | AV35: 0 | AW35: 0 | AX35: 0 | AY35: 0 | AZ35: 0 | BA35: 0 | BB35: 0 | BC35: 0 | BD35: 0 | BE35: 0 | BF35: 0 | BG35: 0 | BH35: 0 | BI35: 0 | BJ35: 0 | BK35: 0 | BL35: 0 | BM35: 0 | BN35: 0 | BO35: 0 | BP35: 0 | BQ35: 0 | BR35: 0 | BS35: 0 | BT35: 0 | BU35: 0 | BV35: 0 | BW35: =BW34 -> 0 | BX35: 0 | BY35: 0 | BZ35: 0 | CA35: 0 | CB35: 0 | CC35: 0 | CD35: 0 | CE35: 0 | CF35: 0 | CG35: 0 | CH35: 0 | CI35: 0 | CJ35: 0 | CK35: 0 | CL35: 0 | CM35: 0 | CN35: 0 | CO35: 0 | CP35: 0 | CQ35: 0 | CR35: 0 | CS35: 0 | CT35: 0 | CU35: 0 | CV35: 0 | CW35: 0 | CX35: 0 | CY35: 0 | CZ35: 0 | DA35: 0 | DB35: 0 | DC35: 0 | DD35: 0 | DE35: 0
C36: Equity IRR | F36: =IRR(I35:DE35) -> 0.08
B38: DSCR on Commercial Debt
C44: Depreciation Rate Flag | E44: Flag | F44: =F11 -> 20 | J44: =J1<=$F$44 -> TRUE | K44: TRUE | L44: TRUE | M44: TRUE | N44: TRUE | O44: TRUE | P44: TRUE | Q44: TRUE | R44: TRUE | S44: TRUE | T44: TRUE | U44: TRUE | V44: TRUE | W44: TRUE | X44: TRUE | Y44: TRUE | Z44: TRUE | AA44: TRUE | AB44: TRUE | AC44: TRUE | AD44: FALSE | AE44: FALSE | AF44: FALSE | AG44: FALSE | AH44: FALSE | AI44: FALSE | AJ44: FALSE | AK44: FALSE | AL44: FALSE | AM44: FALSE | AN44: FALSE | AO44: FALSE | AP44: =AP1<=$F$44 -> FALSE | AQ44: FALSE | AR44: FALSE | AS44: FALSE | AT44: FALSE | AU44: FALSE | AV44: FALSE | AW44: FALSE | AX44: FALSE | AY44: FALSE | AZ44: FALSE | BA44: FALSE | BB44: FALSE | BC44: FALSE | BD44: FALSE | BE44: FALSE | BF44: FALSE | BG44: FALSE | BH44: FALSE | BI44: FALSE | BJ44: FALSE | BK44: FALSE | BL44: FALSE | BM44: FALSE | BN44: FALSE | BO44: FALSE | BP44: FALSE | BQ44: FALSE | BR44: FALSE | BS44: FALSE | BT44: FALSE | BU44: FALSE | BV44: =BV1<=$F$44 -> FALSE | BW44: FALSE | BX44: FALSE | BY44: FALSE | BZ44: FALSE | CA44: FALSE | CB44: FALSE | CC44: FALSE | CD44: FALSE | CE44: FALSE | CF44: FALSE | CG44: FALSE | CH44: FALSE | CI44: FALSE | CJ44: FALSE | CK44: FALSE | CL44: FALSE | CM44: FALSE | CN44: FALSE | CO44: FALSE | CP44: FALSE | CQ44: FALSE | CR44: FALSE | CS44: FALSE | CT44: FALSE | CU44: FALSE | CV44: FALSE | CW44: FALSE | CX44: FALSE | CY44: FALSE | CZ44: FALSE | DA44: FALSE | DB44: FALSE | DC44: FALSE | DD44: FALSE | DE44: FALSE
C45: Depreciation Rate | E45: % | F45: =1/F11 -> 0.05 | J45: =$F$45*J44 -> 0.05 | K45: =$F$45*K44 -> 0.05 | L45: 0.05 | M45: 0.05 | N45: 0.05 | O45: 0.05 | P45: 0.05 | Q45: 0.05 | R45: 0.05 | S45: 0.05 | T45: 0.05 | U45: 0.05 | V45: 0.05 | W45: 0.05 | X45: 0.05 | Y45: 0.05 | Z45: 0.05 | AA45: 0.05 | AB45: 0.05 | AC45: 0.05 | AD45: 0 | AE45: 0 | AF45: 0 | AG45: 0 | AH45: 0 | AI45: 0 | AJ45: 0 | AK45: 0 | AL45: 0 | AM45: 0 | AN45: 0 | AO45: 0 | AP45: 0 | AQ45: 0 | AR45: 0 | AS45: 0 | AT45: 0 | AU45: 0 | AV45: 0 | AW45: 0 | AX45: 0 | AY45: 0 | AZ45: 0 | BA45: 0 | BB45: 0 | BC45: 0 | BD45: 0 | BE45: 0 | BF45: 0 | BG45: 0 | BH45: 0 | BI45: 0 | BJ45: 0 | BK45: 0 | BL45: 0 | BM45: 0 | BN45: 0 | BO45: 0 | BP45: 0 | BQ45: 0 | BR45: 0 | BS45: 0 | BT45: 0 | BU45: 0 | BV45: 0 | BW45: =$F$45*BW44 -> 0 | BX45: 0 | BY45: 0 | BZ45: 0 | CA45: 0 | CB45: 0 | CC45: 0 | CD45: 0 | CE45: 0 | CF45: 0 | CG45: 0 | CH45: 0 | CI45: 0 | CJ45: 0 | CK45: 0 | CL45: 0 | CM45: 0 | CN45: 0 | CO45: 0 | CP45: 0 | CQ45: 0 | CR45: 0 | CS45: 0 | CT45: 0 | CU45: 0 | CV45: 0 | CW45: 0 | CX45: 0 | CY45: 0 | CZ45: 0 | DA45: 0 | DB45: 0 | DC45: 0 | DD45: 0 | DE45: 0
C46: Straight Line Depreciation | E46: EGP | F46: =F8 -> 1163.71 | J46: =J45*$F$46 -> 58.1855 | K46: =K45*$F$46 -> 58.1855 | L46: 58.1855 | M46: 58.1855 | N46: 58.1855 | O46: 58.1855 | P46: 58.1855 | Q46: 58.1855 | R46: 58.1855 | S46: 58.1855 | T46: 58.1855 | U46: 58.1855 | V46: 58.1855 | W46: 58.1855 | X46: 58.1855 | Y46: 58.1855 | Z46: 58.1855 | AA46: 58.1855 | AB46: 58.1855 | AC46: 58.1855 | AD46: 0 | AE46: 0 | AF46: 0 | AG46: 0 | AH46: 0 | AI46: 0 | AJ46: 0 | AK46: 0 | AL46: 0 | AM46: 0 | AN46: 0 | AO46: 0 | AP46: 0 | AQ46: 0 | AR46: 0 | AS46: 0 | AT46: 0 | AU46: 0 | AV46: 0 | AW46: 0 | AX46: 0 | AY46: 0 | AZ46: 0 | BA46: 0 | BB46: 0 | BC46: 0 | BD46: 0 | BE46: 0 | BF46: 0 | BG46: 0 | BH46: 0 | BI46: 0 | BJ46: 0 | BK46: 0 | BL46: 0 | BM46: 0 | BN46: 0 | BO46: 0 | BP46: 0 | BQ46: 0 | BR46: 0 | BS46: 0 | BT46: 0 | BU46: 0 | BV46: 0 | BW46: =BW45*$F$46 -> 0 | BX46: 0 | BY46: 0 | BZ46: 0 | CA46: 0 | CB46: 0 | CC46: 0 | CD46: 0 | CE46: 0 | CF46: 0 | CG46: 0 | CH46: 0 | CI46: 0 | CJ46: 0 | CK46: 0 | CL46: 0 | CM46: 0 | CN46: 0 | CO46: 0 | CP46: 0 | CQ46: 0 | CR46: 0 | CS46: 0 | CT46: 0 | CU46: 0 | CV46: 0 | CW46: 0 | CX46: 0 | CY46: 0 | CZ46: 0 | DA46: 0 | DB46: 0 | DC46: 0 | DD46: 0 | DE46: 0
C47: Net Plant | E47: EGP | F47: =F8 -> 1163.71 | I47: =F47 -> 1163.71 | J47: =I47-J46 -> 1105.5245 | K47: =J47-K46 -> 1047.339 | L47: 989.1535 | M47: 930.968 | N47: 872.7825 | O47: 814.597 | P47: 756.4115 | Q47: 698.226 | R47: 640.0405 | S47: 581.855 | T47: 523.6695 | U47: 465.484 | V47: 407.2985 | W47: 349.113 | X47: 290.9275 | Y47: 232.742 | Z47: 174.5565 | AA47: 116.371 | AB47: 58.1855 | AC47: -4.405364962e-13 | AD47: -4.405364962e-13 | AE47: -4.405364962e-13 | AF47: -4.405364962e-13 | AG47: -4.405364962e-13 | AH47: -4.405364962e-13 | AI47: -4.405364962e-13 | AJ47: -4.405364962e-13 | AK47: -4.405364962e-13 | AL47: -4.405364962e-13 | AM47: -4.405364962e-13 | AN47: -4.405364962e-13 | AO47: -4.405364962e-13 | AP47: -4.405364962e-13 | AQ47: -4.405364962e-13 | AR47: -4.405364962e-13 | AS47: -4.405364962e-13 | AT47: -4.405364962e-13 | AU47: -4.405364962e-13 | AV47: -4.405364962e-13 | AW47: -4.405364962e-13 | AX47: -4.405364962e-13 | AY47: -4.405364962e-13 | AZ47: -4.405364962e-13 | BA47: -4.405364962e-13 | BB47: -4.405364962e-13 | BC47: -4.405364962e-13 | BD47: -4.405364962e-13 | BE47: -4.405364962e-13 | BF47: -4.405364962e-13 | BG47: -4.405364962e-13 | BH47: -4.405364962e-13 | BI47: -4.405364962e-13 | BJ47: -4.405364962e-13 | BK47: -4.405364962e-13 | BL47: -4.405364962e-13 | BM47: -4.405364962e-13 | BN47: -4.405364962e-13 | BO47: -4.405364962e-13 | BP47: -4.405364962e-13 | BQ47: -4.405364962e-13 | BR47: -4.405364962e-13 | BS47: -4.405364962e-13 | BT47: -4.405364962e-13 | BU47: -4.405364962e-13 | BV47: -4.405364962e-13 | BW47: =BV47-BW46 -> -4.405364962e-13 | BX47: -4.405364962e-13 | BY47: -4.405364962e-13 | BZ47: -4.405364962e-13 | CA47: -4.405364962e-13 | CB47: -4.405364962e-13 | CC47: -4.405364962e-13 | CD47: -4.405364962e-13 | CE47: -4.405364962e-13 | CF47: -4.405364962e-13 | CG47: -4.405364962e-13 | CH47: -4.405364962e-13 | CI47: -4.405364962e-13 | CJ47: -4.405364962e-13 | CK47: -4.405364962e-13 | CL47: -4.405364962e-13 | CM47: -4.405364962e-13 | CN47: -4.405364962e-13 | CO47: -4.405364962e-13 | CP47: -4.405364962e-13 | CQ47: -4.405364962e-13 | CR47: -4.405364962e-13 | CS47: -4.405364962e-13 | CT47: -4.405364962e-13 | CU47: -4.405364962e-13 | CV47: -4.405364962e-13 | CW47: -4.405364962e-13 | CX47: -4.405364962e-13 | CY47: -4.405364962e-13 | CZ47: -4.405364962e-13 | DA47: -4.405364962e-13 | DB47: -4.405364962e-13 | DC47: -4.405364962e-13 | DD47: -4.405364962e-13 | DE47: -4.405364962e-13
C49: EBIT | E49: EGP | J49: =J24-J46 -> 60.34093393 | K49: 60.34093393 | L49: 60.34093393 | M49: 60.34093393 | N49: 60.34093393 | O49: 60.34093393 | P49: 60.34093393 | Q49: 60.34093393 | R49: 60.34093393 | S49: 60.34093393 | T49: 60.34093393 | U49: 60.34093393 | V49: 60.34093393 | W49: 60.34093393 | X49: 60.34093393 | Y49: 60.34093393 | Z49: 60.34093393 | AA49: 60.34093393 | AB49: 60.34093393 | AC49: 60.34093393 | AD49: 0 | AE49: 0 | AF49: 0 | AG49: 0 | AH49: 0 | AI49: 0 | AJ49: 0 | AK49: 0 | AL49: 0 | AM49: 0 | AN49: 0 | AO49: 0 | AP49: =AP24-AP46 -> 0 | AQ49: 0 | AR49: 0 | AS49: 0 | AT49: 0 | AU49: 0 | AV49: 0 | AW49: 0 | AX49: 0 | AY49: 0 | AZ49: 0 | BA49: 0 | BB49: 0 | BC49: 0 | BD49: 0 | BE49: 0 | BF49: 0 | BG49: 0 | BH49: 0 | BI49: 0 | BJ49: 0 | BK49: 0 | BL49: 0 | BM49: 0 | BN49: 0 | BO49: 0 | BP49: 0 | BQ49: 0 | BR49: 0 | BS49: 0 | BT49: 0 | BU49: 0 | BV49: =BV24-BV46 -> 0 | BW49: 0 | BX49: 0 | BY49: 0 | BZ49: 0 | CA49: 0 | CB49: 0 | CC49: 0 | CD49: 0 | CE49: 0 | CF49: 0 | CG49: 0 | CH49: 0 | CI49: 0 | CJ49: 0 | CK49: 0 | CL49: 0 | CM49: 0 | CN49: 0 | CO49: 0 | CP49: 0 | CQ49: 0 | CR49: 0 | CS49: 0 | CT49: 0 | CU49: 0 | CV49: 0 | CW49: 0 | CX49: 0 | CY49: 0 | CZ49: 0 | DA49: 0 | DB49: 0 | DC49: 0 | DD49: 0 | DE49: 0
C50: ROIC | E50: % | J50: =IF(J44,J49/I47) -> 0.05185220882 | K50: =IF(K44,K49/J47) -> 0.05458127245 | L50: 0.05761356536 | M50: 0.06100259862 | N50: 0.06481526103 | O50: 0.06913627843 | P50: 0.07407458403 | Q50: 0.07977262896 | R50: 0.08642034804 | S50: 0.09427674331 | T50: 0.1037044176 | U50: 0.1152271307 | V50: 0.1296305221 | W50: 0.1481491681 | X50: 0.1728406961 | Y50: 0.2074088353 | Z50: 0.2592610441 | AA50: 0.3456813922 | AB50: 0.5185220882 | AC50: 1.037044176 | AD50: FALSE | AE50: FALSE | AF50: FALSE | AG50: FALSE | AH50: FALSE | AI50: FALSE | AJ50: FALSE | AK50: FALSE | AL50: FALSE | AM50: FALSE | AN50: FALSE | AO50: FALSE | AP50: FALSE | AQ50: FALSE | AR50: FALSE | AS50: FALSE | AT50: FALSE | AU50: FALSE | AV50: FALSE | AW50: FALSE | AX50: FALSE | AY50: FALSE | AZ50: FALSE | BA50: FALSE | BB50: FALSE | BC50: FALSE | BD50: FALSE | BE50: FALSE | BF50: FALSE | BG50: FALSE | BH50: FALSE | BI50: FALSE | BJ50: FALSE | BK50: FALSE | BL50: FALSE | BM50: FALSE | BN50: FALSE | BO50: FALSE | BP50: FALSE | BQ50: FALSE | BR50: FALSE | BS50: FALSE | BT50: FALSE | BU50: FALSE | BV50: FALSE | BW50: =IF(BW44,BW49/BV47) -> FALSE | BX50: FALSE | BY50: FALSE | BZ50: FALSE | CA50: FALSE | CB50: FALSE | CC50: FALSE | CD50: FALSE | CE50: FALSE | CF50: FALSE | CG50: FALSE | CH50: FALSE | CI50: FALSE | CJ50: FALSE | CK50: FALSE | CL50: FALSE | CM50: FALSE | CN50: FALSE | CO50: FALSE | CP50: FALSE | CQ50: FALSE | CR50: FALSE | CS50: FALSE | CT50: FALSE | CU50: FALSE | CV50: FALSE | CW50: FALSE | CX50: FALSE | CY50: FALSE | CZ50: FALSE | DA50: FALSE | DB50: FALSE | DC50: FALSE | DD50: FALSE | DE50: FALSE

Sheet Hospital Inputs
M5: Amount | N5: Cost | O5: Tenure
K6: Government | M6: 400 | N6: 0.08 | O6: 20
K7: Commercial | M7: =589+70.62 -> 659.62 | N7: 0.1162 | O7: 15
K8: Junior Debt | M8: 93.68 | N8: 0.131 | O8: 18
K9: Equity | M9: 10.41 | N9: 0.2522
K10: Total Financing | M10: =SUM(M6:M9) -> 1163.71

Sheet Notes
C3: EPC Profit Analysis
C4: Create Cost Scenarios with Index
C6: Set-up of model and structure
C7: Only need EDATE, TRUE/FALSE
C9: Importance of Timing; If you can get the timing right, the rest will be easy
C10: Cost of Delay
C11: Cost of Liquidated Damages and EPC Profits
C15: S-Curve - Changes with Delay
C18: Discussion of EXIM Financing
C19: Country Premium
C20: Credit Spread

Sheet EPC Summary Analysis
E2: Code | F2: 1
B3: EPC Profit and Capital at Risk | F3: =INDEX(I3:L3,$F$2) -> Base Case | I3: Base Case | J3: Bad Case | K3: Worst Case | L3: Best Case
C4: Probability | I4: ='Probability Distribution'!E26 -> 0.5 | J4: ='Probability Distribution'!F26 -> 0.3 | K4: ='Probability Distribution'!G26 -> 0.1 | L4: ='Probability Distribution'!H26 -> 0.1
C5: Percent Change from Base Case | J5: ='Probability Distribution'!F27 -> 0.1 | K5: ='Probability Distribution'!G27 -> 0.05 | L5: ='Probability Distribution'!H27 -> -0.05
N6: S-Curve Analysis
C7: Total Cost | F7: Applied | I7: Base Case | J7: Bad Case | K7: Worst Case | L7: Best Case | N7: S-Curve in EPC Contract
D8: Material Cost | F8: =INDEX(I8:L8,$F$2) -> 12000 | I8: 12000 | J8: =$I8*(1+J$5) -> 13200 | K8: =$I8*(1+K$5) -> 12600 | L8: 11400 | N8: Retainage Percent | P8: ='Operating Inputs'!G29 -> 0.06
D9: Labour Cost | F9: =INDEX(I9:L9,$F$2) -> 5000 | I9: 5000 | J9: =$I9*(1+J$5) -> 5500 | K9: 5250 | L9: 4750 | N9: Retainage Delay Months
D10: Transport | F10: =INDEX(I10:L10,$F$2) -> 6000 | I10: 6000 | J10: 6600 | K10: 6300 | L10: 5700
D11: Total | F11: =INDEX(I11:L11,$F$2) -> 23000 | I11: =I8+I9+I10 -> 23000 | J11: =SUM(J8:J10) -> 25300 | K11: 24150 | L11: 21850 | N11: Retainage Percent | P11: ='Operating Inputs'!G29 -> 0.06
N12: Retainage Delay
D13: Profit on Base Cost | F13: =Scenario!G3/100 -> 0.2 | I13: Expected Cost of Contract | L13: =I11 -> 23000
D14: Discount Rate for EPC | F14: ='Operating Inputs'!G63 -> 0.13 | I14: EPC Price | L14: =L13*(1+F13) -> 27600 | N14: Construction Length (Months) | P14: ='Operating Inputs'!G11 -> 23 | R14: Financing
I15: Expected Profit | L15: =L14-L13 -> 4600 | N15: Final Progress Payment (Months)
R16: Lease Payment | T16: ='EPC + F'!G131 -> 1574.177078
D17: Profit Before LD Penalties | F17: Amount | G17: Pct of Cost | I17: 1 | J17: 2 | K17: 3 | L17: 4 | R17: Total Cost | T17: ='EPC + F'!I32 -> 31289.21078
D18: NPV of EPC | F18: ='EPC Profit'!I25 -> 3542.491927 | G18: =F18/$F$11 -> 0.1540213881 | H18: =F18 -> 3542.491927 | I18: 3542.491927 | J18: 1415.344018 | K18: 2478.917972 | L18: 4606.065881 | N18: Liquidated Damage/Day | P18: ='Operating Inputs'!G39 -> 2.71
D19: Nominal EPC Profit | F19: ='EPC Profit'!I24 -> 4600 | G19: =F19/$F$11 -> 0.2 | H19: =F19 -> 4600 | I19: 4600 | J19: 2300 | K19: 3450 | L19: 5750 | N19: Maximum Liquiated Damage | P19: ='Operating Inputs'!G40 -> 0.04
D21: Expected NPV of Profit | F21: =SUMPRODUCT(I18:L18,I4:L4) -> 2904.347554 | G21: =F21/$F$11 -> 0.1262759806 | J21: Contracted Constr | K21: ='Operating Inputs'!$G$11 -> 23 | N21: Liquidated Damage before Cap | P21: ='EPC Profit'!I32 -> 905.14
D22: Nominal NPV of Proft | F22: =SUMPRODUCT(I19:L19,I4:L4) -> 3910 | G22: =F22/$F$11 -> 0.17 | J22: Construction Delay | K22: ='Operating Inputs'!$G$12 -> 11 | N22: Liquidated Damage before Cap | P22: ='EPC Profit'!I34 -> 905.14
N23: Liquidated Damage Cap | P23: ='EPC Profit'!G33 -> 1104
D24: Profit After Liquidated Damage | I24: 1 | J24: 2 | K24: 3 | L24: 4
D25: NPV of EPC | F25: ='EPC Profit'!I37 -> 3197.514056 | G25: =F25/F11 -> 0.1390223503 | H25: =F25 -> 3197.514056 | I25: 3197.514056 | J25: 1070.366148 | K25: 2133.940102 | L25: 4261.08801
D26: Nominal EPC Profit | F26: ='EPC Profit'!I36 -> 3694.86 | G26: =F26/F11 -> 0.160646087 | H26: =F26 -> 3694.86 | I26: 3694.86 | J26: 1394.86 | K26: 2544.86 | L26: 4844.86
D28: Expected NPV of Profit | F28: =SUMPRODUCT(I25:L25,I4:L4) -> 2559.369683
D29: Nominal NPV of Proft | F29: =SUMPRODUCT(I26:L26,I4:L4) -> 3004.86
C31: Analysis
D32: Delay | F32: ='Operating Inputs'!$G$11-'Operating Inputs'!$G$35 -> 0
D33: Liquidated Damages | F33: ='EPC Profit'!$G$32 -> 905.14
D35: EPC Price | F35: 2100
D37: Capital Percent | E37: 0.2 | F37: =E37*F35 -> 420
D39: Expected Profit | F39: =F35-H19 -> -2500
D40: Rate of Return | F40: =F39/F37 -> -5.952380952
D42: NPV of EPC Profit | F42: ='EPC + F'!#REF! -> 
S54: Investement by Off-taker
D56: =TRANSPOSE(I3:L3) -> Base Case
D57: Bad Case | S57: Show Price
D58: Worst Case | S58: Show what happenes with different financing
D59: Best Case | S59: Put in different costs
S60: Summary page
S61: Different terms
S62: Local Banks
S63: Shorter Term

Sheet Scenario
B3: EPC Profit | D3: ='EPC Summary Analysis'!F13 -> 0.2 | G3: 20
B4: Discount Rate
D7: Cost Probability | E7: Retainage Percent | F7: Retainage Length | G7: Progress Payment S-Curve | H7: Actual Payment S-Curve | I7: Delay in Construction | J7: LD per Day | K7: Maximum LD
B8: Base | D8: 1 | E8: 0.1 | F8: 6 | G8: 1 | H8: 1 | I8: 0 | J8: 2 | K8: 0.2
B9: Worst Case | D9: 3 | E9: 0.2 | F9: 12 | G9: 5 | H9: 5 | I9: 20 | J9: 4 | K9: 0.3
B10: Base Case | D10: 5 | E10: 0 | F10: 0 | G10: 4 | H10: 4 | I10: 0 | J10: 0 | K10: 0.1

Sheet Operating Inputs
B5: Timing Inputs
C6: Basic timing
D7: Months per Period Construction | F7: Months | G7: 1
D8: Months per Period - Operation | F8: Months | G8: 3
D10: Project Start | F10: Date | G10: 2020-01-01
D11: Contracted Construction Period | G11: 23
D12: Delay in Construction | G12: 11
D13: Construction Period | F13: Months | G13: =G11+G12 -> 34
D14: Commercial Operation | F14: Date | G14: =EDATE(G10,G13) -> 2022-11-01
D16: Fixed Payment Period | F16: Quarters | G16: 22
D17: End of Payment Period | F17: Date | G17: =EDATE(G14,G16*3) -> 2028-05-01
B19: Construction Cost Inputs
C20: Construction Contract
D21: Equipment Cost | F21: EUR | G21: ='EPC Summary Analysis'!F8 -> 12000
D22: Labor Cost | F22: EUR | G22: ='EPC Summary Analysis'!F9 -> 5000
D23: Transport | F23: EUR | G23: ='EPC Summary Analysis'!F10 -> 6000
E24: Total Costs before Profit | F24: EUR | G24: =SUM(G21:G23) -> 23000
D26: Total EPC Cost | F26: EUR | G26: ='EPC Summary Analysis'!L14 -> 27600
C28: Final Progress Payment
D29: Retainage Percent | F29: % | G29: =H29/100 -> 0.06 | H29: 6
D30: Added Months for Final Payment | F30: Months | G30: =H30 -> 12 | H30: 12
D31: Period of Final Payment | F31: Months | G31: =G30+G13 -> 46
D32: Final Payment Date | F32: Date | G32: =EDATE(G10,G31-1) -> 2023-10-01
C34: Liquidated Damange
D35: Target Construction Period | F35: Months | G35: =G11 -> 23
D36: Target Commercial Opertion | F36: Date | G36: =EDATE(G10,G35) -> 2021-12-01
D37: Include IDC in Liquidated Damage | F37: Flag | G37: TRUE
D38: Liquidated Damage to Reduce Debt | F38: Flag | G38: TRUE
D39: Cost per Day in PPA Contract | F39: EUR/Day | G39: =H39/100 -> 2.71 | H39: 271
D40: Max Liquidated Damages | F40: % | G40: =H40/100 -> 0.04 | H40: 4
D41: Maximum LD Amount | F41: EUR | G41: =G40*G26 -> 1104
C43: Progress Payments
D44: S-Curve for Progress Payments without Retainage
E45: Period | K45: 1 | L45: 2 | M45: 3 | N45: 4 | O45: 5 | P45: 6 | Q45: 7 | R45: 8 | S45: 9 | T45: 10 | U45: 11 | V45: 12 | W45: 13 | X45: 14 | Y45: 15 | Z45: 16 | AA45: 17 | AB45: 18 | AC45: 19 | AD45: 20 | AE45: 21 | AF45: 22 | AG45: 23 | AH45: 24 | AI45: 25 | AJ45: 26 | AK45: 27 | AL45: 28 | AM45: 29 | AN45: 30 | AO45: 31 | AP45: 32 | AQ45: 33 | AR45: 34 | AS45: 35 | AT45: 36 | AU45: 37 | AV45: 38 | AW45: 39 | AX45: 40 | AY45: 41 | AZ45: 42 | BA45: 43 | BB45: 44 | BC45: 45 | BD45: 46 | BE45: 47 | BF45: 48 | BG45: 49 | BH45: 50 | BI45: 51 | BJ45: 52 | BK45: 53 | BL45: 54 | BM45: 55 | BN45: 56 | BO45: 57 | BP45: 58 | BQ45: 59 | BR45: 60 | BS45: 61 | BT45: 62 | BU45: 63 | BV45: 64 | BW45: 65
E46: Construction Period | F46: Flag | G46: =G11 -> 23 | K46: =K45<=$G$46 -> TRUE | L46: TRUE | M46: TRUE | N46: TRUE | O46: TRUE | P46: TRUE | Q46: TRUE | R46: TRUE | S46: TRUE | T46: TRUE | U46: TRUE | V46: TRUE | W46: TRUE | X46: TRUE | Y46: TRUE | Z46: TRUE | AA46: TRUE | AB46: TRUE | AC46: TRUE | AD46: TRUE | AE46: TRUE | AF46: TRUE | AG46: TRUE | AH46: FALSE | AI46: FALSE | AJ46: FALSE | AK46: FALSE | AL46: FALSE | AM46: FALSE | AN46: FALSE | AO46: FALSE | AP46: FALSE | AQ46: =AQ45<=$G$46 -> FALSE | AR46: FALSE | AS46: FALSE | AT46: FALSE | AU46: FALSE | AV46: FALSE | AW46: FALSE | AX46: FALSE | AY46: FALSE | AZ46: FALSE | BA46: FALSE | BB46: FALSE | BC46: FALSE | BD46: FALSE | BE46: FALSE | BF46: FALSE | BG46: FALSE | BH46: FALSE | BI46: FALSE | BJ46: FALSE | BK46: =BK45<=$G$46 -> FALSE | BL46: =BL45<=$G$46 -> FALSE | BM46: =BM45<=$G$46 -> FALSE | BN46: =BN45<=$G$46 -> FALSE | BO46: =BO45<=$G$46 -> FALSE | BP46: =BP45<=$G$46 -> FALSE | BQ46: =BQ45<=$G$46 -> FALSE | BR46: =BR45<=$G$46 -> FALSE | BS46: =BS45<=$G$46 -> FALSE | BT46: =BT45<=$G$46 -> FALSE | BU46: =BU45<=$G$46 -> FALSE | BV46: =BV45<=$G$46 -> FALSE | BW46: =BW45<=$G$46 -> FALSE
E47: S-Curve per Period | F47: % | I47: =SUM(K47:BW47) -> 1 | K47: ='S-Curve for Progress Payment'!J34 -> 0.06619136901 | L47: ='S-Curve for Progress Payment'!K34 -> 0.07551956132 | M47: ='S-Curve for Progress Payment'!L34 -> 0.07803015439 | N47: ='S-Curve for Progress Payment'!M34 -> 0.07708814344 | O47: ='S-Curve for Progress Payment'!N34 -> 0.07412125099 | P47: ='S-Curve for Progress Payment'!O34 -> 0.06993758139 | Q47: ='S-Curve for Progress Payment'!P34 -> 0.06505584423 | R47: ='S-Curve for Progress Payment'!Q34 -> 0.05982922486 | S47: ='S-Curve for Progress Payment'!R34 -> 0.05450411214 | T47: ='S-Curve for Progress Payment'!S34 -> 0.04925279875 | U47: ='S-Curve for Progress Payment'!T34 -> 0.04419392493 | V47: ='S-Curve for Progress Payment'!U34 -> 0.03940636391 | W47: ='S-Curve for Progress Payment'!V34 -> 0.03493921057 | X47: ='S-Curve for Progress Payment'!W34 -> 0.03081924656 | Y47: ='S-Curve for Progress Payment'!X34 -> 0.02705665419 | Z47: ='S-Curve for Progress Payment'!Y34 -> 0.02364944964 | AA47: ='S-Curve for Progress Payment'!Z34 -> 0.02058694288 | AB47: ='S-Curve for Progress Payment'!AA34 -> 0.01785243853 | AC47: ='S-Curve for Progress Payment'!AB34 -> 0.01542533477 | AD47: ='S-Curve for Progress Payment'!AC34 -> 0.01328274047 | AE47: ='S-Curve for Progress Payment'!AD34 -> 0.01140070516 | AF47: ='S-Curve for Progress Payment'!AE34 -> 0.009755138062 | AG47: ='S-Curve for Progress Payment'!AF34 -> 0.008322478087 | AH47: ='S-Curve for Progress Payment'!AG34 -> 0.007080165858 | AI47: ='S-Curve for Progress Payment'!AH34 -> 0.0060069595 | AJ47: ='S-Curve for Progress Payment'!AI34 -> 0.005083128672 | AK47: ='S-Curve for Progress Payment'!AJ34 -> 0.004290555022 | AL47: ='S-Curve for Progress Payment'!AK34 -> 0.003612762044 | AM47: ='S-Curve for Progress Payment'!AL34 -> 0.003034892918 | AN47: ='S-Curve for Progress Payment'!AM34 -> 0.002543651237 | AO47: ='S-Curve for Progress Payment'!AN34 -> 0.002127216465 | AP47: ='S-Curve for Progress Payment'!AO34 -> 0 | AQ47: ='S-Curve for Progress Payment'!AP34 -> 0 | AR47: ='S-Curve for Progress Payment'!AQ34 -> 0 | AS47: ='S-Curve for Progress Payment'!AR34 -> 0 | AT47: ='S-Curve for Progress Payment'!AS34 -> 0 | AU47: ='S-Curve for Progress Payment'!AT34 -> 0 | AV47: ='S-Curve for Progress Payment'!AU34 -> 0 | AW47: ='S-Curve for Progress Payment'!AV34 -> 0 | AX47: ='S-Curve for Progress Payment'!AW34 -> 0 | AY47: ='S-Curve for Progress Payment'!AX34 -> 0 | AZ47: ='S-Curve for Progress Payment'!AY34 -> 0 | BA47: ='S-Curve for Progress Payment'!AZ34 -> 0 | BB47: ='S-Curve for Progress Payment'!BA34 -> 0 | BC47: ='S-Curve for Progress Payment'!BB34 -> 0 | BD47: ='S-Curve for Progress Payment'!BC34 -> 0 | BE47: ='S-Curve for Progress Payment'!BD34 -> 0 | BF47: ='S-Curve for Progress Payment'!BE34 -> 0 | BG47: ='S-Curve for Progress Payment'!BF34 -> 0 | BH47: ='S-Curve for Progress Payment'!BG34 -> 0 | BI47: ='S-Curve for Progress Payment'!BH34 -> 0 | BJ47: ='S-Curve for Progress Payment'!BI34 -> 0 | BK47: ='S-Curve for Progress Payment'!BJ34 -> 0 | BL47: ='S-Curve for Progress Payment'!BK34 -> 0 | BM47: ='S-Curve for Progress Payment'!BL34 -> 0 | BN47: ='S-Curve for Progress Payment'!BM34 -> 0 | BO47: ='S-Curve for Progress Payment'!BN34 -> 0 | BP47: ='S-Curve for Progress Payment'!BO34 -> 0 | BQ47: ='S-Curve for Progress Payment'!BP34 -> 0 | BR47: ='S-Curve for Progress Payment'!BQ34 -> 0 | BS47: ='S-Curve for Progress Payment'!BR34 -> 0 | BT47: ='S-Curve for Progress Payment'!BS34 -> 0 | BU47: ='S-Curve for Progress Payment'!BT34 -> 0 | BV47: ='S-Curve for Progress Payment'!BU34 -> 0 | BW47: ='S-Curve for Progress Payment'!BV34 -> 0
E48: Accumulated | F48: % | K48: =J48+K47 -> 0.06619136901 | L48: 0.1417109303 | M48: 0.2197410847 | N48: 0.2968292282 | O48: 0.3709504791 | P48: 0.4408880605 | Q48: 0.5059439048 | R48: 0.5657731296 | S48: 0.6202772418 | T48: 0.6695300405 | U48: 0.7137239655 | V48: 0.7531303294 | W48: 0.7880695399 | X48: 0.8188887865 | Y48: 0.8459454407 | Z48: 0.8695948903 | AA48: 0.8901818332 | AB48: 0.9080342717 | AC48: 0.9234596065 | AD48: 0.936742347 | AE48: 0.9481430521 | AF48: 0.9578981902 | AG48: 0.9662206683 | AH48: 0.9733008341 | AI48: 0.9793077936 | AJ48: 0.9843909223 | AK48: 0.9886814773 | AL48: 0.9922942394 | AM48: 0.9953291323 | AN48: 0.9978727835 | AO48: 1 | AP48: 1 | AQ48: =AP48+AQ47 -> 1 | AR48: 1 | AS48: 1 | AT48: 1 | AU48: 1 | AV48: 1 | AW48: 1 | AX48: 1 | AY48: 1 | AZ48: 1 | BA48: 1 | BB48: 1 | BC48: 1 | BD48: 1 | BE48: 1 | BF48: 1 | BG48: 1 | BH48: 1 | BI48: 1 | BJ48: 1 | BK48: =BJ48+BK47 -> 1 | BL48: =BK48+BL47 -> 1 | BM48: =BL48+BM47 -> 1 | BN48: =BM48+BN47 -> 1 | BO48: =BN48+BO47 -> 1 | BP48: =BO48+BP47 -> 1 | BQ48: =BP48+BQ47 -> 1 | BR48: =BQ48+BR47 -> 1 | BS48: =BR48+BS47 -> 1 | BT48: =BS48+BT47 -> 1 | BU48: =BT48+BU47 -> 1 | BV48: =BU48+BV47 -> 1 | BW48: =BV48+BW47 -> 1
D50: S-Curve with Retainage
E52: S-Curve without Retainage | F52: % | G52: Retainage | H52: Period Paid | I52: =SUM(K52:BW52) -> 0.94 | K52: =K47*(1-$G$29) -> 0.06221988687 | L52: 0.07098838764 | M52: 0.07334834512 | N52: 0.07246285483 | O52: 0.06967397593 | P52: 0.06574132651 | Q52: 0.06115249358 | R52: 0.05623947137 | S52: 0.05123386541 | T52: 0.04629763083 | U52: 0.04154228944 | V52: 0.03704198207 | W52: 0.03284285794 | X52: 0.02897009177 | Y52: 0.02543325494 | Z52: 0.02223048266 | AA52: 0.01935172631 | AB52: 0.01678129221 | AC52: 0.01449981468 | AD52: 0.01248577604 | AE52: 0.01071666285 | AF52: 0.009169829778 | AG52: 0.007823129401 | AH52: 0.006655355907 | AI52: 0.00564654193 | AJ52: 0.004778140951 | AK52: 0.00403312172 | AL52: 0.003395996322 | AM52: 0.002852799343 | AN52: 0.002391032163 | AO52: 0.001999583477 | AP52: 0 | AQ52: =AQ47*(1-$G$29) -> 0 | AR52: 0 | AS52: 0 | AT52: 0 | AU52: 0 | AV52: 0 | AW52: 0 | AX52: 0 | AY52: 0 | AZ52: 0 | BA52: 0 | BB52: 0 | BC52: 0 | BD52: 0 | BE52: 0 | BF52: 0 | BG52: 0 | BH52: 0 | BI52: 0 | BJ52: 0 | BK52: =BK47*(1-$G$29) -> 0 | BL52: 0 | BM52: 0 | BN52: 0 | BO52: 0 | BP52: 0 | BQ52: 0 | BR52: 0 | BS52: 0 | BT52: 0 | BU52: 0 | BV52: 0 | BW52: 0
E53: Add: Retainage | F53: % | G53: =G29 -> 0.06 | H53: =G31 -> 46 | I53: =SUM(K53:BW53) -> 0.06 | K53: =(K45=$H$53)*$G$53 -> 0 | L53: 0 | M53: 0 | N53: 0 | O53: 0 | P53: 0 | Q53: 0 | R53: 0 | S53: 0 | T53: 0 | U53: 0 | V53: 0 | W53: 0 | X53: 0 | Y53: 0 | Z53: 0 | AA53: 0 | AB53: 0 | AC53: 0 | AD53: 0 | AE53: 0 | AF53: 0 | AG53: 0 | AH53: 0 | AI53: 0 | AJ53: 0 | AK53: 0 | AL53: 0 | AM53: 0 | AN53: 0 | AO53: 0 | AP53: 0 | AQ53: =(AQ45=$H$53)*$G$53 -> 0 | AR53: 0 | AS53: 0 | AT53: 0 | AU53: 0 | AV53: 0 | AW53: 0 | AX53: 0 | AY53: 0 | AZ53: 0 | BA53: 0 | BB53: 0 | BC53: 0 | BD53: 0.06 | BE53: 0 | BF53: 0 | BG53: 0 | BH53: 0 | BI53: 0 | BJ53: 0 | BK53: =(BK45=$H$53)*$G$53 -> 0 | BL53: 0 | BM53: 0 | BN53: 0 | BO53: 0 | BP53: 0 | BQ53: 0 | BR53: 0 | BS53: 0 | BT53: 0 | BU53: 0 | BV53: 0 | BW53: 0
E54: Total S-curve | F54: % | I54: =SUM(K54:BW54) -> 1 | K54: =SUM(K52:K53) -> 0.06221988687 | L54: 0.07098838764 | M54: 0.07334834512 | N54: 0.07246285483 | O54: 0.06967397593 | P54: 0.06574132651 | Q54: 0.06115249358 | R54: 0.05623947137 | S54: 0.05123386541 | T54: 0.04629763083 | U54: 0.04154228944 | V54: 0.03704198207 | W54: 0.03284285794 | X54: 0.02897009177 | Y54: 0.02543325494 | Z54: 0.02223048266 | AA54: 0.01935172631 | AB54: 0.01678129221 | AC54: 0.01449981468 | AD54: 0.01248577604 | AE54: 0.01071666285 | AF54: 0.009169829778 | AG54: 0.007823129401 | AH54: 0.006655355907 | AI54: 0.00564654193 | AJ54: 0.004778140951 | AK54: 0.00403312172 | AL54: 0.003395996322 | AM54: 0.002852799343 | AN54: 0.002391032163 | AO54: 0.001999583477 | AP54: 0 | AQ54: =SUM(AQ52:AQ53) -> 0 | AR54: 0 | AS54: 0 | AT54: 0 | AU54: 0 | AV54: 0 | AW54: 0 | AX54: 0 | AY54: 0 | AZ54: 0 | BA54: 0 | BB54: 0 | BC54: 0 | BD54: 0.06 | BE54: 0 | BF54: 0 | BG54: 0 | BH54: 0 | BI54: 0 | BJ54: 0 | BK54: =SUM(BK52:BK53) -> 0 | BL54: =SUM(BL52:BL53) -> 0 | BM54: =SUM(BM52:BM53) -> 0 | BN54: =SUM(BN52:BN53) -> 0 | BO54: =SUM(BO52:BO53) -> 0 | BP54: =SUM(BP52:BP53) -> 0 | BQ54: =SUM(BQ52:BQ53) -> 0 | BR54: =SUM(BR52:BR53) -> 0 | BS54: =SUM(BS52:BS53) -> 0 | BT54: =SUM(BT52:BT53) -> 0 | BU54: =SUM(BU52:BU53) -> 0 | BV54: =SUM(BV52:BV53) -> 0 | BW54: =SUM(BW52:BW53) -> 0
E55: Accumulated | F55: % | K55: =J55+K54 -> 0.06221988687 | L55: 0.1332082745 | M55: 0.2065566196 | N55: 0.2790194745 | O55: 0.3486934504 | P55: 0.4144347769 | Q55: 0.4755872705 | R55: 0.5318267419 | S55: 0.5830606073 | T55: 0.6293582381 | U55: 0.6709005275 | V55: 0.7079425096 | W55: 0.7407853675 | X55: 0.7697554593 | Y55: 0.7951887143 | Z55: 0.8174191969 | AA55: 0.8367709232 | AB55: 0.8535522154 | AC55: 0.8680520301 | AD55: 0.8805378062 | AE55: 0.891254469 | AF55: 0.9004242988 | AG55: 0.9082474282 | AH55: 0.9149027841 | AI55: 0.920549326 | AJ55: 0.925327467 | AK55: 0.9293605887 | AL55: 0.932756585 | AM55: 0.9356093844 | AN55: 0.9380004165 | AO55: 0.94 | AP55: 0.94 | AQ55: =AP55+AQ54 -> 0.94 | AR55: 0.94 | AS55: 0.94 | AT55: 0.94 | AU55: 0.94 | AV55: 0.94 | AW55: 0.94 | AX55: 0.94 | AY55: 0.94 | AZ55: 0.94 | BA55: 0.94 | BB55: 0.94 | BC55: 0.94 | BD55: 1 | BE55: 1 | BF55: 1 | BG55: 1 | BH55: 1 | BI55: 1 | BJ55: 1 | BK55: =BJ55+BK54 -> 1 | BL55: =BK55+BL54 -> 1 | BM55: =BL55+BM54 -> 1 | BN55: =BM55+BN54 -> 1 | BO55: =BN55+BO54 -> 1 | BP55: =BO55+BP54 -> 1 | BQ55: =BP55+BQ54 -> 1 | BR55: =BQ55+BR54 -> 1 | BS55: =BR55+BS54 -> 1 | BT55: =BS55+BT54 -> 1 | BU55: =BT55+BU54 -> 1 | BV55: =BU55+BV54 -> 1 | BW55: =BV55+BW54 -> 1
C57: Construction Expenditures
E58: Period | K58: 1 | L58: 2 | M58: 3 | N58: 4 | O58: 5 | P58: 6 | Q58: 7 | R58: 8 | S58: 9 | T58: 10 | U58: 11 | V58: 12 | W58: 13 | X58: 14 | Y58: 15 | Z58: 16 | AA58: 17 | AB58: 18 | AC58: 19 | AD58: 20 | AE58: 21 | AF58: 22 | AG58: 23 | AH58: 24 | AI58: 25 | AJ58: 26 | AK58: 27 | AL58: 28 | AM58: 29 | AN58: 30 | AO58: 31 | AP58: 32 | AQ58: 33 | AR58: 34 | AS58: 35 | AT58: 36 | AU58: 37 | AV58: 38 | AW58: 39 | AX58: 40 | AY58: 41 | AZ58: 42 | BA58: 43 | BB58: 44 | BC58: 45 | BD58: 46 | BE58: 47 | BF58: 48 | BG58: 49 | BH58: 50 | BI58: 51 | BJ58: 52 | BK58: 53 | BL58: 54 | BM58: 55 | BN58: 56 | BO58: 57 | BP58: 58 | BQ58: 59 | BR58: 60 | BS58: 61 | BT58: 62 | BU58: 63 | BV58: 64 | BW58: 65
E59: Construction Period | F59: Flag | G59: =G46 -> 23 | K59: =K58<=$G$59 -> TRUE | L59: TRUE | M59: TRUE | N59: TRUE | O59: TRUE | P59: TRUE | Q59: TRUE | R59: TRUE | S59: TRUE | T59: TRUE | U59: TRUE | V59: TRUE | W59: TRUE | X59: TRUE | Y59: TRUE | Z59: TRUE | AA59: TRUE | AB59: TRUE | AC59: TRUE | AD59: TRUE | AE59: TRUE | AF59: TRUE | AG59: TRUE | AH59: FALSE | AI59: FALSE | AJ59: FALSE | AK59: FALSE | AL59: FALSE | AM59: FALSE | AN59: FALSE | AO59: FALSE | AP59: FALSE | AQ59: =AQ58<=$G$59 -> FALSE | AR59: FALSE | AS59: FALSE | AT59: FALSE | AU59: FALSE | AV59: FALSE | AW59: FALSE | AX59: FALSE | AY59: FALSE | AZ59: FALSE | BA59: FALSE | BB59: FALSE | BC59: FALSE | BD59: FALSE | BE59: FALSE | BF59: FALSE | BG59: FALSE | BH59: FALSE | BI59: FALSE | BJ59: FALSE | BK59: =BK58<=$G$59 -> FALSE | BL59: =BL58<=$G$59 -> FALSE | BM59: =BM58<=$G$59 -> FALSE | BN59: =BN58<=$G$59 -> FALSE | BO59: =BO58<=$G$59 -> FALSE | BP59: =BP58<=$G$59 -> FALSE | BQ59: =BQ58<=$G$59 -> FALSE | BR59: =BR58<=$G$59 -> FALSE | BS59: =BS58<=$G$59 -> FALSE | BT59: =BT58<=$G$59 -> FALSE | BU59: =BU58<=$G$59 -> FALSE | BV59: =BV58<=$G$59 -> FALSE | BW59: =BW58<=$G$59 -> FALSE
E60: S-Curve Paid | F60: % | H60: =SUM(K60:BJ60) -> 1 | K60: ='S-Curve for Actual Cost'!J34 -> 0.06619136901 | L60: ='S-Curve for Actual Cost'!K34 -> 0.07551956132 | M60: ='S-Curve for Actual Cost'!L34 -> 0.07803015439 | N60: ='S-Curve for Actual Cost'!M34 -> 0.07708814344 | O60: ='S-Curve for Actual Cost'!N34 -> 0.07412125099 | P60: ='S-Curve for Actual Cost'!O34 -> 0.06993758139 | Q60: ='S-Curve for Actual Cost'!P34 -> 0.06505584423 | R60: ='S-Curve for Actual Cost'!Q34 -> 0.05982922486 | S60: ='S-Curve for Actual Cost'!R34 -> 0.05450411214 | T60: ='S-Curve for Actual Cost'!S34 -> 0.04925279875 | U60: ='S-Curve for Actual Cost'!T34 -> 0.04419392493 | V60: ='S-Curve for Actual Cost'!U34 -> 0.03940636391 | W60: ='S-Curve for Actual Cost'!V34 -> 0.03493921057 | X60: ='S-Curve for Actual Cost'!W34 -> 0.03081924656 | Y60: ='S-Curve for Actual Cost'!X34 -> 0.02705665419 | Z60: ='S-Curve for Actual Cost'!Y34 -> 0.02364944964 | AA60: ='S-Curve for Actual Cost'!Z34 -> 0.02058694288 | AB60: ='S-Curve for Actual Cost'!AA34 -> 0.01785243853 | AC60: ='S-Curve for Actual Cost'!AB34 -> 0.01542533477 | AD60: ='S-Curve for Actual Cost'!AC34 -> 0.01328274047 | AE60: ='S-Curve for Actual Cost'!AD34 -> 0.01140070516 | AF60: ='S-Curve for Actual Cost'!AE34 -> 0.009755138062 | AG60: ='S-Curve for Actual Cost'!AF34 -> 0.008322478087 | AH60: ='S-Curve for Actual Cost'!AG34 -> 0.007080165858 | AI60: ='S-Curve for Actual Cost'!AH34 -> 0.0060069595 | AJ60: ='S-Curve for Actual Cost'!AI34 -> 0.005083128672 | AK60: ='S-Curve for Actual Cost'!AJ34 -> 0.004290555022 | AL60: ='S-Curve for Actual Cost'!AK34 -> 0.003612762044 | AM60: ='S-Curve for Actual Cost'!AL34 -> 0.003034892918 | AN60: ='S-Curve for Actual Cost'!AM34 -> 0.002543651237 | AO60: ='S-Curve for Actual Cost'!AN34 -> 0.002127216465 | AP60: ='S-Curve for Actual Cost'!AO34 -> 0 | AQ60: ='S-Curve for Actual Cost'!AP34 -> 0 | AR60: ='S-Curve for Actual Cost'!AQ34 -> 0 | AS60: ='S-Curve for Actual Cost'!AR34 -> 0 | AT60: ='S-Curve for Actual Cost'!AS34 -> 0 | AU60: ='S-Curve for Actual Cost'!AT34 -> 0 | AV60: ='S-Curve for Actual Cost'!AU34 -> 0 | AW60: ='S-Curve for Actual Cost'!AV34 -> 0 | AX60: ='S-Curve for Actual Cost'!AW34 -> 0 | AY60: ='S-Curve for Actual Cost'!AX34 -> 0 | AZ60: ='S-Curve for Actual Cost'!AY34 -> 0 | BA60: ='S-Curve for Actual Cost'!AZ34 -> 0 | BB60: ='S-Curve for Actual Cost'!BA34 -> 0 | BC60: ='S-Curve for Actual Cost'!BB34 -> 0 | BD60: ='S-Curve for Actual Cost'!BC34 -> 0 | BE60: ='S-Curve for Actual Cost'!BD34 -> 0 | BF60: ='S-Curve for Actual Cost'!BE34 -> 0 | BG60: ='S-Curve for Actual Cost'!BF34 -> 0 | BH60: ='S-Curve for Actual Cost'!BG34 -> 0 | BI60: ='S-Curve for Actual Cost'!BH34 -> 0 | BJ60: ='S-Curve for Actual Cost'!BI34 -> 0 | BK60: ='S-Curve for Actual Cost'!BJ34 -> 0 | BL60: ='S-Curve for Actual Cost'!BK34 -> 0 | BM60: ='S-Curve for Actual Cost'!BL34 -> 0 | BN60: ='S-Curve for Actual Cost'!BM34 -> 0 | BO60: ='S-Curve for Actual Cost'!BN34 -> 0 | BP60: ='S-Curve for Actual Cost'!BO34 -> 0 | BQ60: ='S-Curve for Actual Cost'!BP34 -> 0 | BR60: ='S-Curve for Actual Cost'!BQ34 -> 0 | BS60: ='S-Curve for Actual Cost'!BR34 -> 0 | BT60: ='S-Curve for Actual Cost'!BS34 -> 0 | BU60: ='S-Curve for Actual Cost'!BT34 -> 0 | BV60: ='S-Curve for Actual Cost'!BU34 -> 0 | BW60: ='S-Curve for Actual Cost'!BV34 -> 0
E61: Accumulated | F61: % | K61: =J61+K60 -> 0.06619136901 | L61: 0.1417109303 | M61: 0.2197410847 | N61: 0.2968292282 | O61: 0.3709504791 | P61: 0.4408880605 | Q61: 0.5059439048 | R61: 0.5657731296 | S61: 0.6202772418 | T61: 0.6695300405 | U61: 0.7137239655 | V61: 0.7531303294 | W61: 0.7880695399 | X61: 0.8188887865 | Y61: 0.8459454407 | Z61: 0.8695948903 | AA61: 0.8901818332 | AB61: 0.9080342717 | AC61: 0.9234596065 | AD61: 0.936742347 | AE61: 0.9481430521 | AF61: 0.9578981902 | AG61: 0.9662206683 | AH61: 0.9733008341 | AI61: 0.9793077936 | AJ61: 0.9843909223 | AK61: 0.9886814773 | AL61: 0.9922942394 | AM61: 0.9953291323 | AN61: 0.9978727835 | AO61: 1 | AP61: 1 | AQ61: =AP61+AQ60 -> 1 | AR61: 1 | AS61: 1 | AT61: 1 | AU61: 1 | AV61: 1 | AW61: 1 | AX61: 1 | AY61: 1 | AZ61: 1 | BA61: 1 | BB61: 1 | BC61: 1 | BD61: 1 | BE61: 1 | BF61: 1 | BG61: 1 | BH61: 1 | BI61: 1 | BJ61: 1 | BK61: =BJ61+BK60 -> 1 | BL61: =BK61+BL60 -> 1 | BM61: =BL61+BM60 -> 1 | BN61: =BM61+BN60 -> 1 | BO61: =BN61+BO60 -> 1 | BP61: =BO61+BP60 -> 1 | BQ61: =BP61+BQ60 -> 1 | BR61: =BQ61+BR60 -> 1 | BS61: =BR61+BS60 -> 1 | BT61: =BS61+BT60 -> 1 | BU61: =BT61+BU60 -> 1 | BV61: =BU61+BV60 -> 1 | BW61: =BV61+BW60 -> 1
D63: Discount Rate for Project Cash Flow | F63: % | G63: =H63/100 -> 0.13 | H63: 13

Sheet Finance Inputs
D3: Total Rental Payment Post COD | F3: EUR/Qtr | G3: 130
B5: Financing Inputs
D7: Equity Contribution by Offtaker | F7: Flag | G7: TRUE
D8: Funing by Off-Taker | F8: % | G8: 0.2
F9: =N29 -> 2 | H9: Base | I9: High Margin | J9: Low Margin | K9: No Withholding | L9: No PRG | M9: No Fees | N9: High Fees | O9: High Int Rate | P9: Low Int Rate
D10: EXIM Financing
E11: Equipment Cost | F11: EUR | G11: =INDEX(H11:Q11,$F$9) -> 20000 | H11: 20000 | I11: 20000 | J11: 20000 | K11: 20000 | L11: 20000 | M11: 20000 | N11: 20000 | O11: 20000 | P11: 20000 | Q11: 20000
E12: Fee/Premium | F12: % | G12: =INDEX(H12:Q12,$F$9) -> 0 | H12: 0 | I12: 0 | J12: 0 | K12: 0 | L12: 0 | M12: 0 | N12: 0 | O12: 0 | P12: 0 | Q12: 0
E13: Total Including Fee | F13: EUR | G13: =INDEX(H13:Q13,$F$9) -> 20000 | H13: =H11/(1-H12) -> 20000 | I13: =I11/(1-I12) -> 20000 | J13: =J11/(1-J12) -> 20000 | K13: =K11/(1-K12) -> 20000 | L13: =L11/(1-L12) -> 20000 | M13: =M11/(1-M12) -> 20000 | N13: 20000 | O13: 20000 | P13: 20000 | Q13: 20000
E14: Fee | F14: EUR | G14: =G13*G12 -> 0 | H14: =H13*H12 -> 0 | I14: =I13*I12 -> 0 | J14: =J13*J12 -> 0 | K14: =K13*K12 -> 0 | L14: =L13*L12 -> 0 | M14: =M13*M12 -> 0 | N14: 0 | O14: 0 | P14: 0 | Q14: 0
E15: Funding
E16: Tenor | F16: Quarters | G16: =INDEX(H16:Q16,$F$9) -> 22 | H16: 22 | I16: 22 | J16: 22 | K16: 22 | L16: 22 | M16: 22 | N16: 22 | O16: 22 | P16: 22 | Q16: 22
E17: Maturity | F17: Date
E18: Base Rate | F18: % | G18: =INDEX(H18:Q18,$F$9) -> 0.025 | H18: 0.025 | I18: 0.025 | J18: 0.025 | K18: 0.025 | L18: 0.025 | M18: 0.025 | N18: 0.025 | O18: 0.04 | P18: 0.025 | Q18: 0.025
E19: Credit Spread | F19: % | G19: =INDEX(H19:Q19,$F$9) -> 0.06 | H19: 0.045 | I19: 0.06 | J19: 0.03 | K19: 0.045 | L19: 0.045 | M19: 0.045 | N19: 0.045 | O19: 0.045 | P19: 0.045 | Q19: 0.045
E20: Commitment Fee | F20: % | G20: =INDEX(H20:Q20,$F$9) -> 0.024 | H20: 0.024 | I20: 0.024 | J20: 0.024 | K20: 0.024 | L20: 0.024 | M20: 0 | N20: 0.04 | O20: 0.024 | P20: 0.024 | Q20: 0.024
E21: Up-Front Fee | F21: % | G21: =INDEX(H21:Q21,$F$9) -> 0.02 | H21: 0.02 | I21: 0.02 | J21: 0.02 | K21: 0.02 | L21: 0.02 | M21: 0 | N21: 0.04 | O21: 0.02 | P21: 0.02 | Q21: 0.02
E22: Political Risk Insurance | F22: % | G22: =INDEX(H22:Q22,$F$9) -> 0.025 | H22: 0.025 | I22: 0.025 | J22: 0.025 | K22: 0.025 | L22: 0 | M22: 0.025 | N22: 0.025 | O22: 0.025 | P22: 0.025 | Q22: 0.025
E23: Withholding Tax | F23: % | G23: =INDEX(H23:Q23,$F$9) -> 0.075 | H23: 0.075 | I23: 0.075 | J23: 0.075 | K23: 0 | L23: 0.075 | M23: 0.075 | N23: 0.075 | O23: 0.075 | P23: 0.075 | Q23: 0.075
E25: DSRA Requirement | F25: Months | G25: 6 | H25: 6 | I25: 6 | J25: 6 | K25: 6 | L25: 6 | M25: 6 | N25: 6 | O25: 6 | P25: 6 | Q25: 6
D27: Equity
E28: Political Risk Insurance | F28: % | G28: 0.025
E29: Letter of Credit Amount | F29: EUR | G29: 500 | N29: 2
E30: Letter of Credit Fee | F30: % | G30: 0.015 | P30: =TRANSPOSE(H9:P9) -> Base
P31: High Margin
D32: Withholding Tax Percent | F32: % | G32: 0.075 | P32: Low Margin
P33: No Withholding
P34: No PRG
P35: No Fees
P36: High Fees
P37: High Int Rate
P38: Low Int Rate

Sheet EPC Profit
B1: Timing | G1: Driver | H1: Driver | I1: Sum
C2: Period | F2: Counter | K2: 1 | L2: 2 | M2: 3 | N2: 4 | O2: 5 | P2: 6 | Q2: 7 | R2: 8 | S2: 9 | T2: 10 | U2: 11 | V2: 12 | W2: 13 | X2: 14 | Y2: 15 | Z2: 16 | AA2: 17 | AB2: 18 | AC2: 19 | AD2: 20 | AE2: 21 | AF2: 22 | AG2: 23 | AH2: 24 | AI2: 25 | AJ2: 26 | AK2: 27 | AL2: 28 | AM2: 29 | AN2: 30 | AO2: 31 | AP2: 32 | AQ2: 33 | AR2: 34 | AS2: 35 | AT2: 36 | AU2: 37 | AV2: 38 | AW2: 39 | AX2: 40 | AY2: 41 | AZ2: 42 | BA2: 43 | BB2: 44 | BC2: 45 | BD2: 46 | BE2: 47 | BF2: 48 | BG2: 49 | BH2: 50 | BI2: 51 | BJ2: 52 | BK2: 53 | BL2: 54 | BM2: 55 | BN2: 56 | BO2: 57 | BP2: 58 | BQ2: 59 | BR2: 60 | BS2: 61 | BT2: 62 | BU2: 63 | BV2: 64 | BW2: 65 | BX2: 66 | BY2: 67 | BZ2: 68 | CA2: 69 | CB2: 70 | CC2: 71 | CD2: 72 | CE2: 73 | CF2: 74 | CG2: 75 | CH2: 76 | CI2: 77 | CJ2: 78 | CK2: 79 | CL2: 80 | CM2: 81 | CN2: 82 | CO2: 83 | CP2: 84 | CQ2: 85 | CR2: 86 | CS2: 87 | CT2: 88 | CU2: 89 | CV2: 90 | CW2: 91 | CX2: 92 | CY2: 93 | CZ2: 94 | DA2: 95 | DB2: 96 | DC2: 97 | DD2: 98 | DE2: 99 | DF2: 100
C3: Pre-COD | F3: Flag | G3: ='Operating Inputs'!G13 -> 34 | K3: =K2<=$G$3 -> TRUE | L3: TRUE | M3: TRUE | N3: TRUE | O3: TRUE | P3: TRUE | Q3: TRUE | R3: TRUE | S3: TRUE | T3: TRUE | U3: TRUE | V3: TRUE | W3: TRUE | X3: TRUE | Y3: TRUE | Z3: TRUE | AA3: TRUE | AB3: TRUE | AC3: TRUE | AD3: TRUE | AE3: TRUE | AF3: TRUE | AG3: TRUE | AH3: TRUE | AI3: TRUE | AJ3: TRUE | AK3: TRUE | AL3: TRUE | AM3: TRUE | AN3: TRUE | AO3: TRUE | AP3: TRUE | AQ3: =AQ2<=$G$3 -> TRUE | AR3: TRUE | AS3: FALSE | AT3: FALSE | AU3: FALSE | AV3: FALSE | AW3: FALSE | AX3: FALSE | AY3: FALSE | AZ3: FALSE | BA3: FALSE | BB3: FALSE | BC3: FALSE | BD3: FALSE | BE3: FALSE | BF3: FALSE | BG3: FALSE | BH3: FALSE | BI3: FALSE | BJ3: FALSE | BK3: FALSE | BL3: FALSE | BM3: FALSE | BN3: FALSE | BO3: FALSE | BP3: FALSE | BQ3: FALSE | BR3: FALSE | BS3: FALSE | BT3: FALSE | BU3: FALSE | BV3: FALSE | BW3: =BW2<=$G$3 -> FALSE | BX3: FALSE | BY3: FALSE | BZ3: FALSE | CA3: FALSE | CB3: FALSE | CC3: FALSE | CD3: FALSE | CE3: FALSE | CF3: FALSE | CG3: FALSE | CH3: FALSE | CI3: FALSE | CJ3: FALSE | CK3: FALSE | CL3: FALSE | CM3: FALSE | CN3: FALSE | CO3: FALSE | CP3: FALSE | CQ3: FALSE | CR3: FALSE | CS3: FALSE | CT3: FALSE | CU3: FALSE | CV3: FALSE | CW3: FALSE | CX3: FALSE | CY3: FALSE | CZ3: FALSE | DA3: FALSE | DB3: FALSE | DC3: =DC2<=$G$3 -> FALSE | DD3: FALSE | DE3: FALSE | DF3: FALSE
C4: Monthls in Period | F4: Months | G4: ='Operating Inputs'!$G$7 -> 1 | H4: 1 | K4: =IF(K3,$G$4,$H$4) -> 1 | L4: 1 | M4: 1 | N4: 1 | O4: 1 | P4: 1 | Q4: 1 | R4: 1 | S4: 1 | T4: 1 | U4: 1 | V4: 1 | W4: 1 | X4: 1 | Y4: 1 | Z4: 1 | AA4: 1 | AB4: 1 | AC4: 1 | AD4: 1 | AE4: 1 | AF4: 1 | AG4: 1 | AH4: 1 | AI4: 1 | AJ4: 1 | AK4: 1 | AL4: 1 | AM4: 1 | AN4: 1 | AO4: 1 | AP4: 1 | AQ4: =IF(AQ3,$G$4,$H$4) -> 1 | AR4: 1 | AS4: 1 | AT4: 1 | AU4: 1 | AV4: 1 | AW4: 1 | AX4: 1 | AY4: 1 | AZ4: 1 | BA4: 1 | BB4: 1 | BC4: 1 | BD4: 1 | BE4: 1 | BF4: 1 | BG4: 1 | BH4: 1 | BI4: 1 | BJ4: 1 | BK4: 1 | BL4: 1 | BM4: 1 | BN4: 1 | BO4: 1 | BP4: 1 | BQ4: 1 | BR4: 1 | BS4: 1 | BT4: 1 | BU4: 1 | BV4: 1 | BW4: =IF(BW3,$G$4,$H$4) -> 1 | BX4: 1 | BY4: 1 | BZ4: 1 | CA4: 1 | CB4: 1 | CC4: 1 | CD4: 1 | CE4: 1 | CF4: 1 | CG4: 1 | CH4: 1 | CI4: 1 | CJ4: 1 | CK4: 1 | CL4: 1 | CM4: 1 | CN4: 1 | CO4: 1 | CP4: 1 | CQ4: 1 | CR4: 1 | CS4: 1 | CT4: 1 | CU4: 1 | CV4: 1 | CW4: 1 | CX4: 1 | CY4: 1 | CZ4: 1 | DA4: 1 | DB4: 1 | DC4: =IF(DC3,$G$4,$H$4) -> 1 | DD4: 1 | DE4: 1 | DF4: 1
C5: Date | F5: Date | G5: ='Operating Inputs'!$G$10 -> 2020-01-01 | J5: =EDATE($G$5,-1) -> 2019-12-01 | K5: =EDATE(J5,K4) -> 2020-01-01 | L5: 2020-02-01 | M5: 2020-03-01 | N5: 2020-04-01 | O5: 2020-05-01 | P5: 2020-06-01 | Q5: 2020-07-01 | R5: 2020-08-01 | S5: 2020-09-01 | T5: 2020-10-01 | U5: 2020-11-01 | V5: 2020-12-01 | W5: 2021-01-01 | X5: 2021-02-01 | Y5: 2021-03-01 | Z5: 2021-04-01 | AA5: 2021-05-01 | AB5: 2021-06-01 | AC5: 2021-07-01 | AD5: 2021-08-01 | AE5: 2021-09-01 | AF5: 2021-10-01 | AG5: 2021-11-01 | AH5: 2021-12-01 | AI5: 2022-01-01 | AJ5: 2022-02-01 | AK5: 2022-03-01 | AL5: 2022-04-01 | AM5: 2022-05-01 | AN5: 2022-06-01 | AO5: 2022-07-01 | AP5: 2022-08-01 | AQ5: =EDATE(AP5,AQ4) -> 2022-09-01 | AR5: 2022-10-01 | AS5: 2022-11-01 | AT5: 2022-12-01 | AU5: 2023-01-01 | AV5: 2023-02-01 | AW5: 2023-03-01 | AX5: 2023-04-01 | AY5: 2023-05-01 | AZ5: 2023-06-01 | BA5: 2023-07-01 | BB5: 2023-08-01 | BC5: 2023-09-01 | BD5: 2023-10-01 | BE5: 2023-11-01 | BF5: 2023-12-01 | BG5: 2024-01-01 | BH5: 2024-02-01 | BI5: 2024-03-01 | BJ5: 2024-04-01 | BK5: 2024-05-01 | BL5: 2024-06-01 | BM5: 2024-07-01 | BN5: 2024-08-01 | BO5: 2024-09-01 | BP5: 2024-10-01 | BQ5: 2024-11-01 | BR5: 2024-12-01 | BS5: 2025-01-01 | BT5: 2025-02-01 | BU5: 2025-03-01 | BV5: 2025-04-01 | BW5: =EDATE(BV5,BW4) -> 2025-05-01 | BX5: 2025-06-01 | BY5: 2025-07-01 | BZ5: 2025-08-01 | CA5: 2025-09-01 | CB5: 2025-10-01 | CC5: 2025-11-01 | CD5: 2025-12-01 | CE5: 2026-01-01 | CF5: 2026-02-01 | CG5: 2026-03-01 | CH5: 2026-04-01 | CI5: 2026-05-01 | CJ5: 2026-06-01 | CK5: 2026-07-01 | CL5: 2026-08-01 | CM5: 2026-09-01 | CN5: 2026-10-01 | CO5: 2026-11-01 | CP5: 2026-12-01 | CQ5: 2027-01-01 | CR5: 2027-02-01 | CS5: 2027-03-01 | CT5: 2027-04-01 | CU5: 2027-05-01 | CV5: 2027-06-01 | CW5: 2027-07-01 | CX5: 2027-08-01 | CY5: 2027-09-01 | CZ5: 2027-10-01 | DA5: 2027-11-01 | DB5: 2027-12-01 | DC5: =EDATE(DB5,DC4) -> 2028-01-01 | DD5: 2028-02-01 | DE5: 2028-03-01 | DF5: 2028-04-01
C6: Delay Period | F6: Flag | G6: ='Operating Inputs'!$G$36 -> 2021-12-01 | H6: ='Operating Inputs'!$G$14 -> 2022-11-01 | I6: =SUM(K6:DF6) -> 11 | K6: =AND(K5>=$G$6,K5<$H$6)*1 -> 0 | L6: 0 | M6: 0 | N6: 0 | O6: 0 | P6: 0 | Q6: 0 | R6: 0 | S6: 0 | T6: 0 | U6: 0 | V6: 0 | W6: 0 | X6: 0 | Y6: 0 | Z6: 0 | AA6: 0 | AB6: 0 | AC6: 0 | AD6: 0 | AE6: 0 | AF6: 0 | AG6: 0 | AH6: 1 | AI6: 1 | AJ6: 1 | AK6: 1 | AL6: 1 | AM6: 1 | AN6: 1 | AO6: 1 | AP6: 1 | AQ6: =AND(AQ5>=$G$6,AQ5<$H$6)*1 -> 1 | AR6: 1 | AS6: 0 | AT6: 0 | AU6: 0 | AV6: 0 | AW6: 0 | AX6: 0 | AY6: 0 | AZ6: 0 | BA6: 0 | BB6: 0 | BC6: 0 | BD6: 0 | BE6: 0 | BF6: 0 | BG6: 0 | BH6: 0 | BI6: 0 | BJ6: 0 | BK6: 0 | BL6: 0 | BM6: 0 | BN6: 0 | BO6: 0 | BP6: 0 | BQ6: 0 | BR6: 0 | BS6: 0 | BT6: 0 | BU6: 0 | BV6: 0 | BW6: =AND(BW5>=$G$6,BW5<$H$6)*1 -> 0 | BX6: 0 | BY6: 0 | BZ6: 0 | CA6: 0 | CB6: 0 | CC6: 0 | CD6: 0 | CE6: 0 | CF6: 0 | CG6: 0 | CH6: 0 | CI6: 0 | CJ6: 0 | CK6: 0 | CL6: 0 | CM6: 0 | CN6: 0 | CO6: 0 | CP6: 0 | CQ6: 0 | CR6: 0 | CS6: 0 | CT6: 0 | CU6: 0 | CV6: 0 | CW6: 0 | CX6: 0 | CY6: 0 | CZ6: 0 | DA6: 0 | DB6: 0 | DC6: =AND(DC5>=$G$6,DC5<$H$6)*1 -> 0 | DD6: 0 | DE6: 0 | DF6: 0
C7: Period with Retainages | F7: Flag | G7: =G5 -> 2020-01-01 | H7: ='Operating Inputs'!G32 -> 2023-10-01 | I7: =SUM(K7:DF7) -> 46 | K7: =AND(K5>=$G$7,K5<=$H$7)*1 -> 1 | L7: =AND(L5>=$G$7,L5<=$H$7)*1 -> 1 | M7: 1 | N7: 1 | O7: 1 | P7: 1 | Q7: 1 | R7: 1 | S7: 1 | T7: 1 | U7: 1 | V7: 1 | W7: 1 | X7: 1 | Y7: 1 | Z7: 1 | AA7: 1 | AB7: 1 | AC7: 1 | AD7: 1 | AE7: 1 | AF7: 1 | AG7: 1 | AH7: 1 | AI7: 1 | AJ7: 1 | AK7: 1 | AL7: 1 | AM7: 1 | AN7: 1 | AO7: 1 | AP7: 1 | AQ7: 1 | AR7: 1 | AS7: 1 | AT7: 1 | AU7: 1 | AV7: 1 | AW7: 1 | AX7: 1 | AY7: 1 | AZ7: 1 | BA7: 1 | BB7: 1 | BC7: 1 | BD7: 1 | BE7: 0 | BF7: 0 | BG7: 0 | BH7: 0 | BI7: 0 | BJ7: 0 | BK7: 0 | BL7: 0 | BM7: 0 | BN7: 0 | BO7: 0 | BP7: 0 | BQ7: 0 | BR7: 0 | BS7: 0 | BT7: 0 | BU7: 0 | BV7: 0 | BW7: 0 | BX7: =AND(BX5>=$G$7,BX5<=$H$7)*1 -> 0 | BY7: 0 | BZ7: 0 | CA7: 0 | CB7: 0 | CC7: 0 | CD7: 0 | CE7: 0 | CF7: 0 | CG7: 0 | CH7: 0 | CI7: 0 | CJ7: 0 | CK7: 0 | CL7: 0 | CM7: 0 | CN7: 0 | CO7: 0 | CP7: 0 | CQ7: 0 | CR7: 0 | CS7: 0 | CT7: 0 | CU7: 0 | CV7: 0 | CW7: 0 | CX7: 0 | CY7: 0 | CZ7: 0 | DA7: 0 | DB7: 0 | DC7: 0 | DD7: 0 | DE7: 0 | DF7: 0
C8: Monthly Period | F8: Flag | G8: ='EPC + F'!G3 -> 34 | K8: =K2<=$G$8 -> TRUE | L8: =L2<=$G$8 -> TRUE | M8: TRUE | N8: TRUE | O8: TRUE | P8: TRUE | Q8: TRUE | R8: TRUE | S8: TRUE | T8: TRUE | U8: TRUE | V8: TRUE | W8: TRUE | X8: TRUE | Y8: TRUE | Z8: TRUE | AA8: TRUE | AB8: TRUE | AC8: TRUE | AD8: TRUE | AE8: TRUE | AF8: TRUE | AG8: TRUE | AH8: TRUE | AI8: TRUE | AJ8: TRUE | AK8: TRUE | AL8: TRUE | AM8: TRUE | AN8: TRUE | AO8: TRUE | AP8: TRUE | AQ8: TRUE | AR8: TRUE | AS8: FALSE | AT8: FALSE | AU8: FALSE | AV8: FALSE | AW8: FALSE | AX8: FALSE | AY8: FALSE | AZ8: FALSE | BA8: FALSE | BB8: FALSE | BC8: FALSE | BD8: FALSE | BE8: FALSE | BF8: FALSE | BG8: FALSE | BH8: FALSE | BI8: FALSE | BJ8: FALSE | BK8: FALSE | BL8: FALSE | BM8: FALSE | BN8: FALSE | BO8: FALSE | BP8: FALSE | BQ8: FALSE | BR8: FALSE | BS8: FALSE | BT8: FALSE | BU8: FALSE | BV8: FALSE | BW8: FALSE | BX8: =BX2<=$G$8 -> FALSE | BY8: FALSE | BZ8: FALSE | CA8: FALSE | CB8: FALSE | CC8: FALSE | CD8: FALSE | CE8: FALSE | CF8: FALSE | CG8: FALSE | CH8: FALSE | CI8: FALSE | CJ8: FALSE | CK8: FALSE | CL8: FALSE | CM8: FALSE | CN8: FALSE | CO8: FALSE | CP8: FALSE | CQ8: FALSE | CR8: FALSE | CS8: FALSE | CT8: FALSE | CU8: FALSE | CV8: FALSE | CW8: FALSE | CX8: FALSE | CY8: FALSE | CZ8: FALSE | DA8: FALSE | DB8: FALSE | DC8: FALSE | DD8: FALSE | DE8: FALSE | DF8: FALSE
C9: Periods | F9: Months | G9: ='EPC + F'!G4 -> 1 | H9: ='EPC + F'!H4 -> 3 | K9: =IF(K8,$G$9,$H$9) -> 1 | L9: =IF(L8,$G$9,$H$9) -> 1 | M9: 1 | N9: 1 | O9: 1 | P9: 1 | Q9: 1 | R9: 1 | S9: 1 | T9: 1 | U9: 1 | V9: 1 | W9: 1 | X9: 1 | Y9: 1 | Z9: 1 | AA9: 1 | AB9: 1 | AC9: 1 | AD9: 1 | AE9: 1 | AF9: 1 | AG9: 1 | AH9: 1 | AI9: 1 | AJ9: 1 | AK9: 1 | AL9: 1 | AM9: 1 | AN9: 1 | AO9: 1 | AP9: 1 | AQ9: 1 | AR9: 1 | AS9: 3 | AT9: 3 | AU9: 3 | AV9: 3 | AW9: 3 | AX9: 3 | AY9: 3 | AZ9: 3 | BA9: 3 | BB9: 3 | BC9: 3 | BD9: 3 | BE9: 3 | BF9: 3 | BG9: 3 | BH9: 3 | BI9: 3 | BJ9: 3 | BK9: 3 | BL9: 3 | BM9: 3 | BN9: 3 | BO9: 3 | BP9: 3 | BQ9: 3 | BR9: 3 | BS9: 3 | BT9: 3 | BU9: 3 | BV9: 3 | BW9: 3 | BX9: =IF(BX8,$G$9,$H$9) -> 3 | BY9: 3 | BZ9: 3 | CA9: 3 | CB9: 3 | CC9: 3 | CD9: 3 | CE9: 3 | CF9: 3 | CG9: 3 | CH9: 3 | CI9: 3 | CJ9: 3 | CK9: 3 | CL9: 3 | CM9: 3 | CN9: 3 | CO9: 3 | CP9: 3 | CQ9: 3 | CR9: 3 | CS9: 3 | CT9: 3 | CU9: 3 | CV9: 3 | CW9: 3 | CX9: 3 | CY9: 3 | CZ9: 3 | DA9: 3 | DB9: 3 | DC9: 3 | DD9: 3 | DE9: 3 | DF9: 3
C10: Quarter Counter | F10: Counters | K10: =IF(J10=3,1,J10+1)*NOT(K8) -> 0 | L10: =IF(K10=3,1,K10+1)*NOT(L8) -> 0 | M10: 0 | N10: 0 | O10: 0 | P10: 0 | Q10: 0 | R10: 0 | S10: 0 | T10: 0 | U10: 0 | V10: 0 | W10: 0 | X10: 0 | Y10: 0 | Z10: 0 | AA10: 0 | AB10: 0 | AC10: 0 | AD10: 0 | AE10: 0 | AF10: 0 | AG10: 0 | AH10: 0 | AI10: 0 | AJ10: 0 | AK10: 0 | AL10: 0 | AM10: 0 | AN10: 0 | AO10: 0 | AP10: 0 | AQ10: 0 | AR10: 0 | AS10: 1 | AT10: 2 | AU10: 3 | AV10: 1 | AW10: 2 | AX10: 3 | AY10: 1 | AZ10: 2 | BA10: 3 | BB10: 1 | BC10: 2 | BD10: 3 | BE10: 1 | BF10: 2 | BG10: 3 | BH10: 1 | BI10: 2 | BJ10: 3 | BK10: 1 | BL10: 2 | BM10: 3 | BN10: 1 | BO10: 2 | BP10: 3 | BQ10: 1 | BR10: 2 | BS10: 3 | BT10: 1 | BU10: 2 | BV10: 3 | BW10: 1 | BX10: =IF(BW10=3,1,BW10+1)*NOT(BX8) -> 2 | BY10: 3 | BZ10: 1 | CA10: 2 | CB10: 3 | CC10: 1 | CD10: 2 | CE10: 3 | CF10: 1 | CG10: 2 | CH10: 3 | CI10: 1 | CJ10: 2 | CK10: 3 | CL10: 1 | CM10: 2 | CN10: 3 | CO10: 1 | CP10: 2 | CQ10: 3 | CR10: 1 | CS10: 2 | CT10: 3 | CU10: 1 | CV10: 2 | CW10: 3 | CX10: 1 | CY10: 2 | CZ10: 3 | DA10: 1 | DB10: 2 | DC10: 3 | DD10: 1 | DE10: 2 | DF10: 3
C11: New Quarter | F11: Flag | K11: =K10=3 -> FALSE | L11: =L10=3 -> FALSE | M11: =M10=3 -> FALSE | N11: =N10=3 -> FALSE | O11: =O10=3 -> FALSE | P11: =P10=3 -> FALSE | Q11: =Q10=3 -> FALSE | R11: =R10=3 -> FALSE | S11: =S10=3 -> FALSE | T11: =T10=3 -> FALSE | U11: =U10=3 -> FALSE | V11: =V10=3 -> FALSE | W11: =W10=3 -> FALSE | X11: =X10=3 -> FALSE | Y11: =Y10=3 -> FALSE | Z11: =Z10=3 -> FALSE | AA11: =AA10=3 -> FALSE | AB11: =AB10=3 -> FALSE | AC11: =AC10=3 -> FALSE | AD11: =AD10=3 -> FALSE | AE11: =AE10=3 -> FALSE | AF11: =AF10=3 -> FALSE | AG11: =AG10=3 -> FALSE | AH11: =AH10=3 -> FALSE | AI11: =AI10=3 -> FALSE | AJ11: =AJ10=3 -> FALSE | AK11: =AK10=3 -> FALSE | AL11: =AL10=3 -> FALSE | AM11: =AM10=3 -> FALSE | AN11: =AN10=3 -> FALSE | AO11: =AO10=3 -> FALSE | AP11: =AP10=3 -> FALSE | AQ11: =AQ10=3 -> FALSE | AR11: =AR10=3 -> FALSE | AS11: =AS10=3 -> FALSE | AT11: =AT10=3 -> FALSE | AU11: =AU10=3 -> TRUE | AV11: =AV10=3 -> FALSE | AW11: =AW10=3 -> FALSE | AX11: =AX10=3 -> TRUE | AY11: =AY10=3 -> FALSE | AZ11: =AZ10=3 -> FALSE | BA11: =BA10=3 -> TRUE | BB11: =BB10=3 -> FALSE | BC11: =BC10=3 -> FALSE | BD11: =BD10=3 -> TRUE | BE11: =BE10=3 -> FALSE | BF11: =BF10=3 -> FALSE | BG11: =BG10=3 -> TRUE | BH11: =BH10=3 -> FALSE | BI11: =BI10=3 -> FALSE | BJ11: =BJ10=3 -> TRUE | BK11: =BK10=3 -> FALSE | BL11: =BL10=3 -> FALSE | BM11: =BM10=3 -> TRUE | BN11: =BN10=3 -> FALSE | BO11: =BO10=3 -> FALSE | BP11: =BP10=3 -> TRUE | BQ11: =BQ10=3 -> FALSE | BR11: =BR10=3 -> FALSE | BS11: =BS10=3 -> TRUE | BT11: =BT10=3 -> FALSE | BU11: =BU10=3 -> FALSE | BV11: =BV10=3 -> TRUE | BW11: =BW10=3 -> FALSE | BX11: =BX10=3 -> FALSE | BY11: =BY10=3 -> TRUE | BZ11: =BZ10=3 -> FALSE | CA11: =CA10=3 -> FALSE | CB11: =CB10=3 -> TRUE | CC11: =CC10=3 -> FALSE | CD11: =CD10=3 -> FALSE | CE11: =CE10=3 -> TRUE | CF11: =CF10=3 -> FALSE | CG11: =CG10=3 -> FALSE | CH11: =CH10=3 -> TRUE | CI11: =CI10=3 -> FALSE | CJ11: =CJ10=3 -> FALSE | CK11: =CK10=3 -> TRUE | CL11: =CL10=3 -> FALSE | CM11: =CM10=3 -> FALSE | CN11: =CN10=3 -> TRUE | CO11: =CO10=3 -> FALSE | CP11: =CP10=3 -> FALSE | CQ11: =CQ10=3 -> TRUE | CR11: =CR10=3 -> FALSE | CS11: =CS10=3 -> FALSE | CT11: =CT10=3 -> TRUE | CU11: =CU10=3 -> FALSE | CV11: =CV10=3 -> FALSE | CW11: =CW10=3 -> TRUE | CX11: =CX10=3 -> FALSE | CY11: =CY10=3 -> FALSE | CZ11: =CZ10=3 -> TRUE | DA11: =DA10=3 -> FALSE | DB11: =DB10=3 -> FALSE | DC11: =DC10=3 -> TRUE | DD11: =DD10=3 -> FALSE | DE11: =DE10=3 -> FALSE | DF11: =DF10=3 -> TRUE
C12: Quarterly Date | F12: Date | K12: =IF(K8,K5,IF(K11,EDATE(J12,K9),J12)) -> 2020-01-01 | L12: =IF(L8,L5,IF(L11,EDATE(K12,L9),K12)) -> 2020-02-01 | M12: 2020-03-01 | N12: 2020-04-01 | O12: 2020-05-01 | P12: 2020-06-01 | Q12: 2020-07-01 | R12: 2020-08-01 | S12: 2020-09-01 | T12: 2020-10-01 | U12: 2020-11-01 | V12: 2020-12-01 | W12: 2021-01-01 | X12: 2021-02-01 | Y12: 2021-03-01 | Z12: 2021-04-01 | AA12: 2021-05-01 | AB12: 2021-06-01 | AC12: 2021-07-01 | AD12: 2021-08-01 | AE12: 2021-09-01 | AF12: 2021-10-01 | AG12: 2021-11-01 | AH12: 2021-12-01 | AI12: 2022-01-01 | AJ12: 2022-02-01 | AK12: 2022-03-01 | AL12: 2022-04-01 | AM12: 2022-05-01 | AN12: 2022-06-01 | AO12: 2022-07-01 | AP12: 2022-08-01 | AQ12: 2022-09-01 | AR12: 2022-10-01 | AS12: 2022-10-01 | AT12: 2022-10-01 | AU12: 2023-01-01 | AV12: 2023-01-01 | AW12: 2023-01-01 | AX12: 2023-04-01 | AY12: 2023-04-01 | AZ12: 2023-04-01 | BA12: 2023-07-01 | BB12: 2023-07-01 | BC12: 2023-07-01 | BD12: 2023-10-01 | BE12: 2023-10-01 | BF12: 2023-10-01 | BG12: 2024-01-01 | BH12: 2024-01-01 | BI12: 2024-01-01 | BJ12: 2024-04-01 | BK12: 2024-04-01 | BL12: 2024-04-01 | BM12: 2024-07-01 | BN12: 2024-07-01 | BO12: 2024-07-01 | BP12: 2024-10-01 | BQ12: 2024-10-01 | BR12: 2024-10-01 | BS12: 2025-01-01 | BT12: 2025-01-01 | BU12: 2025-01-01 | BV12: 2025-04-01 | BW12: 2025-04-01 | BX12: =IF(BX8,BX5,IF(BX11,EDATE(BW12,BX9),BW12)) -> 2025-04-01 | BY12: 2025-07-01 | BZ12: 2025-07-01 | CA12: 2025-07-01 | CB12: 2025-10-01 | CC12: 2025-10-01 | CD12: 2025-10-01 | CE12: 2026-01-01 | CF12: 2026-01-01 | CG12: 2026-01-01 | CH12: 2026-04-01 | CI12: 2026-04-01 | CJ12: 2026-04-01 | CK12: 2026-07-01 | CL12: 2026-07-01 | CM12: 2026-07-01 | CN12: 2026-10-01 | CO12: 2026-10-01 | CP12: 2026-10-01 | CQ12: 2027-01-01 | CR12: 2027-01-01 | CS12: 2027-01-01 | CT12: 2027-04-01 | CU12: 2027-04-01 | CV12: 2027-04-01 | CW12: 2027-07-01 | CX12: 2027-07-01 | CY12: 2027-07-01 | CZ12: 2027-10-01 | DA12: 2027-10-01 | DB12: 2027-10-01 | DC12: 2028-01-01 | DD12: 2028-01-01 | DE12: 2028-01-01 | DF12: 2028-04-01
D14: Days in Period | F14: Days | I14: =SUM(K14:DF14) -> 7061 | K14: ='EPC + F'!K5-'EPC + F'!J5 -> 31 | L14: ='EPC + F'!L5-'EPC + F'!K5 -> 31 | M14: ='EPC + F'!M5-'EPC + F'!L5 -> 29 | N14: ='EPC + F'!N5-'EPC + F'!M5 -> 31 | O14: ='EPC + F'!O5-'EPC + F'!N5 -> 30 | P14: ='EPC + F'!P5-'EPC + F'!O5 -> 31 | Q14: ='EPC + F'!Q5-'EPC + F'!P5 -> 30 | R14: ='EPC + F'!R5-'EPC + F'!Q5 -> 31 | S14: ='EPC + F'!S5-'EPC + F'!R5 -> 31 | T14: ='EPC + F'!T5-'EPC + F'!S5 -> 30 | U14: ='EPC + F'!U5-'EPC + F'!T5 -> 31 | V14: ='EPC + F'!V5-'EPC + F'!U5 -> 30 | W14: ='EPC + F'!W5-'EPC + F'!V5 -> 31 | X14: ='EPC + F'!X5-'EPC + F'!W5 -> 31 | Y14: ='EPC + F'!Y5-'EPC + F'!X5 -> 28 | Z14: ='EPC + F'!Z5-'EPC + F'!Y5 -> 31 | AA14: ='EPC + F'!AA5-'EPC + F'!Z5 -> 30 | AB14: ='EPC + F'!AB5-'EPC + F'!AA5 -> 31 | AC14: ='EPC + F'!AC5-'EPC + F'!AB5 -> 30 | AD14: ='EPC + F'!AD5-'EPC + F'!AC5 -> 31 | AE14: ='EPC + F'!AE5-'EPC + F'!AD5 -> 31 | AF14: ='EPC + F'!AF5-'EPC + F'!AE5 -> 30 | AG14: ='EPC + F'!AG5-'EPC + F'!AF5 -> 31 | AH14: ='EPC + F'!AH5-'EPC + F'!AG5 -> 30 | AI14: ='EPC + F'!AI5-'EPC + F'!AH5 -> 31 | AJ14: ='EPC + F'!AJ5-'EPC + F'!AI5 -> 31 | AK14: ='EPC + F'!AK5-'EPC + F'!AJ5 -> 28 | AL14: ='EPC + F'!AL5-'EPC + F'!AK5 -> 31 | AM14: ='EPC + F'!AM5-'EPC + F'!AL5 -> 30 | AN14: ='EPC + F'!AN5-'EPC + F'!AM5 -> 31 | AO14: ='EPC + F'!AO5-'EPC + F'!AN5 -> 30 | AP14: ='EPC + F'!AP5-'EPC + F'!AO5 -> 31 | AQ14: ='EPC + F'!AQ5-'EPC + F'!AP5 -> 31 | AR14: ='EPC + F'!AR5-'EPC + F'!AQ5 -> 30 | AS14: ='EPC + F'!AS5-'EPC + F'!AR5 -> 92 | AT14: ='EPC + F'!AT5-'EPC + F'!AS5 -> 90 | AU14: ='EPC + F'!AU5-'EPC + F'!AT5 -> 91 | AV14: ='EPC + F'!AV5-'EPC + F'!AU5 -> 92 | AW14: ='EPC + F'!AW5-'EPC + F'!AV5 -> 92 | AX14: ='EPC + F'!AX5-'EPC + F'!AW5 -> 91 | AY14: ='EPC + F'!AY5-'EPC + F'!AX5 -> 91 | AZ14: ='EPC + F'!AZ5-'EPC + F'!AY5 -> 92 | BA14: ='EPC + F'!BA5-'EPC + F'!AZ5 -> 92 | BB14: ='EPC + F'!BB5-'EPC + F'!BA5 -> 90 | BC14: ='EPC + F'!BC5-'EPC + F'!BB5 -> 91 | BD14: ='EPC + F'!BD5-'EPC + F'!BC5 -> 92 | BE14: ='EPC + F'!BE5-'EPC + F'!BD5 -> 92 | BF14: ='EPC + F'!BF5-'EPC + F'!BE5 -> 90 | BG14: ='EPC + F'!BG5-'EPC + F'!BF5 -> 91 | BH14: ='EPC + F'!BH5-'EPC + F'!BG5 -> 92 | BI14: ='EPC + F'!BI5-'EPC + F'!BH5 -> 92 | BJ14: ='EPC + F'!BJ5-'EPC + F'!BI5 -> 90 | BK14: ='EPC + F'!BK5-'EPC + F'!BJ5 -> 91 | BL14: ='EPC + F'!BL5-'EPC + F'!BK5 -> 92 | BM14: ='EPC + F'!BM5-'EPC + F'!BL5 -> 92 | BN14: ='EPC + F'!BN5-'EPC + F'!BM5 -> 91 | BO14: ='EPC + F'!BO5-'EPC + F'!BN5 -> 91 | BP14: ='EPC + F'!BP5-'EPC + F'!BO5 -> 92 | BQ14: ='EPC + F'!BQ5-'EPC + F'!BP5 -> 92 | BR14: ='EPC + F'!BR5-'EPC + F'!BQ5 -> 90 | BS14: ='EPC + F'!BS5-'EPC + F'!BR5 -> 91 | BT14: ='EPC + F'!BT5-'EPC + F'!BS5 -> 92 | BU14: ='EPC + F'!BU5-'EPC + F'!BT5 -> 92 | BV14: ='EPC + F'!BV5-'EPC + F'!BU5 -> 90 | BW14: ='EPC + F'!BW5-'EPC + F'!BV5 -> 91 | BX14: ='EPC + F'!BX5-'EPC + F'!BW5 -> 92 | BY14: ='EPC + F'!BY5-'EPC + F'!BX5 -> 92 | BZ14: ='EPC + F'!BZ5-'EPC + F'!BY5 -> 90 | CA14: ='EPC + F'!CA5-'EPC + F'!BZ5 -> 91 | CB14: ='EPC + F'!CB5-'EPC + F'!CA5 -> 92 | CC14: ='EPC + F'!CC5-'EPC + F'!CB5 -> 92 | CD14: ='EPC + F'!CD5-'EPC + F'!CC5 -> 91 | CE14: ='EPC + F'!CE5-'EPC + F'!CD5 -> 91 | CF14: ='EPC + F'!CF5-'EPC + F'!CE5 -> 92 | CG14: ='EPC + F'!CG5-'EPC + F'!CF5 -> 92 | CH14: ='EPC + F'!CH5-'EPC + F'!CG5 -> 90 | CI14: ='EPC + F'!CI5-'EPC + F'!CH5 -> 91 | CJ14: ='EPC + F'!CJ5-'EPC + F'!CI5 -> 92 | CK14: ='EPC + F'!CK5-'EPC + F'!CJ5 -> 92 | CL14: ='EPC + F'!CL5-'EPC + F'!CK5 -> 90 | CM14: ='EPC + F'!CM5-'EPC + F'!CL5 -> 91 | CN14: ='EPC + F'!CN5-'EPC + F'!CM5 -> 92 | CO14: ='EPC + F'!CO5-'EPC + F'!CN5 -> 92 | CP14: ='EPC + F'!CP5-'EPC + F'!CO5 -> 90 | CQ14: ='EPC + F'!CQ5-'EPC + F'!CP5 -> 91 | CR14: ='EPC + F'!CR5-'EPC + F'!CQ5 -> 92 | CS14: ='EPC + F'!CS5-'EPC + F'!CR5 -> 92 | CT14: ='EPC + F'!CT5-'EPC + F'!CS5 -> 91 | CU14: ='EPC + F'!CU5-'EPC + F'!CT5 -> 91 | CV14: ='EPC + F'!CV5-'EPC + F'!CU5 -> 92 | CW14: ='EPC + F'!CW5-'EPC + F'!CV5 -> 92 | CX14: ='EPC + F'!CX5-'EPC + F'!CW5 -> 90 | CY14: ='EPC + F'!CY5-'EPC + F'!CX5 -> 91 | CZ14: ='EPC + F'!CZ5-'EPC + F'!CY5 -> 92 | DA14: ='EPC + F'!DA5-'EPC + F'!CZ5 -> 92 | DB14: ='EPC + F'!DB5-'EPC + F'!DA5 -> 90 | DC14: ='EPC + F'!DC5-'EPC + F'!DB5 -> 91 | DD14: ='EPC + F'!DD5-'EPC + F'!DC5 -> 92 | DE14: ='EPC + F'!DE5-'EPC + F'!DD5 -> 92 | DF14: ='EPC + F'!DF5-'EPC + F'!DE5 -> 90
D16: Revenues from Progress Payments
E17: Applied Progress Payment S-Curve w/o Retain | F17: % | I17: =SUM(K17:DF17) -> 1 | K17: ='Operating Inputs'!K54 -> 0.06221988687 | L17: ='Operating Inputs'!L54 -> 0.07098838764 | M17: ='Operating Inputs'!M54 -> 0.07334834512 | N17: ='Operating Inputs'!N54 -> 0.07246285483 | O17: ='Operating Inputs'!O54 -> 0.06967397593 | P17: ='Operating Inputs'!P54 -> 0.06574132651 | Q17: ='Operating Inputs'!Q54 -> 0.06115249358 | R17: ='Operating Inputs'!R54 -> 0.05623947137 | S17: ='Operating Inputs'!S54 -> 0.05123386541 | T17: ='Operating Inputs'!T54 -> 0.04629763083 | U17: ='Operating Inputs'!U54 -> 0.04154228944 | V17: ='Operating Inputs'!V54 -> 0.03704198207 | W17: ='Operating Inputs'!W54 -> 0.03284285794 | X17: ='Operating Inputs'!X54 -> 0.02897009177 | Y17: ='Operating Inputs'!Y54 -> 0.02543325494 | Z17: ='Operating Inputs'!Z54 -> 0.02223048266 | AA17: ='Operating Inputs'!AA54 -> 0.01935172631 | AB17: ='Operating Inputs'!AB54 -> 0.01678129221 | AC17: ='Operating Inputs'!AC54 -> 0.01449981468 | AD17: ='Operating Inputs'!AD54 -> 0.01248577604 | AE17: ='Operating Inputs'!AE54 -> 0.01071666285 | AF17: ='Operating Inputs'!AF54 -> 0.009169829778 | AG17: ='Operating Inputs'!AG54 -> 0.007823129401 | AH17: ='Operating Inputs'!AH54 -> 0.006655355907 | AI17: ='Operating Inputs'!AI54 -> 0.00564654193 | AJ17: ='Operating Inputs'!AJ54 -> 0.004778140951 | AK17: ='Operating Inputs'!AK54 -> 0.00403312172 | AL17: ='Operating Inputs'!AL54 -> 0.003395996322 | AM17: ='Operating Inputs'!AM54 -> 0.002852799343 | AN17: ='Operating Inputs'!AN54 -> 0.002391032163 | AO17: ='Operating Inputs'!AO54 -> 0.001999583477 | AP17: ='Operating Inputs'!AP54 -> 0 | AQ17: ='Operating Inputs'!AQ54 -> 0 | AR17: ='Operating Inputs'!AR54 -> 0 | AS17: ='Operating Inputs'!AS54 -> 0 | AT17: ='Operating Inputs'!AT54 -> 0 | AU17: ='Operating Inputs'!AU54 -> 0 | AV17: ='Operating Inputs'!AV54 -> 0 | AW17: ='Operating Inputs'!AW54 -> 0 | AX17: ='Operating Inputs'!AX54 -> 0 | AY17: ='Operating Inputs'!AY54 -> 0 | AZ17: ='Operating Inputs'!AZ54 -> 0 | BA17: ='Operating Inputs'!BA54 -> 0 | BB17: ='Operating Inputs'!BB54 -> 0 | BC17: ='Operating Inputs'!BC54 -> 0 | BD17: ='Operating Inputs'!BD54 -> 0.06 | BE17: ='Operating Inputs'!BE54 -> 0 | BF17: ='Operating Inputs'!BF54 -> 0 | BG17: ='Operating Inputs'!BG54 -> 0 | BH17: ='Operating Inputs'!BH54 -> 0 | BI17: ='Operating Inputs'!BI54 -> 0 | BJ17: ='Operating Inputs'!BJ54 -> 0 | BK17: ='Operating Inputs'!BK54 -> 0 | BL17: ='Operating Inputs'!BL54 -> 0 | BM17: ='Operating Inputs'!BM54 -> 0 | BN17: ='Operating Inputs'!BN54 -> 0 | BO17: ='Operating Inputs'!BO54 -> 0 | BP17: ='Operating Inputs'!BP54 -> 0 | BQ17: ='Operating Inputs'!BQ54 -> 0 | BR17: ='Operating Inputs'!BR54 -> 0 | BS17: ='Operating Inputs'!BS54 -> 0 | BT17: ='Operating Inputs'!BT54 -> 0 | BU17: ='Operating Inputs'!BU54 -> 0 | BV17: ='Operating Inputs'!BV54 -> 0 | BW17: ='Operating Inputs'!BW54 -> 0 | BX17: ='Operating Inputs'!BX54 -> 0 | BY17: ='Operating Inputs'!BY54 -> 0 | BZ17: ='Operating Inputs'!BZ54 -> 0 | CA17: ='Operating Inputs'!CA54 -> 0 | CB17: ='Operating Inputs'!CB54 -> 0 | CC17: ='Operating Inputs'!CC54 -> 0 | CD17: ='Operating Inputs'!CD54 -> 0 | CE17: ='Operating Inputs'!CE54 -> 0 | CF17: ='Operating Inputs'!CF54 -> 0 | CG17: ='Operating Inputs'!CG54 -> 0 | CH17: ='Operating Inputs'!CH54 -> 0 | CI17: ='Operating Inputs'!CI54 -> 0 | CJ17: ='Operating Inputs'!CJ54 -> 0 | CK17: ='Operating Inputs'!CK54 -> 0 | CL17: ='Operating Inputs'!CL54 -> 0 | CM17: ='Operating Inputs'!CM54 -> 0 | CN17: ='Operating Inputs'!CN54 -> 0 | CO17: ='Operating Inputs'!CO54 -> 0 | CP17: ='Operating Inputs'!CP54 -> 0 | CQ17: ='Operating Inputs'!CQ54 -> 0 | CR17: ='Operating Inputs'!CR54 -> 0 | CS17: ='Operating Inputs'!CS54 -> 0 | CT17: ='Operating Inputs'!CT54 -> 0 | CU17: ='Operating Inputs'!CU54 -> 0 | CV17: ='Operating Inputs'!CV54 -> 0 | CW17: ='Operating Inputs'!CW54 -> 0 | CX17: ='Operating Inputs'!CX54 -> 0 | CY17: ='Operating Inputs'!CY54 -> 0 | CZ17: ='Operating Inputs'!CZ54 -> 0 | DA17: ='Operating Inputs'!DA54 -> 0 | DB17: ='Operating Inputs'!DB54 -> 0 | DC17: ='Operating Inputs'!DC54 -> 0 | DD17: ='Operating Inputs'!DD54 -> 0 | DE17: ='Operating Inputs'!DE54 -> 0 | DF17: ='Operating Inputs'!DF54 -> 0
E18: EPC Price | F18: EUR | G18: ='Operating Inputs'!G26 -> 27600 | I18: =SUM(K18:DF18) -> 27600 | K18: =$G$18*K17 -> 1717.268878 | L18: 1959.279499 | M18: 2024.414325 | N18: 1999.974793 | O18: 1923.001736 | P18: 1814.460612 | Q18: 1687.808823 | R18: 1552.20941 | S18: 1414.054685 | T18: 1277.814611 | U18: 1146.567188 | V18: 1022.358705 | W18: 906.4628791 | X18: 799.5745328 | Y18: 701.9578364 | Z18: 613.5613215 | AA18: 534.107646 | AB18: 463.1636651 | AC18: 400.1948852 | AD18: 344.6074187 | AE18: 295.7798947 | AF18: 253.0873019 | AG18: 215.9183715 | AH18: 183.687823 | AI18: 155.8445573 | AJ18: 131.8766903 | AK18: 111.3141595 | AL18: 93.72949848 | AM18: 78.73726188 | AN18: 65.9924877 | AO18: 55.18850396 | AP18: 0 | AQ18: =$G$18*AQ17 -> 0 | AR18: 0 | AS18: 0 | AT18: 0 | AU18: 0 | AV18: 0 | AW18: 0 | AX18: 0 | AY18: 0 | AZ18: 0 | BA18: 0 | BB18: 0 | BC18: 0 | BD18: 1656 | BE18: 0 | BF18: 0 | BG18: 0 | BH18: 0 | BI18: 0 | BJ18: 0 | BK18: 0 | BL18: 0 | BM18: 0 | BN18: 0 | BO18: 0 | BP18: 0 | BQ18: 0 | BR18: 0 | BS18: 0 | BT18: 0 | BU18: 0 | BV18: 0 | BW18: =$G$18*BW17 -> 0 | BX18: 0 | BY18: 0 | BZ18: 0 | CA18: 0 | CB18: 0 | CC18: 0 | CD18: 0 | CE18: 0 | CF18: 0 | CG18: 0 | CH18: 0 | CI18: 0 | CJ18: 0 | CK18: 0 | CL18: 0 | CM18: 0 | CN18: 0 | CO18: 0 | CP18: 0 | CQ18: 0 | CR18: 0 | CS18: 0 | CT18: 0 | CU18: 0 | CV18: 0 | CW18: 0 | CX18: 0 | CY18: 0 | CZ18: 0 | DA18: 0 | DB18: 0 | DC18: =$G$18*DC17 -> 0 | DD18: 0 | DE18: 0 | DF18: 0
D20: Costs of Construction
E21: Applied Progress Payment S-Curve | F21: % | I21: =SUM(K21:DF21) -> 1 | K21: ='Operating Inputs'!K60 -> 0.06619136901 | L21: ='Operating Inputs'!L60 -> 0.07551956132 | M21: ='Operating Inputs'!M60 -> 0.07803015439 | N21: ='Operating Inputs'!N60 -> 0.07708814344 | O21: ='Operating Inputs'!O60 -> 0.07412125099 | P21: ='Operating Inputs'!P60 -> 0.06993758139 | Q21: ='Operating Inputs'!Q60 -> 0.06505584423 | R21: ='Operating Inputs'!R60 -> 0.05982922486 | S21: ='Operating Inputs'!S60 -> 0.05450411214 | T21: ='Operating Inputs'!T60 -> 0.04925279875 | U21: ='Operating Inputs'!U60 -> 0.04419392493 | V21: ='Operating Inputs'!V60 -> 0.03940636391 | W21: ='Operating Inputs'!W60 -> 0.03493921057 | X21: ='Operating Inputs'!X60 -> 0.03081924656 | Y21: ='Operating Inputs'!Y60 -> 0.02705665419 | Z21: ='Operating Inputs'!Z60 -> 0.02364944964 | AA21: ='Operating Inputs'!AA60 -> 0.02058694288 | AB21: ='Operating Inputs'!AB60 -> 0.01785243853 | AC21: ='Operating Inputs'!AC60 -> 0.01542533477 | AD21: ='Operating Inputs'!AD60 -> 0.01328274047 | AE21: ='Operating Inputs'!AE60 -> 0.01140070516 | AF21: ='Operating Inputs'!AF60 -> 0.009755138062 | AG21: ='Operating Inputs'!AG60 -> 0.008322478087 | AH21: ='Operating Inputs'!AH60 -> 0.007080165858 | AI21: ='Operating Inputs'!AI60 -> 0.0060069595 | AJ21: ='Operating Inputs'!AJ60 -> 0.005083128672 | AK21: ='Operating Inputs'!AK60 -> 0.004290555022 | AL21: ='Operating Inputs'!AL60 -> 0.003612762044 | AM21: ='Operating Inputs'!AM60 -> 0.003034892918 | AN21: ='Operating Inputs'!AN60 -> 0.002543651237 | AO21: ='Operating Inputs'!AO60 -> 0.002127216465 | AP21: ='Operating Inputs'!AP60 -> 0 | AQ21: ='Operating Inputs'!AQ60 -> 0 | AR21: ='Operating Inputs'!AR60 -> 0 | AS21: ='Operating Inputs'!AS60 -> 0 | AT21: ='Operating Inputs'!AT60 -> 0 | AU21: ='Operating Inputs'!AU60 -> 0 | AV21: ='Operating Inputs'!AV60 -> 0 | AW21: ='Operating Inputs'!AW60 -> 0 | AX21: ='Operating Inputs'!AX60 -> 0 | AY21: ='Operating Inputs'!AY60 -> 0 | AZ21: ='Operating Inputs'!AZ60 -> 0 | BA21: ='Operating Inputs'!BA60 -> 0 | BB21: ='Operating Inputs'!BB60 -> 0 | BC21: ='Operating Inputs'!BC60 -> 0 | BD21: ='Operating Inputs'!BD60 -> 0 | BE21: ='Operating Inputs'!BE60 -> 0 | BF21: ='Operating Inputs'!BF60 -> 0 | BG21: ='Operating Inputs'!BG60 -> 0 | BH21: ='Operating Inputs'!BH60 -> 0 | BI21: ='Operating Inputs'!BI60 -> 0 | BJ21: ='Operating Inputs'!BJ60 -> 0 | BK21: ='Operating Inputs'!BK60 -> 0 | BL21: ='Operating Inputs'!BL60 -> 0 | BM21: ='Operating Inputs'!BM60 -> 0 | BN21: ='Operating Inputs'!BN60 -> 0 | BO21: ='Operating Inputs'!BO60 -> 0 | BP21: ='Operating Inputs'!BP60 -> 0 | BQ21: ='Operating Inputs'!BQ60 -> 0 | BR21: ='Operating Inputs'!BR60 -> 0 | BS21: ='Operating Inputs'!BS60 -> 0 | BT21: ='Operating Inputs'!BT60 -> 0 | BU21: ='Operating Inputs'!BU60 -> 0 | BV21: ='Operating Inputs'!BV60 -> 0 | BW21: ='Operating Inputs'!BW60 -> 0 | BX21: ='Operating Inputs'!BX60 -> 0 | BY21: ='Operating Inputs'!BY60 -> 0 | BZ21: ='Operating Inputs'!BZ60 -> 0 | CA21: ='Operating Inputs'!CA60 -> 0 | CB21: ='Operating Inputs'!CB60 -> 0 | CC21: ='Operating Inputs'!CC60 -> 0 | CD21: ='Operating Inputs'!CD60 -> 0 | CE21: ='Operating Inputs'!CE60 -> 0 | CF21: ='Operating Inputs'!CF60 -> 0 | CG21: ='Operating Inputs'!CG60 -> 0 | CH21: ='Operating Inputs'!CH60 -> 0 | CI21: ='Operating Inputs'!CI60 -> 0 | CJ21: ='Operating Inputs'!CJ60 -> 0 | CK21: ='Operating Inputs'!CK60 -> 0 | CL21: ='Operating Inputs'!CL60 -> 0 | CM21: ='Operating Inputs'!CM60 -> 0 | CN21: ='Operating Inputs'!CN60 -> 0 | CO21: ='Operating Inputs'!CO60 -> 0 | CP21: ='Operating Inputs'!CP60 -> 0 | CQ21: ='Operating Inputs'!CQ60 -> 0 | CR21: ='Operating Inputs'!CR60 -> 0 | CS21: ='Operating Inputs'!CS60 -> 0 | CT21: ='Operating Inputs'!CT60 -> 0 | CU21: ='Operating Inputs'!CU60 -> 0 | CV21: ='Operating Inputs'!CV60 -> 0 | CW21: ='Operating Inputs'!CW60 -> 0 | CX21: ='Operating Inputs'!CX60 -> 0 | CY21: ='Operating Inputs'!CY60 -> 0 | CZ21: ='Operating Inputs'!CZ60 -> 0 | DA21: ='Operating Inputs'!DA60 -> 0 | DB21: ='Operating Inputs'!DB60 -> 0 | DC21: ='Operating Inputs'!DC60 -> 0 | DD21: ='Operating Inputs'!DD60 -> 0 | DE21: ='Operating Inputs'!DE60 -> 0 | DF21: ='Operating Inputs'!DF60 -> 0
E22: Total Cost | F22: EUR | G22: ='Operating Inputs'!G24 -> 23000 | I22: =SUM(K22:DF22) -> 23000 | K22: =$G$22*K21 -> 1522.401487 | L22: 1736.94991 | M22: 1794.693551 | N22: 1773.027299 | O22: 1704.788773 | P22: 1608.564372 | Q22: 1496.284417 | R22: 1376.072172 | S22: 1253.594579 | T22: 1132.814371 | U22: 1016.460273 | V22: 906.3463699 | W22: 803.6018432 | X22: 708.8426709 | Y22: 622.3030464 | Z22: 543.9373417 | AA22: 473.4996862 | AB22: 410.6060861 | AC22: 354.7826996 | AD22: 305.5030307 | AE22: 262.2162187 | AF22: 224.3681754 | AG22: 191.416996 | AH22: 162.8438147 | AI22: 138.1600685 | AJ22: 116.9119595 | AK22: 98.6827655 | AL22: 83.09352702 | AM22: 69.80253712 | AN22: 58.50397845 | AO22: 48.92597869 | AP22: 0 | AQ22: =$G$22*AQ21 -> 0 | AR22: 0 | AS22: 0 | AT22: 0 | AU22: 0 | AV22: 0 | AW22: 0 | AX22: 0 | AY22: 0 | AZ22: 0 | BA22: 0 | BB22: 0 | BC22: 0 | BD22: 0 | BE22: 0 | BF22: 0 | BG22: 0 | BH22: 0 | BI22: 0 | BJ22: 0 | BK22: 0 | BL22: 0 | BM22: 0 | BN22: 0 | BO22: 0 | BP22: 0 | BQ22: 0 | BR22: 0 | BS22: 0 | BT22: 0 | BU22: 0 | BV22: 0 | BW22: =$G$22*BW21 -> 0 | BX22: 0 | BY22: 0 | BZ22: 0 | CA22: 0 | CB22: 0 | CC22: 0 | CD22: 0 | CE22: 0 | CF22: 0 | CG22: 0 | CH22: 0 | CI22: 0 | CJ22: 0 | CK22: 0 | CL22: 0 | CM22: 0 | CN22: 0 | CO22: 0 | CP22: 0 | CQ22: 0 | CR22: 0 | CS22: 0 | CT22: 0 | CU22: 0 | CV22: 0 | CW22: 0 | CX22: 0 | CY22: 0 | CZ22: 0 | DA22: 0 | DB22: 0 | DC22: =$G$22*DC21 -> 0 | DD22: 0 | DE22: 0 | DF22: 0
E24: EPC Cash Flow Before LD Penalties | F24: EUR | I24: =SUM(K24:DF24) -> 4600 | K24: =K18-K22 -> 194.8673904 | L24: 222.3295885 | M24: 229.7207745 | N24: 226.9474943 | O24: 218.2129629 | P24: 205.8962396 | Q24: 191.5244054 | R24: 176.137238 | S24: 160.4601061 | T24: 145.0002395 | U24: 130.106915 | V24: 116.0123353 | W24: 102.8610359 | X24: 90.73186188 | Y24: 79.65478994 | Z24: 69.62397974 | AA24: 60.60795983 | AB24: 52.55757902 | AC24: 45.41218555 | AD24: 39.10438793 | AE24: 33.563676 | AF24: 28.71912645 | AG24: 24.50137549 | AH24: 20.84400829 | AI24: 17.68448877 | AJ24: 14.96473081 | AK24: 12.63139398 | AL24: 10.63597146 | AM24: 8.934724752 | AN24: 7.488509242 | AO24: 6.262525273 | AP24: 0 | AQ24: =AQ18-AQ22 -> 0 | AR24: 0 | AS24: 0 | AT24: 0 | AU24: 0 | AV24: 0 | AW24: 0 | AX24: 0 | AY24: 0 | AZ24: 0 | BA24: 0 | BB24: 0 | BC24: 0 | BD24: 1656 | BE24: 0 | BF24: 0 | BG24: 0 | BH24: 0 | BI24: 0 | BJ24: 0 | BK24: 0 | BL24: 0 | BM24: 0 | BN24: 0 | BO24: 0 | BP24: 0 | BQ24: 0 | BR24: 0 | BS24: 0 | BT24: 0 | BU24: 0 | BV24: 0 | BW24: =BW18-BW22 -> 0 | BX24: 0 | BY24: 0 | BZ24: 0 | CA24: 0 | CB24: 0 | CC24: 0 | CD24: 0 | CE24: 0 | CF24: 0 | CG24: 0 | CH24: 0 | CI24: 0 | CJ24: 0 | CK24: 0 | CL24: 0 | CM24: 0 | CN24: 0 | CO24: 0 | CP24: 0 | CQ24: 0 | CR24: 0 | CS24: 0 | CT24: 0 | CU24: 0 | CV24: 0 | CW24: 0 | CX24: 0 | CY24: 0 | CZ24: 0 | DA24: 0 | DB24: 0 | DC24: 0 | DD24: 0 | DE24: 0 | DF24: 0
E25: NPV of EPC Cash Flow before LD Penality | F25: EUR | G25: ='Operating Inputs'!G63 -> 0.13 | I25: =XNPV(G25,K24:DF24,'EPC + F'!K5:DF5) -> 3542.491927
D27: Liquidated Damage
E28: LD Period | F28: Flag | K28: =K6 -> 0 | L28: =L6 -> 0 | M28: =M6 -> 0 | N28: =N6 -> 0 | O28: =O6 -> 0 | P28: =P6 -> 0 | Q28: =Q6 -> 0 | R28: =R6 -> 0 | S28: =S6 -> 0 | T28: =T6 -> 0 | U28: =U6 -> 0 | V28: =V6 -> 0 | W28: =W6 -> 0 | X28: =X6 -> 0 | Y28: =Y6 -> 0 | Z28: =Z6 -> 0 | AA28: =AA6 -> 0 | AB28: =AB6 -> 0 | AC28: =AC6 -> 0 | AD28: =AD6 -> 0 | AE28: =AE6 -> 0 | AF28: =AF6 -> 0 | AG28: =AG6 -> 0 | AH28: =AH6 -> 1 | AI28: =AI6 -> 1 | AJ28: =AJ6 -> 1 | AK28: =AK6 -> 1 | AL28: =AL6 -> 1 | AM28: =AM6 -> 1 | AN28: =AN6 -> 1 | AO28: =AO6 -> 1 | AP28: =AP6 -> 1 | AQ28: =AQ6 -> 1 | AR28: =AR6 -> 1 | AS28: =AS6 -> 0 | AT28: =AT6 -> 0 | AU28: =AU6 -> 0 | AV28: =AV6 -> 0 | AW28: =AW6 -> 0 | AX28: =AX6 -> 0 | AY28: =AY6 -> 0 | AZ28: =AZ6 -> 0 | BA28: =BA6 -> 0 | BB28: =BB6 -> 0 | BC28: =BC6 -> 0 | BD28: =BD6 -> 0 | BE28: =BE6 -> 0 | BF28: =BF6 -> 0 | BG28: =BG6 -> 0 | BH28: =BH6 -> 0 | BI28: =BI6 -> 0 | BJ28: =BJ6 -> 0 | BK28: =BK6 -> 0 | BL28: =BL6 -> 0 | BM28: =BM6 -> 0 | BN28: =BN6 -> 0 | BO28: =BO6 -> 0 | BP28: =BP6 -> 0 | BQ28: =BQ6 -> 0 | BR28: =BR6 -> 0 | BS28: =BS6 -> 0 | BT28: =BT6 -> 0 | BU28: =BU6 -> 0 | BV28: =BV6 -> 0 | BW28: =BW6 -> 0 | BX28: =BX6 -> 0 | BY28: =BY6 -> 0 | BZ28: =BZ6 -> 0 | CA28: =CA6 -> 0 | CB28: =CB6 -> 0 | CC28: =CC6 -> 0 | CD28: =CD6 -> 0 | CE28: =CE6 -> 0 | CF28: =CF6 -> 0 | CG28: =CG6 -> 0 | CH28: =CH6 -> 0 | CI28: =CI6 -> 0 | CJ28: =CJ6 -> 0 | CK28: =CK6 -> 0 | CL28: =CL6 -> 0 | CM28: =CM6 -> 0 | CN28: =CN6 -> 0 | CO28: =CO6 -> 0 | CP28: =CP6 -> 0 | CQ28: =CQ6 -> 0 | CR28: =CR6 -> 0 | CS28: =CS6 -> 0 | CT28: =CT6 -> 0 | CU28: =CU6 -> 0 | CV28: =CV6 -> 0 | CW28: =CW6 -> 0 | CX28: =CX6 -> 0 | CY28: =CY6 -> 0 | CZ28: =CZ6 -> 0 | DA28: =DA6 -> 0 | DB28: =DB6 -> 0 | DC28: =DC6 -> 0 | DD28: =DD6 -> 0 | DE28: =DE6 -> 0 | DF28: =DF6 -> 0
E29: LD Cost | F29: EUR/Day | G29: ='Operating Inputs'!$G$39 -> 2.71 | I29: =SUM(K29:AS29) -> 905.14 | K29: ='EPC Profit'!K14*K28*$G$29 -> 0 | L29: ='EPC Profit'!L14*L28*$G$29 -> 0 | M29: ='EPC Profit'!M14*M28*$G$29 -> 0 | N29: ='EPC Profit'!N14*N28*$G$29 -> 0 | O29: ='EPC Profit'!O14*O28*$G$29 -> 0 | P29: ='EPC Profit'!P14*P28*$G$29 -> 0 | Q29: ='EPC Profit'!Q14*Q28*$G$29 -> 0 | R29: ='EPC Profit'!R14*R28*$G$29 -> 0 | S29: ='EPC Profit'!S14*S28*$G$29 -> 0 | T29: ='EPC Profit'!T14*T28*$G$29 -> 0 | U29: ='EPC Profit'!U14*U28*$G$29 -> 0 | V29: ='EPC Profit'!V14*V28*$G$29 -> 0 | W29: ='EPC Profit'!W14*W28*$G$29 -> 0 | X29: ='EPC Profit'!X14*X28*$G$29 -> 0 | Y29: ='EPC Profit'!Y14*Y28*$G$29 -> 0 | Z29: ='EPC Profit'!Z14*Z28*$G$29 -> 0 | AA29: ='EPC Profit'!AA14*AA28*$G$29 -> 0 | AB29: ='EPC Profit'!AB14*AB28*$G$29 -> 0 | AC29: ='EPC Profit'!AC14*AC28*$G$29 -> 0 | AD29: ='EPC Profit'!AD14*AD28*$G$29 -> 0 | AE29: ='EPC Profit'!AE14*AE28*$G$29 -> 0 | AF29: ='EPC Profit'!AF14*AF28*$G$29 -> 0 | AG29: ='EPC Profit'!AG14*AG28*$G$29 -> 0 | AH29: ='EPC Profit'!AH14*AH28*$G$29 -> 81.3 | AI29: ='EPC Profit'!AI14*AI28*$G$29 -> 84.01 | AJ29: ='EPC Profit'!AJ14*AJ28*$G$29 -> 84.01 | AK29: ='EPC Profit'!AK14*AK28*$G$29 -> 75.88 | AL29: ='EPC Profit'!AL14*AL28*$G$29 -> 84.01 | AM29: ='EPC Profit'!AM14*AM28*$G$29 -> 81.3 | AN29: ='EPC Profit'!AN14*AN28*$G$29 -> 84.01 | AO29: ='EPC Profit'!AO14*AO28*$G$29 -> 81.3 | AP29: ='EPC Profit'!AP14*AP28*$G$29 -> 84.01 | AQ29: ='EPC Profit'!AQ14*AQ28*$G$29 -> 84.01 | AR29: ='EPC Profit'!AR14*AR28*$G$29 -> 81.3 | AS29: ='EPC Profit'!AS14*AS28*$G$29 -> 0 | AT29: ='EPC Profit'!AT14*AT28*$G$29 -> 0 | AU29: ='EPC Profit'!AU14*AU28*$G$29 -> 0 | AV29: ='EPC Profit'!AV14*AV28*$G$29 -> 0 | AW29: ='EPC Profit'!AW14*AW28*$G$29 -> 0 | AX29: ='EPC Profit'!AX14*AX28*$G$29 -> 0 | AY29: ='EPC Profit'!AY14*AY28*$G$29 -> 0 | AZ29: ='EPC Profit'!AZ14*AZ28*$G$29 -> 0 | BA29: ='EPC Profit'!BA14*BA28*$G$29 -> 0 | BB29: ='EPC Profit'!BB14*BB28*$G$29 -> 0 | BC29: ='EPC Profit'!BC14*BC28*$G$29 -> 0 | BD29: ='EPC Profit'!BD14*BD28*$G$29 -> 0 | BE29: ='EPC Profit'!BE14*BE28*$G$29 -> 0 | BF29: ='EPC Profit'!BF14*BF28*$G$29 -> 0 | BG29: ='EPC Profit'!BG14*BG28*$G$29 -> 0 | BH29: ='EPC Profit'!BH14*BH28*$G$29 -> 0 | BI29: ='EPC Profit'!BI14*BI28*$G$29 -> 0 | BJ29: ='EPC Profit'!BJ14*BJ28*$G$29 -> 0 | BK29: ='EPC Profit'!BK14*BK28*$G$29 -> 0 | BL29: ='EPC Profit'!BL14*BL28*$G$29 -> 0 | BM29: ='EPC Profit'!BM14*BM28*$G$29 -> 0 | BN29: ='EPC Profit'!BN14*BN28*$G$29 -> 0 | BO29: ='EPC Profit'!BO14*BO28*$G$29 -> 0 | BP29: ='EPC Profit'!BP14*BP28*$G$29 -> 0 | BQ29: ='EPC Profit'!BQ14*BQ28*$G$29 -> 0 | BR29: ='EPC Profit'!BR14*BR28*$G$29 -> 0 | BS29: ='EPC Profit'!BS14*BS28*$G$29 -> 0 | BT29: ='EPC Profit'!BT14*BT28*$G$29 -> 0 | BU29: ='EPC Profit'!BU14*BU28*$G$29 -> 0 | BV29: ='EPC Profit'!BV14*BV28*$G$29 -> 0 | BW29: ='EPC Profit'!BW14*BW28*$G$29 -> 0 | BX29: ='EPC Profit'!BX14*BX28*$G$29 -> 0 | BY29: ='EPC Profit'!BY14*BY28*$G$29 -> 0 | BZ29: ='EPC Profit'!BZ14*BZ28*$G$29 -> 0 | CA29: ='EPC Profit'!CA14*CA28*$G$29 -> 0 | CB29: ='EPC Profit'!CB14*CB28*$G$29 -> 0 | CC29: ='EPC Profit'!CC14*CC28*$G$29 -> 0 | CD29: ='EPC Profit'!CD14*CD28*$G$29 -> 0 | CE29: ='EPC Profit'!CE14*CE28*$G$29 -> 0 | CF29: ='EPC Profit'!CF14*CF28*$G$29 -> 0 | CG29: ='EPC Profit'!CG14*CG28*$G$29 -> 0 | CH29: ='EPC Profit'!CH14*CH28*$G$29 -> 0 | CI29: ='EPC Profit'!CI14*CI28*$G$29 -> 0 | CJ29: ='EPC Profit'!CJ14*CJ28*$G$29 -> 0 | CK29: ='EPC Profit'!CK14*CK28*$G$29 -> 0 | CL29: ='EPC Profit'!CL14*CL28*$G$29 -> 0 | CM29: ='EPC Profit'!CM14*CM28*$G$29 -> 0 | CN29: ='EPC Profit'!CN14*CN28*$G$29 -> 0 | CO29: ='EPC Profit'!CO14*CO28*$G$29 -> 0 | CP29: ='EPC Profit'!CP14*CP28*$G$29 -> 0 | CQ29: ='EPC Profit'!CQ14*CQ28*$G$29 -> 0 | CR29: ='EPC Profit'!CR14*CR28*$G$29 -> 0 | CS29: ='EPC Profit'!CS14*CS28*$G$29 -> 0 | CT29: ='EPC Profit'!CT14*CT28*$G$29 -> 0 | CU29: ='EPC Profit'!CU14*CU28*$G$29 -> 0 | CV29: ='EPC Profit'!CV14*CV28*$G$29 -> 0 | CW29: ='EPC Profit'!CW14*CW28*$G$29 -> 0 | CX29: ='EPC Profit'!CX14*CX28*$G$29 -> 0 | CY29: ='EPC Profit'!CY14*CY28*$G$29 -> 0 | CZ29: ='EPC Profit'!CZ14*CZ28*$G$29 -> 0 | DA29: ='EPC Profit'!DA14*DA28*$G$29 -> 0 | DB29: ='EPC Profit'!DB14*DB28*$G$29 -> 0 | DC29: ='EPC Profit'!DC14*DC28*$G$29 -> 0 | DD29: ='EPC Profit'!DD14*DD28*$G$29 -> 0 | DE29: ='EPC Profit'!DE14*DE28*$G$29 -> 0 | DF29: ='EPC Profit'!DF14*DF28*$G$29 -> 0
E30: Accumulated LC Cos | F30: EUR | K30: =J30+K29 -> 0 | L30: =K30+L29 -> 0 | M30: 0 | N30: 0 | O30: 0 | P30: 0 | Q30: 0 | R30: 0 | S30: 0 | T30: 0 | U30: 0 | V30: 0 | W30: 0 | X30: 0 | Y30: 0 | Z30: 0 | AA30: 0 | AB30: 0 | AC30: 0 | AD30: 0 | AE30: 0 | AF30: 0 | AG30: 0 | AH30: 81.3 | AI30: 165.31 | AJ30: 249.32 | AK30: 325.2 | AL30: 409.21 | AM30: 490.51 | AN30: 574.52 | AO30: 655.82 | AP30: 739.83 | AQ30: 823.84 | AR30: 905.14 | AS30: 905.14 | AT30: 905.14 | AU30: 905.14 | AV30: 905.14 | AW30: 905.14 | AX30: 905.14 | AY30: 905.14 | AZ30: 905.14 | BA30: 905.14 | BB30: 905.14 | BC30: 905.14 | BD30: 905.14 | BE30: 905.14 | BF30: 905.14 | BG30: 905.14 | BH30: 905.14 | BI30: 905.14 | BJ30: 905.14 | BK30: 905.14 | BL30: 905.14 | BM30: 905.14 | BN30: 905.14 | BO30: 905.14 | BP30: 905.14 | BQ30: 905.14 | BR30: 905.14 | BS30: 905.14 | BT30: 905.14 | BU30: 905.14 | BV30: 905.14 | BW30: 905.14 | BX30: =BW30+BX29 -> 905.14 | BY30: 905.14 | BZ30: 905.14 | CA30: 905.14 | CB30: 905.14 | CC30: 905.14 | CD30: 905.14 | CE30: 905.14 | CF30: 905.14 | CG30: 905.14 | CH30: 905.14 | CI30: 905.14 | CJ30: 905.14 | CK30: 905.14 | CL30: 905.14 | CM30: 905.14 | CN30: 905.14 | CO30: 905.14 | CP30: 905.14 | CQ30: 905.14 | CR30: 905.14 | CS30: 905.14 | CT30: 905.14 | CU30: 905.14 | CV30: 905.14 | CW30: 905.14 | CX30: 905.14 | CY30: 905.14 | CZ30: 905.14 | DA30: 905.14 | DB30: 905.14 | DC30: 905.14 | DD30: 905.14 | DE30: 905.14 | DF30: 905.14
E31: LD Payment Flag | F31: Flag | G31: ='Operating Inputs'!G32 -> 2023-10-01 | K31: =K5=$G$31 -> FALSE | L31: =L5=$G$31 -> FALSE | M31: =M5=$G$31 -> FALSE | N31: =N5=$G$31 -> FALSE | O31: =O5=$G$31 -> FALSE | P31: =P5=$G$31 -> FALSE | Q31: =Q5=$G$31 -> FALSE | R31: =R5=$G$31 -> FALSE | S31: =S5=$G$31 -> FALSE | T31: =T5=$G$31 -> FALSE | U31: =U5=$G$31 -> FALSE | V31: =V5=$G$31 -> FALSE | W31: =W5=$G$31 -> FALSE | X31: =X5=$G$31 -> FALSE | Y31: =Y5=$G$31 -> FALSE | Z31: =Z5=$G$31 -> FALSE | AA31: =AA5=$G$31 -> FALSE | AB31: =AB5=$G$31 -> FALSE | AC31: =AC5=$G$31 -> FALSE | AD31: =AD5=$G$31 -> FALSE | AE31: =AE5=$G$31 -> FALSE | AF31: =AF5=$G$31 -> FALSE | AG31: =AG5=$G$31 -> FALSE | AH31: =AH5=$G$31 -> FALSE | AI31: =AI5=$G$31 -> FALSE | AJ31: =AJ5=$G$31 -> FALSE | AK31: =AK5=$G$31 -> FALSE | AL31: =AL5=$G$31 -> FALSE | AM31: =AM5=$G$31 -> FALSE | AN31: =AN5=$G$31 -> FALSE | AO31: =AO5=$G$31 -> FALSE | AP31: =AP5=$G$31 -> FALSE | AQ31: =AQ5=$G$31 -> FALSE | AR31: =AR5=$G$31 -> FALSE | AS31: =AS5=$G$31 -> FALSE | AT31: =AT5=$G$31 -> FALSE | AU31: =AU5=$G$31 -> FALSE | AV31: =AV5=$G$31 -> FALSE | AW31: =AW5=$G$31 -> FALSE | AX31: =AX5=$G$31 -> FALSE | AY31: =AY5=$G$31 -> FALSE | AZ31: =AZ5=$G$31 -> FALSE | BA31: =BA5=$G$31 -> FALSE | BB31: =BB5=$G$31 -> FALSE | BC31: =BC5=$G$31 -> FALSE | BD31: =BD5=$G$31 -> TRUE | BE31: =BE5=$G$31 -> FALSE | BF31: =BF5=$G$31 -> FALSE | BG31: =BG5=$G$31 -> FALSE | BH31: =BH5=$G$31 -> FALSE | BI31: =BI5=$G$31 -> FALSE | BJ31: =BJ5=$G$31 -> FALSE | BK31: =BK5=$G$31 -> FALSE | BL31: =BL5=$G$31 -> FALSE | BM31: =BM5=$G$31 -> FALSE | BN31: =BN5=$G$31 -> FALSE | BO31: =BO5=$G$31 -> FALSE | BP31: =BP5=$G$31 -> FALSE | BQ31: =BQ5=$G$31 -> FALSE | BR31: =BR5=$G$31 -> FALSE | BS31: =BS5=$G$31 -> FALSE | BT31: =BT5=$G$31 -> FALSE | BU31: =BU5=$G$31 -> FALSE | BV31: =BV5=$G$31 -> FALSE | BW31: =BW5=$G$31 -> FALSE | BX31: =BX5=$G$31 -> FALSE | BY31: =BY5=$G$31 -> FALSE | BZ31: =BZ5=$G$31 -> FALSE | CA31: =CA5=$G$31 -> FALSE | CB31: =CB5=$G$31 -> FALSE | CC31: =CC5=$G$31 -> FALSE | CD31: =CD5=$G$31 -> FALSE | CE31: =CE5=$G$31 -> FALSE | CF31: =CF5=$G$31 -> FALSE | CG31: =CG5=$G$31 -> FALSE | CH31: =CH5=$G$31 -> FALSE | CI31: =CI5=$G$31 -> FALSE | CJ31: =CJ5=$G$31 -> FALSE | CK31: =CK5=$G$31 -> FALSE | CL31: =CL5=$G$31 -> FALSE | CM31: =CM5=$G$31 -> FALSE | CN31: =CN5=$G$31 -> FALSE | CO31: =CO5=$G$31 -> FALSE | CP31: =CP5=$G$31 -> FALSE | CQ31: =CQ5=$G$31 -> FALSE | CR31: =CR5=$G$31 -> FALSE | CS31: =CS5=$G$31 -> FALSE | CT31: =CT5=$G$31 -> FALSE | CU31: =CU5=$G$31 -> FALSE | CV31: =CV5=$G$31 -> FALSE | CW31: =CW5=$G$31 -> FALSE | CX31: =CX5=$G$31 -> FALSE | CY31: =CY5=$G$31 -> FALSE | CZ31: =CZ5=$G$31 -> FALSE | DA31: =DA5=$G$31 -> FALSE | DB31: =DB5=$G$31 -> FALSE | DC31: =DC5=$G$31 -> FALSE | DD31: =DD5=$G$31 -> FALSE | DE31: =DE5=$G$31 -> FALSE | DF31: =DF5=$G$31 -> FALSE
E32: LD Paid before Cap | F32: EUR | G32: =I29 -> 905.14 | I32: =SUM(K32:DF32) -> 905.14 | K32: =$G$32*K31 -> 0 | L32: 0 | M32: 0 | N32: 0 | O32: 0 | P32: 0 | Q32: 0 | R32: 0 | S32: 0 | T32: 0 | U32: 0 | V32: 0 | W32: 0 | X32: 0 | Y32: 0 | Z32: 0 | AA32: 0 | AB32: 0 | AC32: 0 | AD32: 0 | AE32: 0 | AF32: 0 | AG32: 0 | AH32: 0 | AI32: 0 | AJ32: 0 | AK32: 0 | AL32: 0 | AM32: 0 | AN32: 0 | AO32: 0 | AP32: 0 | AQ32: =$G$32*AQ31 -> 0 | AR32: 0 | AS32: 0 | AT32: 0 | AU32: 0 | AV32: 0 | AW32: 0 | AX32: 0 | AY32: 0 | AZ32: 0 | BA32: 0 | BB32: 0 | BC32: 0 | BD32: 905.14 | BE32: 0 | BF32: 0 | BG32: 0 | BH32: 0 | BI32: 0 | BJ32: 0 | BK32: 0 | BL32: 0 | BM32: 0 | BN32: 0 | BO32: 0 | BP32: 0 | BQ32: 0 | BR32: 0 | BS32: 0 | BT32: 0 | BU32: 0 | BV32: 0 | BW32: =$G$32*BW31 -> 0 | BX32: 0 | BY32: 0 | BZ32: 0 | CA32: 0 | CB32: 0 | CC32: 0 | CD32: 0 | CE32: 0 | CF32: 0 | CG32: 0 | CH32: 0 | CI32: 0 | CJ32: 0 | CK32: 0 | CL32: 0 | CM32: 0 | CN32: 0 | CO32: 0 | CP32: 0 | CQ32: 0 | CR32: 0 | CS32: 0 | CT32: 0 | CU32: 0 | CV32: 0 | CW32: 0 | CX32: 0 | CY32: 0 | CZ32: 0 | DA32: 0 | DB32: 0 | DC32: =$G$32*DC31 -> 0 | DD32: 0 | DE32: 0 | DF32: 0
E33: LD Cap | F33: EUR | G33: ='Operating Inputs'!G41 -> 1104 | K33: =$G$33*K31 -> 0 | L33: =$G$33*L31 -> 0 | M33: 0 | N33: 0 | O33: 0 | P33: 0 | Q33: 0 | R33: 0 | S33: 0 | T33: 0 | U33: 0 | V33: 0 | W33: 0 | X33: 0 | Y33: 0 | Z33: 0 | AA33: 0 | AB33: 0 | AC33: 0 | AD33: 0 | AE33: 0 | AF33: 0 | AG33: 0 | AH33: 0 | AI33: 0 | AJ33: 0 | AK33: 0 | AL33: 0 | AM33: 0 | AN33: 0 | AO33: 0 | AP33: 0 | AQ33: 0 | AR33: 0 | AS33: 0 | AT33: 0 | AU33: 0 | AV33: 0 | AW33: 0 | AX33: 0 | AY33: 0 | AZ33: 0 | BA33: 0 | BB33: 0 | BC33: 0 | BD33: 1104 | BE33: 0 | BF33: 0 | BG33: 0 | BH33: 0 | BI33: 0 | BJ33: 0 | BK33: 0 | BL33: 0 | BM33: 0 | BN33: 0 | BO33: 0 | BP33: 0 | BQ33: 0 | BR33: 0 | BS33: 0 | BT33: 0 | BU33: 0 | BV33: 0 | BW33: 0 | BX33: =$G$33*BX31 -> 0 | BY33: 0 | BZ33: 0 | CA33: 0 | CB33: 0 | CC33: 0 | CD33: 0 | CE33: 0 | CF33: 0 | CG33: 0 | CH33: 0 | CI33: 0 | CJ33: 0 | CK33: 0 | CL33: 0 | CM33: 0 | CN33: 0 | CO33: 0 | CP33: 0 | CQ33: 0 | CR33: 0 | CS33: 0 | CT33: 0 | CU33: 0 | CV33: 0 | CW33: 0 | CX33: 0 | CY33: 0 | CZ33: 0 | DA33: 0 | DB33: 0 | DC33: 0 | DD33: 0 | DE33: 0 | DF33: 0
E34: LD Paid After Cap | F34: EUR | I34: =SUM(K34:DF34) -> 905.14 | K34: =MIN(K32,K33) -> 0 | L34: =MIN(L32,L33) -> 0 | M34: 0 | N34: 0 | O34: 0 | P34: 0 | Q34: 0 | R34: 0 | S34: 0 | T34: 0 | U34: 0 | V34: 0 | W34: 0 | X34: 0 | Y34: 0 | Z34: 0 | AA34: 0 | AB34: 0 | AC34: 0 | AD34: 0 | AE34: 0 | AF34: 0 | AG34: 0 | AH34: 0 | AI34: 0 | AJ34: 0 | AK34: 0 | AL34: 0 | AM34: 0 | AN34: 0 | AO34: 0 | AP34: 0 | AQ34: 0 | AR34: 0 | AS34: 0 | AT34: 0 | AU34: 0 | AV34: 0 | AW34: 0 | AX34: 0 | AY34: 0 | AZ34: 0 | BA34: 0 | BB34: 0 | BC34: 0 | BD34: 905.14 | BE34: 0 | BF34: 0 | BG34: 0 | BH34: 0 | BI34: 0 | BJ34: 0 | BK34: 0 | BL34: 0 | BM34: 0 | BN34: 0 | BO34: 0 | BP34: 0 | BQ34: 0 | BR34: 0 | BS34: 0 | BT34: 0 | BU34: 0 | BV34: 0 | BW34: 0 | BX34: =MIN(BX32,BX33) -> 0 | BY34: 0 | BZ34: 0 | CA34: 0 | CB34: 0 | CC34: 0 | CD34: 0 | CE34: 0 | CF34: 0 | CG34: 0 | CH34: 0 | CI34: 0 | CJ34: 0 | CK34: 0 | CL34: 0 | CM34: 0 | CN34: 0 | CO34: 0 | CP34: 0 | CQ34: 0 | CR34: 0 | CS34: 0 | CT34: 0 | CU34: 0 | CV34: 0 | CW34: 0 | CX34: 0 | CY34: 0 | CZ34: 0 | DA34: 0 | DB34: 0 | DC34: 0 | DD34: 0 | DE34: 0 | DF34: 0
E36: EPC Cash Flow after LC Penalties | F36: EUR | I36: =SUM(K36:DF36) -> 3694.86 | K36: =K24-K34 -> 194.8673904 | L36: =L24-L34 -> 222.3295885 | M36: =M24-M34 -> 229.7207745 | N36: =N24-N34 -> 226.9474943 | O36: =O24-O34 -> 218.2129629 | P36: =P24-P34 -> 205.8962396 | Q36: =Q24-Q34 -> 191.5244054 | R36: =R24-R34 -> 176.137238 | S36: =S24-S34 -> 160.4601061 | T36: =T24-T34 -> 145.0002395 | U36: =U24-U34 -> 130.106915 | V36: =V24-V34 -> 116.0123353 | W36: =W24-W34 -> 102.8610359 | X36: =X24-X34 -> 90.73186188 | Y36: =Y24-Y34 -> 79.65478994 | Z36: =Z24-Z34 -> 69.62397974 | AA36: =AA24-AA34 -> 60.60795983 | AB36: =AB24-AB34 -> 52.55757902 | AC36: =AC24-AC34 -> 45.41218555 | AD36: =AD24-AD34 -> 39.10438793 | AE36: =AE24-AE34 -> 33.563676 | AF36: =AF24-AF34 -> 28.71912645 | AG36: =AG24-AG34 -> 24.50137549 | AH36: =AH24-AH34 -> 20.84400829 | AI36: =AI24-AI34 -> 17.68448877 | AJ36: =AJ24-AJ34 -> 14.96473081 | AK36: =AK24-AK34 -> 12.63139398 | AL36: =AL24-AL34 -> 10.63597146 | AM36: =AM24-AM34 -> 8.934724752 | AN36: =AN24-AN34 -> 7.488509242 | AO36: =AO24-AO34 -> 6.262525273 | AP36: =AP24-AP34 -> 0 | AQ36: =AQ24-AQ34 -> 0 | AR36: =AR24-AR34 -> 0 | AS36: =AS24-AS34 -> 0 | AT36: =AT24-AT34 -> 0 | AU36: =AU24-AU34 -> 0 | AV36: =AV24-AV34 -> 0 | AW36: =AW24-AW34 -> 0 | AX36: =AX24-AX34 -> 0 | AY36: =AY24-AY34 -> 0 | AZ36: =AZ24-AZ34 -> 0 | BA36: =BA24-BA34 -> 0 | BB36: =BB24-BB34 -> 0 | BC36: =BC24-BC34 -> 0 | BD36: =BD24-BD34 -> 750.86 | BE36: =BE24-BE34 -> 0 | BF36: =BF24-BF34 -> 0 | BG36: =BG24-BG34 -> 0 | BH36: =BH24-BH34 -> 0 | BI36: =BI24-BI34 -> 0 | BJ36: =BJ24-BJ34 -> 0 | BK36: =BK24-BK34 -> 0 | BL36: =BL24-BL34 -> 0 | BM36: =BM24-BM34 -> 0 | BN36: =BN24-BN34 -> 0 | BO36: =BO24-BO34 -> 0 | BP36: =BP24-BP34 -> 0 | BQ36: =BQ24-BQ34 -> 0 | BR36: =BR24-BR34 -> 0 | BS36: =BS24-BS34 -> 0 | BT36: =BT24-BT34 -> 0 | BU36: =BU24-BU34 -> 0 | BV36: =BV24-BV34 -> 0 | BW36: =BW24-BW34 -> 0 | BX36: =BX24-BX34 -> 0 | BY36: =BY24-BY34 -> 0 | BZ36: =BZ24-BZ34 -> 0 | CA36: =CA24-CA34 -> 0 | CB36: =CB24-CB34 -> 0 | CC36: =CC24-CC34 -> 0 | CD36: =CD24-CD34 -> 0 | CE36: =CE24-CE34 -> 0 | CF36: =CF24-CF34 -> 0 | CG36: =CG24-CG34 -> 0 | CH36: =CH24-CH34 -> 0 | CI36: =CI24-CI34 -> 0 | CJ36: =CJ24-CJ34 -> 0 | CK36: =CK24-CK34 -> 0 | CL36: =CL24-CL34 -> 0 | CM36: =CM24-CM34 -> 0 | CN36: =CN24-CN34 -> 0 | CO36: =CO24-CO34 -> 0 | CP36: =CP24-CP34 -> 0 | CQ36: =CQ24-CQ34 -> 0 | CR36: =CR24-CR34 -> 0 | CS36: =CS24-CS34 -> 0 | CT36: =CT24-CT34 -> 0 | CU36: =CU24-CU34 -> 0 | CV36: =CV24-CV34 -> 0 | CW36: =CW24-CW34 -> 0 | CX36: =CX24-CX34 -> 0 | CY36: =CY24-CY34 -> 0 | CZ36: =CZ24-CZ34 -> 0 | DA36: =DA24-DA34 -> 0 | DB36: =DB24-DB34 -> 0 | DC36: =DC24-DC34 -> 0 | DD36: =DD24-DD34 -> 0 | DE36: =DE24-DE34 -> 0 | DF36: =DF24-DF34 -> 0
E37: NPV of EPC Cash Flow After LD Penalty | F37: EUR | G37: =G25 -> 0.13 | I37: =XNPV(G37,K36:DF36,K5:DF5) -> 3197.514056
B40: Graph
K41: =IF(K7,K5,NA()) -> 2020-01-01 | L41: =IF(L7,L5,NA()) -> 2020-02-01 | M41: =IF(M7,M5,NA()) -> 2020-03-01 | N41: =IF(N7,N5,NA()) -> 2020-04-01 | O41: =IF(O7,O5,NA()) -> 2020-05-01 | P41: =IF(P7,P5,NA()) -> 2020-06-01 | Q41: =IF(Q7,Q5,NA()) -> 2020-07-01 | R41: =IF(R7,R5,NA()) -> 2020-08-01 | S41: =IF(S7,S5,NA()) -> 2020-09-01 | T41: =IF(T7,T5,NA()) -> 2020-10-01 | U41: =IF(U7,U5,NA()) -> 2020-11-01 | V41: =IF(V7,V5,NA()) -> 2020-12-01 | W41: =IF(W7,W5,NA()) -> 2021-01-01 | X41: =IF(X7,X5,NA()) -> 2021-02-01 | Y41: =IF(Y7,Y5,NA()) -> 2021-03-01 | Z41: =IF(Z7,Z5,NA()) -> 2021-04-01 | AA41: =IF(AA7,AA5,NA()) -> 2021-05-01 | AB41: =IF(AB7,AB5,NA()) -> 2021-06-01 | AC41: =IF(AC7,AC5,NA()) -> 2021-07-01 | AD41: =IF(AD7,AD5,NA()) -> 2021-08-01 | AE41: =IF(AE7,AE5,NA()) -> 2021-09-01 | AF41: =IF(AF7,AF5,NA()) -> 2021-10-01 | AG41: =IF(AG7,AG5,NA()) -> 2021-11-01 | AH41: =IF(AH7,AH5,NA()) -> 2021-12-01 | AI41: =IF(AI7,AI5,NA()) -> 2022-01-01 | AJ41: =IF(AJ7,AJ5,NA()) -> 2022-02-01 | AK41: =IF(AK7,AK5,NA()) -> 2022-03-01 | AL41: =IF(AL7,AL5,NA()) -> 2022-04-01 | AM41: =IF(AM7,AM5,NA()) -> 2022-05-01 | AN41: =IF(AN7,AN5,NA()) -> 2022-06-01 | AO41: =IF(AO7,AO5,NA()) -> 2022-07-01 | AP41: =IF(AP7,AP5,NA()) -> 2022-08-01 | AQ41: =IF(AQ7,AQ5,NA()) -> 2022-09-01 | AR41: =IF(AR7,AR5,NA()) -> 2022-10-01 | AS41: =IF(AS7,AS5,NA()) -> 2022-11-01 | AT41: =IF(AT7,AT5,NA()) -> 2022-12-01 | AU41: =IF(AU7,AU5,NA()) -> 2023-01-01 | AV41: =IF(AV7,AV5,NA()) -> 2023-02-01 | AW41: =IF(AW7,AW5,NA()) -> 2023-03-01 | AX41: =IF(AX7,AX5,NA()) -> 2023-04-01 | AY41: =IF(AY7,AY5,NA()) -> 2023-05-01 | AZ41: =IF(AZ7,AZ5,NA()) -> 2023-06-01 | BA41: =IF(BA7,BA5,NA()) -> 2023-07-01 | BB41: =IF(BB7,BB5,NA()) -> 2023-08-01 | BC41: =IF(BC7,BC5,NA()) -> 2023-09-01 | BD41: =IF(BD7,BD5,NA()) -> 2023-10-01 | BE41: =IF(BE7,BE5,NA()) ->  | BF41: =IF(BF7,BF5,NA()) ->  | BG41: =IF(BG7,BG5,NA()) ->  | BH41: =IF(BH7,BH5,NA()) ->  | BI41: =IF(BI7,BI5,NA()) ->  | BJ41: =IF(BJ7,BJ5,NA()) ->  | BK41: =IF(BK7,BK5,NA()) ->  | BL41: =IF(BL7,BL5,NA()) ->  | BM41: =IF(BM7,BM5,NA()) ->  | BN41: =IF(BN7,BN5,NA()) ->  | BO41: =IF(BO7,BO5,NA()) ->  | BP41: =IF(BP7,BP5,NA()) ->  | BQ41: =IF(BQ7,BQ5,NA()) ->  | BR41: =IF(BR7,BR5,NA()) ->  | BS41: =IF(BS7,BS5,NA()) ->  | BT41: =IF(BT7,BT5,NA()) ->  | BU41: =IF(BU7,BU5,NA()) ->  | BV41: =IF(BV7,BV5,NA()) ->  | BW41: =IF(BW7,BW5,NA()) ->  | BX41: =IF(BX7,BX5,NA()) ->  | BY41: =IF(BY7,BY5,NA()) ->  | BZ41: =IF(BZ7,BZ5,NA()) ->  | CA41: =IF(CA7,CA5,NA()) ->  | CB41: =IF(CB7,CB5,NA()) ->  | CC41: =IF(CC7,CC5,NA()) ->  | CD41: =IF(CD7,CD5,NA()) ->  | CE41: =IF(CE7,CE5,NA()) ->  | CF41: =IF(CF7,CF5,NA()) ->  | CG41: =IF(CG7,CG5,NA()) ->  | CH41: =IF(CH7,CH5,NA()) ->  | CI41: =IF(CI7,CI5,NA()) ->  | CJ41: =IF(CJ7,CJ5,NA()) ->  | CK41: =IF(CK7,CK5,NA()) ->  | CL41: =IF(CL7,CL5,NA()) ->  | CM41: =IF(CM7,CM5,NA()) ->  | CN41: =IF(CN7,CN5,NA()) ->  | CO41: =IF(CO7,CO5,NA()) ->  | CP41: =IF(CP7,CP5,NA()) ->  | CQ41: =IF(CQ7,CQ5,NA()) ->  | CR41: =IF(CR7,CR5,NA()) ->  | CS41: =IF(CS7,CS5,NA()) ->  | CT41: =IF(CT7,CT5,NA()) ->  | CU41: =IF(CU7,CU5,NA()) ->  | CV41: =IF(CV7,CV5,NA()) ->  | CW41: =IF(CW7,CW5,NA()) ->  | CX41: =IF(CX7,CX5,NA()) ->  | CY41: =IF(CY7,CY5,NA()) ->  | CZ41: =IF(CZ7,CZ5,NA()) ->  | DA41: =IF(DA7,DA5,NA()) ->  | DB41: =IF(DB7,DB5,NA()) ->  | DC41: =IF(DC7,DC5,NA()) ->  | DD41: =IF(DD7,DD5,NA()) ->  | DE41: =IF(DE7,DE5,NA()) ->  | DF41: =IF(DF7,DF5,NA()) -> 
C42: Revenues | K42: =K18 -> 1717.268878 | L42: =L18 -> 1959.279499 | M42: 2024.414325 | N42: 1999.974793 | O42: 1923.001736 | P42: 1814.460612 | Q42: 1687.808823 | R42: 1552.20941 | S42: 1414.054685 | T42: 1277.814611 | U42: 1146.567188 | V42: 1022.358705 | W42: 906.4628791 | X42: 799.5745328 | Y42: 701.9578364 | Z42: 613.5613215 | AA42: 534.107646 | AB42: 463.1636651 | AC42: 400.1948852 | AD42: 344.6074187 | AE42: 295.7798947 | AF42: 253.0873019 | AG42: 215.9183715 | AH42: 183.687823 | AI42: 155.8445573 | AJ42: 131.8766903 | AK42: 111.3141595 | AL42: 93.72949848 | AM42: 78.73726188 | AN42: 65.9924877 | AO42: 55.18850396 | AP42: 0 | AQ42: 0 | AR42: 0 | AS42: 0 | AT42: 0 | AU42: 0 | AV42: 0 | AW42: 0 | AX42: 0 | AY42: 0 | AZ42: 0 | BA42: 0 | BB42: 0 | BC42: 0 | BD42: 1656 | BE42: 0 | BF42: 0 | BG42: 0 | BH42: 0 | BI42: 0 | BJ42: 0 | BK42: 0 | BL42: 0 | BM42: 0 | BN42: 0 | BO42: 0 | BP42: 0 | BQ42: 0 | BR42: 0 | BS42: 0 | BT42: 0 | BU42: 0 | BV42: 0 | BW42: 0 | BX42: =BX18 -> 0 | BY42: 0 | BZ42: 0 | CA42: 0 | CB42: 0 | CC42: 0 | CD42: 0 | CE42: 0 | CF42: 0 | CG42: 0 | CH42: 0 | CI42: 0 | CJ42: 0 | CK42: 0 | CL42: 0 | CM42: 0 | CN42: 0 | CO42: 0 | CP42: 0 | CQ42: 0 | CR42: 0 | CS42: 0 | CT42: 0 | CU42: 0 | CV42: 0 | CW42: 0 | CX42: 0 | CY42: 0 | CZ42: 0 | DA42: 0 | DB42: 0 | DC42: 0 | DD42: 0 | DE42: 0 | DF42: 0
C43: Costs | K43: =K22+K34 -> 1522.401487 | L43: =L22+L34 -> 1736.94991 | M43: 1794.693551 | N43: 1773.027299 | O43: 1704.788773 | P43: 1608.564372 | Q43: 1496.284417 | R43: 1376.072172 | S43: 1253.594579 | T43: 1132.814371 | U43: 1016.460273 | V43: 906.3463699 | W43: 803.6018432 | X43: 708.8426709 | Y43: 622.3030464 | Z43: 543.9373417 | AA43: 473.4996862 | AB43: 410.6060861 | AC43: 354.7826996 | AD43: 305.5030307 | AE43: 262.2162187 | AF43: 224.3681754 | AG43: 191.416996 | AH43: 162.8438147 | AI43: 138.1600685 | AJ43: 116.9119595 | AK43: 98.6827655 | AL43: 83.09352702 | AM43: 69.80253712 | AN43: 58.50397845 | AO43: 48.92597869 | AP43: 0 | AQ43: 0 | AR43: 0 | AS43: 0 | AT43: 0 | AU43: 0 | AV43: 0 | AW43: 0 | AX43: 0 | AY43: 0 | AZ43: 0 | BA43: 0 | BB43: 0 | BC43: 0 | BD43: 905.14 | BE43: 0 | BF43: 0 | BG43: 0 | BH43: 0 | BI43: 0 | BJ43: 0 | BK43: 0 | BL43: 0 | BM43: 0 | BN43: 0 | BO43: 0 | BP43: 0 | BQ43: 0 | BR43: 0 | BS43: 0 | BT43: 0 | BU43: 0 | BV43: 0 | BW43: 0 | BX43: =BX22+BX34 -> 0 | BY43: 0 | BZ43: 0 | CA43: 0 | CB43: 0 | CC43: 0 | CD43: 0 | CE43: 0 | CF43: 0 | CG43: 0 | CH43: 0 | CI43: 0 | CJ43: 0 | CK43: 0 | CL43: 0 | CM43: 0 | CN43: 0 | CO43: 0 | CP43: 0 | CQ43: 0 | CR43: 0 | CS43: 0 | CT43: 0 | CU43: 0 | CV43: 0 | CW43: 0 | CX43: 0 | CY43: 0 | CZ43: 0 | DA43: 0 | DB43: 0 | DC43: 0 | DD43: 0 | DE43: 0 | DF43: 0
C44: Liquidated Damages

Sheet EPC + F
B1: Timing | G1: Driver | H1: Driver | I1: Sum
C2: Period | F2: Counter | K2: 1 | L2: 2 | M2: 3 | N2: 4 | O2: 5 | P2: 6 | Q2: 7 | R2: 8 | S2: 9 | T2: 10 | U2: 11 | V2: 12 | W2: 13 | X2: 14 | Y2: 15 | Z2: 16 | AA2: 17 | AB2: 18 | AC2: 19 | AD2: 20 | AE2: 21 | AF2: 22 | AG2: 23 | AH2: 24 | AI2: 25 | AJ2: 26 | AK2: 27 | AL2: 28 | AM2: 29 | AN2: 30 | AO2: 31 | AP2: 32 | AQ2: 33 | AR2: 34 | AS2: 35 | AT2: 36 | AU2: 37 | AV2: 38 | AW2: 39 | AX2: 40 | AY2: 41 | AZ2: 42 | BA2: 43 | BB2: 44 | BC2: 45 | BD2: 46 | BE2: 47 | BF2: 48 | BG2: 49 | BH2: 50 | BI2: 51 | BJ2: 52 | BK2: 53 | BL2: 54 | BM2: 55 | BN2: 56 | BO2: 57 | BP2: 58 | BQ2: 59 | BR2: 60 | BS2: 61 | BT2: 62 | BU2: 63 | BV2: 64 | BW2: 65 | BX2: 66 | BY2: 67 | BZ2: 68 | CA2: 69 | CB2: 70 | CC2: 71 | CD2: 72 | CE2: 73 | CF2: 74 | CG2: 75 | CH2: 76 | CI2: 77 | CJ2: 78 | CK2: 79 | CL2: 80 | CM2: 81 | CN2: 82 | CO2: 83 | CP2: 84 | CQ2: 85 | CR2: 86 | CS2: 87 | CT2: 88 | CU2: 89 | CV2: 90 | CW2: 91 | CX2: 92 | CY2: 93 | CZ2: 94 | DA2: 95 | DB2: 96 | DC2: 97 | DD2: 98 | DE2: 99 | DF2: 100
C3: Pre-COD | F3: Flag | G3: ='Operating Inputs'!G13 -> 34 | K3: =K2<=$G$3 -> TRUE | L3: TRUE | M3: TRUE | N3: TRUE | O3: TRUE | P3: TRUE | Q3: TRUE | R3: TRUE | S3: TRUE | T3: TRUE | U3: TRUE | V3: TRUE | W3: TRUE | X3: TRUE | Y3: TRUE | Z3: TRUE | AA3: TRUE | AB3: TRUE | AC3: TRUE | AD3: TRUE | AE3: TRUE | AF3: TRUE | AG3: TRUE | AH3: TRUE | AI3: TRUE | AJ3: TRUE | AK3: TRUE | AL3: TRUE | AM3: TRUE | AN3: TRUE | AO3: TRUE | AP3: TRUE | AQ3: =AQ2<=$G$3 -> TRUE | AR3: TRUE | AS3: FALSE | AT3: FALSE | AU3: FALSE | AV3: FALSE | AW3: FALSE | AX3: FALSE | AY3: FALSE | AZ3: FALSE | BA3: FALSE | BB3: FALSE | BC3: FALSE | BD3: FALSE | BE3: FALSE | BF3: FALSE | BG3: FALSE | BH3: FALSE | BI3: FALSE | BJ3: FALSE | BK3: FALSE | BL3: FALSE | BM3: FALSE | BN3: FALSE | BO3: FALSE | BP3: FALSE | BQ3: FALSE | BR3: FALSE | BS3: FALSE | BT3: FALSE | BU3: FALSE | BV3: FALSE | BW3: =BW2<=$G$3 -> FALSE | BX3: FALSE | BY3: FALSE | BZ3: FALSE | CA3: FALSE | CB3: FALSE | CC3: FALSE | CD3: FALSE | CE3: FALSE | CF3: FALSE | CG3: FALSE | CH3: FALSE | CI3: FALSE | CJ3: FALSE | CK3: FALSE | CL3: FALSE | CM3: FALSE | CN3: FALSE | CO3: FALSE | CP3: FALSE | CQ3: FALSE | CR3: FALSE | CS3: FALSE | CT3: FALSE | CU3: FALSE | CV3: FALSE | CW3: FALSE | CX3: FALSE | CY3: FALSE | CZ3: FALSE | DA3: FALSE | DB3: FALSE | DC3: =DC2<=$G$3 -> FALSE | DD3: FALSE | DE3: FALSE | DF3: FALSE
C4: Monthls in Period | F4: Months | G4: ='Operating Inputs'!$G$7 -> 1 | H4: ='Operating Inputs'!$G$8 -> 3 | K4: =IF(K3,$G$4,$H$4) -> 1 | L4: 1 | M4: 1 | N4: 1 | O4: 1 | P4: 1 | Q4: 1 | R4: 1 | S4: 1 | T4: 1 | U4: 1 | V4: 1 | W4: 1 | X4: 1 | Y4: 1 | Z4: 1 | AA4: 1 | AB4: 1 | AC4: 1 | AD4: 1 | AE4: 1 | AF4: 1 | AG4: 1 | AH4: 1 | AI4: 1 | AJ4: 1 | AK4: 1 | AL4: 1 | AM4: 1 | AN4: 1 | AO4: 1 | AP4: 1 | AQ4: =IF(AQ3,$G$4,$H$4) -> 1 | AR4: 1 | AS4: 3 | AT4: 3 | AU4: 3 | AV4: 3 | AW4: 3 | AX4: 3 | AY4: 3 | AZ4: 3 | BA4: 3 | BB4: 3 | BC4: 3 | BD4: 3 | BE4: 3 | BF4: 3 | BG4: 3 | BH4: 3 | BI4: 3 | BJ4: 3 | BK4: 3 | BL4: 3 | BM4: 3 | BN4: 3 | BO4: 3 | BP4: 3 | BQ4: 3 | BR4: 3 | BS4: 3 | BT4: 3 | BU4: 3 | BV4: 3 | BW4: =IF(BW3,$G$4,$H$4) -> 3 | BX4: 3 | BY4: 3 | BZ4: 3 | CA4: 3 | CB4: 3 | CC4: 3 | CD4: 3 | CE4: 3 | CF4: 3 | CG4: 3 | CH4: 3 | CI4: 3 | CJ4: 3 | CK4: 3 | CL4: 3 | CM4: 3 | CN4: 3 | CO4: 3 | CP4: 3 | CQ4: 3 | CR4: 3 | CS4: 3 | CT4: 3 | CU4: 3 | CV4: 3 | CW4: 3 | CX4: 3 | CY4: 3 | CZ4: 3 | DA4: 3 | DB4: 3 | DC4: =IF(DC3,$G$4,$H$4) -> 3 | DD4: 3 | DE4: 3 | DF4: 3
C5: Date | F5: Date | G5: ='Operating Inputs'!$G$10 -> 2020-01-01 | J5: =EDATE($G$5,-1) -> 2019-12-01 | K5: =EDATE(J5,K4) -> 2020-01-01 | L5: 2020-02-01 | M5: 2020-03-01 | N5: 2020-04-01 | O5: 2020-05-01 | P5: 2020-06-01 | Q5: 2020-07-01 | R5: 2020-08-01 | S5: 2020-09-01 | T5: 2020-10-01 | U5: 2020-11-01 | V5: 2020-12-01 | W5: 2021-01-01 | X5: 2021-02-01 | Y5: 2021-03-01 | Z5: 2021-04-01 | AA5: 2021-05-01 | AB5: 2021-06-01 | AC5: 2021-07-01 | AD5: 2021-08-01 | AE5: 2021-09-01 | AF5: 2021-10-01 | AG5: 2021-11-01 | AH5: 2021-12-01 | AI5: 2022-01-01 | AJ5: 2022-02-01 | AK5: 2022-03-01 | AL5: 2022-04-01 | AM5: 2022-05-01 | AN5: 2022-06-01 | AO5: 2022-07-01 | AP5: 2022-08-01 | AQ5: =EDATE(AP5,AQ4) -> 2022-09-01 | AR5: 2022-10-01 | AS5: 2023-01-01 | AT5: 2023-04-01 | AU5: 2023-07-01 | AV5: 2023-10-01 | AW5: 2024-01-01 | AX5: 2024-04-01 | AY5: 2024-07-01 | AZ5: 2024-10-01 | BA5: 2025-01-01 | BB5: 2025-04-01 | BC5: 2025-07-01 | BD5: 2025-10-01 | BE5: 2026-01-01 | BF5: 2026-04-01 | BG5: 2026-07-01 | BH5: 2026-10-01 | BI5: 2027-01-01 | BJ5: 2027-04-01 | BK5: 2027-07-01 | BL5: 2027-10-01 | BM5: 2028-01-01 | BN5: 2028-04-01 | BO5: 2028-07-01 | BP5: 2028-10-01 | BQ5: 2029-01-01 | BR5: 2029-04-01 | BS5: 2029-07-01 | BT5: 2029-10-01 | BU5: 2030-01-01 | BV5: 2030-04-01 | BW5: =EDATE(BV5,BW4) -> 2030-07-01 | BX5: 2030-10-01 | BY5: 2031-01-01 | BZ5: 2031-04-01 | CA5: 2031-07-01 | CB5: 2031-10-01 | CC5: 2032-01-01 | CD5: 2032-04-01 | CE5: 2032-07-01 | CF5: 2032-10-01 | CG5: 2033-01-01 | CH5: 2033-04-01 | CI5: 2033-07-01 | CJ5: 2033-10-01 | CK5: 2034-01-01 | CL5: 2034-04-01 | CM5: 2034-07-01 | CN5: 2034-10-01 | CO5: 2035-01-01 | CP5: 2035-04-01 | CQ5: 2035-07-01 | CR5: 2035-10-01 | CS5: 2036-01-01 | CT5: 2036-04-01 | CU5: 2036-07-01 | CV5: 2036-10-01 | CW5: 2037-01-01 | CX5: 2037-04-01 | CY5: 2037-07-01 | CZ5: 2037-10-01 | DA5: 2038-01-01 | DB5: 2038-04-01 | DC5: =EDATE(DB5,DC4) -> 2038-07-01 | DD5: 2038-10-01 | DE5: 2039-01-01 | DF5: 2039-04-01
C6: Delay Period | F6: Flag | G6: ='Operating Inputs'!$G$36 -> 2021-12-01 | H6: ='Operating Inputs'!$G$14 -> 2022-11-01 | I6: =SUM(K6:DF6) -> 11 | K6: =AND(K5>=$G$6,K5<$H$6)*1 -> 0 | L6: 0 | M6: 0 | N6: 0 | O6: 0 | P6: 0 | Q6: 0 | R6: 0 | S6: 0 | T6: 0 | U6: 0 | V6: 0 | W6: 0 | X6: 0 | Y6: 0 | Z6: 0 | AA6: 0 | AB6: 0 | AC6: 0 | AD6: 0 | AE6: 0 | AF6: 0 | AG6: 0 | AH6: 1 | AI6: 1 | AJ6: 1 | AK6: 1 | AL6: 1 | AM6: 1 | AN6: 1 | AO6: 1 | AP6: 1 | AQ6: =AND(AQ5>=$G$6,AQ5<$H$6)*1 -> 1 | AR6: 1 | AS6: 0 | AT6: 0 | AU6: 0 | AV6: 0 | AW6: 0 | AX6: 0 | AY6: 0 | AZ6: 0 | BA6: 0 | BB6: 0 | BC6: 0 | BD6: 0 | BE6: 0 | BF6: 0 | BG6: 0 | BH6: 0 | BI6: 0 | BJ6: 0 | BK6: 0 | BL6: 0 | BM6: 0 | BN6: 0 | BO6: 0 | BP6: 0 | BQ6: 0 | BR6: 0 | BS6: 0 | BT6: 0 | BU6: 0 | BV6: 0 | BW6: =AND(BW5>=$G$6,BW5<$H$6)*1 -> 0 | BX6: 0 | BY6: 0 | BZ6: 0 | CA6: 0 | CB6: 0 | CC6: 0 | CD6: 0 | CE6: 0 | CF6: 0 | CG6: 0 | CH6: 0 | CI6: 0 | CJ6: 0 | CK6: 0 | CL6: 0 | CM6: 0 | CN6: 0 | CO6: 0 | CP6: 0 | CQ6: 0 | CR6: 0 | CS6: 0 | CT6: 0 | CU6: 0 | CV6: 0 | CW6: 0 | CX6: 0 | CY6: 0 | CZ6: 0 | DA6: 0 | DB6: 0 | DC6: =AND(DC5>=$G$6,DC5<$H$6)*1 -> 0 | DD6: 0 | DE6: 0 | DF6: 0
C7: Operation Period | F7: Flag | G7: ='Operating Inputs'!$G$14 -> 2022-11-01 | H7: ='Operating Inputs'!$G$17 -> 2028-05-01 | I7: =SUM(K7:DF7) -> 22 | K7: =AND(K5>=$G$7,K5<$H$7)*1 -> 0 | L7: 0 | M7: 0 | N7: 0 | O7: 0 | P7: 0 | Q7: 0 | R7: 0 | S7: 0 | T7: 0 | U7: 0 | V7: 0 | W7: 0 | X7: 0 | Y7: 0 | Z7: 0 | AA7: 0 | AB7: 0 | AC7: 0 | AD7: 0 | AE7: 0 | AF7: 0 | AG7: 0 | AH7: 0 | AI7: 0 | AJ7: 0 | AK7: 0 | AL7: 0 | AM7: 0 | AN7: 0 | AO7: 0 | AP7: 0 | AQ7: =AND(AQ5>=$G$7,AQ5<$H$7)*1 -> 0 | AR7: 0 | AS7: 1 | AT7: 1 | AU7: 1 | AV7: 1 | AW7: 1 | AX7: 1 | AY7: 1 | AZ7: 1 | BA7: 1 | BB7: 1 | BC7: 1 | BD7: 1 | BE7: 1 | BF7: 1 | BG7: 1 | BH7: 1 | BI7: 1 | BJ7: 1 | BK7: 1 | BL7: 1 | BM7: 1 | BN7: 1 | BO7: 0 | BP7: 0 | BQ7: 0 | BR7: 0 | BS7: 0 | BT7: 0 | BU7: 0 | BV7: 0 | BW7: =AND(BW5>=$G$7,BW5<$H$7)*1 -> 0 | BX7: 0 | BY7: 0 | BZ7: 0 | CA7: 0 | CB7: 0 | CC7: 0 | CD7: 0 | CE7: 0 | CF7: 0 | CG7: 0 | CH7: 0 | CI7: 0 | CJ7: 0 | CK7: 0 | CL7: 0 | CM7: 0 | CN7: 0 | CO7: 0 | CP7: 0 | CQ7: 0 | CR7: 0 | CS7: 0 | CT7: 0 | CU7: 0 | CV7: 0 | CW7: 0 | CX7: 0 | CY7: 0 | CZ7: 0 | DA7: 0 | DB7: 0 | DC7: 0 | DD7: 0 | DE7: 0 | DF7: 0
B10: Direct Construction and Liquidated Damage
C12: Payment for the EPC Contract
D13: S-Curve for Progress Payments | I13: =SUM(K13:DF13) -> 1 | K13: =SUMIF('EPC Profit'!12:12,'EPC + F'!K5,'EPC Profit'!17:17) -> 0.06221988687 | L13: =SUMIF('EPC Profit'!12:12,'EPC + F'!L5,'EPC Profit'!17:17) -> 0.07098838764 | M13: =SUMIF('EPC Profit'!12:12,'EPC + F'!M5,'EPC Profit'!17:17) -> 0.07334834512 | N13: =SUMIF('EPC Profit'!12:12,'EPC + F'!N5,'EPC Profit'!17:17) -> 0.07246285483 | O13: =SUMIF('EPC Profit'!12:12,'EPC + F'!O5,'EPC Profit'!17:17) -> 0.06967397593 | P13: =SUMIF('EPC Profit'!12:12,'EPC + F'!P5,'EPC Profit'!17:17) -> 0.06574132651 | Q13: =SUMIF('EPC Profit'!12:12,'EPC + F'!Q5,'EPC Profit'!17:17) -> 0.06115249358 | R13: =SUMIF('EPC Profit'!12:12,'EPC + F'!R5,'EPC Profit'!17:17) -> 0.05623947137 | S13: =SUMIF('EPC Profit'!12:12,'EPC + F'!S5,'EPC Profit'!17:17) -> 0.05123386541 | T13: =SUMIF('EPC Profit'!12:12,'EPC + F'!T5,'EPC Profit'!17:17) -> 0.04629763083 | U13: =SUMIF('EPC Profit'!12:12,'EPC + F'!U5,'EPC Profit'!17:17) -> 0.04154228944 | V13: =SUMIF('EPC Profit'!12:12,'EPC + F'!V5,'EPC Profit'!17:17) -> 0.03704198207 | W13: =SUMIF('EPC Profit'!12:12,'EPC + F'!W5,'EPC Profit'!17:17) -> 0.03284285794 | X13: =SUMIF('EPC Profit'!12:12,'EPC + F'!X5,'EPC Profit'!17:17) -> 0.02897009177 | Y13: =SUMIF('EPC Profit'!12:12,'EPC + F'!Y5,'EPC Profit'!17:17) -> 0.02543325494 | Z13: =SUMIF('EPC Profit'!12:12,'EPC + F'!Z5,'EPC Profit'!17:17) -> 0.02223048266 | AA13: =SUMIF('EPC Profit'!12:12,'EPC + F'!AA5,'EPC Profit'!17:17) -> 0.01935172631 | AB13: =SUMIF('EPC Profit'!12:12,'EPC + F'!AB5,'EPC Profit'!17:17) -> 0.01678129221 | AC13: =SUMIF('EPC Profit'!12:12,'EPC + F'!AC5,'EPC Profit'!17:17) -> 0.01449981468 | AD13: =SUMIF('EPC Profit'!12:12,'EPC + F'!AD5,'EPC Profit'!17:17) -> 0.01248577604 | AE13: =SUMIF('EPC Profit'!12:12,'EPC + F'!AE5,'EPC Profit'!17:17) -> 0.01071666285 | AF13: =SUMIF('EPC Profit'!12:12,'EPC + F'!AF5,'EPC Profit'!17:17) -> 0.009169829778 | AG13: =SUMIF('EPC Profit'!12:12,'EPC + F'!AG5,'EPC Profit'!17:17) -> 0.007823129401 | AH13: =SUMIF('EPC Profit'!12:12,'EPC + F'!AH5,'EPC Profit'!17:17) -> 0.006655355907 | AI13: =SUMIF('EPC Profit'!12:12,'EPC + F'!AI5,'EPC Profit'!17:17) -> 0.00564654193 | AJ13: =SUMIF('EPC Profit'!12:12,'EPC + F'!AJ5,'EPC Profit'!17:17) -> 0.004778140951 | AK13: =SUMIF('EPC Profit'!12:12,'EPC + F'!AK5,'EPC Profit'!17:17) -> 0.00403312172 | AL13: =SUMIF('EPC Profit'!12:12,'EPC + F'!AL5,'EPC Profit'!17:17) -> 0.003395996322 | AM13: =SUMIF('EPC Profit'!12:12,'EPC + F'!AM5,'EPC Profit'!17:17) -> 0.002852799343 | AN13: =SUMIF('EPC Profit'!12:12,'EPC + F'!AN5,'EPC Profit'!17:17) -> 0.002391032163 | AO13: =SUMIF('EPC Profit'!12:12,'EPC + F'!AO5,'EPC Profit'!17:17) -> 0.001999583477 | AP13: =SUMIF('EPC Profit'!12:12,'EPC + F'!AP5,'EPC Profit'!17:17) -> 0 | AQ13: =SUMIF('EPC Profit'!12:12,'EPC + F'!AQ5,'EPC Profit'!17:17) -> 0 | AR13: =SUMIF('EPC Profit'!12:12,'EPC + F'!AR5,'EPC Profit'!17:17) -> 0 | AS13: =SUMIF('EPC Profit'!12:12,'EPC + F'!AS5,'EPC Profit'!17:17) -> 0 | AT13: =SUMIF('EPC Profit'!12:12,'EPC + F'!AT5,'EPC Profit'!17:17) -> 0 | AU13: =SUMIF('EPC Profit'!12:12,'EPC + F'!AU5,'EPC Profit'!17:17) -> 0 | AV13: =SUMIF('EPC Profit'!12:12,'EPC + F'!AV5,'EPC Profit'!17:17) -> 0.06 | AW13: =SUMIF('EPC Profit'!12:12,'EPC + F'!AW5,'EPC Profit'!17:17) -> 0 | AX13: =SUMIF('EPC Profit'!12:12,'EPC + F'!AX5,'EPC Profit'!17:17) -> 0 | AY13: =SUMIF('EPC Profit'!12:12,'EPC + F'!AY5,'EPC Profit'!17:17) -> 0 | AZ13: =SUMIF('EPC Profit'!12:12,'EPC + F'!AZ5,'EPC Profit'!17:17) -> 0 | BA13: =SUMIF('EPC Profit'!12:12,'EPC + F'!BA5,'EPC Profit'!17:17) -> 0 | BB13: =SUMIF('EPC Profit'!12:12,'EPC + F'!BB5,'EPC Profit'!17:17) -> 0 | BC13: =SUMIF('EPC Profit'!12:12,'EPC + F'!BC5,'EPC Profit'!17:17) -> 0 | BD13: =SUMIF('EPC Profit'!12:12,'EPC + F'!BD5,'EPC Profit'!17:17) -> 0 | BE13: =SUMIF('EPC Profit'!12:12,'EPC + F'!BE5,'EPC Profit'!17:17) -> 0 | BF13: =SUMIF('EPC Profit'!12:12,'EPC + F'!BF5,'EPC Profit'!17:17) -> 0 | BG13: =SUMIF('EPC Profit'!12:12,'EPC + F'!BG5,'EPC Profit'!17:17) -> 0 | BH13: =SUMIF('EPC Profit'!12:12,'EPC + F'!BH5,'EPC Profit'!17:17) -> 0 | BI13: =SUMIF('EPC Profit'!12:12,'EPC + F'!BI5,'EPC Profit'!17:17) -> 0 | BJ13: =SUMIF('EPC Profit'!12:12,'EPC + F'!BJ5,'EPC Profit'!17:17) -> 0 | BK13: =SUMIF('EPC Profit'!12:12,'EPC + F'!BK5,'EPC Profit'!17:17) -> 0 | BL13: =SUMIF('EPC Profit'!12:12,'EPC + F'!BL5,'EPC Profit'!17:17) -> 0 | BM13: =SUMIF('EPC Profit'!12:12,'EPC + F'!BM5,'EPC Profit'!17:17) -> 0 | BN13: =SUMIF('EPC Profit'!12:12,'EPC + F'!BN5,'EPC Profit'!17:17) -> 0 | BO13: =SUMIF('EPC Profit'!12:12,'EPC + F'!BO5,'EPC Profit'!17:17) -> 0 | BP13: =SUMIF('EPC Profit'!12:12,'EPC + F'!BP5,'EPC Profit'!17:17) -> 0 | BQ13: =SUMIF('EPC Profit'!12:12,'EPC + F'!BQ5,'EPC Profit'!17:17) -> 0 | BR13: =SUMIF('EPC Profit'!12:12,'EPC + F'!BR5,'EPC Profit'!17:17) -> 0 | BS13: =SUMIF('EPC Profit'!12:12,'EPC + F'!BS5,'EPC Profit'!17:17) -> 0 | BT13: =SUMIF('EPC Profit'!12:12,'EPC + F'!BT5,'EPC Profit'!17:17) -> 0 | BU13: =SUMIF('EPC Profit'!12:12,'EPC + F'!BU5,'EPC Profit'!17:17) -> 0 | BV13: =SUMIF('EPC Profit'!12:12,'EPC + F'!BV5,'EPC Profit'!17:17) -> 0 | BW13: =SUMIF('EPC Profit'!12:12,'EPC + F'!BW5,'EPC Profit'!17:17) -> 0 | BX13: =SUMIF('EPC Profit'!12:12,'EPC + F'!BX5,'EPC Profit'!17:17) -> 0 | BY13: =SUMIF('EPC Profit'!12:12,'EPC + F'!BY5,'EPC Profit'!17:17) -> 0 | BZ13: =SUMIF('EPC Profit'!12:12,'EPC + F'!BZ5,'EPC Profit'!17:17) -> 0 | CA13: =SUMIF('EPC Profit'!12:12,'EPC + F'!CA5,'EPC Profit'!17:17) -> 0 | CB13: =SUMIF('EPC Profit'!12:12,'EPC + F'!CB5,'EPC Profit'!17:17) -> 0 | CC13: =SUMIF('EPC Profit'!12:12,'EPC + F'!CC5,'EPC Profit'!17:17) -> 0 | CD13: =SUMIF('EPC Profit'!12:12,'EPC + F'!CD5,'EPC Profit'!17:17) -> 0 | CE13: =SUMIF('EPC Profit'!12:12,'EPC + F'!CE5,'EPC Profit'!17:17) -> 0 | CF13: =SUMIF('EPC Profit'!12:12,'EPC + F'!CF5,'EPC Profit'!17:17) -> 0 | CG13: =SUMIF('EPC Profit'!12:12,'EPC + F'!CG5,'EPC Profit'!17:17) -> 0 | CH13: =SUMIF('EPC Profit'!12:12,'EPC + F'!CH5,'EPC Profit'!17:17) -> 0 | CI13: =SUMIF('EPC Profit'!12:12,'EPC + F'!CI5,'EPC Profit'!17:17) -> 0 | CJ13: =SUMIF('EPC Profit'!12:12,'EPC + F'!CJ5,'EPC Profit'!17:17) -> 0 | CK13: =SUMIF('EPC Profit'!12:12,'EPC + F'!CK5,'EPC Profit'!17:17) -> 0 | CL13: =SUMIF('EPC Profit'!12:12,'EPC + F'!CL5,'EPC Profit'!17:17) -> 0 | CM13: =SUMIF('EPC Profit'!12:12,'EPC + F'!CM5,'EPC Profit'!17:17) -> 0 | CN13: =SUMIF('EPC Profit'!12:12,'EPC + F'!CN5,'EPC Profit'!17:17) -> 0 | CO13: =SUMIF('EPC Profit'!12:12,'EPC + F'!CO5,'EPC Profit'!17:17) -> 0 | CP13: =SUMIF('EPC Profit'!12:12,'EPC + F'!CP5,'EPC Profit'!17:17) -> 0 | CQ13: =SUMIF('EPC Profit'!12:12,'EPC + F'!CQ5,'EPC Profit'!17:17) -> 0 | CR13: =SUMIF('EPC Profit'!12:12,'EPC + F'!CR5,'EPC Profit'!17:17) -> 0 | CS13: =SUMIF('EPC Profit'!12:12,'EPC + F'!CS5,'EPC Profit'!17:17) -> 0 | CT13: =SUMIF('EPC Profit'!12:12,'EPC + F'!CT5,'EPC Profit'!17:17) -> 0 | CU13: =SUMIF('EPC Profit'!12:12,'EPC + F'!CU5,'EPC Profit'!17:17) -> 0 | CV13: =SUMIF('EPC Profit'!12:12,'EPC + F'!CV5,'EPC Profit'!17:17) -> 0 | CW13: =SUMIF('EPC Profit'!12:12,'EPC + F'!CW5,'EPC Profit'!17:17) -> 0 | CX13: =SUMIF('EPC Profit'!12:12,'EPC + F'!CX5,'EPC Profit'!17:17) -> 0 | CY13: =SUMIF('EPC Profit'!12:12,'EPC + F'!CY5,'EPC Profit'!17:17) -> 0 | CZ13: =SUMIF('EPC Profit'!12:12,'EPC + F'!CZ5,'EPC Profit'!17:17) -> 0 | DA13: =SUMIF('EPC Profit'!12:12,'EPC + F'!DA5,'EPC Profit'!17:17) -> 0 | DB13: =SUMIF('EPC Profit'!12:12,'EPC + F'!DB5,'EPC Profit'!17:17) -> 0 | DC13: =SUMIF('EPC Profit'!12:12,'EPC + F'!DC5,'EPC Profit'!17:17) -> 0 | DD13: =SUMIF('EPC Profit'!12:12,'EPC + F'!DD5,'EPC Profit'!17:17) -> 0 | DE13: =SUMIF('EPC Profit'!12:12,'EPC + F'!DE5,'EPC Profit'!17:17) -> 0 | DF13: =SUMIF('EPC Profit'!12:12,'EPC + F'!DF5,'EPC Profit'!17:17) -> 0
D14: Total Payments Made to EPC | G14: ='Operating Inputs'!G26 -> 27600 | I14: =SUM(K14:DF14) -> 27600 | K14: =K13*$G$14 -> 1717.268878 | L14: =L13*$G$14 -> 1959.279499 | M14: 2024.414325 | N14: 1999.974793 | O14: 1923.001736 | P14: 1814.460612 | Q14: 1687.808823 | R14: 1552.20941 | S14: 1414.054685 | T14: 1277.814611 | U14: 1146.567188 | V14: 1022.358705 | W14: 906.4628791 | X14: 799.5745328 | Y14: 701.9578364 | Z14: 613.5613215 | AA14: 534.107646 | AB14: 463.1636651 | AC14: 400.1948852 | AD14: 344.6074187 | AE14: 295.7798947 | AF14: 253.0873019 | AG14: 215.9183715 | AH14: 183.687823 | AI14: 155.8445573 | AJ14: 131.8766903 | AK14: 111.3141595 | AL14: 93.72949848 | AM14: 78.73726188 | AN14: 65.9924877 | AO14: 55.18850396 | AP14: 0 | AQ14: 0 | AR14: 0 | AS14: 0 | AT14: 0 | AU14: 0 | AV14: 1656 | AW14: 0 | AX14: 0 | AY14: 0 | AZ14: 0 | BA14: 0 | BB14: 0 | BC14: 0 | BD14: 0 | BE14: 0 | BF14: 0 | BG14: 0 | BH14: 0 | BI14: 0 | BJ14: 0 | BK14: 0 | BL14: 0 | BM14: 0 | BN14: 0 | BO14: 0 | BP14: 0 | BQ14: 0 | BR14: 0 | BS14: 0 | BT14: 0 | BU14: 0 | BV14: 0 | BW14: 0 | BX14: =BX13*$G$14 -> 0 | BY14: 0 | BZ14: 0 | CA14: 0 | CB14: 0 | CC14: 0 | CD14: 0 | CE14: 0 | CF14: 0 | CG14: 0 | CH14: 0 | CI14: 0 | CJ14: 0 | CK14: 0 | CL14: 0 | CM14: 0 | CN14: 0 | CO14: 0 | CP14: 0 | CQ14: 0 | CR14: 0 | CS14: 0 | CT14: 0 | CU14: 0 | CV14: 0 | CW14: 0 | CX14: 0 | CY14: 0 | CZ14: 0 | DA14: 0 | DB14: 0 | DC14: 0 | DD14: 0 | DE14: 0 | DF14: 0
C16: Add: Liquidated Damage Received | I16: =SUM(K16:DF16) -> 905.14 | K16: =SUMIF('EPC Profit'!12:12,'EPC + F'!K5,'EPC Profit'!34:34) -> 0 | L16: =SUMIF('EPC Profit'!12:12,'EPC + F'!L5,'EPC Profit'!34:34) -> 0 | M16: =SUMIF('EPC Profit'!12:12,'EPC + F'!M5,'EPC Profit'!34:34) -> 0 | N16: =SUMIF('EPC Profit'!12:12,'EPC + F'!N5,'EPC Profit'!34:34) -> 0 | O16: =SUMIF('EPC Profit'!12:12,'EPC + F'!O5,'EPC Profit'!34:34) -> 0 | P16: =SUMIF('EPC Profit'!12:12,'EPC + F'!P5,'EPC Profit'!34:34) -> 0 | Q16: =SUMIF('EPC Profit'!12:12,'EPC + F'!Q5,'EPC Profit'!34:34) -> 0 | R16: =SUMIF('EPC Profit'!12:12,'EPC + F'!R5,'EPC Profit'!34:34) -> 0 | S16: =SUMIF('EPC Profit'!12:12,'EPC + F'!S5,'EPC Profit'!34:34) -> 0 | T16: =SUMIF('EPC Profit'!12:12,'EPC + F'!T5,'EPC Profit'!34:34) -> 0 | U16: =SUMIF('EPC Profit'!12:12,'EPC + F'!U5,'EPC Profit'!34:34) -> 0 | V16: =SUMIF('EPC Profit'!12:12,'EPC + F'!V5,'EPC Profit'!34:34) -> 0 | W16: =SUMIF('EPC Profit'!12:12,'EPC + F'!W5,'EPC Profit'!34:34) -> 0 | X16: =SUMIF('EPC Profit'!12:12,'EPC + F'!X5,'EPC Profit'!34:34) -> 0 | Y16: =SUMIF('EPC Profit'!12:12,'EPC + F'!Y5,'EPC Profit'!34:34) -> 0 | Z16: =SUMIF('EPC Profit'!12:12,'EPC + F'!Z5,'EPC Profit'!34:34) -> 0 | AA16: =SUMIF('EPC Profit'!12:12,'EPC + F'!AA5,'EPC Profit'!34:34) -> 0 | AB16: =SUMIF('EPC Profit'!12:12,'EPC + F'!AB5,'EPC Profit'!34:34) -> 0 | AC16: =SUMIF('EPC Profit'!12:12,'EPC + F'!AC5,'EPC Profit'!34:34) -> 0 | AD16: =SUMIF('EPC Profit'!12:12,'EPC + F'!AD5,'EPC Profit'!34:34) -> 0 | AE16: =SUMIF('EPC Profit'!12:12,'EPC + F'!AE5,'EPC Profit'!34:34) -> 0 | AF16: =SUMIF('EPC Profit'!12:12,'EPC + F'!AF5,'EPC Profit'!34:34) -> 0 | AG16: =SUMIF('EPC Profit'!12:12,'EPC + F'!AG5,'EPC Profit'!34:34) -> 0 | AH16: =SUMIF('EPC Profit'!12:12,'EPC + F'!AH5,'EPC Profit'!34:34) -> 0 | AI16: =SUMIF('EPC Profit'!12:12,'EPC + F'!AI5,'EPC Profit'!34:34) -> 0 | AJ16: =SUMIF('EPC Profit'!12:12,'EPC + F'!AJ5,'EPC Profit'!34:34) -> 0 | AK16: =SUMIF('EPC Profit'!12:12,'EPC + F'!AK5,'EPC Profit'!34:34) -> 0 | AL16: =SUMIF('EPC Profit'!12:12,'EPC + F'!AL5,'EPC Profit'!34:34) -> 0 | AM16: =SUMIF('EPC Profit'!12:12,'EPC + F'!AM5,'EPC Profit'!34:34) -> 0 | AN16: =SUMIF('EPC Profit'!12:12,'EPC + F'!AN5,'EPC Profit'!34:34) -> 0 | AO16: =SUMIF('EPC Profit'!12:12,'EPC + F'!AO5,'EPC Profit'!34:34) -> 0 | AP16: =SUMIF('EPC Profit'!12:12,'EPC + F'!AP5,'EPC Profit'!34:34) -> 0 | AQ16: =SUMIF('EPC Profit'!12:12,'EPC + F'!AQ5,'EPC Profit'!34:34) -> 0 | AR16: =SUMIF('EPC Profit'!12:12,'EPC + F'!AR5,'EPC Profit'!34:34) -> 0 | AS16: =SUMIF('EPC Profit'!12:12,'EPC + F'!AS5,'EPC Profit'!34:34) -> 0 | AT16: =SUMIF('EPC Profit'!12:12,'EPC + F'!AT5,'EPC Profit'!34:34) -> 0 | AU16: =SUMIF('EPC Profit'!12:12,'EPC + F'!AU5,'EPC Profit'!34:34) -> 0 | AV16: =SUMIF('EPC Profit'!12:12,'EPC + F'!AV5,'EPC Profit'!34:34) -> 905.14 | AW16: =SUMIF('EPC Profit'!12:12,'EPC + F'!AW5,'EPC Profit'!34:34) -> 0 | AX16: =SUMIF('EPC Profit'!12:12,'EPC + F'!AX5,'EPC Profit'!34:34) -> 0 | AY16: =SUMIF('EPC Profit'!12:12,'EPC + F'!AY5,'EPC Profit'!34:34) -> 0 | AZ16: =SUMIF('EPC Profit'!12:12,'EPC + F'!AZ5,'EPC Profit'!34:34) -> 0 | BA16: =SUMIF('EPC Profit'!12:12,'EPC + F'!BA5,'EPC Profit'!34:34) -> 0 | BB16: =SUMIF('EPC Profit'!12:12,'EPC + F'!BB5,'EPC Profit'!34:34) -> 0 | BC16: =SUMIF('EPC Profit'!12:12,'EPC + F'!BC5,'EPC Profit'!34:34) -> 0 | BD16: =SUMIF('EPC Profit'!12:12,'EPC + F'!BD5,'EPC Profit'!34:34) -> 0 | BE16: =SUMIF('EPC Profit'!12:12,'EPC + F'!BE5,'EPC Profit'!34:34) -> 0 | BF16: =SUMIF('EPC Profit'!12:12,'EPC + F'!BF5,'EPC Profit'!34:34) -> 0 | BG16: =SUMIF('EPC Profit'!12:12,'EPC + F'!BG5,'EPC Profit'!34:34) -> 0 | BH16: =SUMIF('EPC Profit'!12:12,'EPC + F'!BH5,'EPC Profit'!34:34) -> 0 | BI16: =SUMIF('EPC Profit'!12:12,'EPC + F'!BI5,'EPC Profit'!34:34) -> 0 | BJ16: =SUMIF('EPC Profit'!12:12,'EPC + F'!BJ5,'EPC Profit'!34:34) -> 0 | BK16: =SUMIF('EPC Profit'!12:12,'EPC + F'!BK5,'EPC Profit'!34:34) -> 0 | BL16: =SUMIF('EPC Profit'!12:12,'EPC + F'!BL5,'EPC Profit'!34:34) -> 0 | BM16: =SUMIF('EPC Profit'!12:12,'EPC + F'!BM5,'EPC Profit'!34:34) -> 0 | BN16: =SUMIF('EPC Profit'!12:12,'EPC + F'!BN5,'EPC Profit'!34:34) -> 0 | BO16: =SUMIF('EPC Profit'!12:12,'EPC + F'!BO5,'EPC Profit'!34:34) -> 0 | BP16: =SUMIF('EPC Profit'!12:12,'EPC + F'!BP5,'EPC Profit'!34:34) -> 0 | BQ16: =SUMIF('EPC Profit'!12:12,'EPC + F'!BQ5,'EPC Profit'!34:34) -> 0 | BR16: =SUMIF('EPC Profit'!12:12,'EPC + F'!BR5,'EPC Profit'!34:34) -> 0 | BS16: =SUMIF('EPC Profit'!12:12,'EPC + F'!BS5,'EPC Profit'!34:34) -> 0 | BT16: =SUMIF('EPC Profit'!12:12,'EPC + F'!BT5,'EPC Profit'!34:34) -> 0 | BU16: =SUMIF('EPC Profit'!12:12,'EPC + F'!BU5,'EPC Profit'!34:34) -> 0 | BV16: =SUMIF('EPC Profit'!12:12,'EPC + F'!BV5,'EPC Profit'!34:34) -> 0 | BW16: =SUMIF('EPC Profit'!12:12,'EPC + F'!BW5,'EPC Profit'!34:34) -> 0 | BX16: =SUMIF('EPC Profit'!12:12,'EPC + F'!BX5,'EPC Profit'!34:34) -> 0 | BY16: =SUMIF('EPC Profit'!12:12,'EPC + F'!BY5,'EPC Profit'!34:34) -> 0 | BZ16: =SUMIF('EPC Profit'!12:12,'EPC + F'!BZ5,'EPC Profit'!34:34) -> 0 | CA16: =SUMIF('EPC Profit'!12:12,'EPC + F'!CA5,'EPC Profit'!34:34) -> 0 | CB16: =SUMIF('EPC Profit'!12:12,'EPC + F'!CB5,'EPC Profit'!34:34) -> 0 | CC16: =SUMIF('EPC Profit'!12:12,'EPC + F'!CC5,'EPC Profit'!34:34) -> 0 | CD16: =SUMIF('EPC Profit'!12:12,'EPC + F'!CD5,'EPC Profit'!34:34) -> 0 | CE16: =SUMIF('EPC Profit'!12:12,'EPC + F'!CE5,'EPC Profit'!34:34) -> 0 | CF16: =SUMIF('EPC Profit'!12:12,'EPC + F'!CF5,'EPC Profit'!34:34) -> 0 | CG16: =SUMIF('EPC Profit'!12:12,'EPC + F'!CG5,'EPC Profit'!34:34) -> 0 | CH16: =SUMIF('EPC Profit'!12:12,'EPC + F'!CH5,'EPC Profit'!34:34) -> 0 | CI16: =SUMIF('EPC Profit'!12:12,'EPC + F'!CI5,'EPC Profit'!34:34) -> 0 | CJ16: =SUMIF('EPC Profit'!12:12,'EPC + F'!CJ5,'EPC Profit'!34:34) -> 0 | CK16: =SUMIF('EPC Profit'!12:12,'EPC + F'!CK5,'EPC Profit'!34:34) -> 0 | CL16: =SUMIF('EPC Profit'!12:12,'EPC + F'!CL5,'EPC Profit'!34:34) -> 0 | CM16: =SUMIF('EPC Profit'!12:12,'EPC + F'!CM5,'EPC Profit'!34:34) -> 0 | CN16: =SUMIF('EPC Profit'!12:12,'EPC + F'!CN5,'EPC Profit'!34:34) -> 0 | CO16: =SUMIF('EPC Profit'!12:12,'EPC + F'!CO5,'EPC Profit'!34:34) -> 0 | CP16: =SUMIF('EPC Profit'!12:12,'EPC + F'!CP5,'EPC Profit'!34:34) -> 0 | CQ16: =SUMIF('EPC Profit'!12:12,'EPC + F'!CQ5,'EPC Profit'!34:34) -> 0 | CR16: =SUMIF('EPC Profit'!12:12,'EPC + F'!CR5,'EPC Profit'!34:34) -> 0 | CS16: =SUMIF('EPC Profit'!12:12,'EPC + F'!CS5,'EPC Profit'!34:34) -> 0 | CT16: =SUMIF('EPC Profit'!12:12,'EPC + F'!CT5,'EPC Profit'!34:34) -> 0 | CU16: =SUMIF('EPC Profit'!12:12,'EPC + F'!CU5,'EPC Profit'!34:34) -> 0 | CV16: =SUMIF('EPC Profit'!12:12,'EPC + F'!CV5,'EPC Profit'!34:34) -> 0 | CW16: =SUMIF('EPC Profit'!12:12,'EPC + F'!CW5,'EPC Profit'!34:34) -> 0 | CX16: =SUMIF('EPC Profit'!12:12,'EPC + F'!CX5,'EPC Profit'!34:34) -> 0 | CY16: =SUMIF('EPC Profit'!12:12,'EPC + F'!CY5,'EPC Profit'!34:34) -> 0 | CZ16: =SUMIF('EPC Profit'!12:12,'EPC + F'!CZ5,'EPC Profit'!34:34) -> 0 | DA16: =SUMIF('EPC Profit'!12:12,'EPC + F'!DA5,'EPC Profit'!34:34) -> 0 | DB16: =SUMIF('EPC Profit'!12:12,'EPC + F'!DB5,'EPC Profit'!34:34) -> 0 | DC16: =SUMIF('EPC Profit'!12:12,'EPC + F'!DC5,'EPC Profit'!34:34) -> 0 | DD16: =SUMIF('EPC Profit'!12:12,'EPC + F'!DD5,'EPC Profit'!34:34) -> 0 | DE16: =SUMIF('EPC Profit'!12:12,'EPC + F'!DE5,'EPC Profit'!34:34) -> 0 | DF16: =SUMIF('EPC Profit'!12:12,'EPC + F'!DF5,'EPC Profit'!34:34) -> 0
D18: Rental Payment | F18: EUR | G18: ='Finance Inputs'!G3 -> 130 | K18: =$G$18*K7 -> 0 | L18: =$G$18*L7 -> 0 | M18: =$G$18*M7 -> 0 | N18: =$G$18*N7 -> 0 | O18: =$G$18*O7 -> 0 | P18: =$G$18*P7 -> 0 | Q18: =$G$18*Q7 -> 0 | R18: =$G$18*R7 -> 0 | S18: =$G$18*S7 -> 0 | T18: =$G$18*T7 -> 0 | U18: =$G$18*U7 -> 0 | V18: =$G$18*V7 -> 0 | W18: =$G$18*W7 -> 0 | X18: =$G$18*X7 -> 0 | Y18: =$G$18*Y7 -> 0 | Z18: =$G$18*Z7 -> 0 | AA18: =$G$18*AA7 -> 0 | AB18: =$G$18*AB7 -> 0 | AC18: =$G$18*AC7 -> 0 | AD18: =$G$18*AD7 -> 0 | AE18: =$G$18*AE7 -> 0 | AF18: =$G$18*AF7 -> 0 | AG18: =$G$18*AG7 -> 0 | AH18: =$G$18*AH7 -> 0 | AI18: =$G$18*AI7 -> 0 | AJ18: =$G$18*AJ7 -> 0 | AK18: =$G$18*AK7 -> 0 | AL18: =$G$18*AL7 -> 0 | AM18: =$G$18*AM7 -> 0 | AN18: =$G$18*AN7 -> 0 | AO18: =$G$18*AO7 -> 0 | AP18: =$G$18*AP7 -> 0 | AQ18: =$G$18*AQ7 -> 0 | AR18: =$G$18*AR7 -> 0 | AS18: =$G$18*AS7 -> 130 | AT18: =$G$18*AT7 -> 130 | AU18: =$G$18*AU7 -> 130 | AV18: =$G$18*AV7 -> 130 | AW18: =$G$18*AW7 -> 130 | AX18: =$G$18*AX7 -> 130 | AY18: =$G$18*AY7 -> 130 | AZ18: =$G$18*AZ7 -> 130 | BA18: =$G$18*BA7 -> 130 | BB18: =$G$18*BB7 -> 130 | BC18: =$G$18*BC7 -> 130 | BD18: =$G$18*BD7 -> 130 | BE18: =$G$18*BE7 -> 130 | BF18: =$G$18*BF7 -> 130 | BG18: =$G$18*BG7 -> 130 | BH18: =$G$18*BH7 -> 130 | BI18: =$G$18*BI7 -> 130 | BJ18: =$G$18*BJ7 -> 130 | BK18: =$G$18*BK7 -> 130 | BL18: =$G$18*BL7 -> 130 | BM18: =$G$18*BM7 -> 130 | BN18: =$G$18*BN7 -> 130 | BO18: =$G$18*BO7 -> 0 | BP18: =$G$18*BP7 -> 0 | BQ18: =$G$18*BQ7 -> 0 | BR18: =$G$18*BR7 -> 0 | BS18: =$G$18*BS7 -> 0 | BT18: =$G$18*BT7 -> 0 | BU18: =$G$18*BU7 -> 0 | BV18: =$G$18*BV7 -> 0 | BW18: =$G$18*BW7 -> 0 | BX18: =$G$18*BX7 -> 0 | BY18: =$G$18*BY7 -> 0 | BZ18: =$G$18*BZ7 -> 0 | CA18: =$G$18*CA7 -> 0 | CB18: =$G$18*CB7 -> 0 | CC18: =$G$18*CC7 -> 0 | CD18: =$G$18*CD7 -> 0 | CE18: =$G$18*CE7 -> 0 | CF18: =$G$18*CF7 -> 0 | CG18: =$G$18*CG7 -> 0 | CH18: =$G$18*CH7 -> 0 | CI18: =$G$18*CI7 -> 0 | CJ18: =$G$18*CJ7 -> 0 | CK18: =$G$18*CK7 -> 0 | CL18: =$G$18*CL7 -> 0 | CM18: =$G$18*CM7 -> 0 | CN18: =$G$18*CN7 -> 0 | CO18: =$G$18*CO7 -> 0 | CP18: =$G$18*CP7 -> 0 | CQ18: =$G$18*CQ7 -> 0 | CR18: =$G$18*CR7 -> 0 | CS18: =$G$18*CS7 -> 0 | CT18: =$G$18*CT7 -> 0 | CU18: =$G$18*CU7 -> 0 | CV18: =$G$18*CV7 -> 0 | CW18: =$G$18*CW7 -> 0 | CX18: =$G$18*CX7 -> 0 | CY18: =$G$18*CY7 -> 0 | CZ18: =$G$18*CZ7 -> 0 | DA18: =$G$18*DA7 -> 0 | DB18: =$G$18*DB7 -> 0 | DC18: =$G$18*DC7 -> 0 | DD18: =$G$18*DD7 -> 0 | DE18: =$G$18*DE7 -> 0 | DF18: =$G$18*DF7 -> 0
B22: Financing - Uses and Source of Funds
D23: Uses of Funds | J23: Applied | K23: Calculated | L23: Fixed
E24: EPC Cost | F24: EUR | I24: =I14 -> 27600 | K24: =I55 -> 27600 | L24: 27140
E25: Add: EXIM Premium | F25: EUR | I25: ='Finance Inputs'!G14 -> 0 | K25: =I56 -> 0 | L25: 0
E26: Add: Interest During Construction | F26: EUR | I26: =L26 -> 2106.198341 | K26: =I57 -> 3757.996273 | L26: 2106.198341
E27: Add: Up-Front Fee During Construction | F27: EUR | I27: =L27 -> 154.1460539 | K27: =K105 -> 156.4460539 | L27: 154.1460539
E28: Add: Commitment Fee During Construction | F28: EUR | I28: =L28 -> 737.1306093 | K28: =I59 -> 641.051766 | L28: 737.1306093
E29: Add: Political Risk Premium | F29: EUR | I29: =L29 -> 619.4701004 | K29: =I60 -> 1105.293021 | L29: 619.4701004
E30: Add: Witholding Tax | F30: EUR | I30: =L30 -> 72.2656754 | K30: =I61 -> 64.6619854 | L30: 72.2656754
E31: Debt Service Reserve Account | F31: EUR
E32: Total Uses of Funds | F32: EUR | I32: =SUM(I24:I31) -> 31289.21078 | K32: =SUM(K26:K31) -> 5725.449099 | L32: =SUM(L26:L31) -> 3689.21078 | M32: =L32-K32 -> -2036.238319 | N32: Difference
D34: Sources of Funds
E35: Off-taker Funding | F35: EUR | G35: ='Finance Inputs'!G8 -> 0.2 | H35: ='Finance Inputs'!G7 -> TRUE | I35: =I32*G35 -> 6257.842156
E36: EPC Contractor Funding | F36: EUR | H36: =NOT(H35) -> FALSE | I36: 0
E37: Debt Funding | F37: EUR | I37: =I32-I35 -> 25031.36862
E38: Total Sources of Funds | F38: EUR | I38: =SUM(I35:I37) -> 31289.21078
E40: First Debt Funding | F40: % | I40: 1
E41: Debt Funding | F41: EUR | I41: =I40*I37 -> 25031.36862
E42: Other Funding | F42: EUR | I42: =I37-I41 -> 0
E43: Percent Multilateral Debt | F43: EUR | I43: =IF(I42,I37/I42) -> FALSE
E44: Percent Equity | F44: EUR | I44: =(I35+I36)/I32 -> 0.2
D46: Liquidated Damage
E47: Liquidated Damage from PPA | F47: EUR | I47: ='EPC Profit'!G32 -> 905.14
E48: Liquidated Damage from IDC | F48: EUR
E49: Total Liquidated Damages | F49: EUR | I49: =SUM(I47:I48) -> 905.14
E50: Reduced Debt Funding | F50: EUR | G50: ='Operating Inputs'!G38 -> TRUE | I50: =I49*G50 -> 905.14
E51: Reduced Equity Funding | F51: EUR | I51: =I49-I50 -> 0
B53: Period by Period Financing
D54: Funding Requirements
E55: EPC Cost | F55: EUR | I55: =SUM(K55:DF55) -> 27600 | K55: =K14 -> 1717.268878 | L55: =L14 -> 1959.279499 | M55: 2024.414325 | N55: 1999.974793 | O55: 1923.001736 | P55: 1814.460612 | Q55: 1687.808823 | R55: 1552.20941 | S55: 1414.054685 | T55: 1277.814611 | U55: 1146.567188 | V55: 1022.358705 | W55: 906.4628791 | X55: 799.5745328 | Y55: 701.9578364 | Z55: 613.5613215 | AA55: 534.107646 | AB55: 463.1636651 | AC55: 400.1948852 | AD55: 344.6074187 | AE55: 295.7798947 | AF55: 253.0873019 | AG55: 215.9183715 | AH55: 183.687823 | AI55: 155.8445573 | AJ55: 131.8766903 | AK55: 111.3141595 | AL55: 93.72949848 | AM55: 78.73726188 | AN55: 65.9924877 | AO55: 55.18850396 | AP55: 0 | AQ55: 0 | AR55: 0 | AS55: 0 | AT55: 0 | AU55: 0 | AV55: 1656 | AW55: 0 | AX55: 0 | AY55: 0 | AZ55: 0 | BA55: 0 | BB55: 0 | BC55: 0 | BD55: 0 | BE55: 0 | BF55: 0 | BG55: 0 | BH55: 0 | BI55: 0 | BJ55: 0 | BK55: 0 | BL55: 0 | BM55: 0 | BN55: 0 | BO55: 0 | BP55: 0 | BQ55: 0 | BR55: 0 | BS55: 0 | BT55: 0 | BU55: 0 | BV55: 0 | BW55: 0 | BX55: =BX14 -> 0 | BY55: 0 | BZ55: 0 | CA55: 0 | CB55: 0 | CC55: 0 | CD55: 0 | CE55: 0 | CF55: 0 | CG55: 0 | CH55: 0 | CI55: 0 | CJ55: 0 | CK55: 0 | CL55: 0 | CM55: 0 | CN55: 0 | CO55: 0 | CP55: 0 | CQ55: 0 | CR55: 0 | CS55: 0 | CT55: 0 | CU55: 0 | CV55: 0 | CW55: 0 | CX55: 0 | CY55: 0 | CZ55: 0 | DA55: 0 | DB55: 0 | DC55: 0 | DD55: 0 | DE55: 0 | DF55: 0
E56: Add: Country Premium | F56: EUR | G56: =I25 -> 0 | H56: =K5 -> 2020-01-01 | I56: =SUM(K56:DF56) -> 0 | K56: =(K5=$H$56)*$G$56 -> 0 | L56: =(L5=$H$56)*$G$56 -> 0 | M56: =(M5=$H$56)*$G$56 -> 0 | N56: =(N5=$H$56)*$G$56 -> 0 | O56: =(O5=$H$56)*$G$56 -> 0 | P56: =(P5=$H$56)*$G$56 -> 0 | Q56: =(Q5=$H$56)*$G$56 -> 0 | R56: =(R5=$H$56)*$G$56 -> 0 | S56: =(S5=$H$56)*$G$56 -> 0 | T56: =(T5=$H$56)*$G$56 -> 0 | U56: =(U5=$H$56)*$G$56 -> 0 | V56: =(V5=$H$56)*$G$56 -> 0 | W56: =(W5=$H$56)*$G$56 -> 0 | X56: =(X5=$H$56)*$G$56 -> 0 | Y56: =(Y5=$H$56)*$G$56 -> 0 | Z56: =(Z5=$H$56)*$G$56 -> 0 | AA56: =(AA5=$H$56)*$G$56 -> 0 | AB56: =(AB5=$H$56)*$G$56 -> 0 | AC56: =(AC5=$H$56)*$G$56 -> 0 | AD56: =(AD5=$H$56)*$G$56 -> 0 | AE56: =(AE5=$H$56)*$G$56 -> 0 | AF56: =(AF5=$H$56)*$G$56 -> 0 | AG56: =(AG5=$H$56)*$G$56 -> 0 | AH56: =(AH5=$H$56)*$G$56 -> 0 | AI56: =(AI5=$H$56)*$G$56 -> 0 | AJ56: =(AJ5=$H$56)*$G$56 -> 0 | AK56: =(AK5=$H$56)*$G$56 -> 0 | AL56: =(AL5=$H$56)*$G$56 -> 0 | AM56: =(AM5=$H$56)*$G$56 -> 0 | AN56: =(AN5=$H$56)*$G$56 -> 0 | AO56: =(AO5=$H$56)*$G$56 -> 0 | AP56: =(AP5=$H$56)*$G$56 -> 0 | AQ56: =(AQ5=$H$56)*$G$56 -> 0 | AR56: =(AR5=$H$56)*$G$56 -> 0 | AS56: =(AS5=$H$56)*$G$56 -> 0 | AT56: =(AT5=$H$56)*$G$56 -> 0 | AU56: =(AU5=$H$56)*$G$56 -> 0 | AV56: =(AV5=$H$56)*$G$56 -> 0 | AW56: =(AW5=$H$56)*$G$56 -> 0 | AX56: =(AX5=$H$56)*$G$56 -> 0 | AY56: =(AY5=$H$56)*$G$56 -> 0 | AZ56: =(AZ5=$H$56)*$G$56 -> 0 | BA56: =(BA5=$H$56)*$G$56 -> 0 | BB56: =(BB5=$H$56)*$G$56 -> 0 | BC56: =(BC5=$H$56)*$G$56 -> 0 | BD56: =(BD5=$H$56)*$G$56 -> 0 | BE56: =(BE5=$H$56)*$G$56 -> 0 | BF56: =(BF5=$H$56)*$G$56 -> 0 | BG56: =(BG5=$H$56)*$G$56 -> 0 | BH56: =(BH5=$H$56)*$G$56 -> 0 | BI56: =(BI5=$H$56)*$G$56 -> 0 | BJ56: =(BJ5=$H$56)*$G$56 -> 0 | BK56: =(BK5=$H$56)*$G$56 -> 0 | BL56: =(BL5=$H$56)*$G$56 -> 0 | BM56: =(BM5=$H$56)*$G$56 -> 0 | BN56: =(BN5=$H$56)*$G$56 -> 0 | BO56: =(BO5=$H$56)*$G$56 -> 0 | BP56: =(BP5=$H$56)*$G$56 -> 0 | BQ56: =(BQ5=$H$56)*$G$56 -> 0 | BR56: =(BR5=$H$56)*$G$56 -> 0 | BS56: =(BS5=$H$56)*$G$56 -> 0 | BT56: =(BT5=$H$56)*$G$56 -> 0 | BU56: =(BU5=$H$56)*$G$56 -> 0 | BV56: =(BV5=$H$56)*$G$56 -> 0 | BW56: =(BW5=$H$56)*$G$56 -> 0 | BX56: =(BX5=$H$56)*$G$56 -> 0 | BY56: =(BY5=$H$56)*$G$56 -> 0 | BZ56: =(BZ5=$H$56)*$G$56 -> 0 | CA56: =(CA5=$H$56)*$G$56 -> 0 | CB56: =(CB5=$H$56)*$G$56 -> 0 | CC56: =(CC5=$H$56)*$G$56 -> 0 | CD56: =(CD5=$H$56)*$G$56 -> 0 | CE56: =(CE5=$H$56)*$G$56 -> 0 | CF56: =(CF5=$H$56)*$G$56 -> 0 | CG56: =(CG5=$H$56)*$G$56 -> 0 | CH56: =(CH5=$H$56)*$G$56 -> 0 | CI56: =(CI5=$H$56)*$G$56 -> 0 | CJ56: =(CJ5=$H$56)*$G$56 -> 0 | CK56: =(CK5=$H$56)*$G$56 -> 0 | CL56: =(CL5=$H$56)*$G$56 -> 0 | CM56: =(CM5=$H$56)*$G$56 -> 0 | CN56: =(CN5=$H$56)*$G$56 -> 0 | CO56: =(CO5=$H$56)*$G$56 -> 0 | CP56: =(CP5=$H$56)*$G$56 -> 0 | CQ56: =(CQ5=$H$56)*$G$56 -> 0 | CR56: =(CR5=$H$56)*$G$56 -> 0 | CS56: =(CS5=$H$56)*$G$56 -> 0 | CT56: =(CT5=$H$56)*$G$56 -> 0 | CU56: =(CU5=$H$56)*$G$56 -> 0 | CV56: =(CV5=$H$56)*$G$56 -> 0 | CW56: =(CW5=$H$56)*$G$56 -> 0 | CX56: =(CX5=$H$56)*$G$56 -> 0 | CY56: =(CY5=$H$56)*$G$56 -> 0 | CZ56: =(CZ5=$H$56)*$G$56 -> 0 | DA56: =(DA5=$H$56)*$G$56 -> 0 | DB56: =(DB5=$H$56)*$G$56 -> 0 | DC56: =(DC5=$H$56)*$G$56 -> 0 | DD56: =(DD5=$H$56)*$G$56 -> 0 | DE56: =(DE5=$H$56)*$G$56 -> 0 | DF56: =(DF5=$H$56)*$G$56 -> 0
E57: Add: Interest During Construction | F57: EUR | I57: 3757.996273 | K57: =K97 -> 0 | L57: =L97 -> 0 | M57: 0 | N57: 0 | O57: 12.95338885 | P57: 27.04874652 | Q57: 40.47400223 | R57: 53.09617836 | S57: 64.84627073 | T57: 75.70007072 | U57: 85.66486233 | V57: 94.76978314 | W57: 103.0586693 | X57: 110.5846863 | Y57: 117.4062934 | Z57: 123.584231 | AA57: 129.1793 | AB57: 134.2507627 | AC57: 138.8552287 | AD57: 143.0459179 | AE57: 146.8722162 | AF57: 150.3794542 | AG57: 153.6088528 | AH57: 156.5975918 | AI57: 159.3789657 | AJ57: 161.9825986 | AK57: 164.4346963 | AL57: 166.7583185 | AM57: 168.9736585 | AN57: 171.0983208 | AO57: 173.1475898 | AP57: 175.1346848 | AQ57: 176.7447798 | AR57: 178.3661527 | AS57: 0 | AT57: 0 | AU57: 0 | AV57: 0 | AW57: 0 | AX57: 0 | AY57: 0 | AZ57: 0 | BA57: 0 | BB57: 0 | BC57: 0 | BD57: 0 | BE57: 0 | BF57: 0 | BG57: 0 | BH57: 0 | BI57: 0 | BJ57: 0 | BK57: 0 | BL57: 0 | BM57: 0 | BN57: 0 | BO57: 0 | BP57: 0 | BQ57: 0 | BR57: 0 | BS57: 0 | BT57: 0 | BU57: 0 | BV57: 0 | BW57: 0 | BX57: =BX97 -> 0 | BY57: 0 | BZ57: 0 | CA57: 0 | CB57: 0 | CC57: 0 | CD57: 0 | CE57: 0 | CF57: 0 | CG57: 0 | CH57: 0 | CI57: 0 | CJ57: 0 | CK57: 0 | CL57: 0 | CM57: 0 | CN57: 0 | CO57: 0 | CP57: 0 | CQ57: 0 | CR57: 0 | CS57: 0 | CT57: 0 | CU57: 0 | CV57: 0 | CW57: 0 | CX57: 0 | CY57: 0 | CZ57: 0 | DA57: 0 | DB57: 0 | DC57: 0 | DD57: 0 | DE57: 0 | DF57: 0
E58: Add: Up-Front Fee During Construction | F58: EUR | I58: 156.4460539 | K58: =K105 -> 156.4460539 | L58: =L105 -> 0 | M58: 0 | N58: 0 | O58: 0 | P58: 0 | Q58: 0 | R58: 0 | S58: 0 | T58: 0 | U58: 0 | V58: 0 | W58: 0 | X58: 0 | Y58: 0 | Z58: 0 | AA58: 0 | AB58: 0 | AC58: 0 | AD58: 0 | AE58: 0 | AF58: 0 | AG58: 0 | AH58: 0 | AI58: 0 | AJ58: 0 | AK58: 0 | AL58: 0 | AM58: 0 | AN58: 0 | AO58: 0 | AP58: 0 | AQ58: 0 | AR58: 0 | AS58: 0 | AT58: 0 | AU58: 0 | AV58: 0 | AW58: 0 | AX58: 0 | AY58: 0 | AZ58: 0 | BA58: 0 | BB58: 0 | BC58: 0 | BD58: 0 | BE58: 0 | BF58: 0 | BG58: 0 | BH58: 0 | BI58: 0 | BJ58: 0 | BK58: 0 | BL58: 0 | BM58: 0 | BN58: 0 | BO58: 0 | BP58: 0 | BQ58: 0 | BR58: 0 | BS58: 0 | BT58: 0 | BU58: 0 | BV58: 0 | BW58: 0 | BX58: =BX105 -> 0 | BY58: 0 | BZ58: 0 | CA58: 0 | CB58: 0 | CC58: 0 | CD58: 0 | CE58: 0 | CF58: 0 | CG58: 0 | CH58: 0 | CI58: 0 | CJ58: 0 | CK58: 0 | CL58: 0 | CM58: 0 | CN58: 0 | CO58: 0 | CP58: 0 | CQ58: 0 | CR58: 0 | CS58: 0 | CT58: 0 | CU58: 0 | CV58: 0 | CW58: 0 | CX58: 0 | CY58: 0 | CZ58: 0 | DA58: 0 | DB58: 0 | DC58: 0 | DD58: 0 | DE58: 0 | DF58: 0
E59: Add: Commitment Fee During Construction | F59: EUR | I59: 641.051766 | K59: =K111 -> 50.06273725 | L59: =L111 -> 50.06273725 | M59: 50.06273725 | N59: 50.06273725 | O59: 46.40530981 | P59: 42.42544411 | Q59: 38.63478368 | R59: 35.07087512 | S59: 31.75320198 | T59: 28.68859963 | U59: 25.87501141 | V59: 23.30421025 | W59: 20.96381886 | X59: 18.83882584 | Y59: 16.91272499 | Z59: 15.16836615 | AA59: 13.58858197 | AB59: 12.15663954 | AC59: 10.85655502 | AD59: 9.67330161 | AE59: 8.592935033 | AF59: 7.602656071 | AG59: 6.690825881 | AH59: 5.846946633 | AI59: 5.061617526 | AJ59: 4.32647411 | AK59: 3.634117112 | AL59: 2.978035558 | AM59: 2.352527799 | AN59: 1.752623143 | AO59: 1.174005999 | AP59: 0.6129438966 | AQ59: 0.1583288401 | AR59: -0.2994705696 | AS59: 0 | AT59: 0 | AU59: 0 | AV59: 0 | AW59: 0 | AX59: 0 | AY59: 0 | AZ59: 0 | BA59: 0 | BB59: 0 | BC59: 0 | BD59: 0 | BE59: 0 | BF59: 0 | BG59: 0 | BH59: 0 | BI59: 0 | BJ59: 0 | BK59: 0 | BL59: 0 | BM59: 0 | BN59: 0 | BO59: 0 | BP59: 0 | BQ59: 0 | BR59: 0 | BS59: 0 | BT59: 0 | BU59: 0 | BV59: 0 | BW59: 0 | BX59: =BX111 -> 0 | BY59: 0 | BZ59: 0 | CA59: 0 | CB59: 0 | CC59: 0 | CD59: 0 | CE59: 0 | CF59: 0 | CG59: 0 | CH59: 0 | CI59: 0 | CJ59: 0 | CK59: 0 | CL59: 0 | CM59: 0 | CN59: 0 | CO59: 0 | CP59: 0 | CQ59: 0 | CR59: 0 | CS59: 0 | CT59: 0 | CU59: 0 | CV59: 0 | CW59: 0 | CX59: 0 | CY59: 0 | CZ59: 0 | DA59: 0 | DB59: 0 | DC59: 0 | DD59: 0 | DE59: 0 | DF59: 0
E60: Add: Political Risk Premium | F60: EUR | I60: 1105.293021 | K60: =K102 -> 0 | L60: =L102 -> 0 | M60: 0 | N60: 0 | O60: 3.809820251 | P60: 7.955513683 | Q60: 11.9041183 | R60: 15.61652305 | S60: 19.07243257 | T60: 22.26472668 | U60: 25.19554775 | V60: 27.87346563 | W60: 30.31137333 | X60: 32.52490772 | Y60: 34.53126277 | Z60: 36.34830323 | AA60: 37.99391175 | AB60: 39.48551845 | AC60: 40.83977316 | AD60: 42.07232879 | AE60: 43.19771064 | AF60: 44.22925123 | AG60: 45.17907434 | AH60: 46.05811522 | AI60: 46.87616638 | AJ60: 47.64194077 | AK60: 48.36314598 | AL60: 49.04656426 | AM60: 49.69813484 | AN60: 50.32303553 | AO60: 50.92576172 | AP60: 51.51020141 | AQ60: 51.98375876 | AR60: 52.46063314 | AS60: 0 | AT60: 0 | AU60: 0 | AV60: 0 | AW60: 0 | AX60: 0 | AY60: 0 | AZ60: 0 | BA60: 0 | BB60: 0 | BC60: 0 | BD60: 0 | BE60: 0 | BF60: 0 | BG60: 0 | BH60: 0 | BI60: 0 | BJ60: 0 | BK60: 0 | BL60: 0 | BM60: 0 | BN60: 0 | BO60: 0 | BP60: 0 | BQ60: 0 | BR60: 0 | BS60: 0 | BT60: 0 | BU60: 0 | BV60: 0 | BW60: 0 | BX60: =BX102 -> 0 | BY60: 0 | BZ60: 0 | CA60: 0 | CB60: 0 | CC60: 0 | CD60: 0 | CE60: 0 | CF60: 0 | CG60: 0 | CH60: 0 | CI60: 0 | CJ60: 0 | CK60: 0 | CL60: 0 | CM60: 0 | CN60: 0 | CO60: 0 | CP60: 0 | CQ60: 0 | CR60: 0 | CS60: 0 | CT60: 0 | CU60: 0 | CV60: 0 | CW60: 0 | CX60: 0 | CY60: 0 | CZ60: 0 | DA60: 0 | DB60: 0 | DC60: 0 | DD60: 0 | DE60: 0 | DF60: 0
E61: Add: Withholding Taxes | F61: EUR | I61: 64.6619854 | K61: =K115 -> 16.74395604 | L61: =L115 -> 4.059140858 | M61: 4.059140858 | N61: 4.059140858 | O61: 3.762592687 | P61: 3.439900874 | Q61: 3.132550028 | R61: 2.84358447 | S61: 2.574583945 | T61: 2.326102673 | U61: 2.097973898 | V61: 1.88953056 | W61: 1.699769096 | X61: 1.527472365 | Y61: 1.371302026 | Z61: 1.229867525 | AA61: 1.101776916 | AB61: 0.9856734758 | AC61: 0.8802612176 | AD61: 0.7843217522 | AE61: 0.6967244621 | AF61: 0.6164315733 | AG61: 0.5424993957 | AH61: 0.474076754 | AI61: 0.4104014211 | AJ61: 0.3507951981 | AK61: 0.2946581442 | AL61: 0.2414623425 | AM61: 0.1907454973 | AN61: 0.1421045791 | AO61: 0.0951896756 | AP61: 0.04969815378 | AQ61: 0.01283747353 | AR61: -0.02428139753 | AS61: 0 | AT61: 0 | AU61: 0 | AV61: 0 | AW61: 0 | AX61: 0 | AY61: 0 | AZ61: 0 | BA61: 0 | BB61: 0 | BC61: 0 | BD61: 0 | BE61: 0 | BF61: 0 | BG61: 0 | BH61: 0 | BI61: 0 | BJ61: 0 | BK61: 0 | BL61: 0 | BM61: 0 | BN61: 0 | BO61: 0 | BP61: 0 | BQ61: 0 | BR61: 0 | BS61: 0 | BT61: 0 | BU61: 0 | BV61: 0 | BW61: 0 | BX61: =BX115 -> 0 | BY61: 0 | BZ61: 0 | CA61: 0 | CB61: 0 | CC61: 0 | CD61: 0 | CE61: 0 | CF61: 0 | CG61: 0 | CH61: 0 | CI61: 0 | CJ61: 0 | CK61: 0 | CL61: 0 | CM61: 0 | CN61: 0 | CO61: 0 | CP61: 0 | CQ61: 0 | CR61: 0 | CS61: 0 | CT61: 0 | CU61: 0 | CV61: 0 | CW61: 0 | CX61: 0 | CY61: 0 | CZ61: 0 | DA61: 0 | DB61: 0 | DC61: 0 | DD61: 0 | DE61: 0 | DF61: 0
E62: Debt Service Reserve Account | F62: EUR
